Workbook

Sheet ProjectInformation
A1: CPN DATA
A2: INFORMATION ADDED BY DESIGNER
A3: Section Engineer | B3: Gustafson
A4: Design Team | B4: Smyth
B5: Ringgenberg
A6: County | B6: MARSHALL
A7: Project Number | B7: STPN-146-4(8)--2J-64
A8: English or Metric | B8: ENGLISH
A9: Revised
A10: Bridge Block
A11: File No. | B11: 27772

Sheet PrintSheets
B94: FILE NO. | I94: =IF(ProjectInformation!$B$11<>"",ProjectInformation!$B$11,"") -> 27772 | P94: =UPPER(ProjectInformation!B8) -> ENGLISH | W94: DESIGN TEAM | AF94: =IF(AND(ProjectInformation!$B$3<>"",ProjectInformation!$B$4<>"",ProjectInformation!$B$5<>""),ProjectInformation!$B$3&"\"&ProjectInformation!$B$4&"\"&ProjectInformation!$B$5,IF(AND(ProjectInformation!$B$3<>"",ProjectInformation!$B$4<>""),ProjectInformation!$B$3&"\"&ProjectInformation!$B$4,IF(ProjectInformation!$B$3<>"",ProjectInformation!$B$3,""))) -> Gustafson\Smyth\Ringgenberg | BN94: =IF(ProjectInformation!$B$6<>"",ProjectInformation!$B$6,"") -> MARSHALL | CX94: COUNTY | DD94: PROJECT NUMBER | DP94: =IF(ProjectInformation!$B$7<>"",ProjectInformation!$B$7,"") -> STPN-146-4(8)--2J-64 | ET94: SHEET NUMBER | FD94: CE.1 | FJ94: =IF(FP94<>"","REVISED","") ->  | FP94: =IF(ProjectInformation!$B$9<>"",ProjectInformation!$B$9,"") -> 
B95: 7/27/2017 10:58:15 AM rringge c:\pw_work\pwmain\rringge\d0543816\64146008_CE1.xlsm
B189: FILE NO. | I189: =IF(ProjectInformation!$B$11<>"",ProjectInformation!$B$11,"") -> 27772 | P189: =UPPER(ProjectInformation!B8) -> ENGLISH | W189: DESIGN TEAM | AF189: =IF(AND(ProjectInformation!$B$3<>"",ProjectInformation!$B$4<>"",ProjectInformation!$B$5<>""),ProjectInformation!$B$3&"\"&ProjectInformation!$B$4&"\"&ProjectInformation!$B$5,IF(AND(ProjectInformation!$B$3<>"",ProjectInformation!$B$4<>""),ProjectInformation!$B$3&"\"&ProjectInformation!$B$4,IF(ProjectInformation!$B$3<>"",ProjectInformation!$B$3,""))) -> Gustafson\Smyth\Ringgenberg | BN189: =IF(ProjectInformation!$B$6<>"",ProjectInformation!$B$6,"") -> MARSHALL | CX189: COUNTY | DD189: PROJECT NUMBER | DP189: =IF(ProjectInformation!$B$7<>"",ProjectInformation!$B$7,"") -> STPN-146-4(8)--2J-64 | ET189: SHEET NUMBER | FD189: =IF($FD$94<>"","CE."& MID(OFFSET($FD$189,-95,0),4,LEN(OFFSET($FD$189,-95,0))-2)+1,"") -> CE.2 | FJ189: =IF(FP189<>"","REVISED","") ->  | FP189: =IF(ProjectInformation!$B$9<>"",ProjectInformation!$B$9,"") -> 
B190: 7/27/2017 10:58:15 AM rringge c:\pw_work\pwmain\rringge\d0543816\64146008_CE1.xlsm
B284: FILE NO. | I284: =IF(ProjectInformation!$B$11<>"",ProjectInformation!$B$11,"") -> 27772 | P284: =UPPER(ProjectInformation!B8) -> ENGLISH | W284: DESIGN TEAM | AF284: =IF(AND(ProjectInformation!$B$3<>"",ProjectInformation!$B$4<>"",ProjectInformation!$B$5<>""),ProjectInformation!$B$3&"\"&ProjectInformation!$B$4&"\"&ProjectInformation!$B$5,IF(AND(ProjectInformation!$B$3<>"",ProjectInformation!$B$4<>""),ProjectInformation!$B$3&"\"&ProjectInformation!$B$4,IF(ProjectInformation!$B$3<>"",ProjectInformation!$B$3,""))) -> Gustafson\Smyth\Ringgenberg | BN284: =IF(ProjectInformation!$B$6<>"",ProjectInformation!$B$6,"") -> MARSHALL | CX284: COUNTY | DD284: PROJECT NUMBER | DP284: =IF(ProjectInformation!$B$7<>"",ProjectInformation!$B$7,"") -> STPN-146-4(8)--2J-64 | ET284: SHEET NUMBER | FD284: =IF($FD$189<>"","CE."& MID(OFFSET($FD$284,-95,0),4,LEN(OFFSET($FD$284,-95,0))-2)+1,"") -> CE.3 | FJ284: =IF(FP284<>"","REVISED","") ->  | FP284: =IF(ProjectInformation!$B$9<>"",ProjectInformation!$B$9,"") -> 
B285: 7/27/2017 10:58:15 AM rringge c:\pw_work\pwmain\rringge\d0543816\64146008_CE1.xlsm
B379: FILE NO. | I379: =IF(ProjectInformation!$B$11<>"",ProjectInformation!$B$11,"") -> 27772 | P379: =UPPER(ProjectInformation!B8) -> ENGLISH | W379: DESIGN TEAM | AF379: =IF(AND(ProjectInformation!$B$3<>"",ProjectInformation!$B$4<>"",ProjectInformation!$B$5<>""),ProjectInformation!$B$3&"\"&ProjectInformation!$B$4&"\"&ProjectInformation!$B$5,IF(AND(ProjectInformation!$B$3<>"",ProjectInformation!$B$4<>""),ProjectInformation!$B$3&"\"&ProjectInformation!$B$4,IF(ProjectInformation!$B$3<>"",ProjectInformation!$B$3,""))) -> Gustafson\Smyth\Ringgenberg | BN379: =IF(ProjectInformation!$B$6<>"",ProjectInformation!$B$6,"") -> MARSHALL | CX379: COUNTY | DD379: PROJECT NUMBER | DP379: =IF(ProjectInformation!$B$7<>"",ProjectInformation!$B$7,"") -> STPN-146-4(8)--2J-64 | ET379: SHEET NUMBER | FD379: =IF($FD$284<>"","CE."& MID(OFFSET($FD$379,-95,0),4,LEN(OFFSET($FD$379,-95,0))-2)+1,"") -> CE.4 | FJ379: =IF(FP379<>"","REVISED","") ->  | FP379: =IF(ProjectInformation!$B$9<>"",ProjectInformation!$B$9,"") -> 
B380: 7/27/2017 10:58:15 AM rringge c:\pw_work\pwmain\rringge\d0543816\64146008_CE1.xlsm

Sheet DE110_12A
A1: TabTitle | B1: =C15 -> POLLUTION PREVENTION PLAN
A2: Number of Tab Columns | B2: 1 | K2: Click to Choose Soil Associations | M2: Click to Choose Hydrologic Soil Group
A3: DE Starter Row Number | B3: 18 | K3: Moody - Trent | L3: B - B | M3: A
A4: TabSheet Starter Row Number | B4: 5 | K4: Galva - Primghar | L4: B - B | M4: B
A5: TabSheet Header Row Count | B5: 4 | K5: Everly - Wilmonton - Letri | L5: B - B - B/D | M5: C
A6: Top Header Cell | B6: I15 | K6: Clarion - Nicollet - Webster | L6: B - B - B/D | M6: D
A7: Bottom Header Cell | B7: I18 | K7: Marna - Kossuth - Bode | L7: C/D - B/D - B
A8: DESheet Row Count | B8: 199 | K8: Kenyon - Clyde - Floyd | L8: B - B/D - B
A9: Fixed Empty Rows | B9: 2 | K9: Rockton | L9: B
A10: Usable Empty Rows | B10: 0 | K10: Downs - Fayette - Nordness | L10: B - B - B
A11: Total Rows Placed | B11: 201 | C11: xlLeft(1) | I11: xlLeft(1) | K11: Dinsdale - Klinger | L11: B - B
A12: Total Rows Needed | B12: =SUM(B8:B10) -> 201 | C12: General | I12: General | K12: Tama - Muscatine - Downs | L12: B - B - B
A13: Last Tab DE Starter Row | B13: 190 | C13: =CELL("width",C13) -> 159 | I13: =CELL("width",C13) -> 159 | K13: Mashall - Shelby | L13: B - B
A14: Last Tab TabSheet Starter Row | B14: 185 | C14: A | I14: =LOWER(C14) -> a | K14: Monona - Ida - Napier | L14: B - B - B
A15: Last Copy Starter Row | B15: 181 | C15: POLLUTION PREVENTION PLAN | E15: Instructions: | I15: 110-12A | K15: Ida - Hamburg | L15: B - B
A16: Tab Loop Number | B16: 4 | E16: 1. Choose your Soil Association(s) | I16: =B17 -> 2017-10-17 | K16: Albaton - Luton - Onawa | L16: D - D - D
A17: Revision Date | B17: 2017-10-17 | C17: ="This Data Entry Sheet fills Tab "&I15&" effective "&TEXT(B17,"mm-dd-yy") -> This Data Entry Sheet fills Tab 110-12A effective 10-17-17 | E17: 2. Determine which Hydrologic Soil Group to use and then select the group for Runoff Coefficient Number. | I17: =C15 -> POLLUTION PREVENTION PLAN | K17: Sharpsburg - Shelby - Adair | L17: B - B - C
A18: Tabulation Width | B18: 2 | C18: This project is regulated by the requirements of the Iowa Department of Natural Resources (DNR) National Pollutant Discharge Elimination | E18: 3. Enter the total acres of the project and all surface areas pertaining to your project. | K18: Pershing - Gosport - Gara | L18: C - C - C
A19: Horizontal Grid Lines | B19: No | C19: System (NPDES) General Permit No. 2 OR an Iowa Department of Natural Resources (DNR) National Pollutant Discharge Elimination System | E19: 4. The rest of the calculations will be automatically populated. | K19: Otley - Ladoga | L19: B - B
C20: (NPDES) individual storm water permit. The Contractor shall carry out the terms and conditions of this permit and the Pollution | K20: Sparta - Chelsea - Dickinson | L20: A - A - B
C21: Prevention Plan (PPP). | E21: Select a Soil Association: | F21: Click to Choose Soil Associations | K21: Fayette | L21: B
F22: =IF(F21<>"Choose Soil Associations",INDEX($L$3:$L$24,MATCH(F21,$K$3:$K$24,FALSE),1),"") ->  | K22: Colo - Cheguest - Titus | L22: B/D - C - B/D
C23: This Base PPP includes information on Roles and Responsibilities, Project Site Description, Controls, Maintenance Procedures, Inspection | K23: Grundy - Haig - Arispe - Gara | L23: C - C/D - C - C
C24: Requirements, Non-Storm Water Controls, Potential Sources of Off Right-of-Way Pollution, and Definitions. This plan references other | E24: Select a second Soil Association if needed: | F24: Click to Choose Soil Associations | K24: Seymour - Edina - Clarinda | L24: C - D - D
C25: documents rather than repeating the information contained in the documents. A copy of this Base Pollution Prevention Plan, amended as | F25: =IF(F24<>"Choose Soil Associations",INDEX($L$3:$L$24,MATCH(F24,$K$3:$K$24,FALSE),1),"") -> 
C26: needed per plan revisions or by contract modification, will be readily available for review.
E27: Select Hydrologic Soil Group: | F27: Click to Choose Hydrologic Soil Group
C28: All contractors shall conduct their operations in a manner that controls pollutants, minimizes erosion, and prevents sediments from
C29: entering waters of the state and leaving the highway right-of-way. The prime contractor shall be responsible for compliance and | E29: Runoff Coefficient Numbers
C30: implementation of the PPP for their entire contract. This responsibility shall be further shared with subcontractors whose work is a | E30: A link to Chapter 10D-01 is provided to use Table 2 for Runoff Coefficient Numbers.
C31: source of potential pollution as defined in this PPP. | E31: Paved Surfaces | F31: =IF($F$27="A",0.85,IF($F$27="B",0.85,IF($F$27="C",0.85,IF($F$27="D",0.85,"Please select Hydrologic Soil Group")))) -> Please select Hydrologic Soil Group
E32: Granular Shoulder Surfaces | F32: =IF($F$27="A",0.25,IF($F$27="B",0.35,IF($F$27="C",0.4,IF($F$27="D",0.4,"")))) -> 
E33: Grass Surfaces | F33: =IF($F$27="A",0.1,IF($F$27="B",0.2,IF($F$27="C",0.3,IF($F$27="D",0.3,"")))) -> 
C34: I. ROLES AND RESPONSIBILITES
C35: A. Designer: | G35: ACRES
C36: 1. Prepares Base PPP included in the project plan. | E36: Total Acres = (average ROW width x length of permit limits) + interchange areas
C37: 2. Prepares Notice of Intent (NOI) submitted to Iowa DNR.
C38: 3. Signature authority on the Base PPP and NOI. | E38: Paved Surfaces Acres =
C39: B. Contractor/Subcontractor: | E39: Granular Shoulder Surfaces Acres =
C40: 1. Affected contractors/subcontractors are co-permittees with the IDOT and will sign a certification statement adhering to the | E40: Grass Surfaces Acres = | G40: =SUM(G36-SUM(G38:G39)) -> 0
C41: requirements of the NPDES permit and this PPP plan. Affected contractors/subcontractors are anyone responsible for sediment or
C42: erosion controls or involved in land disturbing activities. All co-permittees are legally required under the Clean Water Act | E42: Disturbed Acres = area of new pavt + area of new gran. & earth shoulders + area to be seeded
C43: and the Iowa Administrative Code to ensure compliance with the terms and conditions of this PPP.
C44: 2. Submit an Erosion Control Implementation Plan (ECIP) according to Specifications Section 2602 and any additional plan notes.
C45: 3. Install and maintain appropriate controls. | E45: Percentage Breakdowns Per Surface
C46: 4. Supervise and implement good housekeeping practices. | E46: % Paved Surfaces = | G46: =IF(AND($G$36<>"",$G$38<>""),$G$38/$G$36,"") -> 
C47: 5. Conduct joint required inspections of the site with inspection staff. | E47: % Granular Shoulder Surfaces Acres = | G47: =IF(AND($G$36<>"",$G$39<>""),$G$39/$G$36,"") -> 
C48: 6. Comply with training and certification requirements of Specifications Section 2602. | E48: % Grass Surfaces Acres = | G48: =IF(AND($G$36<>"",$G$40<>""),$G$40/$G$36,"") -> 
C49: 7. Signature authority on Co-Permittee Certification Statements and storm water inspection reports.
C50: C. RCE/Inspector: | E50: Calculate Average Runoff Coefficient Number
C51: 1. Update PPP whenever there is a change in design, construction, operation or maintenance, which has a significant effect on the | E51: Paved Surfaces = | G51: =IF(G46<>"",IF(OR($F$27="A",$F$27="B",$F$27="C",$F$27="D"),F31*G46,""),"") -> 
C52: discharge of pollutants from the project. | E52: Granular Shoulder Surfaces = | G52: =IF(G47<>"",IF(OR($F$27="A",$F$27="B",$F$27="C",$F$27="D"),F32*G47,""),"") -> 
C53: 2. Maintain an up-to-date record that identifies contractors and subcontractors as co-permittees. | E53: Grass Surfaces = | G53: =IF(G48<>"",IF(OR($F$27="A",$F$27="B",$F$27="C",$F$27="D"),F33*G48,""),"") -> 
C54: 3. Make these plans available to the DNR upon their request.
C55: 4. Conduct joint required inspections of the site with the contractor/subcontractor. | E55: Average Runoff Coefficient Number | G55: =ROUNDUP(SUM(G51:G53),2) -> 0
C56: 5. Complete an inspection report after each inspection.
C57: 6. Signature authority on storm water inspection reports and Notice of Discontinuation (NOD).
C59: II. PROJECT SITE DESCRIPTION
C60: A. This Pollution Prevention Plan (PPP) is for the construction of a 2 lane PCC paved highway.
C61: B. This PPP covers approximately 41.6 acres with an estimated 26.3 acres being disturbed. The portion
C62: of the PPP covered by this contract has 26.3 acres disturbed.
C64: C. The PPP is located in an area of 1 soil association Tama - Muscatine - Downs.
C65: The estimated weighted average runoff coefficient number for this PPP after completion will be 0.67.
C66: D. Storm Water Site Map - Multiple sources of information comprise the base storm water site map including:
C67: 1. Drainage patterns – Plan and Profile sheets and Situation plans.
C68: 2. Proposed Slopes – Cross Sections.
C69: 3. Areas of Soil Disturbance – construction limits shown on Plan and Profile sheets.
C70: 4. Location of Structural Controls – Tabulations on C sheets.
C71: 5. Locations of Non-structural Controls – Tabulations on C sheets.
C72: 6. Locations of Stabilization Practices – generally within construction limits shown on Plan and Profile sheets.
C73: 7. Surface Waters (including wetlands) – Project Location Map and Plan and Profile sheets.
C74: 8. Locations where storm water is discharged – Plan and Profile sheets.
C75: E. The base site map is amended by contract modifications and progress payments (fieldbook entries) of completed erosion control
C76: work. Also, due to project phasing, erosion and sediment controls shown on project plans may not be installed until needed, based
C77: on site conditions. For example, silt fence ditch checks will typically not be installed until the ditch has been installed.
C78: Installed locations may also be modified from tabulation locations by field staff. Installed locations will be documented by
C79: fieldbook entries.
C80: F. Runoff from this work will flow into road ditches to unnamed tributaries to the Iowa River.
C82: III. CONTROLS
C83: A. The contractor’s ECIP specified in Article 2602.03 for accomplishment of storm water controls should clearly describe the intended
C84: sequence of major activities and for each activity define the control measure and the timing during the construction process that
C85: the measure will be implemented.
C86: B. Preserve vegetation in areas not needed for construction.
C87: C. Sections 2601 and 2602 of the Standard Specifications define requirements to implement erosion and sediment control measures.
C88: Actual quantities used and installed locations may vary from the Base PPP and amendment of the plan will be documented via
C89: fieldbook entries or by contract modification. Additional erosion and sediment control items may be required as determined by the
C90: inspector and/or contractor during storm water monitoring inspections. If the work involved is not applicable to any contract
C91: items, the work will be paid for according to Article 1109.03 paragraph B.
C92: 1. EROSION AND SEDIMENT CONTROLS
C93: a. Stabilization Practices
C94: 1) Site plans will ensure that existing vegetation or natural buffers are preserved where attainable and disturbed portions
C95: of the site will be stabilized.
C96: 2) Initialize stabilization of disturbed areas immediately after clearing, grading, excavating, or other earth disturbing
C97: activities have:
C98: a) Permanently ceased on any portion of the site, or
C99: b) Temporarily ceased on any portion of the site and will not resume for a period exceeding 14 calendar days.
C100: 3) Staged permanent and/or temporary stabilizing seeding and mulching shall be completed as the disturbed areas are
C101: completed. Incomplete areas shall be stabilized according to paragraph III, C, 1, a, 2, b above.
C102: 4) Permanent and Temporary Stabilization practices to be used for this project are located in the Estimated Project
C103: Quantities (100-0A, 100-1A, or 100-1C) and Estimate Reference Information (100-4A) located on the C sheets of the plan.
C104: Typical drawings detailing construction of the practices to be used on this project are referenced in the Standard Road
C105: Plans Tabulation.
C106: 5) Preservation of existing vegetation within right-of-way or easements will act as vegetative buffer strips.
C107: 6) Preservation of topsoil: Bid items to be used for this project are located in the Estimated Project Quantities (100-0A,
C108: 100-1A, or 100-1C) and Estimate Reference Information (100-4A) located on the C sheets of the plan. Additional
C109: information may be found in Tabulations in the C or T sheets of the plans or is referenced in Standard Specifications
C110: Section 2105.
C111: b. Structural Practices
C112: 1) Structural practices will be implemented to divert flows from exposed soils and detain or otherwise limit runoff and the
C113: discharge of pollutants from exposed areas of the site. Additionally, structural practices may include: silt basins that
C114: provide 3600 cubic feet of storage per acre drained or equivalent sediment controls, outlet structures that withdraw water
C115: from surface when discharging basins, and controls to direct storm water to vegetated areas.
C116: 2) Structural practices to be used for this project are located in the Estimated Project Quantities (100-0A, 100-1A, or
C117: 100-1C) and Estimate Reference Information (100-4A) located on the C sheets of the plan, as well as all other item
C118: specific Tabulations. Typical drawings detailing construction of the devices to be used on this project can be found on
C119: the B sheets of the plans or are referenced in the Standard Road Plans Tabulation.
C120: c. Storm Water Management
C121: 1) Measures shall be installed during the construction process to control pollutants in storm water discharges that will
C122: occur after construction operations have been completed. This may include velocity dissipation devices at discharge
C123: locations and along length of outfall channel as necessary to provide a non-erosion velocity flow from structure to water
C124: course. If included with this project, these items are located in the Estimated Project Quantities (100-0A, 100-1A, or
C125: 100-1C) and Estimate Reference Information (100-4A) located on the C sheets of the plan, as well as all other item
C126: specific Tabulations. Typical drawings detailing construction of the practices to be used on this project are referenced
C127: in the Standard Road Plans Tabulation. The installation of these devices may be subject to Section 404 of the Clean Water
C128: Act.
C129: 2. OTHER CONTROLS
C130: a. Contractor disposal of unused construction materials and construction material wastes shall comply with applicable state and
C131: local waste disposal, sanitary sewer, or septic system regulations. In the event of a conflict with other governmental
C132: laws, rules and regulations, the more restrictive laws, rules or regulations shall apply.
C133: 1) Vehicle Entrances and Exits - Construct and maintain entrances and exits to prevent tracking of sediments onto roadways.
C134: 2) Material Delivery, Storage and Use - Implement practices to prevent discharge of construction materials during delivery,
C135: storage, and use.
C136: 3) Stockpile Management - Install controls to reduce or eliminate pollution of storm water from stockpiles of soil and
C137: paving.
C138: 4) Waste Disposal - Do not discharge any materials, including building materials, into waters of the state, except as
C139: authorized by a Section 404 permit.
C140: 5) Spill Prevention and Control - Implement procedures to contain and clean-up spills and prevent material discharges to the
C141: storm drain system and waters of the state.
C142: 6) Concrete Residuals and Washout Wastes - Designate temporary concrete washout facilities for rinsing out concrete trucks.
C143: Provide directions to truck drivers where designated washout facilities are located. Designated washout areas should be
C144: located at least 50 feet away from storm drains, streams or other water bodies. Care should be taken to ensure these
C145: facilities do not overflow during storm events.
C146: 7) Concrete Grooving/Grinding Slurry – Do not discharge slurry to a waterbody or storm drain. Slurry may be applied on
C147: foreslopes or removed from the project.
C148: 8) Vehicle and Equipment Storage and Maintenance Areas - Perform on site fueling and maintenance in accordance with all
C149: environment laws such as proper storage of onside fuels and proper disposal of used engine oil or other fluids on site.
C150: Employ washing practices that prevent contamination of surface and ground water from wash water.
C151: 9) Litter Management - Ensure employees properly dispose of litter.
C152: 10) Dewatering – Properly treat water to remove suspended sediment before it re-enters a waterbody or discharges off-site.
C153: Measures are also to be taken to prevent scour erosion at dewatering discharge point.
C154: 3. APPROVED STATE OR LOCAL PLANS
C155: During the course of this construction, it is possible that situations will arise where unknown materials will be encountered.
C156: When such situations are encountered, they will be handled according to all federal, state, and local regulations in effect at
C157: the time.
C159: IV. MAINTENANCE PROCEDURES
C160: The contractor is required to maintain all temporary erosion and sediment control measures in proper working order, including
C161: cleaning, repairing, or replacing them throughout the contract period. This shall begin when the features have lost 50% of their
C162: capacity.
C164: V. INSPECTION REQUIREMENTS
C165: A. Inspections shall be made jointly by the contractor and the contracting authority at least once every seven calendar days. Storm
C166: water monitoring inspections will include:
C167: 1. Date of the inspection.
C168: 2. Summary of the scope of the inspection.
C169: 3. Name and qualifications of the personnel making the inspection.
C170: 5. Review erosion and sediment control measures within disturbed areas for the effectiveness in preventing impacts to receiving
C171: waters.
C172: 6. Major observations related to the implementation of the PPP.
C173: 7. Identify corrective actions required to maintain or modify erosion and sediment control measures.
C174: B. Include storm water monitoring inspection reports in the Amended PPP. Incorporate any additional erosion and sediment control
C175: measures determined as a result of the inspection. Immediately begin corrective actions on all deficiencies found within 3
C176: calendar days of the inspection.
C178: VI. NON-STORM WATER DISCHARGES
C179: This includes subsurface drains (i.e. longitudinal and standard subdrains) and slope drains. The velocity of the discharge from
C180: these features may be controlled by the use of patio blocks, Class A stone, erosion stone or other appropriate materials. This also
C181: includes uncontaminated groundwater from dewatering operations, which will be controlled as discussed in Section III of the PPP.
C183: VII. POTENTIAL SOURCES OF OFF RIGHT-OF-WAY (ROW) POLLUTION
C184: Silts, sediment, and other forms of pollution may be transported onto highway right-of-way (ROW) as a result of a storm event.
C185: Potential sources of pollution located outside highway ROW are beyond the control of this PPP. Pollution within highway ROW will be
C186: conveyed and controlled per this PPP.
C188: VIII. DEFINITIONS
C189: A. Base PPP - Initial Pollution Prevention Plan.
C190: B. Amended PPP - May include Plan Revisions or Contract Modifications for new items, storm water monitoring inspection reports, and
C191: fieldbook entries made by the inspector.
C192: C. IDR - Inspector’s Daily Report – this contains the inspector’s daily diary and bid item postings.
C193: D. Controls - Methods, practices, or measures to minimize or prevent erosion, control sedimentation, control storm water, or minimize
C194: contaminants from other types of waste or materials. Also called Best Management Practices (BMPs).
C195: E. Signature Authority - Representative from Designer, Contractor/Subcontractor, or RCE/Inspector authorized to sign various storm
C196: water documents.
C198: ---------------------------------------------------------------------------------------------------------------------------------
C199: CERTIFICATION STATEMENT
C200: I certify under penalty of law that this document and all attachments were prepared under my direction or supervision in accordance
C201: with a system designed to assure that qualified personnel properly gathered and evaluated the information submitted. Based on my inquiry
C202: of the person or persons who manage the system, or those persons directly responsible for gathering the information, the information
C203: submitted is, to the best of my knowledge and belief, true, accurate, and complete. I am aware that there are significant penalties for
C204: submitting false information, including the possibility of fine and imprisonment for knowing violations.
C206: ________________________________________
C207: Signature
C209: ________________________________________
C210: Printed or Typed Name
C212: ________________________________________
... 3 more rows

Sheet DE100_17
A1: TabTitle | B1: =C16 -> TABULATION OF SILT FENCES
A2: Number of Tab Columns | B2: 5 | P2: Possible Contract Item
A3: DE Starter Row Number | B3: 23 | O3: 2602-0000020 | P3: SILT FENCE | Q3: =F15 -> 119240
A4: TabSheet Starter Row Number | B4: 9
A5: TabSheet Header Row Count | B5: 8
A6: Top Header Cell | B6: I15
A7: Bottom Header Cell | B7: M22
A8: DESheet Row Count | B8: 138
A9: Fixed Empty Rows | B9: 2
A10: Usable Empty Rows | B10: 0
A11: Total Rows Placed | B11: 140 | C11: xlRight(1) | D11: xlRight(1) | E11: xlLeft(1) | F11: xlRight(1) | G11: xlLeft(1) | I11: =C11 -> xlRight(1) | J11: xlRight(1) | K11: xlLeft(1) | L11: xlRight(1) | M11: xlLeft(1)
A12: Total Rows Needed | B12: =SUM(B8:B10) -> 140 | C12: #+00.00 | D12: #+00.00 | E12: General | F12: 0.0 | G12: General | I12: #+00.00 | J12: #+00.00 | K12: General | L12: 0.0 | M12: General
A13: Last Tab DE Starter Row | B13: 105 | C13: =CELL("width",C13) -> 16 | D13: =CELL("width",D13) -> 16 | E13: =CELL("width",E13) -> 6 | F13: =CELL("width",F13) -> 10 | G13: =CELL("width",G13) -> 26 | I13: =CELL("width",I13) -> 0 | J13: =CELL("width",J13) -> 0 | K13: =CELL("width",K13) -> 0 | L13: =CELL("width",L13) -> 0 | M13: =CELL("width",M13) -> 0
A14: Last Tab Tabsheet Starter Row | B14: 99 | C14: A | D14: B | E14: C | F14: D | G14: E | I14: =LOWER(C14) -> a | J14: =LOWER(D14) -> b | K14: =LOWER(E14) -> c | L14: =LOWER(F14) -> d | M14: =LOWER(G14) -> e
A15: Last Copy Starter Row | B15: 91 | E15: Totals: | F15: =SUBTOTAL(9,F23:F6000) -> 119240 | I15: 100-17
A16: Tab Loop Number | B16: 3 | C16: TABULATION OF SILT FENCES | I16: =B17 -> 2010-04-20
A17: Revision Date | B17: 2010-04-20 | I17: =C16 -> TABULATION OF SILT FENCES
A18: Tabulation Width | B18: 1 | C18: Refer to EC-201
A19: Horizontal Grid Lines | B19: Yes | C19: ="This Data Entry Sheet fills Tab "&I15&" effective "&TEXT(B17,"mm-dd-yy") -> This Data Entry Sheet fills Tab 100-17 effective 04-20-10 | I19: =C18 -> Refer to EC-201
C20: Location | F20: Length | G20: Remarks | I20: =C20 -> Location | L20: =F20 -> Length | M20: =G20 -> Remarks
C21: Begin Station | D21: End Station | E21: Side | I21: =C21 -> Begin Station | J21: =D21 -> End Station | K21: =E21 -> Side
F22: LF | L22: =F22 -> LF
C23: 44450 | D23: 44650 | E23: L | F23: =(D23-C23)+20 -> 220
C24: 44650 | D24: 44850 | E24: L | F24: =(D24-C24)+20 -> 220
C25: 44950 | D25: 45150 | E25: L | F25: =(D25-C25)+20 -> 220
C26: 45150 | D26: 45350 | E26: L | F26: 220
C27: 45350 | D27: 45550 | E27: L | F27: 220
C28: 45550 | D28: 45750 | E28: L | F28: 220
C29: 45750 | D29: 45950 | E29: L | F29: 220
C30: 45950 | D30: 46150 | E30: L | F30: 220
C31: 46150 | D31: 46350 | E31: L | F31: 220
C32: 46350 | D32: 46550 | E32: L | F32: 220
C33: 46550 | D33: 46750 | E33: L | F33: 220
C34: 46850 | D34: 47050 | E34: L | F34: 220
C35: 47050 | D35: 47250 | E35: L | F35: 220
C36: 47250 | D36: 47450 | E36: L | F36: 220
C37: 47550 | D37: 47750 | E37: L | F37: 220
C38: 47750 | D38: 47950 | E38: L | F38: 220
C39: 47950 | D39: 48150 | E39: L | F39: 220
C40: 48150 | D40: 48350 | E40: L | F40: 220
C41: 48350 | D41: 48550 | E41: L | F41: 220
C42: 48550 | D42: 48750 | E42: L | F42: 220
C43: 48750 | D43: 48950 | E43: L | F43: 220
C44: 48950 | D44: 49150 | E44: L | F44: 220
C45: 49150 | D45: 49350 | E45: L | F45: 220
C46: 49350 | D46: 49450 | E46: L | F46: 120
C47: 49500 | D47: 49700 | E47: L | F47: 220
C48: 49700 | D48: 49900 | E48: L | F48: 220
C49: 49900 | D49: 50100 | E49: L | F49: 220
C50: 50100 | D50: 50300 | E50: L | F50: 220
C51: 50300 | D51: 50500 | E51: L | F51: 220
C52: 50250 | D52: 50450 | E52: L | F52: 220 | G52: BS
C53: 50450 | D53: 50650 | E53: L | F53: 220 | G53: BS
C54: 50650 | D54: 50750 | E54: L | F54: 120 | G54: BS
C55: 50500 | D55: 50700 | E55: L | F55: 220
C56: 50700 | D56: 50900 | E56: L | F56: 220
C57: =D56 -> 50900 | D57: 51100 | E57: L | F57: 220
C58: =D57 -> 51100 | D58: 51300 | E58: L | F58: 220
C59: 51300 | D59: 51500 | E59: L | F59: 220
C60: 51500 | D60: 51700 | E60: L | F60: 220
C61: 51700 | D61: 51900 | E61: L | F61: 220
C62: 51900 | D62: 52100 | E62: L | F62: 220
C63: 52100 | D63: 52300 | E63: L | F63: 220
C64: 52300 | D64: 52500 | E64: L | F64: 220
C65: 52500 | D65: 52700 | E65: L | F65: 220
C66: 52700 | D66: 52900 | E66: L | F66: =((D66-C66)+20)*2 -> 440 | G66: x2 Rows
C67: 52900 | D67: 53100 | E67: L | F67: =((D67-C67)+20)*3 -> 660 | G67: x3 Rows
C68: 53100 | D68: 53300 | E68: L | F68: =((D68-C68)+20)*3 -> 660 | G68: x3 Rows
C69: 53300 | D69: 53450 | E69: L | F69: =((D69-C69)+20)*3 -> 510 | G69: x3 Rows
C70: 53700 | D70: 53900 | E70: L | F70: =((D70-C70)+20)*2 -> 440 | G70: x2 Rows
C71: 54025 | D71: 54225 | E71: L | F71: 220
C72: 54225 | D72: 54425 | E72: L | F72: 220
C73: 54425 | D73: 54600 | E73: L | F73: 195
C75: 44450 | D75: 44650 | E75: R | F75: 220
C76: 44650 | D76: 44850 | E76: R | F76: 220
C77: 44850 | D77: 45050 | E77: R | F77: 220
C78: 45050 | D78: 45250 | E78: R | F78: 220
C79: 45250 | D79: 45450 | E79: R | F79: 220
C80: 45450 | D80: 45650 | E80: R | F80: 220
C81: 45650 | D81: 45850 | E81: R | F81: 220
C82: 45650 | D82: 45850 | E82: R | F82: 220 | G82: BS
C83: 45850 | D83: 46050 | E83: R | F83: 220 | G83: BS
C84: 46050 | D84: 46250 | E84: R | F84: 220 | G84: BS
C85: 46250 | D85: 46300 | E85: R | F85: 70 | G85: BS
C86: 45850 | D86: 46050 | E86: R | F86: 220
C87: =D86 -> 46050 | D87: 46250 | E87: R | F87: 220
C88: =D87 -> 46250 | D88: 46325 | E88: R | F88: 95
C89: 46400 | D89: 46600 | E89: R | F89: 220
C90: 46600 | D90: 46800 | E90: R | F90: =(D90-C90)+20 -> 220
C91: 46800 | D91: 47000 | E91: R | F91: 220
C92: 47000 | D92: 47200 | E92: R | F92: 220 | G92: BS
C93: 47200 | D93: 47400 | E93: R | F93: 220 | G93: BS
C94: 47400 | D94: 47600 | E94: R | F94: 220 | G94: BS
C95: 47600 | D95: 47800 | E95: R | F95: 220 | G95: BS
C96: 47800 | D96: 48000 | E96: R | F96: 220 | G96: BS
C97: 48000 | D97: 48200 | E97: R | F97: 220 | G97: BS
C98: 48200 | D98: 48400 | E98: R | F98: 220 | G98: BS
C99: 48400 | D99: 48600 | E99: R | F99: 220 | G99: BS
C100: 48600 | D100: 48800 | E100: R | F100: 220 | G100: BS
C101: 48800 | D101: 49000 | E101: R | F101: 220 | G101: BS
C102: 47000 | D102: 47200 | E102: R | F102: 220
C103: 47200 | D103: 47400 | E103: R | F103: 220
C104: 47400 | D104: 47600 | E104: R | F104: 220
C105: 47600 | D105: 47800 | E105: R | F105: 220
C106: 47800 | D106: 48000 | E106: R | F106: 220
C107: 48000 | D107: 48200 | E107: R | F107: 220
C108: 48200 | D108: 48400 | E108: R | F108: 220
C109: 48400 | D109: 48600 | E109: R | F109: 220
C110: 48600 | D110: 48800 | E110: R | F110: 220
C111: 48800 | D111: 49000 | E111: R | F111: 220
C112: 49000 | D112: 49200 | E112: R | F112: 220
C113: 49200 | D113: 49400 | E113: R | F113: 220
C114: 49400 | D114: 49450 | E114: R | F114: 70
C115: 49450 | D115: 49700 | E115: R | F115: 270
C116: 49700 | D116: 49900 | E116: R | F116: 220
C117: 49500 | D117: 49700 | E117: R | F117: 220 | G117: BS
C118: =D117 -> 49700 | D118: 49900 | E118: R | F118: 220 | G118: BS
C119: =D118 -> 49900 | D119: 50000 | E119: R | F119: 120 | G119: BS
C120: 49500 | D120: 49700 | E120: R | F120: 220
C121: 49700 | D121: 49900 | E121: R | F121: 220
C122: 49900 | D122: 50100 | E122: R | F122: 220
C123: 50100 | D123: 50300 | E123: R | F123: 220
C124: 50100 | D124: 50300 | E124: R | F124: 220 | G124: BS
C125: 50300 | D125: 50500 | E125: R | F125: 220 | G125: BS
C126: 50500 | D126: 50700 | E126: R | F126: 220 | G126: BS
C127: 50700 | D127: 50900 | E127: R | F127: 220 | G127: BS
C128: 50900 | D128: 51100 | E128: R | F128: 220 | G128: BS
C129: 51100 | D129: 51300 | E129: R | F129: 220 | G129: BS
C130: 51300 | D130: 51500 | E130: R | F130: 220 | G130: BS
C131: 51500 | D131: 51700 | E131: R | F131: 220 | G131: BS
C132: 51700 | D132: 51900 | E132: R | F132: 220 | G132: BS
C133: 51900 | D133: 52100 | E133: R | F133: 220 | G133: BS
C134: 52100 | D134: 52200 | E134: R | F134: 120 | G134: BS
C135: 50300 | D135: 50500 | E135: R | F135: 220
C136: 50500 | D136: 50700 | E136: R | F136: 220
C137: 50700 | D137: 50900 | E137: R | F137: 220
C138: 50900 | D138: 51100 | E138: R | F138: 220
C139: 51100 | D139: 51300 | E139: R | F139: 220
C140: 51300 | D140: 51500 | E140: R | F140: 220
C141: 51500 | D141: 51700 | E141: R | F141: 220
C142: 51700 | D142: 51900 | E142: R | F142: 220
C143: 51900 | D143: 52100 | E143: R | F143: 220
C144: 52100 | D144: 52300 | E144: R | F144: 220
C145: 52300 | D145: 52500 | E145: R | F145: 220
C146: 52500 | D146: 52700 | E146: R | F146: 220
C147: 52700 | D147: 52900 | E147: R | F147: 220
C148: 52900 | D148: 53100 | E148: R | F148: 220
C149: 53100 | D149: 53300 | E149: R | F149: 220
C150: 53300 | D150: 53450 | E150: R | F150: 170
C151: 53700 | D151: 53900 | E151: R | F151: 220
C152: 53900 | D152: 53950 | E152: R | F152: 70
C153: 54100 | D153: 54300 | E153: R | F153: 220
C155: 53150 | D155: 53150 | E155: L | F155: 600 | G155: For Stream Diversion
C157: Tab Quantity | F157: =SUM(F23:F156) -> 29810
C158: Bid Quantity | F158: =F157*1.25 -> 37262.5
C159: Maintenance Quantity | F159: =F158*0.1 -> 3726.25
C160: Removal Quantity | F160: =F158*0.5 -> 18631.25

Sheet DE100_18
A1: TabTitle | B1: =C16 -> SILT FENCES FOR DITCH CHECKS
A2: Number of Tab Columns | B2: 13
A3: DE Starter Row Number | B3: 37
A4: TabSheet Starter Row Number | B4: 23
A5: TabSheet Header Row Count | B5: 22
A6: Top Header Cell | B6: T15
A7: Bottom Header Cell | B7: AF36
A8: DESheet Row Count | B8: 169
A9: Fixed Empty Rows | B9: 6
A10: Usable Empty Rows | B10: 0
A11: Total Rows Placed | B11: 175 | C11: xlRight(1) | D11: xlRight(1) | E11: xlRight(1) | F11: xlLeft(1) | G11: xlRight(1) | H11: xlRight(1) | I11: xlRight(1) | J11: xlRight(1) | K11: xlRight(1) | L11: xlRight(1) | M11: xlRight(1) | P11: xlRight(1) | R11: xlLeft(1) | T11: =C11 -> xlRight(1) | U11: =D11 -> xlRight(1) | V11: =E11 -> xlRight(1) | W11: xlLeft(1) | X11: xlRight(1) | Y11: xlRight(1) | Z11: xlRight(1) | AA11: xlRight(1) | AB11: xlRight(1) | AC11: xlRight(1) | AD11: xlRight(1) | AE11: =P11 -> xlRight(1) | AF11: =R11 -> xlLeft(1)
A12: Total Rows Needed | B12: =SUM(B8:B10) -> 175 | C12: 0 | D12: General | E12: #+00.00 | F12: General | G12: 0.0 | H12: 0.0 | I12: 0.0 | J12: 0.0 | K12: 0.0 | L12: 0.0 | M12: 0.0% | P12: 0.0 | R12: General | T12: =C12 -> 0 | U12: =D12 -> General | V12: #+00.00 | W12: General | X12: 0.0 | Y12: 0.0 | Z12: 0.0 | AA12: 0.0 | AB12: 0.0 | AC12: 0.0 | AD12: 0.0% | AE12: =P12 -> 0.0 | AF12: General
A13: Last Tab DE Starter Row | B13: 173 | C13: =CELL("width",C13) -> 6 | D13: =CELL("width",D13) -> 6 | E13: =CELL("width",E13) -> 16 | F13: =CELL("width",F13) -> 6 | G13: =CELL("width",G13) -> 14 | H13: =CELL("width",H13) -> 14 | I13: 14 | J13: 12 | K13: 12 | L13: 14 | M13: 15 | P13: 12 | R13: =CELL("width",R13) -> 8 | T13: =CELL("width",T13) -> 0 | U13: =CELL("width",U13) -> 0 | V13: =CELL("width",V13) -> 0 | W13: =CELL("width",W13) -> 0 | X13: =CELL("width",X13) -> 0 | Y13: =CELL("width",Y13) -> 0 | Z13: 0 | AA13: 0 | AB13: 0 | AC13: 0 | AD13: 0 | AE13: 0 | AF13: =CELL("width",AF13) -> 0
A14: Last Tab Tabsheet Starter Row | B14: 203 | C14: A | D14: B | E14: C | F14: D | G14: E | H14: F | I14: G | J14: H | K14: I | L14: J | M14: K | P14: L | R14: M | T14: =LOWER(C14) -> a | U14: =LOWER(D14) -> b | V14: c | W14: d | X14: e | Y14: f | Z14: g | AA14: h | AB14: i | AC14: j | AD14: k | AE14: =LOWER(P14) -> l | AF14: =LOWER(R14) -> m
A15: Last Copy Starter Row | B15: 181 | C15: Totals: | G15: =SUBTOTAL(9,G37:G6000) -> 14149.2 | H15: =SUBTOTAL(9,H37:H6000) -> 544.2 | I15: =SUBTOTAL(9,I37:I6000) -> 2721 | P15: =SUBTOTAL(9,P37:P6000) -> 208415.3184 | T15: 100-18 | AH15: Slope Range | AI15: Spacing | AJ15: =D34 -> Type
A16: Tab Loop Number | B16: 4 | C16: SILT FENCES FOR DITCH CHECKS | T16: =B17 -> 2017-10-17 | AH16: 0 | AI16: 315 | AJ16: 1
A17: Revision Date | B17: 2017-10-17 | T17: =C16 -> SILT FENCES FOR DITCH CHECKS | AH17: 0.001 | AI17: 315 | AJ17: 2
A18: Tabulation Width | B18: 2 | AH18: 0.002 | AI18: 315 | AJ18: 3
A19: Horizontal Grid Lines | B19: Yes | C19: Possible Standard: EC-201 Possible Detail: 570-4 | AH19: 0.003 | AI19: 315 | AJ19: 4
T20: =C19 -> Possible Standard: EC-201 Possible Detail: 570-4 | AH20: 0.004 | AI20: 315 | AJ20: 5
AH21: 0.005 | AI21: 315
AH22: 0.006 | AI22: 155
AH23: 0.007 | AI23: 155
AH24: 0.008 | AI24: 155
AH25: 0.009 | AI25: 155
AH26: 0.01 | AI26: 155
AH27: 0.011 | AI27: 100
AH28: 0.012 | AI28: 100
AH29: 0.013 | AI29: 100
AH30: 0.014 | AI30: 100
C31: * The functional height used in the volume equation is 85% of effective height. Effective height is 1.58 feet as shown on EC-201. | AH31: 0.015 | AI31: 100
C32: * Volume equation: [0.5*Spacing*(0.5*H2*FS+DW*H+0.5*H2*BS)] | T32: =C31 -> * The functional height used in the volume equation is 85% of effective height. Effective height is 1.58 feet as shown on EC-201. | AH32: 0.016 | AI32: 75
C33: ="This Data Entry Sheet fills Tab "&T15&" effective "&TEXT(B17,"mm-dd-yy") -> This Data Entry Sheet fills Tab 100-18 effective 10-17-17 | T33: * Volume equation: [0.5*Spacing*(0.5*H2*FS+DW*H+0.5*H2*BS)] | AH33: 0.017 | AI33: 75
C34: Basin No. | D34: Type | E34: Location | G34: Bid Items | J34: Stormwater Storage Volume Summary | Q34: Subtotal | R34: Remarks | T34: =C34 -> Basin No. | U34: =D34 -> Type | V34: =E34 -> Location | X34: =G34 -> Bid Items | AA34: =J34 -> Stormwater Storage Volume Summary | AF34: =R34 -> Remarks | AH34: 0.018 | AI34: 75
E35: Station | F35: Side | G35: Installation | H35: Maintenance | I35: Removal | J35: Foreslope | K35: Backslope | L35: Ditch Width | M35: Avg.% Slope | N35: Spacing | O35: Down Stream | P35: Volume* | V35: =E35 -> Station | W35: =F35 -> Side | X35: =G35 -> Installation | Y35: =H35 -> Maintenance | Z35: =I35 -> Removal | AA35: =J35 -> Foreslope | AB35: =K35 -> Backslope | AC35: =L35 -> Ditch Width | AD35: Avg.% Slope | AE35: =P35 -> Volume* | AH35: 0.019 | AI35: 75
G36: LF | H36: LF | I36: LF | J36: FS:1 | K36: BS:1 | L36: FT | M36: Ditch Grade | P36: CF | X36: =G36 -> LF | Y36: =H36 -> LF | Z36: =I36 -> LF | AA36: =J36 -> FS:1 | AB36: =K36 -> BS:1 | AC36: =L36 -> FT | AD36: Ditch Grade | AE36: =P36 -> CF | AH36: 0.02 | AI36: 75
N37: =IF(M37<>"",IF(M37<0.06,VLOOKUP(M37,$AH$16:$AI$75,2,TRUE),"XX"),"") ->  | O37: =IF(M37<>"",((0.5*1.343^2*J37)+(1.343*L37)+(0.5*1.343^2*K37)),"") ->  | P37: =IF(C37<>"",(0.5*N37*O37),"") ->  | AH37: 0.021 | AI37: 60
C38: 1 | D38: 1 | E38: 44750 | F38: Left | G38: =(L38+(J38*2)+(K38*2))*1.5 -> 39 | H38: =G38*0.1 -> 3.9 | I38: =G38*0.5 -> 19.5 | J38: 6 | K38: 3 | L38: 8 | M38: 0.01 | N38: =IF(M38<>"",IF(M38<0.06,VLOOKUP(M38,$AH$16:$AI$75,2,TRUE),"XX"),"") -> 155 | O38: =IF(M38<>"",((0.5*1.343^2*J38)+(1.343*L38)+(0.5*1.343^2*K38)),"") -> 18.8604205 | P38: 1461.682589 | AH38: 0.022 | AI38: 60
C39: 1 | D39: 1 | E39: 44880 | F39: Left | G39: =(L39+(J39*2)+(K39*2))*1.5 -> 39 | H39: =G39*0.1 -> 3.9 | I39: =G39*0.5 -> 19.5 | J39: 6 | K39: 3 | L39: 8 | M39: 0.01 | N39: =IF(M39<>"",IF(M39<0.06,VLOOKUP(M39,$AH$16:$AI$75,2,TRUE),"XX"),"") -> 155 | O39: =IF(M39<>"",((0.5*1.343^2*J39)+(1.343*L39)+(0.5*1.343^2*K39)),"") -> 18.8604205 | P39: 1461.682589 | AH39: 0.023 | AI39: 60
C40: 1 | D40: 1 | E40: 45000 | F40: Left | G40: 39 | H40: 3.9 | I40: 19.5 | J40: 6 | K40: 3 | L40: 8 | M40: 0.013 | N40: 100 | O40: 18.8604205 | P40: 943.021025 | AH40: 0.024 | AI40: 60
C41: 1 | D41: 1 | E41: 45160 | F41: Left | G41: 30 | H41: 3 | I41: 15 | J41: 3 | K41: 3 | L41: 8 | M41: 0.013 | N41: 100 | O41: 16.154947 | P41: 807.74735 | AH41: 0.025 | AI41: 60
C42: 1 | D42: 1 | E42: 45750 | F42: Left | G42: 39 | H42: 3.9 | I42: 19.5 | J42: 6 | K42: 3 | L42: 8 | M42: 0.013 | N42: 100 | O42: 18.8604205 | P42: 943.021025 | AH42: 0.026 | AI42: 50
C43: 1 | D43: 1 | E43: 45900 | F43: Left | G43: 39 | H43: 3.9 | I43: 19.5 | J43: 6 | K43: 3 | L43: 8 | M43: 0.013 | N43: 100 | O43: 18.8604205 | P43: 943.021025 | AH43: 0.027 | AI43: 50
C44: 1 | D44: 1 | E44: 46050 | F44: Left | G44: 39 | H44: 3.9 | I44: 19.5 | J44: 6 | K44: 3 | L44: 8 | M44: 0.02 | N44: 75 | O44: 18.8604205 | P44: 707.2657688 | AH44: 0.028 | AI44: 50
C45: 1 | D45: 1 | E45: 46800 | F45: Left | G45: 39 | H45: 3.9 | I45: 19.5 | J45: 6 | K45: 3 | L45: 8 | M45: 0.02 | N45: 75 | O45: 18.8604205 | P45: 707.2657688 | AH45: 0.029 | AI45: 50
C46: 1 | D46: 1 | E46: 46950 | F46: Left | G46: 39 | H46: 3.9 | I46: 19.5 | J46: 6 | K46: 3 | L46: 8 | M46: 0.02 | N46: 75 | O46: 18.8604205 | P46: 707.2657688 | AH46: 0.03 | AI46: 50
C47: 1 | D47: 1 | E47: 47050 | F47: Left | G47: 39 | H47: 3.9 | I47: 19.5 | J47: 6 | K47: 3 | L47: 8 | M47: 0.02 | N47: 75 | O47: 18.8604205 | P47: 707.2657688 | AH47: 0.031 | AI47: 45
C48: 1 | D48: 1 | E48: 47200 | F48: Left | G48: 39 | H48: 3.9 | I48: 19.5 | J48: 6 | K48: 3 | L48: 8 | M48: 0.02 | N48: 75 | O48: 18.8604205 | P48: 707.2657688 | AH48: 0.032 | AI48: 45
C49: 1 | D49: 1 | E49: 47350 | F49: Left | G49: 39 | H49: 3.9 | I49: 19.5 | J49: 6 | K49: 3 | L49: 8 | M49: 0.02 | N49: 75 | O49: 18.8604205 | P49: 707.2657688 | AH49: 0.033 | AI49: 45
C50: 1 | D50: 1 | E50: 44500 | F50: Right | G50: 39 | H50: 3.9 | I50: 19.5 | J50: 6 | K50: 3 | L50: 8 | M50: 0.013 | N50: 100 | O50: 18.8604205 | P50: 943.021025 | AH50: 0.034 | AI50: 45
C51: 1 | D51: 1 | E51: 44650 | F51: Right | G51: 39 | H51: 3.9 | I51: 19.5 | J51: 6 | K51: 3 | L51: 8 | M51: 0.013 | N51: 100 | O51: 18.8604205 | P51: 943.021025 | AH51: 0.035 | AI51: 45
C52: 1 | D52: 1 | E52: 44800 | F52: Right | G52: 39 | H52: 3.9 | I52: 19.5 | J52: 6 | K52: 3 | L52: 8 | M52: 0.013 | N52: 100 | O52: 18.8604205 | P52: 943.021025 | AH52: 0.036 | AI52: 40
C53: 1 | D53: 1 | E53: 44950 | F53: Right | G53: 39 | H53: 3.9 | I53: 19.5 | J53: 6 | K53: 3 | L53: 8 | M53: 0.013 | N53: 100 | O53: 18.8604205 | P53: 943.021025 | AH53: 0.037 | AI53: 40
C54: 1 | D54: 1 | E54: 45100 | F54: Right | G54: 39 | H54: 3.9 | I54: 19.5 | J54: 6 | K54: 3 | L54: 8 | M54: 0.013 | N54: 100 | O54: 18.8604205 | P54: 943.021025 | AH54: 0.038 | AI54: 40
C55: 1 | D55: 1 | E55: 45250 | F55: Right | G55: 39 | H55: 3.9 | I55: 19.5 | J55: 6 | K55: 3 | L55: 8 | M55: 0.013 | N55: 100 | O55: 18.8604205 | P55: 943.021025 | AH55: 0.039 | AI55: 40
C56: 1 | D56: 1 | E56: 45400 | F56: Right | G56: 39 | H56: 3.9 | I56: 19.5 | J56: 6 | K56: 3 | L56: 8 | M56: 0.013 | N56: 100 | O56: 18.8604205 | P56: 943.021025 | AH56: 0.04 | AI56: 40
C57: 1 | D57: 1 | E57: 45650 | F57: Right | G57: 39 | H57: 3.9 | I57: 19.5 | J57: 6 | K57: 3 | L57: 8 | M57: 0.013 | N57: 100 | O57: 18.8604205 | P57: 943.021025 | AH57: 0.041 | AI57: 35
C58: 1 | D58: 1 | E58: 45750 | F58: Right | G58: 39 | H58: 3.9 | I58: 19.5 | J58: 6 | K58: 3 | L58: 8 | M58: 0.013 | N58: 100 | O58: 18.8604205 | P58: 943.021025 | AH58: 0.042 | AI58: 35
C59: 1 | D59: 1 | E59: 45900 | F59: Right | G59: 39 | H59: 3.9 | I59: 19.5 | J59: 6 | K59: 3 | L59: 8 | M59: 0.013 | N59: 100 | O59: 18.8604205 | P59: 943.021025 | AH59: 0.043 | AI59: 35
C60: 1 | D60: 1 | E60: 46050 | F60: Right | G60: 39 | H60: 3.9 | I60: 19.5 | J60: 6 | K60: 3 | L60: 8 | M60: 0.013 | N60: 100 | O60: 18.8604205 | P60: 943.021025 | AH60: 0.044 | AI60: 35
C61: 1 | D61: 1 | E61: 46150 | F61: Right | G61: 39 | H61: 3.9 | I61: 19.5 | J61: 6 | K61: 3 | L61: 8 | M61: 0.013 | N61: 100 | O61: 18.8604205 | P61: 943.021025 | AH61: 0.045 | AI61: 35
C62: 1 | D62: 1 | E62: 46250 | F62: Right | G62: 39 | H62: 3.9 | I62: 19.5 | J62: 6 | K62: 3 | L62: 8 | M62: 0.013 | N62: 100 | O62: 18.8604205 | P62: 943.021025 | AH62: 0.046 | AI62: 35
C63: 1 | D63: 1 | E63: 46300 | F63: Right | G63: 39 | H63: 3.9 | I63: 19.5 | J63: 6 | K63: 3 | L63: 8 | M63: 0.013 | N63: 100 | O63: 18.8604205 | P63: 943.021025 | AH63: 0.047 | AI63: 35
C64: 1 | D64: 1 | E64: 46350 | F64: Right | G64: 39 | H64: 3.9 | I64: 19.5 | J64: 6 | K64: 3 | L64: 8 | M64: 0.013 | N64: 100 | O64: 18.8604205 | P64: 943.021025 | AH64: 0.048 | AI64: 35
C65: 1 | D65: 1 | E65: 46400 | F65: Right | G65: 39 | H65: 3.9 | I65: 19.5 | J65: 6 | K65: 3 | L65: 8 | M65: 0.024 | N65: 60 | O65: 18.8604205 | P65: 565.812615 | AH65: 0.049 | AI65: 35
C66: 1 | D66: 1 | E66: 46500 | F66: Right | G66: 39 | H66: 3.9 | I66: 19.5 | J66: 6 | K66: 3 | L66: 8 | M66: 0.024 | N66: 60 | O66: 18.8604205 | P66: 565.812615 | AH66: 0.05 | AI66: 35
C67: 1 | D67: 1 | E67: 46600 | F67: Right | G67: 39 | H67: 3.9 | I67: 19.5 | J67: 6 | K67: 3 | L67: 8 | M67: 0.024 | N67: 60 | O67: 18.8604205 | P67: 565.812615 | AH67: 0.051 | AI67: 30
C68: 1 | D68: 1 | E68: 46700 | F68: Right | G68: 39 | H68: 3.9 | I68: 19.5 | J68: 6 | K68: 3 | L68: 8 | M68: 0.024 | N68: 60 | O68: 18.8604205 | P68: 565.812615 | AH68: 0.052 | AI68: 30
C69: 1 | D69: 1 | E69: 46800 | F69: Right | G69: 39 | H69: 3.9 | I69: 19.5 | J69: 6 | K69: 3 | L69: 8 | M69: 0.024 | N69: 60 | O69: 18.8604205 | P69: 565.812615 | AH69: 0.053 | AI69: 30
C70: 1 | D70: 1 | E70: 46900 | F70: Right | G70: 39 | H70: 3.9 | I70: 19.5 | J70: 6 | K70: 3 | L70: 8 | M70: 0.024 | N70: 60 | O70: 18.8604205 | P70: 565.812615 | AH70: 0.054 | AI70: 30
C71: 1 | D71: 1 | E71: 47000 | F71: Right | G71: 39 | H71: 3.9 | I71: 19.5 | J71: 6 | K71: 3 | L71: 8 | M71: 0.024 | N71: 60 | O71: 18.8604205 | P71: 565.812615 | AH71: 0.055 | AI71: 30
C72: 1 | D72: 1 | E72: 47100 | F72: Right | G72: 39 | H72: 3.9 | I72: 19.5 | J72: 6 | K72: 3 | L72: 8 | M72: 0.024 | N72: 60 | O72: 18.8604205 | P72: 565.812615 | AH72: 0.056 | AI72: 25
C73: 1 | D73: 1 | E73: 47200 | F73: Right | G73: 39 | H73: 3.9 | I73: 19.5 | J73: 6 | K73: 3 | L73: 8 | M73: 0.024 | N73: 60 | O73: 18.8604205 | P73: 565.812615 | AH73: 0.057 | AI73: 25
C74: 1 | D74: 1 | E74: 47300 | F74: Right | G74: 39 | H74: 3.9 | I74: 19.5 | J74: 6 | K74: 3 | L74: 8 | M74: 0.024 | N74: 60 | O74: 18.8604205 | P74: 565.812615 | AH74: 0.058 | AI74: 25
AH75: 0.059 | AI75: 25
M76: Basin #1 | P76: =SUM(P38:P75) -> 30607.21174
C78: 2 | D78: 1 | E78: 47550 | F78: Left | G78: 30 | H78: 3 | I78: 15 | J78: 3 | K78: 3 | L78: 8 | M78: 0.013 | N78: 100 | O78: 16.154947 | P78: 807.74735
C79: 2 | D79: 1 | E79: 47700 | F79: Left | G79: 30 | H79: 3 | I79: 15 | J79: 3 | K79: 3 | L79: 8 | M79: 0.004 | N79: 315 | O79: 16.154947 | P79: 2544.404152
C80: 2 | D80: 1 | E80: 48000 | F80: Left | G80: 30 | H80: 3 | I80: 15 | J80: 3 | K80: 3 | L80: 8 | M80: 0.004 | N80: 315 | O80: 16.154947 | P80: 2544.404152
C81: 2 | D81: 1 | E81: 48200 | F81: Left | G81: 30 | H81: 3 | I81: 15 | J81: 3 | K81: 3 | L81: 8 | M81: 0.007 | N81: 155 | O81: 16.154947 | P81: 1252.008392
C82: 2 | D82: 1 | E82: 48350 | F82: Left | G82: 30 | H82: 3 | I82: 15 | J82: 3 | K82: 3 | L82: 8 | M82: 0.0058 | N82: 315 | O82: 16.154947 | P82: 2544.404152
C83: 2 | D83: 1 | E83: 48650 | F83: Left | G83: 39 | H83: 3.9 | I83: 19.5 | J83: 6 | K83: 3 | L83: 8 | M83: 0.0058 | N83: 315 | O83: 18.8604205 | P83: 2970.516229
C84: 2 | D84: 1 | E84: 49480 | F84: Left | G84: 39 | H84: 3.9 | I84: 19.5 | J84: 6 | K84: 3 | L84: 8 | M84: 0.018 | N84: 75 | O84: 18.8604205 | P84: 707.2657688
C85: 2 | D85: 1 | E85: 49600 | F85: Left | G85: 39 | H85: 3.9 | I85: 19.5 | J85: 6 | K85: 3 | L85: 8 | M85: 0.018 | N85: 75 | O85: 18.8604205 | P85: 707.2657688
C86: 2 | D86: 1 | E86: 49700 | F86: Left | G86: 39 | H86: 3.9 | I86: 19.5 | J86: 6 | K86: 3 | L86: 8 | M86: 0.018 | N86: 75 | O86: 18.8604205 | P86: 707.2657688
C87: 2 | D87: 1 | E87: 49800 | F87: Left | G87: 39 | H87: 3.9 | I87: 19.5 | J87: 6 | K87: 3 | L87: 8 | M87: 0.018 | N87: 75 | O87: 18.8604205 | P87: 707.2657688
C88: 2 | D88: 1 | E88: 49900 | F88: Left | G88: 39 | H88: 3.9 | I88: 19.5 | J88: 6 | K88: 3 | L88: 8 | M88: 0.018 | N88: 75 | O88: 18.8604205 | P88: 707.2657688
C89: 2 | D89: 1 | E89: 50250 | F89: Left | G89: 39 | H89: 3.9 | I89: 19.5 | J89: 6 | K89: 3 | L89: 8 | M89: 0.018 | N89: 75 | O89: 18.8604205 | P89: 707.2657688
C90: 2 | D90: 1 | E90: 47500 | F90: Right | G90: 39 | H90: 3.9 | I90: 19.5 | J90: 6 | K90: 3 | L90: 8 | M90: 0.009 | N90: 155 | O90: 18.8604205 | P90: 1461.682589
C91: 2 | D91: 1 | E91: 47900 | F91: Right | G91: 39 | H91: 3.9 | I91: 19.5 | J91: 6 | K91: 3 | L91: 8 | M91: 0.006 | N91: 155 | O91: 18.8604205 | P91: 1461.682589
C92: 2 | D92: 1 | E92: 48200 | F92: Right | G92: 39 | H92: 3.9 | I92: 19.5 | J92: 6 | K92: 3 | L92: 8 | M92: 0.006 | N92: 155 | O92: 18.8604205 | P92: 1461.682589
C93: 2 | D93: 1 | E93: 48500 | F93: Right | G93: 39 | H93: 3.9 | I93: 19.5 | J93: 6 | K93: 3 | L93: 8 | M93: 0.006 | N93: 155 | O93: 18.8604205 | P93: 1461.682589
C94: 2 | D94: 1 | E94: 48800 | F94: Right | G94: 39 | H94: 3.9 | I94: 19.5 | J94: 6 | K94: 3 | L94: 8 | M94: 0.006 | N94: 155 | O94: 18.8604205 | P94: 1461.682589
C95: 2 | D95: 1 | E95: 49100 | F95: Right | G95: 39 | H95: 3.9 | I95: 19.5 | J95: 6 | K95: 3 | L95: 8 | M95: 0.018 | N95: 75 | O95: 18.8604205 | P95: 707.2657688
C96: 2 | D96: 1 | E96: 49250 | F96: Right | G96: =(L96+(J96*2)+(K96*2))*1.5 -> 39 | H96: 3.9 | I96: 19.5 | J96: 6 | K96: 3 | L96: 8 | M96: 0.018 | N96: 75 | O96: 18.8604205 | P96: 707.2657688
C97: 2 | D97: 1 | E97: 49400 | F97: Right | G97: 39 | H97: 3.9 | I97: 19.5 | J97: 6 | K97: 3 | L97: 8 | M97: 0.018 | N97: 75 | O97: 18.8604205 | P97: 707.2657688
C98: 2 | D98: 1 | E98: 49650 | F98: Right | G98: 39 | H98: 3.9 | I98: 19.5 | J98: 6 | K98: 3 | L98: 8 | M98: 0.018 | N98: 75 | O98: 18.8604205 | P98: 707.2657688
C99: 2 | D99: 1 | E99: 49800 | F99: Right | G99: 39 | H99: 3.9 | I99: 19.5 | J99: 6 | K99: 3 | L99: 8 | M99: 0.018 | N99: 75 | O99: 18.8604205 | P99: 707.2657688
C100: 2 | D100: 1 | E100: 49950 | F100: Right | G100: 39 | H100: 3.9 | I100: 19.5 | J100: 6 | K100: 3 | L100: 8 | M100: 0.018 | N100: 75 | O100: 18.8604205 | P100: 707.2657688
C101: 2 | D101: 1 | E101: 50100 | F101: Right | G101: 39 | H101: 3.9 | I101: 19.5 | J101: 6 | K101: 3 | L101: 8 | M101: 0.018 | N101: 75 | O101: 18.8604205 | P101: =IF(C101<>"",(0.5*N101*O101),"") -> 707.2657688
C102: 2 | D102: 1 | E102: 50250 | F102: Right | G102: 39 | H102: 3.9 | I102: 19.5 | J102: 6 | K102: 3 | L102: 8 | M102: 0.018 | N102: 75 | O102: 18.8604205 | P102: 707.2657688
N103: =IF(M103<>"",IF(M103<0.06,VLOOKUP(M103,$AH$16:$AI$75,2,TRUE),"XX"),"") ->  | O103: =IF(M103<>"",((0.5*1.343^2*J103)+(1.343*L103)+(0.5*1.343^2*K103)),"") -> 
M105: Basin #2 | P105: =SUM(P78:P104) -> 29873.61814
C107: 3 | D107: 1 | E107: 50400 | F107: Left | G107: =(L107+(J107*2)+(K107*2))*1.5 -> 39 | H107: =G107*0.1 -> 3.9 | I107: =G107*0.5 -> 19.5 | J107: 6 | K107: 3 | L107: 8 | M107: 0.016 | N107: 75 | O107: 18.8604205 | P107: 707.2657688
C108: 3 | D108: 1 | E108: 50500 | F108: Left | G108: 39 | H108: 3.9 | I108: 19.5 | J108: 6 | K108: 3 | L108: 8 | M108: 0.037 | N108: 40 | O108: 18.8604205 | P108: 377.20841
C109: 3 | D109: 1 | E109: 50550 | F109: Left | G109: 39 | H109: 3.9 | I109: 19.5 | J109: 6 | K109: 3 | L109: 8 | M109: 0.04 | N109: 40 | O109: 18.8604205 | P109: 377.20841
C110: 3 | D110: 1 | E110: 50600 | F110: Left | G110: 39 | H110: 3.9 | I110: 19.5 | J110: 6 | K110: 3 | L110: 8 | M110: 0.04 | N110: 40 | O110: 18.8604205 | P110: 377.20841
C111: 3 | D111: 1 | E111: 50650 | F111: Left | G111: 39 | H111: 3.9 | I111: 19.5 | J111: 6 | K111: 3 | L111: 8 | M111: 0.04 | N111: 40 | O111: 18.8604205 | P111: 377.20841
C112: 3 | D112: 1 | E112: 50700 | F112: Left | G112: 39 | H112: 3.9 | I112: 19.5 | J112: 6 | K112: 3 | L112: 8 | M112: 0.04 | N112: 40 | O112: 18.8604205 | P112: 377.20841
C113: 3 | D113: 1 | E113: 50750 | F113: Left | G113: 39 | H113: 3.9 | I113: 19.5 | J113: 6 | K113: 3 | L113: 8 | M113: 0.04 | N113: 40 | O113: 18.8604205 | P113: 377.20841
C114: 3 | D114: 1 | E114: 50800 | F114: Left | G114: 39 | H114: 3.9 | I114: 19.5 | J114: 6 | K114: 3 | L114: 8 | M114: 0.04 | N114: 40 | O114: 18.8604205 | P114: 377.20841
C115: 3 | D115: 1 | E115: 50850 | F115: Left | G115: 30 | H115: 3 | I115: 15 | J115: 3 | K115: 3 | L115: 8 | M115: 0.04 | N115: 40 | O115: 16.154947 | P115: 323.09894
C116: 3 | D116: 1 | E116: 50900 | F116: Left | G116: 30 | H116: 3 | I116: 15 | J116: 3 | K116: 3 | L116: 8 | M116: 0.04 | N116: 40 | O116: 16.154947 | P116: 323.09894
C117: 3 | D117: 1 | E117: 50950 | F117: Left | G117: =(L117+(J117*2)+(K117*2))*1.5 -> 30 | H117: 3 | I117: 15 | J117: 3 | K117: 3 | L117: 8 | M117: 0.04 | N117: 40 | O117: 16.154947 | P117: 323.09894
C118: 3 | D118: 1 | E118: 51000 | F118: Left | G118: =(L118+(J118*2)+(K118*2))*1.5 -> 30 | H118: 3 | I118: 15 | J118: 3 | K118: 3 | L118: 8 | M118: 0.04 | N118: 40 | O118: 16.154947 | P118: 323.09894
C119: 3 | D119: 1 | E119: 51050 | F119: Left | G119: 30 | H119: 3 | I119: 15 | J119: 3 | K119: 3 | L119: 8 | M119: 0.04 | N119: 40 | O119: 16.154947 | P119: 323.09894
C120: 3 | D120: 1 | E120: 51100 | F120: Left | G120: 30 | H120: 3 | I120: 15 | J120: 3 | K120: 3 | L120: 8 | M120: 0.04 | N120: 40 | O120: 16.154947 | P120: 323.09894
C121: 3 | D121: 1 | E121: 51150 | F121: Left | G121: 39 | H121: 3.9 | I121: 19.5 | J121: 6 | K121: 3 | L121: 8 | M121: 0.04 | N121: 40 | O121: 18.8604205 | P121: 377.20841
C122: 3 | D122: 1 | E122: 51200 | F122: Left | G122: 39 | H122: 3.9 | I122: 19.5 | J122: 6 | K122: 3 | L122: 8 | M122: 0.04 | N122: 40 | O122: 18.8604205 | P122: 377.20841
C123: 3 | D123: 1 | E123: 51250 | F123: Left | G123: 39 | H123: 3.9 | I123: 19.5 | J123: 6 | K123: 3 | L123: 8 | M123: 0.04 | N123: 40 | O123: 18.8604205 | P123: 377.20841
C124: 3 | D124: 1 | E124: 51300 | F124: Left | G124: 39 | H124: 3.9 | I124: 19.5 | J124: 6 | K124: 3 | L124: 8 | M124: 0.04 | N124: 40 | O124: 18.8604205 | P124: 377.20841
C125: 3 | D125: 1 | E125: 51350 | F125: Left | G125: 39 | H125: 3.9 | I125: 19.5 | J125: 6 | K125: 3 | L125: 8 | M125: 0.04 | N125: 40 | O125: 18.8604205 | P125: 377.20841
C126: 3 | D126: 1 | E126: 51400 | F126: Left | G126: 39 | H126: 3.9 | I126: 19.5 | J126: 6 | K126: 3 | L126: 8 | M126: 0.04 | N126: 40 | O126: 18.8604205 | P126: 377.20841
C127: 3 | D127: 1 | E127: 51450 | F127: Left | G127: 39 | H127: 3.9 | I127: 19.5 | J127: 6 | K127: 3 | L127: 8 | M127: 0.04 | N127: 40 | O127: 18.8604205 | P127: 377.20841
C128: 3 | D128: 1 | E128: 51500 | F128: Left | G128: 39 | H128: 3.9 | I128: 19.5 | J128: 6 | K128: 3 | L128: 8 | M128: 0.04 | N128: 40 | O128: 18.8604205 | P128: 377.20841
C129: 3 | D129: 1 | E129: 51550 | F129: Left | G129: 39 | H129: 3.9 | I129: 19.5 | J129: 6 | K129: 3 | L129: 8 | M129: 0.04 | N129: 40 | O129: 18.8604205 | P129: 377.20841
C130: 3 | D130: 1 | E130: 51600 | F130: Left | G130: 39 | H130: 3.9 | I130: 19.5 | J130: 6 | K130: 3 | L130: 8 | M130: 0.04 | N130: 40 | O130: 18.8604205 | P130: 377.20841
C131: 3 | D131: 1 | E131: 51650 | F131: Left | G131: 39 | H131: 3.9 | I131: 19.5 | J131: 6 | K131: 3 | L131: 8 | M131: 0.04 | N131: 40 | O131: 18.8604205 | P131: 377.20841
C132: 3 | D132: 1 | E132: 51700 | F132: Left | G132: 39 | H132: 3.9 | I132: 19.5 | J132: 6 | K132: 3 | L132: 8 | M132: 0.04 | N132: 40 | O132: 18.8604205 | P132: 377.20841
C133: 3 | D133: 1 | E133: 51750 | F133: Left | G133: 39 | H133: 3.9 | I133: 19.5 | J133: 6 | K133: 3 | L133: 8 | M133: 0.04 | N133: 40 | O133: 18.8604205 | P133: 377.20841
C134: 3 | D134: 1 | E134: 51800 | F134: Left | G134: 39 | H134: 3.9 | I134: 19.5 | J134: 6 | K134: 3 | L134: 8 | M134: 0.04 | N134: 40 | O134: 18.8604205 | P134: 377.20841
C135: 3 | D135: 1 | E135: 51850 | F135: Left | G135: 39 | H135: 3.9 | I135: 19.5 | J135: 6 | K135: 3 | L135: 8 | M135: 0.04 | N135: 40 | O135: 18.8604205 | P135: 377.20841
C136: 3 | D136: 1 | E136: 51900 | F136: Left | G136: 39 | H136: 3.9 | I136: 19.5 | J136: 6 | K136: 3 | L136: 8 | M136: 0.04 | N136: 40 | O136: 18.8604205 | P136: 377.20841
C137: 3 | D137: 1 | E137: 51950 | F137: Left | G137: 39 | H137: 3.9 | I137: 19.5 | J137: 6 | K137: 3 | L137: 8 | M137: 0.04 | N137: 40 | O137: 18.8604205 | P137: 377.20841
C138: 3 | D138: 1 | E138: 52000 | F138: Left | G138: 39 | H138: 3.9 | I138: 19.5 | J138: 6 | K138: 3 | L138: 8 | M138: 0.04 | N138: 40 | O138: 18.8604205 | P138: 377.20841
C139: 3 | D139: 1 | E139: 52050 | F139: Left | G139: 39 | H139: 3.9 | I139: 19.5 | J139: 6 | K139: 3 | L139: 8 | M139: 0.04 | N139: 40 | O139: 18.8604205 | P139: 377.20841
C140: 3 | D140: 1 | E140: 52100 | F140: Left | G140: 39 | H140: 3.9 | I140: 19.5 | J140: 6 | K140: 3 | L140: 8 | M140: 0.04 | N140: 40 | O140: 18.8604205 | P140: 377.20841
C141: 3 | D141: 1 | E141: 52150 | F141: Left | G141: 39 | H141: 3.9 | I141: 19.5 | J141: 6 | K141: 3 | L141: 8 | M141: 0.04 | N141: 40 | O141: 18.8604205 | P141: 377.20841
C142: 3 | D142: 1 | E142: 52200 | F142: Left | G142: 39 | H142: 3.9 | I142: 19.5 | J142: 6 | K142: 3 | L142: 8 | M142: 0.04 | N142: 40 | O142: 18.8604205 | P142: 377.20841
C143: 3 | D143: 1 | E143: 52250 | F143: Left | G143: 39 | H143: 3.9 | I143: 19.5 | J143: 6 | K143: 3 | L143: 8 | M143: 0.04 | N143: 40 | O143: 18.8604205 | P143: 377.20841
C144: 3 | D144: 1 | E144: 52300 | F144: Left | G144: 39 | H144: 3.9 | I144: 19.5 | J144: 6 | K144: 3 | L144: 8 | M144: 0.04 | N144: 40 | O144: 18.8604205 | P144: 377.20841
C145: 3 | D145: 1 | E145: 52350 | F145: Left | G145: 39 | H145: 3.9 | I145: 19.5 | J145: 6 | K145: 3 | L145: 8 | M145: 0.04 | N145: 40 | O145: 18.8604205 | P145: 377.20841
C146: 3 | D146: 1 | E146: 52400 | F146: Left | G146: 39 | H146: 3.9 | I146: 19.5 | J146: 6 | K146: 3 | L146: 8 | M146: 0.04 | N146: 40 | O146: 18.8604205 | P146: 377.20841
C147: 3 | D147: 1 | E147: 52450 | F147: Left | G147: 39 | H147: 3.9 | I147: 19.5 | J147: 6 | K147: 3 | L147: 8 | M147: 0.04 | N147: 40 | O147: 18.8604205 | P147: 377.20841
C148: 3 | D148: 1 | E148: 50400 | F148: Right | G148: 39 | H148: 3.9 | I148: 19.5 | J148: 6 | K148: 3 | L148: 8 | M148: 0.04 | N148: 40 | O148: 18.8604205 | P148: 377.20841
C149: 3 | D149: 1 | E149: 50450 | F149: Right | G149: 39 | H149: 3.9 | I149: 19.5 | J149: 6 | K149: 3 | L149: 8 | M149: 0.04 | N149: 40 | O149: 18.8604205 | P149: 377.20841
C150: 3 | D150: 1 | E150: 50500 | F150: Right | G150: 39 | H150: 3.9 | I150: 19.5 | J150: 6 | K150: 3 | L150: 8 | M150: 0.04 | N150: 40 | O150: 18.8604205 | P150: 377.20841
C151: 3 | D151: 1 | E151: 50550 | F151: Right | G151: 39 | H151: 3.9 | I151: 19.5 | J151: 6 | K151: 3 | L151: 8 | M151: 0.04 | N151: 40 | O151: 18.8604205 | P151: 377.20841
C152: 3 | D152: 1 | E152: 50600 | F152: Right | G152: 39 | H152: 3.9 | I152: 19.5 | J152: 6 | K152: 3 | L152: 8 | M152: 0.04 | N152: 40 | O152: 18.8604205 | P152: 377.20841
C153: 3 | D153: 1 | E153: 50650 | F153: Right | G153: 39 | H153: 3.9 | I153: 19.5 | J153: 6 | K153: 3 | L153: 8 | M153: 0.04 | N153: 40 | O153: 18.8604205 | P153: 377.20841
C154: 3 | D154: 1 | E154: 50700 | F154: Right | G154: 39 | H154: 3.9 | I154: 19.5 | J154: 6 | K154: 3 | L154: 8 | M154: 0.04 | N154: 40 | O154: 18.8604205 | P154: 377.20841
C155: 3 | D155: 1 | E155: 50750 | F155: Right | G155: =(L155+(J155*2)+(K155*2))*1.5 -> 39 | H155: 3.9 | I155: 19.5 | J155: 6 | K155: 3 | L155: 8 | M155: 0.04 | N155: 40 | O155: 18.8604205 | P155: 377.20841
C156: 3 | D156: 1 | E156: 50800 | F156: Right | G156: 39 | H156: 3.9 | I156: 19.5 | J156: 6 | K156: 3 | L156: 8 | M156: 0.04 | N156: 40 | O156: 18.8604205 | P156: 377.20841
C157: 3 | D157: 1 | E157: 50850 | F157: Right | G157: 39 | H157: 3.9 | I157: 19.5 | J157: 6 | K157: 3 | L157: 8 | M157: 0.04 | N157: 40 | O157: 18.8604205 | P157: 377.20841
C158: 3 | D158: 1 | E158: 50900 | F158: Right | G158: 39 | H158: 3.9 | I158: 19.5 | J158: 6 | K158: 3 | L158: 8 | M158: 0.04 | N158: 40 | O158: 18.8604205 | P158: 377.20841
C159: 3 | D159: 1 | E159: 50950 | F159: Right | G159: 39 | H159: 3.9 | I159: 19.5 | J159: 6 | K159: 3 | L159: 8 | M159: 0.04 | N159: 40 | O159: 18.8604205 | P159: 377.20841
C160: 3 | D160: 1 | E160: 51000 | F160: Right | G160: 39 | H160: 3.9 | I160: 19.5 | J160: 6 | K160: 3 | L160: 8 | M160: 0.04 | N160: 40 | O160: 18.8604205 | P160: 377.20841
C161: 3 | D161: 1 | E161: 51050 | F161: Right | G161: 39 | H161: 3.9 | I161: 19.5 | J161: 6 | K161: 3 | L161: 8 | M161: 0.04 | N161: 40 | O161: 18.8604205 | P161: 377.20841
C162: 3 | D162: 1 | E162: 51100 | F162: Right | G162: 39 | H162: 3.9 | I162: 19.5 | J162: 6 | K162: 3 | L162: 8 | M162: 0.04 | N162: 40 | O162: 18.8604205 | P162: 377.20841
C163: 3 | D163: 1 | E163: 51150 | F163: Right | G163: 39 | H163: 3.9 | I163: 19.5 | J163: 6 | K163: 3 | L163: 8 | M163: 0.04 | N163: 40 | O163: 18.8604205 | P163: 377.20841
C164: 3 | D164: 1 | E164: 51200 | F164: Right | G164: 39 | H164: 3.9 | I164: 19.5 | J164: 6 | K164: 3 | L164: 8 | M164: 0.04 | N164: 40 | O164: 18.8604205 | P164: 377.20841
C165: 3 | D165: 1 | E165: 51250 | F165: Right | G165: 39 | H165: 3.9 | I165: 19.5 | J165: 6 | K165: 3 | L165: 8 | M165: 0.04 | N165: 40 | O165: 18.8604205 | P165: =IF(C165<>"",(0.5*N165*O165),"") -> 377.20841
C166: 3 | D166: 1 | E166: 51300 | F166: Right | G166: 39 | H166: 3.9 | I166: 19.5 | J166: 6 | K166: 3 | L166: 8 | M166: 0.04 | N166: 40 | O166: 18.8604205 | P166: 377.20841
C167: 3 | D167: 1 | E167: 51350 | F167: Right | G167: 39 | H167: =G167*0.1 -> 3.9 | I167: =G167*0.5 -> 19.5 | J167: 6 | K167: 3 | L167: 8 | M167: 0.04 | N167: =IF(M167<>"",IF(M167<0.06,VLOOKUP(M167,$AH$16:$AI$75,2,TRUE),"XX"),"") -> 40 | O167: =IF(M167<>"",((0.5*1.343^2*J167)+(1.343*L167)+(0.5*1.343^2*K167)),"") -> 18.8604205 | P167: 377.20841
C168: 3 | D168: 1 | E168: 51400 | F168: Right | G168: 39 | H168: 3.9 | I168: 19.5 | J168: 6 | K168: 3 | L168: 8 | M168: 0.04 | N168: 40 | O168: 18.8604205 | P168: 377.20841
C169: 3 | D169: 1 | E169: 51450 | F169: Right | G169: 39 | H169: 3.9 | I169: 19.5 | J169: 6 | K169: 3 | L169: 8 | M169: 0.04 | N169: 40 | O169: 18.8604205 | P169: 377.20841
C170: 3 | D170: 1 | E170: 51500 | F170: Right | G170: 39 | H170: 3.9 | I170: 19.5 | J170: 6 | K170: 3 | L170: 8 | M170: 0.04 | N170: 40 | O170: 18.8604205 | P170: 377.20841
C171: 3 | D171: 1 | E171: 51550 | F171: Right | G171: 39 | H171: 3.9 | I171: 19.5 | J171: 6 | K171: 3 | L171: 8 | M171: 0.04 | N171: 40 | O171: 18.8604205 | P171: 377.20841
C172: 3 | D172: 1 | E172: 51600 | F172: Right | G172: 39 | H172: 3.9 | I172: 19.5 | J172: 6 | K172: 3 | L172: 8 | M172: 0.04 | N172: 40 | O172: 18.8604205 | P172: 377.20841
C173: 3 | D173: 1 | E173: 51650 | F173: Right | G173: 39 | H173: 3.9 | I173: 19.5 | J173: 6 | K173: 3 | L173: 8 | M173: 0.04 | N173: 40 | O173: 18.8604205 | P173: 377.20841
C174: 3 | D174: 1 | E174: 51700 | F174: Right | G174: 39 | H174: 3.9 | I174: 19.5 | J174: 6 | K174: 3 | L174: 8 | M174: 0.04 | N174: 40 | O174: 18.8604205 | P174: 377.20841
C175: 3 | D175: 1 | E175: 51750 | F175: Right | G175: =(L175+(J175*2)+(K175*2))*1.5 -> 39 | H175: 3.9 | I175: 19.5 | J175: 6 | K175: 3 | L175: 8 | M175: 0.04 | N175: 40 | O175: 18.8604205 | P175: 377.20841
C176: 3 | D176: 1 | E176: 51800 | F176: Right | G176: 39 | H176: 3.9 | I176: 19.5 | J176: 6 | K176: 3 | L176: 8 | M176: 0.04 | N176: 40 | O176: 18.8604205 | P176: 377.20841
C177: 3 | D177: 1 | E177: 51850 | F177: Right | G177: 39 | H177: 3.9 | I177: 19.5 | J177: 6 | K177: 3 | L177: 8 | M177: 0.04 | N177: 40 | O177: 18.8604205 | P177: 377.20841
C178: 3 | D178: 1 | E178: 51900 | F178: Right | G178: 39 | H178: 3.9 | I178: 19.5 | J178: 6 | K178: 3 | L178: 8 | M178: 0.04 | N178: 40 | O178: 18.8604205 | P178: 377.20841
C179: 3 | D179: 1 | E179: 51950 | F179: Right | G179: 39 | H179: 3.9 | I179: 19.5 | J179: 6 | K179: 3 | L179: 8 | M179: 0.04 | N179: 40 | O179: 18.8604205 | P179: 377.20841
C180: 3 | D180: 1 | E180: 52000 | F180: Right | G180: 39 | H180: 3.9 | I180: 19.5 | J180: 6 | K180: 3 | L180: 8 | M180: 0.04 | N180: 40 | O180: 18.8604205 | P180: 377.20841
C181: 3 | D181: 1 | E181: 52050 | F181: Right | G181: 39 | H181: 3.9 | I181: 19.5 | J181: 6 | K181: 3 | L181: 8 | M181: 0.04 | N181: 40 | O181: 18.8604205 | P181: 377.20841
C182: 3 | D182: 1 | E182: 52100 | F182: Right | G182: =(L182+(J182*2)+(K182*2))*1.5 -> 39 | H182: 3.9 | I182: 19.5 | J182: 6 | K182: 3 | L182: 8 | M182: 0.04 | N182: 40 | O182: 18.8604205 | P182: 377.20841
C183: 3 | D183: 1 | E183: 52150 | F183: Right | G183: 39 | H183: 3.9 | I183: 19.5 | J183: 6 | K183: 3 | L183: 8 | M183: 0.04 | N183: 40 | O183: 18.8604205 | P183: 377.20841
C184: 3 | D184: 1 | E184: 52200 | F184: Right | G184: 39 | H184: 3.9 | I184: 19.5 | J184: 6 | K184: 3 | L184: 8 | M184: 0.04 | N184: 40 | O184: 18.8604205 | P184: 377.20841
C185: 3 | D185: 1 | E185: 53100 | F185: Right | G185: 30 | H185: 3 | I185: 15 | J185: 3 | K185: 3 | L185: 8 | M185: 0.014 | N185: 100 | O185: 16.154947 | P185: 807.74735
C186: 3 | D186: 1 | E186: 53200 | F186: Right | G186: 30 | H186: 3 | I186: 15 | J186: 3 | K186: 3 | L186: 8 | M186: 0.014 | N186: 100 | O186: 16.154947 | P186: 807.74735
C187: 3 | D187: 1 | E187: 53300 | F187: Right | G187: 30 | H187: 3 | I187: 15 | J187: 3 | K187: 3 | L187: 8 | M187: 0.014 | N187: 100 | O187: 16.154947 | P187: 807.74735
M191: Basin #3 | P191: =SUM(P107:P190) -> 31850.89857
C194: 4 | D194: 1 | E194: 54340 | F194: Left | J194: 6 | K194: 3 | L194: 10 | M194: 0.002 | N194: 315 | O194: 21.5464205 | P194: 3393.561229
C195: 4 | D195: 1 | E195: 54550 | F195: Left | J195: 6 | K195: 3 | L195: 20 | M195: 0.002 | N195: 315 | O195: 34.9764205 | P195: 5508.786229
C196: 4 | D196: 1 | E196: 54550 | F196: Right | J196: 6 | K196: 6 | L196: 6 | M196: 0.002 | N196: 315 | O196: 18.879894 | P196: 2973.583305
M199: Basin #4 | P199: =SUM(P194:P198) -> 11875.93076
E203: Bid Quantity | G203: =SUM(G33:G192) -> 5442
E204: Maintenance Quantity | G204: =SUM(H32:H188) -> 544.2
E205: Removal Quantity | G205: =SUM(I33:I187) -> 2721
P229: =IF(C229<>"",(0.5*N229*O229),"") -> 
N231: =IF(M231<>"",IF(M231<0.06,VLOOKUP(M231,$AH$16:$AI$75,2,TRUE),"XX"),"") ->  | O231: =IF(M231<>"",((0.5*1.343^2*J231)+(1.343*L231)+(0.5*1.343^2*K231)),"") -> 
P293: =IF(C293<>"",(0.5*N293*O293),"") -> 
N295: =IF(M295<>"",IF(M295<0.06,VLOOKUP(M295,$AH$16:$AI$75,2,TRUE),"XX"),"") ->  | O295: =IF(M295<>"",((0.5*1.343^2*J295)+(1.343*L295)+(0.5*1.343^2*K295)),"") -> 
P357: =IF(C357<>"",(0.5*N357*O357),"") -> 
N359: =IF(M359<>"",IF(M359<0.06,VLOOKUP(M359,$AH$16:$AI$75,2,TRUE),"XX"),"") ->  | O359: =IF(M359<>"",((0.5*1.343^2*J359)+(1.343*L359)+(0.5*1.343^2*K359)),"") -> 
P421: =IF(C421<>"",(0.5*N421*O421),"") -> 
N423: =IF(M423<>"",IF(M423<0.06,VLOOKUP(M423,$AH$16:$AI$75,2,TRUE),"XX"),"") ->  | O423: =IF(M423<>"",((0.5*1.343^2*J423)+(1.343*L423)+(0.5*1.343^2*K423)),"") -> 
... 175 more rows

Sheet DE100_33
A1: TabTitle | B1: =C16 -> TEMPORARY SEDIMENT CONTROL BASIN
A2: Number of Tab Columns | B2: 12
A3: DE Starter Row Number | B3: 37
A4: TabSheet Starter Row Number | B4: 23
A5: TabSheet Header Row Count | B5: 22
A6: Top Header Cell | B6: Q15
A7: Bottom Header Cell | B7: AB36
A8: DESheet Row Count | B8: 9
A9: Fixed Empty Rows | B9: 2
A10: Usable Empty Rows | B10: 0
A11: Total Rows Placed | B11: 11 | C11: xlRight(1) | D11: xlRight(1) | E11: xlRight(1) | F11: xlRight(1) | G11: xlRight(1) | H11: xlRight(1) | I11: xlRight(1) | J11: xlRight(1) | K11: xlRight(1) | L11: xlRight(1) | M11: xlRight(1) | O11: xlLeft(1) | Q11: =C11 -> xlRight(1) | R11: xlRight(1) | S11: xlRight(1) | T11: xlRight(1) | U11: xlRight(1) | V11: xlRight(1) | W11: xlRight(1) | X11: xlRight(1) | Y11: xlRight(1) | Z11: xlRight(1) | AA11: =M11 -> xlRight(1) | AB11: =O11 -> xlLeft(1)
A12: Total Rows Needed | B12: =SUM(B8:B10) -> 11 | C12: 0 | D12: #+00.00 | E12: General | F12: 0 | G12: 0 | H12: 0 | I12: 0.0 | J12: 0.0 | K12: 0.00 | L12: 0.0% | M12: 0.0 | O12: General | Q12: 0 | R12: #+00.00 | S12: General | T12: 0 | U12: 0 | V12: 0 | W12: 0.0 | X12: 0.0 | Y12: 0.00 | Z12: 0.0% | AA12: =M12 -> 0.0 | AB12: General
A13: Last Tab DE Starter Row | B13: 37 | C13: =CELL("width",C13) -> 6 | D13: 16 | E13: 10 | F13: 14 | G13: 14 | H13: 8 | I13: 10 | J13: 10 | K13: 14 | L13: 18 | M13: 10 | O13: 21 | Q13: =CELL("width",Q13) -> 0 | R13: 0 | S13: 0 | T13: 0 | U13: 0 | V13: 0 | W13: 0 | X13: 0 | Y13: 0 | Z13: 0 | AA13: 0 | AB13: 0
A14: Last Tab Tabsheet Starter Row | B14: 23 | C14: A | D14: B | E14: C | F14: D | G14: E | H14: F | I14: G | J14: H | K14: I | L14: J | M14: K | O14: L | Q14: =LOWER(C14) -> a | R14: b | S14: c | T14: d | U14: e | V14: f | W14: g | X14: h | Y14: i | Z14: j | AA14: =LOWER(M14) -> k | AB14: =LOWER(O14) -> l
A15: Last Copy Starter Row | B15: 1 | E15: Totals: | F15: =SUBTOTAL(9,F37:F10003) -> 10 | G15: =SUBTOTAL(9,G37:G10003) -> 30 | H15: =SUBTOTAL(9,H37:H10003) -> 10 | M15: =SUBTOTAL(9,M37:M10003) -> 8939.610702 | Q15: 100-33
A16: Tab Loop Number | B16: 2 | C16: TEMPORARY SEDIMENT CONTROL BASIN | Q16: =B17 -> 2016-10-18
A17: Revision Date | B17: 2016-10-18 | Q17: =C16 -> TEMPORARY SEDIMENT CONTROL BASIN
A18: Tabulation Width | B18: 2
A19: Horizontal Grid Lines | B19: Yes | C19: Possible Detail 570-3
Q20: =C19 -> Possible Detail 570-3
C31: * The functional height used in the volume equation is 95% of effective height. Effective height is 2.5 feet as shown in 570-3.
C32: * Volume equation: [(1/4*(FS*H2))+(1/2*DW*H)+(1/4*(BS*H2))]*(H/Avg%Slope) | Q32: =C31 -> * The functional height used in the volume equation is 95% of effective height. Effective height is 2.5 feet as shown in 570-3.
C33: ="This Data Entry Sheet fills Tab "&Q15&" effective "&TEXT(B17,"mm-dd-yy") -> This Data Entry Sheet fills Tab 100-33 effective 10-18-16 | Q33: * Volume equation: [(1/4(FS*H2))+(DW*H)+(1/4*(BS*H2))]*(H/Avg%Slope)
C34: Basin No. | D34: Location | F34: Bid Items | I34: Stormwater Storage Volume Summary | N34: Subtotal | O34: Remarks | Q34: =C34 -> Basin No. | R34: =D34 -> Location | T34: =F34 -> Bid Items | W34: =I34 -> Stormwater Storage Volume Summary | AB34: =O34 -> Remarks
D35: Station | E35: Side | F35: Installation | G35: Maintenance | H35: Removal | I35: Foreslope | J35: Backslope | K35: Ditch Width | L35: Average % Slope | M35: Volume* | R35: =D35 -> Station | S35: =E35 -> Side | T35: =F35 -> Installation | U35: =G35 -> Maintenance | V35: =H35 -> Removal | W35: =I35 -> Foreslope | X35: =J35 -> Backslope | Y35: =K35 -> Ditch Width | Z35: =L35 -> Average % Slope | AA35: =M35 -> Volume*
F36: Each | G36: Each | H36: Each | I36: FS:1 | J36: BS:1 | K36: FT | M36: CF | T36: =F36 -> Each | U36: =G36 -> Each | V36: =H36 -> Each | W36: =I36 -> FS:1 | X36: =J36 -> BS:1 | Y36: =K36 -> FT | AA36: =M36 -> CF
M37: =IF(C37<>"", (((0.25*2.375^2*I37)+(0.5*2.375*K37)+(0.25*2.375^2*J37))*(2.375/L37)),"") -> 
C38: 3 | D38: 52025 | E38: Left | F38: 1 | G38: 3 | H38: 1 | I38: 6 | J38: 3 | K38: 8 | L38: 0.036 | M38: =IF(C38<>"", (((0.25*2.375^2*I38)+(0.5*2.375*K38)+(0.25*2.375^2*J38))*(2.375/L38)),"") -> 1464.016385
C39: 3 | D39: 51525 | E39: Right | F39: 1 | G39: 3 | H39: 1 | I39: 6 | J39: 3 | K39: 8 | L39: 0.04 | M39: 1317.614746
C40: 3 | D40: 51825 | E40: Right | F40: 1 | G40: 3 | H40: 1 | I40: 6 | J40: 3 | K40: 8 | L40: 0.036 | M40: 1464.016385
C41: 3 | D41: 52075 | E41: Right | F41: 1 | G41: 3 | H41: 1 | I41: 6 | J41: 3 | K41: 8 | L41: 0.032 | M41: 1647.018433
C42: 3 | D42: 53250 | E42: Right | F42: 1 | G42: 3 | H42: 1 | I42: 3 | J42: 3 | K42: 8 | L42: 0.014 | M42: 3046.944754
D45: Totals | F45: =SUM(F38:F44) -> 5 | G45: =SUM(G38:G44) -> 15 | H45: =SUM(H38:H42) -> 5 | N45: =SUM(M38:M42) -> 8939.610702
M102: =IF(C102<>"", (((0.25*2.375^2*I102)+(0.5*2.375*K102)+(0.25*2.375^2*J102))*(2.375/L102)),"") -> 
M166: =IF(C166<>"", (((0.25*2.375^2*I166)+(0.5*2.375*K166)+(0.25*2.375^2*J166))*(2.375/L166)),"") -> 
M230: =IF(C230<>"", (((0.25*2.375^2*I230)+(0.5*2.375*K230)+(0.25*2.375^2*J230))*(2.375/L230)),"") -> 
M294: =IF(C294<>"", (((0.25*2.375^2*I294)+(0.5*2.375*K294)+(0.25*2.375^2*J294))*(2.375/L294)),"") -> 
M358: =IF(C358<>"", (((0.25*2.375^2*I358)+(0.5*2.375*K358)+(0.25*2.375^2*J358))*(2.375/L358)),"") -> 
M422: =IF(C422<>"", (((0.25*2.375^2*I422)+(0.5*2.375*K422)+(0.25*2.375^2*J422))*(2.375/L422)),"") -> 
M486: =IF(C486<>"", (((0.25*2.375^2*I486)+(0.5*2.375*K486)+(0.25*2.375^2*J486))*(2.375/L486)),"") -> 
M550: =IF(C550<>"", (((0.25*2.375^2*I550)+(0.5*2.375*K550)+(0.25*2.375^2*J550))*(2.375/L550)),"") -> 
M614: =IF(C614<>"", (((0.25*2.375^2*I614)+(0.5*2.375*K614)+(0.25*2.375^2*J614))*(2.375/L614)),"") -> 
M678: =IF(C678<>"", (((0.25*2.375^2*I678)+(0.5*2.375*K678)+(0.25*2.375^2*J678))*(2.375/L678)),"") -> 
M742: =IF(C742<>"", (((0.25*2.375^2*I742)+(0.5*2.375*K742)+(0.25*2.375^2*J742))*(2.375/L742)),"") -> 
M806: =IF(C806<>"", (((0.25*2.375^2*I806)+(0.5*2.375*K806)+(0.25*2.375^2*J806))*(2.375/L806)),"") -> 
M870: =IF(C870<>"", (((0.25*2.375^2*I870)+(0.5*2.375*K870)+(0.25*2.375^2*J870))*(2.375/L870)),"") -> 
M934: =IF(C934<>"", (((0.25*2.375^2*I934)+(0.5*2.375*K934)+(0.25*2.375^2*J934))*(2.375/L934)),"") -> 
M998: =IF(C998<>"", (((0.25*2.375^2*I998)+(0.5*2.375*K998)+(0.25*2.375^2*J998))*(2.375/L998)),"") -> 
M1062: =IF(C1062<>"", (((0.25*2.375^2*I1062)+(0.5*2.375*K1062)+(0.25*2.375^2*J1062))*(2.375/L1062)),"") -> 
M1126: =IF(C1126<>"", (((0.25*2.375^2*I1126)+(0.5*2.375*K1126)+(0.25*2.375^2*J1126))*(2.375/L1126)),"") -> 
M1190: =IF(C1190<>"", (((0.25*2.375^2*I1190)+(0.5*2.375*K1190)+(0.25*2.375^2*J1190))*(2.375/L1190)),"") -> 
M1254: =IF(C1254<>"", (((0.25*2.375^2*I1254)+(0.5*2.375*K1254)+(0.25*2.375^2*J1254))*(2.375/L1254)),"") -> 
M1318: =IF(C1318<>"", (((0.25*2.375^2*I1318)+(0.5*2.375*K1318)+(0.25*2.375^2*J1318))*(2.375/L1318)),"") -> 
M1382: =IF(C1382<>"", (((0.25*2.375^2*I1382)+(0.5*2.375*K1382)+(0.25*2.375^2*J1382))*(2.375/L1382)),"") -> 
M1446: =IF(C1446<>"", (((0.25*2.375^2*I1446)+(0.5*2.375*K1446)+(0.25*2.375^2*J1446))*(2.375/L1446)),"") -> 
M1510: =IF(C1510<>"", (((0.25*2.375^2*I1510)+(0.5*2.375*K1510)+(0.25*2.375^2*J1510))*(2.375/L1510)),"") -> 
M1574: =IF(C1574<>"", (((0.25*2.375^2*I1574)+(0.5*2.375*K1574)+(0.25*2.375^2*J1574))*(2.375/L1574)),"") -> 
M1638: =IF(C1638<>"", (((0.25*2.375^2*I1638)+(0.5*2.375*K1638)+(0.25*2.375^2*J1638))*(2.375/L1638)),"") -> 
M1702: =IF(C1702<>"", (((0.25*2.375^2*I1702)+(0.5*2.375*K1702)+(0.25*2.375^2*J1702))*(2.375/L1702)),"") -> 
M1766: =IF(C1766<>"", (((0.25*2.375^2*I1766)+(0.5*2.375*K1766)+(0.25*2.375^2*J1766))*(2.375/L1766)),"") -> 
M1830: =IF(C1830<>"", (((0.25*2.375^2*I1830)+(0.5*2.375*K1830)+(0.25*2.375^2*J1830))*(2.375/L1830)),"") -> 
M1894: =IF(C1894<>"", (((0.25*2.375^2*I1894)+(0.5*2.375*K1894)+(0.25*2.375^2*J1894))*(2.375/L1894)),"") -> 
M1958: =IF(C1958<>"", (((0.25*2.375^2*I1958)+(0.5*2.375*K1958)+(0.25*2.375^2*J1958))*(2.375/L1958)),"") -> 
M2213: =IF(C2213<>"", (((0.25*2.375^2*I2213)+(0.5*2.375*K2213)+(0.25*2.375^2*J2213))*(2.375/L2213)),"") -> 
M2277: =IF(C2277<>"", (((0.25*2.375^2*I2277)+(0.5*2.375*K2277)+(0.25*2.375^2*J2277))*(2.375/L2277)),"") -> 
M2341: =IF(C2341<>"", (((0.25*2.375^2*I2341)+(0.5*2.375*K2341)+(0.25*2.375^2*J2341))*(2.375/L2341)),"") -> 
M2405: =IF(C2405<>"", (((0.25*2.375^2*I2405)+(0.5*2.375*K2405)+(0.25*2.375^2*J2405))*(2.375/L2405)),"") -> 
M2469: =IF(C2469<>"", (((0.25*2.375^2*I2469)+(0.5*2.375*K2469)+(0.25*2.375^2*J2469))*(2.375/L2469)),"") -> 
M2533: =IF(C2533<>"", (((0.25*2.375^2*I2533)+(0.5*2.375*K2533)+(0.25*2.375^2*J2533))*(2.375/L2533)),"") -> 
M2597: =IF(C2597<>"", (((0.25*2.375^2*I2597)+(0.5*2.375*K2597)+(0.25*2.375^2*J2597))*(2.375/L2597)),"") -> 
M2661: =IF(C2661<>"", (((0.25*2.375^2*I2661)+(0.5*2.375*K2661)+(0.25*2.375^2*J2661))*(2.375/L2661)),"") -> 
M2725: =IF(C2725<>"", (((0.25*2.375^2*I2725)+(0.5*2.375*K2725)+(0.25*2.375^2*J2725))*(2.375/L2725)),"") -> 
M2789: =IF(C2789<>"", (((0.25*2.375^2*I2789)+(0.5*2.375*K2789)+(0.25*2.375^2*J2789))*(2.375/L2789)),"") -> 
M2853: =IF(C2853<>"", (((0.25*2.375^2*I2853)+(0.5*2.375*K2853)+(0.25*2.375^2*J2853))*(2.375/L2853)),"") -> 
M2917: =IF(C2917<>"", (((0.25*2.375^2*I2917)+(0.5*2.375*K2917)+(0.25*2.375^2*J2917))*(2.375/L2917)),"") -> 
M2981: =IF(C2981<>"", (((0.25*2.375^2*I2981)+(0.5*2.375*K2981)+(0.25*2.375^2*J2981))*(2.375/L2981)),"") -> 
M3045: =IF(C3045<>"", (((0.25*2.375^2*I3045)+(0.5*2.375*K3045)+(0.25*2.375^2*J3045))*(2.375/L3045)),"") -> 
M3109: =IF(C3109<>"", (((0.25*2.375^2*I3109)+(0.5*2.375*K3109)+(0.25*2.375^2*J3109))*(2.375/L3109)),"") -> 
M3173: =IF(C3173<>"", (((0.25*2.375^2*I3173)+(0.5*2.375*K3173)+(0.25*2.375^2*J3173))*(2.375/L3173)),"") -> 
M3237: =IF(C3237<>"", (((0.25*2.375^2*I3237)+(0.5*2.375*K3237)+(0.25*2.375^2*J3237))*(2.375/L3237)),"") -> 
M3301: =IF(C3301<>"", (((0.25*2.375^2*I3301)+(0.5*2.375*K3301)+(0.25*2.375^2*J3301))*(2.375/L3301)),"") -> 
M3365: =IF(C3365<>"", (((0.25*2.375^2*I3365)+(0.5*2.375*K3365)+(0.25*2.375^2*J3365))*(2.375/L3365)),"") -> 
M3429: =IF(C3429<>"", (((0.25*2.375^2*I3429)+(0.5*2.375*K3429)+(0.25*2.375^2*J3429))*(2.375/L3429)),"") -> 
M3493: =IF(C3493<>"", (((0.25*2.375^2*I3493)+(0.5*2.375*K3493)+(0.25*2.375^2*J3493))*(2.375/L3493)),"") -> 
M3557: =IF(C3557<>"", (((0.25*2.375^2*I3557)+(0.5*2.375*K3557)+(0.25*2.375^2*J3557))*(2.375/L3557)),"") -> 
M3812: =IF(C3812<>"", (((0.25*2.375^2*I3812)+(0.5*2.375*K3812)+(0.25*2.375^2*J3812))*(2.375/L3812)),"") -> 
M3876: =IF(C3876<>"", (((0.25*2.375^2*I3876)+(0.5*2.375*K3876)+(0.25*2.375^2*J3876))*(2.375/L3876)),"") -> 
M3940: =IF(C3940<>"", (((0.25*2.375^2*I3940)+(0.5*2.375*K3940)+(0.25*2.375^2*J3940))*(2.375/L3940)),"") -> 
M4004: =IF(C4004<>"", (((0.25*2.375^2*I4004)+(0.5*2.375*K4004)+(0.25*2.375^2*J4004))*(2.375/L4004)),"") -> 
M4068: =IF(C4068<>"", (((0.25*2.375^2*I4068)+(0.5*2.375*K4068)+(0.25*2.375^2*J4068))*(2.375/L4068)),"") -> 
M4132: =IF(C4132<>"", (((0.25*2.375^2*I4132)+(0.5*2.375*K4132)+(0.25*2.375^2*J4132))*(2.375/L4132)),"") -> 
M4196: =IF(C4196<>"", (((0.25*2.375^2*I4196)+(0.5*2.375*K4196)+(0.25*2.375^2*J4196))*(2.375/L4196)),"") -> 
M4260: =IF(C4260<>"", (((0.25*2.375^2*I4260)+(0.5*2.375*K4260)+(0.25*2.375^2*J4260))*(2.375/L4260)),"") -> 
M4324: =IF(C4324<>"", (((0.25*2.375^2*I4324)+(0.5*2.375*K4324)+(0.25*2.375^2*J4324))*(2.375/L4324)),"") -> 
M4388: =IF(C4388<>"", (((0.25*2.375^2*I4388)+(0.5*2.375*K4388)+(0.25*2.375^2*J4388))*(2.375/L4388)),"") -> 
M4452: =IF(C4452<>"", (((0.25*2.375^2*I4452)+(0.5*2.375*K4452)+(0.25*2.375^2*J4452))*(2.375/L4452)),"") -> 
M4516: =IF(C4516<>"", (((0.25*2.375^2*I4516)+(0.5*2.375*K4516)+(0.25*2.375^2*J4516))*(2.375/L4516)),"") -> 
M4580: =IF(C4580<>"", (((0.25*2.375^2*I4580)+(0.5*2.375*K4580)+(0.25*2.375^2*J4580))*(2.375/L4580)),"") -> 
M4644: =IF(C4644<>"", (((0.25*2.375^2*I4644)+(0.5*2.375*K4644)+(0.25*2.375^2*J4644))*(2.375/L4644)),"") -> 
M4708: =IF(C4708<>"", (((0.25*2.375^2*I4708)+(0.5*2.375*K4708)+(0.25*2.375^2*J4708))*(2.375/L4708)),"") -> 
M4772: =IF(C4772<>"", (((0.25*2.375^2*I4772)+(0.5*2.375*K4772)+(0.25*2.375^2*J4772))*(2.375/L4772)),"") -> 
M4836: =IF(C4836<>"", (((0.25*2.375^2*I4836)+(0.5*2.375*K4836)+(0.25*2.375^2*J4836))*(2.375/L4836)),"") -> 
M4900: =IF(C4900<>"", (((0.25*2.375^2*I4900)+(0.5*2.375*K4900)+(0.25*2.375^2*J4900))*(2.375/L4900)),"") -> 
M4964: =IF(C4964<>"", (((0.25*2.375^2*I4964)+(0.5*2.375*K4964)+(0.25*2.375^2*J4964))*(2.375/L4964)),"") -> 
M5028: =IF(C5028<>"", (((0.25*2.375^2*I5028)+(0.5*2.375*K5028)+(0.25*2.375^2*J5028))*(2.375/L5028)),"") -> 
M5092: =IF(C5092<>"", (((0.25*2.375^2*I5092)+(0.5*2.375*K5092)+(0.25*2.375^2*J5092))*(2.375/L5092)),"") -> 
M5347: =IF(C5347<>"", (((0.25*2.375^2*I5347)+(0.5*2.375*K5347)+(0.25*2.375^2*J5347))*(2.375/L5347)),"") -> 
M5411: =IF(C5411<>"", (((0.25*2.375^2*I5411)+(0.5*2.375*K5411)+(0.25*2.375^2*J5411))*(2.375/L5411)),"") -> 
M5475: =IF(C5475<>"", (((0.25*2.375^2*I5475)+(0.5*2.375*K5475)+(0.25*2.375^2*J5475))*(2.375/L5475)),"") -> 
M5539: =IF(C5539<>"", (((0.25*2.375^2*I5539)+(0.5*2.375*K5539)+(0.25*2.375^2*J5539))*(2.375/L5539)),"") -> 
M5603: =IF(C5603<>"", (((0.25*2.375^2*I5603)+(0.5*2.375*K5603)+(0.25*2.375^2*J5603))*(2.375/L5603)),"") -> 
M5667: =IF(C5667<>"", (((0.25*2.375^2*I5667)+(0.5*2.375*K5667)+(0.25*2.375^2*J5667))*(2.375/L5667)),"") -> 
M5731: =IF(C5731<>"", (((0.25*2.375^2*I5731)+(0.5*2.375*K5731)+(0.25*2.375^2*J5731))*(2.375/L5731)),"") -> 
M5795: =IF(C5795<>"", (((0.25*2.375^2*I5795)+(0.5*2.375*K5795)+(0.25*2.375^2*J5795))*(2.375/L5795)),"") -> 
M5859: =IF(C5859<>"", (((0.25*2.375^2*I5859)+(0.5*2.375*K5859)+(0.25*2.375^2*J5859))*(2.375/L5859)),"") -> 
M5923: =IF(C5923<>"", (((0.25*2.375^2*I5923)+(0.5*2.375*K5923)+(0.25*2.375^2*J5923))*(2.375/L5923)),"") -> 
M5987: =IF(C5987<>"", (((0.25*2.375^2*I5987)+(0.5*2.375*K5987)+(0.25*2.375^2*J5987))*(2.375/L5987)),"") -> 

Sheet DE100_34
A1: TabTitle | B1: =C16 -> STORMWATER DRAINAGE BASIN AND STORAGE
A2: Number of Tab Columns | B2: 14
A3: DE Starter Row Number | B3: 26
A4: TabSheet Starter Row Number | B4: 12
A5: TabSheet Header Row Count | B5: 11
A6: Top Header Cell | B6: S15
A7: Bottom Header Cell | B7: AF25
A8: DESheet Row Count | B8: 13
A9: Fixed Empty Rows | B9: 8
A10: Usable Empty Rows | B10: 0
A11: Total Rows Placed | B11: 21 | C11: xlRight(1) | D11: xlRight(1) | E11: xlRight(1) | F11: xlRight(1) | G11: xlRight(1) | H11: xlRight(1) | I11: xlRight(1) | J11: xlRight(1) | K11: xlRight(1) | M11: xlRight(1) | N11: xlRight(1) | O11: xlRight(1) | P11: xlRight(1) | Q11: xlLeft(1) | S11: =C11 -> xlRight(1) | T11: =D11 -> xlRight(1) | U11: =E11 -> xlRight(1) | V11: =F11 -> xlRight(1) | W11: =I11 -> xlRight(1) | X11: xlRight(1) | Y11: xlRight(1) | Z11: 0 | AA11: xlRight(1) | AB11: =M11 -> xlRight(1) | AC11: xlRight(1) | AD11: xlRight(1) | AE11: xlRight(1) | AF11: xlLeft(1)
A12: Total Rows Needed | B12: =SUM(B8:B10) -> 21 | C12: General | D12: #+00.00 | E12: #+00.00 | F12: General | G12: #+00.00 | H12: General | I12: 0.0 | J12: 0.0 | K12: 0.0 | M12: General | N12: 0.0 | O12: 0.0 | P12: General | Q12: General | S12: General | T12: =D12 -> #+00.00 | U12: =E12 -> #+00.00 | V12: =F12 -> General | W12: 0.0 | X12: 0.0 | Y12: 0.0 | Z12: 0 | AA12: General | AB12: General | AC12: 0.0 | AD12: 0.0 | AE12: General | AF12: General
A13: Last Tab DE Starter Row | B13: 26 | C13: =CELL("width",C13) -> 6 | D13: 16 | E13: 16 | F13: 8 | G13: =CELL("width",G13) -> 16 | H13: =CELL("width",H13) -> 8 | I13: 12 | J13: 18 | K13: 18 | M13: 70 | N13: 18 | O13: 18 | P13: 14 | Q13: 75 | S13: =CELL("width",S13) -> 0 | T13: 0 | U13: 0 | V13: 0 | W13: 0 | X13: 0 | Y13: 0 | Z13: 0 | AA13: 0 | AB13: 0 | AC13: 0 | AD13: 0 | AE13: 0 | AF13: 0
A14: Last Tab Tabsheet Starter Row | B14: 12 | C14: A | D14: B | E14: C | F14: D | G14: E | H14: F | I14: G | J14: H | K14: I | M14: J | N14: K | O14: L | P14: M | Q14: N | S14: =LOWER(C14) -> a | T14: b | U14: c | V14: d | W14: e | X14: f | Y14: g | Z14: h | AA14: i | AB14: =LOWER(M14) -> j | AC14: =LOWER(N14) -> k | AD14: =LOWER(O14) -> l | AE14: =LOWER(P14) -> m | AF14: n
A15: Last Copy Starter Row | B15: 1 | H15: Totals: | I15: =SUBTOTAL(9,I26:I6000) -> 29.2 | J15: =SUBTOTAL(9,J26:J6000) -> 29.2 | K15: 0 | S15: 100-34 | AH15: =M21 -> Best Management Practice | AI15: =P21 -> Storage Volume Met?
A16: Tab Loop Number | B16: 2 | C16: STORMWATER DRAINAGE BASIN AND STORAGE | S16: =B17 -> 2017-10-17 | AH16: Silt Fence for Ditch Check (EC-201) | AI16: Yes
A17: Revision Date | B17: 2017-10-17 | S17: =C16 -> STORMWATER DRAINAGE BASIN AND STORAGE | AH17: Silt Basin (EW-403) | AI17: No
A18: Tabulation Width | B18: 4 | C18: Refer to EC Standards and 570s Details. | AH18: Rock Check Dam (570-2)
A19: Horizontal Grid Lines | B19: Yes | C19: ="This Data Entry Sheet fills Tab "&S15&" effective "&TEXT(B17,"mm-dd-yy") -> This Data Entry Sheet fills Tab 100-34 effective 10-17-17 | S19: =C18 -> Refer to EC Standards and 570s Details. | AH19: Temporary Sediment Control Basin (570-3)
C20: Drainage Basin Location | I20: Summary of Stormwater Storage | Q20: Remarks | S20: =C20 -> Drainage Basin Location | Y20: =I20 -> Summary of Stormwater Storage | AF20: =Q20 -> Remarks | AH20: Silt Fence Installation for Shallow or No Ditch (570-4)
C21: Basin No. | D21: Station to Station | F21: Side | G21: Discharge Point | I21: Total Disturbed Area | J21: Disturbed Area with Storage Provided | K21: Disturbed Area without Storage Provided | L21: Discuss with Agronomist if w/o Storage > 0 | M21: Best Management Practice | N21: Total Storage Volume Provided | O21: Total Storage Volume Required | P21: Storage Volume Met? | S21: =C21 -> Basin No. | T21: =D21 -> Station to Station | V21: =F21 -> Side | W21: =G21 -> Discharge Point | Y21: =I21 -> Total Disturbed Area | Z21: =J21 -> Disturbed Area with Storage Provided | AA21: Disturbed Area without Storage Provided | AB21: =M21 -> Best Management Practice | AC21: =N21 -> Total Storage Volume Provided | AD21: =O21 -> Total Storage Volume Required | AE21: =P21 -> Storage Volume Met? | AH21: Erosion Control for Intake or Manhole Well (570-5)
AH22: Open-Throat Curb Intake Sediment Filter (570-6)
AH23: Grate Intake Sediment Filter Bag (570-7)
G24: Station | H24: Side | W24: =G24 -> Station | X24: =H24 -> Side | AH24: Vegetated Buffer
I25: Acres | J25: Acres | K25: Acres | N25: CF | O25: CF | P25: Yes/No | Y25: =I25 -> Acres | Z25: =J25 -> Acres | AA25: Acres | AC25: =N25 -> CF | AD25: =O25 -> CF | AE25: =P25 -> Yes/No
K26: =IF(I26<>"",I26-J26,"") ->  | L26: =IF(K26<>"","<--","") ->  | O26: =IF(I26<>"",(J26*3600),"") -> 
C27: 1 | D27: 44450 | E27: 47454 | F27: Both | G27: 44900 | H27: West | I27: 7.7 | J27: 7.7 | K27: =IF(I27<>"",I27-J27,"") -> 0 | L27: =IF(K27<>"","<--","") -> <-- | M27: Silt Fence for Ditch Check (EC-201) | N27: 30607.2 | O27: =IF(I27<>"",(J27*3600),"") -> 27720 | P27: Yes
G28: 45425 | H28: West | K28: =IF(I28<>"",I28-J28,"") ->  | O28: =IF(I28<>"",(J28*3600),"") -> 
G29: 46468 | H29: West
C31: 2 | D31: 47454 | E31: 50350 | F31: Both | G31: 48150 | H31: West | I31: 7.7 | J31: 7.7 | K31: 0 | L31: <-- | M31: Silt Fence for Ditch Check (EC-201) | N31: 29873.6 | O31: 27720 | P31: Yes
G32: 48700 | H32: West
G33: 49100 | H33: West
C35: 3 | D35: 50350 | E35: 53550 | F35: Both | G35: 53350 | H35: West | I35: 10.9 | J35: 10.9 | K35: 0 | L35: <-- | M35: Silt Fence for Ditch Check (EC-201) | N35: 31850.9 | O35: 39240 | P35: Yes
M36: Temporary Sediment Control Basin (570-3) | N36: 8939.6
C38: 4 | D38: 53700 | E38: 54785 | F38: Both | G38: 54250 | H38: West | I38: 2.9 | J38: 2.9 | K38: 0 | L38: <-- | M38: Silt Fence for Ditch Check (EC-201) | N38: 11875.9 | O38: 10440 | P38: Yes
L92: =IF(K92<>"","<--","") -> 
K93: =IF(I93<>"",I93-J93,"") ->  | O93: =IF(I93<>"",(J93*3600),"") -> 
L156: =IF(K156<>"","<--","") -> 
K157: =IF(I157<>"",I157-J157,"") ->  | O157: =IF(I157<>"",(J157*3600),"") -> 
L220: =IF(K220<>"","<--","") -> 
K221: =IF(I221<>"",I221-J221,"") ->  | O221: =IF(I221<>"",(J221*3600),"") -> 
L284: =IF(K284<>"","<--","") -> 
K285: =IF(I285<>"",I285-J285,"") ->  | O285: =IF(I285<>"",(J285*3600),"") -> 
L348: =IF(K348<>"","<--","") -> 
K349: =IF(I349<>"",I349-J349,"") ->  | O349: =IF(I349<>"",(J349*3600),"") -> 
L412: =IF(K412<>"","<--","") -> 
K413: =IF(I413<>"",I413-J413,"") ->  | O413: =IF(I413<>"",(J413*3600),"") -> 
L476: =IF(K476<>"","<--","") -> 
K477: =IF(I477<>"",I477-J477,"") ->  | O477: =IF(I477<>"",(J477*3600),"") -> 
L540: =IF(K540<>"","<--","") -> 
K541: =IF(I541<>"",I541-J541,"") ->  | O541: =IF(I541<>"",(J541*3600),"") -> 
L604: =IF(K604<>"","<--","") -> 
K605: =IF(I605<>"",I605-J605,"") ->  | O605: =IF(I605<>"",(J605*3600),"") -> 
L668: =IF(K668<>"","<--","") -> 
K669: =IF(I669<>"",I669-J669,"") ->  | O669: =IF(I669<>"",(J669*3600),"") -> 
L732: =IF(K732<>"","<--","") -> 
K733: =IF(I733<>"",I733-J733,"") ->  | O733: =IF(I733<>"",(J733*3600),"") -> 
L796: =IF(K796<>"","<--","") -> 
K797: =IF(I797<>"",I797-J797,"") ->  | O797: =IF(I797<>"",(J797*3600),"") -> 
L860: =IF(K860<>"","<--","") -> 
K861: =IF(I861<>"",I861-J861,"") ->  | O861: =IF(I861<>"",(J861*3600),"") -> 
L924: =IF(K924<>"","<--","") -> 
K925: =IF(I925<>"",I925-J925,"") ->  | O925: =IF(I925<>"",(J925*3600),"") -> 
L988: =IF(K988<>"","<--","") -> 
K989: =IF(I989<>"",I989-J989,"") ->  | O989: =IF(I989<>"",(J989*3600),"") -> 
L1052: =IF(K1052<>"","<--","") -> 
K1053: =IF(I1053<>"",I1053-J1053,"") ->  | O1053: =IF(I1053<>"",(J1053*3600),"") -> 
L1116: =IF(K1116<>"","<--","") -> 
K1117: =IF(I1117<>"",I1117-J1117,"") ->  | O1117: =IF(I1117<>"",(J1117*3600),"") -> 
L1180: =IF(K1180<>"","<--","") -> 
K1181: =IF(I1181<>"",I1181-J1181,"") ->  | O1181: =IF(I1181<>"",(J1181*3600),"") -> 
L1244: =IF(K1244<>"","<--","") -> 
K1245: =IF(I1245<>"",I1245-J1245,"") ->  | O1245: =IF(I1245<>"",(J1245*3600),"") -> 
L1308: =IF(K1308<>"","<--","") -> 
K1309: =IF(I1309<>"",I1309-J1309,"") ->  | O1309: =IF(I1309<>"",(J1309*3600),"") -> 
L1372: =IF(K1372<>"","<--","") -> 
K1373: =IF(I1373<>"",I1373-J1373,"") ->  | O1373: =IF(I1373<>"",(J1373*3600),"") -> 
L1436: =IF(K1436<>"","<--","") -> 
K1437: =IF(I1437<>"",I1437-J1437,"") ->  | O1437: =IF(I1437<>"",(J1437*3600),"") -> 
L1500: =IF(K1500<>"","<--","") -> 
K1501: =IF(I1501<>"",I1501-J1501,"") ->  | O1501: =IF(I1501<>"",(J1501*3600),"") -> 
L1564: =IF(K1564<>"","<--","") -> 
K1565: =IF(I1565<>"",I1565-J1565,"") ->  | O1565: =IF(I1565<>"",(J1565*3600),"") -> 
L1628: =IF(K1628<>"","<--","") -> 
K1629: =IF(I1629<>"",I1629-J1629,"") ->  | O1629: =IF(I1629<>"",(J1629*3600),"") -> 
L1692: =IF(K1692<>"","<--","") -> 
K1693: =IF(I1693<>"",I1693-J1693,"") ->  | O1693: =IF(I1693<>"",(J1693*3600),"") -> 
L1756: =IF(K1756<>"","<--","") -> 
K1757: =IF(I1757<>"",I1757-J1757,"") ->  | O1757: =IF(I1757<>"",(J1757*3600),"") -> 
L1820: =IF(K1820<>"","<--","") -> 
K1821: =IF(I1821<>"",I1821-J1821,"") ->  | O1821: =IF(I1821<>"",(J1821*3600),"") -> 
L1884: =IF(K1884<>"","<--","") -> 
K1885: =IF(I1885<>"",I1885-J1885,"") ->  | O1885: =IF(I1885<>"",(J1885*3600),"") -> 
L1948: =IF(K1948<>"","<--","") -> 
K1949: =IF(I1949<>"",I1949-J1949,"") ->  | O1949: =IF(I1949<>"",(J1949*3600),"") -> 
L2012: =IF(K2012<>"","<--","") -> 
K2013: =IF(I2013<>"",I2013-J2013,"") ->  | O2013: =IF(I2013<>"",(J2013*3600),"") -> 
L2076: =IF(K2076<>"","<--","") -> 
K2077: =IF(I2077<>"",I2077-J2077,"") ->  | O2077: =IF(I2077<>"",(J2077*3600),"") -> 
L2140: =IF(K2140<>"","<--","") -> 
K2141: =IF(I2141<>"",I2141-J2141,"") ->  | O2141: =IF(I2141<>"",(J2141*3600),"") -> 
L2204: =IF(K2204<>"","<--","") -> 
K2205: =IF(I2205<>"",I2205-J2205,"") ->  | O2205: =IF(I2205<>"",(J2205*3600),"") -> 
L2268: =IF(K2268<>"","<--","") -> 
K2269: =IF(I2269<>"",I2269-J2269,"") ->  | O2269: =IF(I2269<>"",(J2269*3600),"") -> 
L2332: =IF(K2332<>"","<--","") -> 
K2333: =IF(I2333<>"",I2333-J2333,"") ->  | O2333: =IF(I2333<>"",(J2333*3600),"") -> 
L2396: =IF(K2396<>"","<--","") -> 
K2397: =IF(I2397<>"",I2397-J2397,"") ->  | O2397: =IF(I2397<>"",(J2397*3600),"") -> 
L2460: =IF(K2460<>"","<--","") -> 
K2461: =IF(I2461<>"",I2461-J2461,"") ->  | O2461: =IF(I2461<>"",(J2461*3600),"") -> 
L2524: =IF(K2524<>"","<--","") -> 
K2525: =IF(I2525<>"",I2525-J2525,"") ->  | O2525: =IF(I2525<>"",(J2525*3600),"") -> 
L2588: =IF(K2588<>"","<--","") -> 
K2589: =IF(I2589<>"",I2589-J2589,"") ->  | O2589: =IF(I2589<>"",(J2589*3600),"") -> 
L2652: =IF(K2652<>"","<--","") -> 
K2653: =IF(I2653<>"",I2653-J2653,"") ->  | O2653: =IF(I2653<>"",(J2653*3600),"") -> 
L2716: =IF(K2716<>"","<--","") -> 
K2717: =IF(I2717<>"",I2717-J2717,"") ->  | O2717: =IF(I2717<>"",(J2717*3600),"") -> 
L2780: =IF(K2780<>"","<--","") -> 
K2781: =IF(I2781<>"",I2781-J2781,"") ->  | O2781: =IF(I2781<>"",(J2781*3600),"") -> 
L2844: =IF(K2844<>"","<--","") -> 
K2845: =IF(I2845<>"",I2845-J2845,"") ->  | O2845: =IF(I2845<>"",(J2845*3600),"") -> 
L2908: =IF(K2908<>"","<--","") -> 
K2909: =IF(I2909<>"",I2909-J2909,"") ->  | O2909: =IF(I2909<>"",(J2909*3600),"") -> 
L2972: =IF(K2972<>"","<--","") -> 
K2973: =IF(I2973<>"",I2973-J2973,"") ->  | O2973: =IF(I2973<>"",(J2973*3600),"") -> 
L3036: =IF(K3036<>"","<--","") -> 
K3037: =IF(I3037<>"",I3037-J3037,"") ->  | O3037: =IF(I3037<>"",(J3037*3600),"") -> 
L3100: =IF(K3100<>"","<--","") -> 
K3101: =IF(I3101<>"",I3101-J3101,"") ->  | O3101: =IF(I3101<>"",(J3101*3600),"") -> 
L3164: =IF(K3164<>"","<--","") -> 
K3165: =IF(I3165<>"",I3165-J3165,"") ->  | O3165: =IF(I3165<>"",(J3165*3600),"") -> 
L3228: =IF(K3228<>"","<--","") -> 
K3229: =IF(I3229<>"",I3229-J3229,"") ->  | O3229: =IF(I3229<>"",(J3229*3600),"") -> 
L3292: =IF(K3292<>"","<--","") -> 
K3293: =IF(I3293<>"",I3293-J3293,"") ->  | O3293: =IF(I3293<>"",(J3293*3600),"") -> 
L3356: =IF(K3356<>"","<--","") -> 
K3357: =IF(I3357<>"",I3357-J3357,"") ->  | O3357: =IF(I3357<>"",(J3357*3600),"") -> 
L3420: =IF(K3420<>"","<--","") -> 
K3421: =IF(I3421<>"",I3421-J3421,"") ->  | O3421: =IF(I3421<>"",(J3421*3600),"") -> 
L3484: =IF(K3484<>"","<--","") -> 
K3485: =IF(I3485<>"",I3485-J3485,"") ->  | O3485: =IF(I3485<>"",(J3485*3600),"") -> 
L3548: =IF(K3548<>"","<--","") -> 
K3549: =IF(I3549<>"",I3549-J3549,"") ->  | O3549: =IF(I3549<>"",(J3549*3600),"") -> 
L3612: =IF(K3612<>"","<--","") -> 
K3613: =IF(I3613<>"",I3613-J3613,"") ->  | O3613: =IF(I3613<>"",(J3613*3600),"") -> 
L3676: =IF(K3676<>"","<--","") -> 
K3677: =IF(I3677<>"",I3677-J3677,"") ->  | O3677: =IF(I3677<>"",(J3677*3600),"") -> 
L3740: =IF(K3740<>"","<--","") -> 
K3741: =IF(I3741<>"",I3741-J3741,"") ->  | O3741: =IF(I3741<>"",(J3741*3600),"") -> 
L3804: =IF(K3804<>"","<--","") -> 
K3805: =IF(I3805<>"",I3805-J3805,"") ->  | O3805: =IF(I3805<>"",(J3805*3600),"") -> 
L3868: =IF(K3868<>"","<--","") -> 
K3869: =IF(I3869<>"",I3869-J3869,"") ->  | O3869: =IF(I3869<>"",(J3869*3600),"") -> 
L3932: =IF(K3932<>"","<--","") -> 
K3933: =IF(I3933<>"",I3933-J3933,"") ->  | O3933: =IF(I3933<>"",(J3933*3600),"") -> 
L3996: =IF(K3996<>"","<--","") -> 
K3997: =IF(I3997<>"",I3997-J3997,"") ->  | O3997: =IF(I3997<>"",(J3997*3600),"") -> 
L4060: =IF(K4060<>"","<--","") -> 
K4061: =IF(I4061<>"",I4061-J4061,"") ->  | O4061: =IF(I4061<>"",(J4061*3600),"") -> 
L4124: =IF(K4124<>"","<--","") -> 
K4125: =IF(I4125<>"",I4125-J4125,"") ->  | O4125: =IF(I4125<>"",(J4125*3600),"") -> 
L4188: =IF(K4188<>"","<--","") -> 
K4189: =IF(I4189<>"",I4189-J4189,"") ->  | O4189: =IF(I4189<>"",(J4189*3600),"") -> 
L4252: =IF(K4252<>"","<--","") -> 
K4253: =IF(I4253<>"",I4253-J4253,"") ->  | O4253: =IF(I4253<>"",(J4253*3600),"") -> 
L4316: =IF(K4316<>"","<--","") -> 
K4317: =IF(I4317<>"",I4317-J4317,"") ->  | O4317: =IF(I4317<>"",(J4317*3600),"") -> 
L4380: =IF(K4380<>"","<--","") -> 
K4381: =IF(I4381<>"",I4381-J4381,"") ->  | O4381: =IF(I4381<>"",(J4381*3600),"") -> 
L4444: =IF(K4444<>"","<--","") -> 
K4445: =IF(I4445<>"",I4445-J4445,"") ->  | O4445: =IF(I4445<>"",(J4445*3600),"") -> 
L4508: =IF(K4508<>"","<--","") -> 
K4509: =IF(I4509<>"",I4509-J4509,"") ->  | O4509: =IF(I4509<>"",(J4509*3600),"") -> 
L4572: =IF(K4572<>"","<--","") -> 
K4573: =IF(I4573<>"",I4573-J4573,"") ->  | O4573: =IF(I4573<>"",(J4573*3600),"") -> 
L4636: =IF(K4636<>"","<--","") -> 
K4637: =IF(I4637<>"",I4637-J4637,"") ->  | O4637: =IF(I4637<>"",(J4637*3600),"") -> 
L4700: =IF(K4700<>"","<--","") -> 
K4701: =IF(I4701<>"",I4701-J4701,"") ->  | O4701: =IF(I4701<>"",(J4701*3600),"") -> 
L4764: =IF(K4764<>"","<--","") -> 
K4765: =IF(I4765<>"",I4765-J4765,"") ->  | O4765: =IF(I4765<>"",(J4765*3600),"") -> 
L4828: =IF(K4828<>"","<--","") -> 
K4829: =IF(I4829<>"",I4829-J4829,"") ->  | O4829: =IF(I4829<>"",(J4829*3600),"") -> 
L4892: =IF(K4892<>"","<--","") -> 
K4893: =IF(I4893<>"",I4893-J4893,"") ->  | O4893: =IF(I4893<>"",(J4893*3600),"") -> 
L4956: =IF(K4956<>"","<--","") -> 
K4957: =IF(I4957<>"",I4957-J4957,"") ->  | O4957: =IF(I4957<>"",(J4957*3600),"") -> 
L5020: =IF(K5020<>"","<--","") -> 
K5021: =IF(I5021<>"",I5021-J5021,"") ->  | O5021: =IF(I5021<>"",(J5021*3600),"") -> 
L5084: =IF(K5084<>"","<--","") -> 
K5085: =IF(I5085<>"",I5085-J5085,"") ->  | O5085: =IF(I5085<>"",(J5085*3600),"") -> 
L5148: =IF(K5148<>"","<--","") -> 
K5149: =IF(I5149<>"",I5149-J5149,"") ->  | O5149: =IF(I5149<>"",(J5149*3600),"") -> 
L5212: =IF(K5212<>"","<--","") -> 
K5213: =IF(I5213<>"",I5213-J5213,"") ->  | O5213: =IF(I5213<>"",(J5213*3600),"") -> 
L5276: =IF(K5276<>"","<--","") -> 
K5277: =IF(I5277<>"",I5277-J5277,"") ->  | O5277: =IF(I5277<>"",(J5277*3600),"") -> 
L5340: =IF(K5340<>"","<--","") -> 
... 21 more rows

Sheet DE111_25
A1: TabTitle | B1: =C15 -> INDEX OF TABULATIONS
A2: Number of Tab Columns | B2: 3
A3: DE Starter Row Number | B3: 20
A4: TabSheet Starter Row Number | B4: 7
A5: TabSheet Header Row Count | B5: 6
A6: Top Header Cell | B6: G15
A7: Bottom Header Cell | B7: I20
A8: DESheet Row Count | B8: 7
A9: Fixed Empty Rows | B9: 2
A10: Usable Empty Rows | B10: 0
A11: Total Rows Placed | B11: 2 | C11: xlLeft(1) | D11: xlLeft(1) | E11: xlLeft(1) | G11: =C11 -> xlLeft(1) | H11: =D11 -> xlLeft(1) | I11: xlLeft(1)
A12: Total Rows Needed | B12: =SUM(B8:B10) -> 9 | C12: General | D12: General | E12: General | G12: =C12 -> General | H12: General | I12: General
A13: Last Tab DE Starter Row | B13: 20 | C13: =CELL("width",C13) -> 13 | D13: =CELL("width",D13) -> 128 | E13: =CELL("width",E13) -> 15 | G13: =CELL("width",G13) -> 0 | H13: =CELL("width",H13) -> 0 | I13: =CELL("width",I13) -> 0
A14: Last Tab TabSheet Starter Row | B14: 7 | C14: A | D14: B | E14: C | G14: =LOWER(C14) -> a | H14: =LOWER(D14) -> b | I14: =LOWER(E14) -> c
A15: Last Copy Starter Row | B15: 1 | C15: INDEX OF TABULATIONS | G15: 111-25
A16: Tab Loop Number | B16: 2 | G16: =B17 -> 2011-10-18
A17: Revision Date | B17: 2011-10-18 | C17: ="This Data Entry Sheet fills Tab "&G15&" effective "&TEXT(B17,"mm-dd-yy") -> This Data Entry Sheet fills Tab 111-25 effective 10-18-11 | G17: =C15 -> INDEX OF TABULATIONS
A18: Tabulation Width | B18: 2 | C18: Tabulation | D18: Tabulation Title | E18: Sheet No.
A19: Horizontal Grid Lines | B19: Yes | G19: =C18 -> Tabulation | H19: =D18 -> Tabulation Title | I19: =E18 -> Sheet No.
C20: C Sheets
C21: 110-12A | D21: POLLUTION PREVENTION PLAN | E21: CE.1 - CE.2
C22: 100-17 | D22: TABULATION OF SILT FENCES | E22: CE.3 - CE.3
C23: 100-18 | D23: SILT FENCES FOR DITCH CHECKS | E23: CE.3 - CE.4
C24: 100-33 | D24: TEMPORARY SEDIMENT CONTROL BASIN | E24: CE.2
C25: 100-34 | D25: STORMWATER DRAINAGE BASIN AND STORAGE | E25: CE.2
C26: 111-25 | D26: INDEX OF TABULATIONS | E26: No Sheet No.

Sheet 110_12A
A1: 110-12A
A2: 2017-10-17
A3: POLLUTION PREVENTION PLAN
A5: =IF(OFFSET(DE110_12A!$C$18,ROWS($C$18:C18)-1,COLUMNS($C$18:C18)-1)<>"",OFFSET(DE110_12A!$C$18,ROWS($C$18:C18)-1,COLUMNS($C$18:C18)-1),"") -> This project is regulated by the requirements of the Iowa Department of Natural Resources (DNR) National Pollutant Discharge Elimination
A6: =IF(OFFSET(DE110_12A!$C$18,ROWS($C$18:C19)-1,COLUMNS($C$18:C19)-1)<>"",OFFSET(DE110_12A!$C$18,ROWS($C$18:C19)-1,COLUMNS($C$18:C19)-1),"") -> System (NPDES) General Permit No. 2 OR an Iowa Department of Natural Resources (DNR) National Pollutant Discharge Elimination System
A7: =IF(OFFSET(DE110_12A!$C$18,ROWS($C$18:C20)-1,COLUMNS($C$18:C20)-1)<>"",OFFSET(DE110_12A!$C$18,ROWS($C$18:C20)-1,COLUMNS($C$18:C20)-1),"") -> (NPDES) individual storm water permit. The Contractor shall carry out the terms and conditions of this permit and the Pollution
A8: =IF(OFFSET(DE110_12A!$C$18,ROWS($C$18:C21)-1,COLUMNS($C$18:C21)-1)<>"",OFFSET(DE110_12A!$C$18,ROWS($C$18:C21)-1,COLUMNS($C$18:C21)-1),"") -> Prevention Plan (PPP).
A9: =IF(OFFSET(DE110_12A!$C$18,ROWS($C$18:C22)-1,COLUMNS($C$18:C22)-1)<>"",OFFSET(DE110_12A!$C$18,ROWS($C$18:C22)-1,COLUMNS($C$18:C22)-1),"") -> 
A10: =IF(OFFSET(DE110_12A!$C$18,ROWS($C$18:C23)-1,COLUMNS($C$18:C23)-1)<>"",OFFSET(DE110_12A!$C$18,ROWS($C$18:C23)-1,COLUMNS($C$18:C23)-1),"") -> This Base PPP includes information on Roles and Responsibilities, Project Site Description, Controls, Maintenance Procedures, Inspection
A11: =IF(OFFSET(DE110_12A!$C$18,ROWS($C$18:C24)-1,COLUMNS($C$18:C24)-1)<>"",OFFSET(DE110_12A!$C$18,ROWS($C$18:C24)-1,COLUMNS($C$18:C24)-1),"") -> Requirements, Non-Storm Water Controls, Potential Sources of Off Right-of-Way Pollution, and Definitions. This plan references other
A12: =IF(OFFSET(DE110_12A!$C$18,ROWS($C$18:C25)-1,COLUMNS($C$18:C25)-1)<>"",OFFSET(DE110_12A!$C$18,ROWS($C$18:C25)-1,COLUMNS($C$18:C25)-1),"") -> documents rather than repeating the information contained in the documents. A copy of this Base Pollution Prevention Plan, amended as
A13: =IF(OFFSET(DE110_12A!$C$18,ROWS($C$18:C26)-1,COLUMNS($C$18:C26)-1)<>"",OFFSET(DE110_12A!$C$18,ROWS($C$18:C26)-1,COLUMNS($C$18:C26)-1),"") -> needed per plan revisions or by contract modification, will be readily available for review.
A14: =IF(OFFSET(DE110_12A!$C$18,ROWS($C$18:C27)-1,COLUMNS($C$18:C27)-1)<>"",OFFSET(DE110_12A!$C$18,ROWS($C$18:C27)-1,COLUMNS($C$18:C27)-1),"") -> 
A15: =IF(OFFSET(DE110_12A!$C$18,ROWS($C$18:C28)-1,COLUMNS($C$18:C28)-1)<>"",OFFSET(DE110_12A!$C$18,ROWS($C$18:C28)-1,COLUMNS($C$18:C28)-1),"") -> All contractors shall conduct their operations in a manner that controls pollutants, minimizes erosion, and prevents sediments from
A16: =IF(OFFSET(DE110_12A!$C$18,ROWS($C$18:C29)-1,COLUMNS($C$18:C29)-1)<>"",OFFSET(DE110_12A!$C$18,ROWS($C$18:C29)-1,COLUMNS($C$18:C29)-1),"") -> entering waters of the state and leaving the highway right-of-way. The prime contractor shall be responsible for compliance and
A17: =IF(OFFSET(DE110_12A!$C$18,ROWS($C$18:C30)-1,COLUMNS($C$18:C30)-1)<>"",OFFSET(DE110_12A!$C$18,ROWS($C$18:C30)-1,COLUMNS($C$18:C30)-1),"") -> implementation of the PPP for their entire contract. This responsibility shall be further shared with subcontractors whose work is a
A18: =IF(OFFSET(DE110_12A!$C$18,ROWS($C$18:C31)-1,COLUMNS($C$18:C31)-1)<>"",OFFSET(DE110_12A!$C$18,ROWS($C$18:C31)-1,COLUMNS($C$18:C31)-1),"") -> source of potential pollution as defined in this PPP.
A19: =IF(OFFSET(DE110_12A!$C$18,ROWS($C$18:C32)-1,COLUMNS($C$18:C32)-1)<>"",OFFSET(DE110_12A!$C$18,ROWS($C$18:C32)-1,COLUMNS($C$18:C32)-1),"") -> 
A20: =IF(OFFSET(DE110_12A!$C$18,ROWS($C$18:C33)-1,COLUMNS($C$18:C33)-1)<>"",OFFSET(DE110_12A!$C$18,ROWS($C$18:C33)-1,COLUMNS($C$18:C33)-1),"") -> 
A21: =IF(OFFSET(DE110_12A!$C$18,ROWS($C$18:C34)-1,COLUMNS($C$18:C34)-1)<>"",OFFSET(DE110_12A!$C$18,ROWS($C$18:C34)-1,COLUMNS($C$18:C34)-1),"") -> I. ROLES AND RESPONSIBILITES
A22: =IF(OFFSET(DE110_12A!$C$18,ROWS($C$18:C35)-1,COLUMNS($C$18:C35)-1)<>"",OFFSET(DE110_12A!$C$18,ROWS($C$18:C35)-1,COLUMNS($C$18:C35)-1),"") -> A. Designer:
A23: =IF(OFFSET(DE110_12A!$C$18,ROWS($C$18:C36)-1,COLUMNS($C$18:C36)-1)<>"",OFFSET(DE110_12A!$C$18,ROWS($C$18:C36)-1,COLUMNS($C$18:C36)-1),"") -> 1. Prepares Base PPP included in the project plan.
A24: =IF(OFFSET(DE110_12A!$C$18,ROWS($C$18:C37)-1,COLUMNS($C$18:C37)-1)<>"",OFFSET(DE110_12A!$C$18,ROWS($C$18:C37)-1,COLUMNS($C$18:C37)-1),"") -> 2. Prepares Notice of Intent (NOI) submitted to Iowa DNR.
A25: =IF(OFFSET(DE110_12A!$C$18,ROWS($C$18:C38)-1,COLUMNS($C$18:C38)-1)<>"",OFFSET(DE110_12A!$C$18,ROWS($C$18:C38)-1,COLUMNS($C$18:C38)-1),"") -> 3. Signature authority on the Base PPP and NOI.
A26: =IF(OFFSET(DE110_12A!$C$18,ROWS($C$18:C39)-1,COLUMNS($C$18:C39)-1)<>"",OFFSET(DE110_12A!$C$18,ROWS($C$18:C39)-1,COLUMNS($C$18:C39)-1),"") -> B. Contractor/Subcontractor:
A27: =IF(OFFSET(DE110_12A!$C$18,ROWS($C$18:C40)-1,COLUMNS($C$18:C40)-1)<>"",OFFSET(DE110_12A!$C$18,ROWS($C$18:C40)-1,COLUMNS($C$18:C40)-1),"") -> 1. Affected contractors/subcontractors are co-permittees with the IDOT and will sign a certification statement adhering to the
A28: =IF(OFFSET(DE110_12A!$C$18,ROWS($C$18:C41)-1,COLUMNS($C$18:C41)-1)<>"",OFFSET(DE110_12A!$C$18,ROWS($C$18:C41)-1,COLUMNS($C$18:C41)-1),"") -> requirements of the NPDES permit and this PPP plan. Affected contractors/subcontractors are anyone responsible for sediment or
A29: =IF(OFFSET(DE110_12A!$C$18,ROWS($C$18:C42)-1,COLUMNS($C$18:C42)-1)<>"",OFFSET(DE110_12A!$C$18,ROWS($C$18:C42)-1,COLUMNS($C$18:C42)-1),"") -> erosion controls or involved in land disturbing activities. All co-permittees are legally required under the Clean Water Act
A30: =IF(OFFSET(DE110_12A!$C$18,ROWS($C$18:C43)-1,COLUMNS($C$18:C43)-1)<>"",OFFSET(DE110_12A!$C$18,ROWS($C$18:C43)-1,COLUMNS($C$18:C43)-1),"") -> and the Iowa Administrative Code to ensure compliance with the terms and conditions of this PPP.
A31: =IF(OFFSET(DE110_12A!$C$18,ROWS($C$18:C44)-1,COLUMNS($C$18:C44)-1)<>"",OFFSET(DE110_12A!$C$18,ROWS($C$18:C44)-1,COLUMNS($C$18:C44)-1),"") -> 2. Submit an Erosion Control Implementation Plan (ECIP) according to Specifications Section 2602 and any additional plan notes.
A32: =IF(OFFSET(DE110_12A!$C$18,ROWS($C$18:C45)-1,COLUMNS($C$18:C45)-1)<>"",OFFSET(DE110_12A!$C$18,ROWS($C$18:C45)-1,COLUMNS($C$18:C45)-1),"") -> 3. Install and maintain appropriate controls.
A33: =IF(OFFSET(DE110_12A!$C$18,ROWS($C$18:C46)-1,COLUMNS($C$18:C46)-1)<>"",OFFSET(DE110_12A!$C$18,ROWS($C$18:C46)-1,COLUMNS($C$18:C46)-1),"") -> 4. Supervise and implement good housekeeping practices.
A34: =IF(OFFSET(DE110_12A!$C$18,ROWS($C$18:C47)-1,COLUMNS($C$18:C47)-1)<>"",OFFSET(DE110_12A!$C$18,ROWS($C$18:C47)-1,COLUMNS($C$18:C47)-1),"") -> 5. Conduct joint required inspections of the site with inspection staff.
A35: =IF(OFFSET(DE110_12A!$C$18,ROWS($C$18:C48)-1,COLUMNS($C$18:C48)-1)<>"",OFFSET(DE110_12A!$C$18,ROWS($C$18:C48)-1,COLUMNS($C$18:C48)-1),"") -> 6. Comply with training and certification requirements of Specifications Section 2602.
A36: =IF(OFFSET(DE110_12A!$C$18,ROWS($C$18:C49)-1,COLUMNS($C$18:C49)-1)<>"",OFFSET(DE110_12A!$C$18,ROWS($C$18:C49)-1,COLUMNS($C$18:C49)-1),"") -> 7. Signature authority on Co-Permittee Certification Statements and storm water inspection reports.
A37: =IF(OFFSET(DE110_12A!$C$18,ROWS($C$18:C50)-1,COLUMNS($C$18:C50)-1)<>"",OFFSET(DE110_12A!$C$18,ROWS($C$18:C50)-1,COLUMNS($C$18:C50)-1),"") -> C. RCE/Inspector:
A38: =IF(OFFSET(DE110_12A!$C$18,ROWS($C$18:C51)-1,COLUMNS($C$18:C51)-1)<>"",OFFSET(DE110_12A!$C$18,ROWS($C$18:C51)-1,COLUMNS($C$18:C51)-1),"") -> 1. Update PPP whenever there is a change in design, construction, operation or maintenance, which has a significant effect on the
A39: =IF(OFFSET(DE110_12A!$C$18,ROWS($C$18:C52)-1,COLUMNS($C$18:C52)-1)<>"",OFFSET(DE110_12A!$C$18,ROWS($C$18:C52)-1,COLUMNS($C$18:C52)-1),"") -> discharge of pollutants from the project.
A40: =IF(OFFSET(DE110_12A!$C$18,ROWS($C$18:C53)-1,COLUMNS($C$18:C53)-1)<>"",OFFSET(DE110_12A!$C$18,ROWS($C$18:C53)-1,COLUMNS($C$18:C53)-1),"") -> 2. Maintain an up-to-date record that identifies contractors and subcontractors as co-permittees.
A41: =IF(OFFSET(DE110_12A!$C$18,ROWS($C$18:C54)-1,COLUMNS($C$18:C54)-1)<>"",OFFSET(DE110_12A!$C$18,ROWS($C$18:C54)-1,COLUMNS($C$18:C54)-1),"") -> 3. Make these plans available to the DNR upon their request.
A42: =IF(OFFSET(DE110_12A!$C$18,ROWS($C$18:C55)-1,COLUMNS($C$18:C55)-1)<>"",OFFSET(DE110_12A!$C$18,ROWS($C$18:C55)-1,COLUMNS($C$18:C55)-1),"") -> 4. Conduct joint required inspections of the site with the contractor/subcontractor.
A43: =IF(OFFSET(DE110_12A!$C$18,ROWS($C$18:C56)-1,COLUMNS($C$18:C56)-1)<>"",OFFSET(DE110_12A!$C$18,ROWS($C$18:C56)-1,COLUMNS($C$18:C56)-1),"") -> 5. Complete an inspection report after each inspection.
A44: =IF(OFFSET(DE110_12A!$C$18,ROWS($C$18:C57)-1,COLUMNS($C$18:C57)-1)<>"",OFFSET(DE110_12A!$C$18,ROWS($C$18:C57)-1,COLUMNS($C$18:C57)-1),"") -> 6. Signature authority on storm water inspection reports and Notice of Discontinuation (NOD).
A45: =IF(OFFSET(DE110_12A!$C$18,ROWS($C$18:C58)-1,COLUMNS($C$18:C58)-1)<>"",OFFSET(DE110_12A!$C$18,ROWS($C$18:C58)-1,COLUMNS($C$18:C58)-1),"") -> 
A46: =IF(OFFSET(DE110_12A!$C$18,ROWS($C$18:C59)-1,COLUMNS($C$18:C59)-1)<>"",OFFSET(DE110_12A!$C$18,ROWS($C$18:C59)-1,COLUMNS($C$18:C59)-1),"") -> II. PROJECT SITE DESCRIPTION
A47: =IF(OFFSET(DE110_12A!$C$18,ROWS($C$18:C60)-1,COLUMNS($C$18:C60)-1)<>"",OFFSET(DE110_12A!$C$18,ROWS($C$18:C60)-1,COLUMNS($C$18:C60)-1),"") -> A. This Pollution Prevention Plan (PPP) is for the construction of a 2 lane PCC paved highway.
A48: =IF(OFFSET(DE110_12A!$C$18,ROWS($C$18:C61)-1,COLUMNS($C$18:C61)-1)<>"",OFFSET(DE110_12A!$C$18,ROWS($C$18:C61)-1,COLUMNS($C$18:C61)-1),"") -> B. This PPP covers approximately 41.6 acres with an estimated 26.3 acres being disturbed. The portion
A49: =IF(OFFSET(DE110_12A!$C$18,ROWS($C$18:C62)-1,COLUMNS($C$18:C62)-1)<>"",OFFSET(DE110_12A!$C$18,ROWS($C$18:C62)-1,COLUMNS($C$18:C62)-1),"") -> of the PPP covered by this contract has 26.3 acres disturbed.
A50: =IF(OFFSET(DE110_12A!$C$18,ROWS($C$18:C63)-1,COLUMNS($C$18:C63)-1)<>"",OFFSET(DE110_12A!$C$18,ROWS($C$18:C63)-1,COLUMNS($C$18:C63)-1),"") -> 
A51: =IF(OFFSET(DE110_12A!$C$18,ROWS($C$18:C64)-1,COLUMNS($C$18:C64)-1)<>"",OFFSET(DE110_12A!$C$18,ROWS($C$18:C64)-1,COLUMNS($C$18:C64)-1),"") -> C. The PPP is located in an area of 1 soil association Tama - Muscatine - Downs.
A52: =IF(OFFSET(DE110_12A!$C$18,ROWS($C$18:C65)-1,COLUMNS($C$18:C65)-1)<>"",OFFSET(DE110_12A!$C$18,ROWS($C$18:C65)-1,COLUMNS($C$18:C65)-1),"") -> The estimated weighted average runoff coefficient number for this PPP after completion will be 0.67.
A53: =IF(OFFSET(DE110_12A!$C$18,ROWS($C$18:C66)-1,COLUMNS($C$18:C66)-1)<>"",OFFSET(DE110_12A!$C$18,ROWS($C$18:C66)-1,COLUMNS($C$18:C66)-1),"") -> D. Storm Water Site Map - Multiple sources of information comprise the base storm water site map including:
A54: =IF(OFFSET(DE110_12A!$C$18,ROWS($C$18:C67)-1,COLUMNS($C$18:C67)-1)<>"",OFFSET(DE110_12A!$C$18,ROWS($C$18:C67)-1,COLUMNS($C$18:C67)-1),"") -> 1. Drainage patterns – Plan and Profile sheets and Situation plans.
A55: =IF(OFFSET(DE110_12A!$C$18,ROWS($C$18:C68)-1,COLUMNS($C$18:C68)-1)<>"",OFFSET(DE110_12A!$C$18,ROWS($C$18:C68)-1,COLUMNS($C$18:C68)-1),"") -> 2. Proposed Slopes – Cross Sections.
A56: =IF(OFFSET(DE110_12A!$C$18,ROWS($C$18:C69)-1,COLUMNS($C$18:C69)-1)<>"",OFFSET(DE110_12A!$C$18,ROWS($C$18:C69)-1,COLUMNS($C$18:C69)-1),"") -> 3. Areas of Soil Disturbance – construction limits shown on Plan and Profile sheets.
A57: =IF(OFFSET(DE110_12A!$C$18,ROWS($C$18:C70)-1,COLUMNS($C$18:C70)-1)<>"",OFFSET(DE110_12A!$C$18,ROWS($C$18:C70)-1,COLUMNS($C$18:C70)-1),"") -> 4. Location of Structural Controls – Tabulations on C sheets.
A58: =IF(OFFSET(DE110_12A!$C$18,ROWS($C$18:C71)-1,COLUMNS($C$18:C71)-1)<>"",OFFSET(DE110_12A!$C$18,ROWS($C$18:C71)-1,COLUMNS($C$18:C71)-1),"") -> 5. Locations of Non-structural Controls – Tabulations on C sheets.
A59: =IF(OFFSET(DE110_12A!$C$18,ROWS($C$18:C72)-1,COLUMNS($C$18:C72)-1)<>"",OFFSET(DE110_12A!$C$18,ROWS($C$18:C72)-1,COLUMNS($C$18:C72)-1),"") -> 6. Locations of Stabilization Practices – generally within construction limits shown on Plan and Profile sheets.
A60: =IF(OFFSET(DE110_12A!$C$18,ROWS($C$18:C73)-1,COLUMNS($C$18:C73)-1)<>"",OFFSET(DE110_12A!$C$18,ROWS($C$18:C73)-1,COLUMNS($C$18:C73)-1),"") -> 7. Surface Waters (including wetlands) – Project Location Map and Plan and Profile sheets.
A61: =IF(OFFSET(DE110_12A!$C$18,ROWS($C$18:C74)-1,COLUMNS($C$18:C74)-1)<>"",OFFSET(DE110_12A!$C$18,ROWS($C$18:C74)-1,COLUMNS($C$18:C74)-1),"") -> 8. Locations where storm water is discharged – Plan and Profile sheets.
A62: =IF(OFFSET(DE110_12A!$C$18,ROWS($C$18:C75)-1,COLUMNS($C$18:C75)-1)<>"",OFFSET(DE110_12A!$C$18,ROWS($C$18:C75)-1,COLUMNS($C$18:C75)-1),"") -> E. The base site map is amended by contract modifications and progress payments (fieldbook entries) of completed erosion control
A63: =IF(OFFSET(DE110_12A!$C$18,ROWS($C$18:C76)-1,COLUMNS($C$18:C76)-1)<>"",OFFSET(DE110_12A!$C$18,ROWS($C$18:C76)-1,COLUMNS($C$18:C76)-1),"") -> work. Also, due to project phasing, erosion and sediment controls shown on project plans may not be installed until needed, based
A64: =IF(OFFSET(DE110_12A!$C$18,ROWS($C$18:C77)-1,COLUMNS($C$18:C77)-1)<>"",OFFSET(DE110_12A!$C$18,ROWS($C$18:C77)-1,COLUMNS($C$18:C77)-1),"") -> on site conditions. For example, silt fence ditch checks will typically not be installed until the ditch has been installed.
A65: =IF(OFFSET(DE110_12A!$C$18,ROWS($C$18:C78)-1,COLUMNS($C$18:C78)-1)<>"",OFFSET(DE110_12A!$C$18,ROWS($C$18:C78)-1,COLUMNS($C$18:C78)-1),"") -> Installed locations may also be modified from tabulation locations by field staff. Installed locations will be documented by
A66: =IF(OFFSET(DE110_12A!$C$18,ROWS($C$18:C79)-1,COLUMNS($C$18:C79)-1)<>"",OFFSET(DE110_12A!$C$18,ROWS($C$18:C79)-1,COLUMNS($C$18:C79)-1),"") -> fieldbook entries.
A67: =IF(OFFSET(DE110_12A!$C$18,ROWS($C$18:C80)-1,COLUMNS($C$18:C80)-1)<>"",OFFSET(DE110_12A!$C$18,ROWS($C$18:C80)-1,COLUMNS($C$18:C80)-1),"") -> F. Runoff from this work will flow into road ditches to unnamed tributaries to the Iowa River.
A68: =IF(OFFSET(DE110_12A!$C$18,ROWS($C$18:C81)-1,COLUMNS($C$18:C81)-1)<>"",OFFSET(DE110_12A!$C$18,ROWS($C$18:C81)-1,COLUMNS($C$18:C81)-1),"") -> 
A69: =IF(OFFSET(DE110_12A!$C$18,ROWS($C$18:C82)-1,COLUMNS($C$18:C82)-1)<>"",OFFSET(DE110_12A!$C$18,ROWS($C$18:C82)-1,COLUMNS($C$18:C82)-1),"") -> III. CONTROLS
A70: =IF(OFFSET(DE110_12A!$C$18,ROWS($C$18:C83)-1,COLUMNS($C$18:C83)-1)<>"",OFFSET(DE110_12A!$C$18,ROWS($C$18:C83)-1,COLUMNS($C$18:C83)-1),"") -> A. The contractor’s ECIP specified in Article 2602.03 for accomplishment of storm water controls should clearly describe the intended
A71: =IF(OFFSET(DE110_12A!$C$18,ROWS($C$18:C84)-1,COLUMNS($C$18:C84)-1)<>"",OFFSET(DE110_12A!$C$18,ROWS($C$18:C84)-1,COLUMNS($C$18:C84)-1),"") -> sequence of major activities and for each activity define the control measure and the timing during the construction process that
A72: =IF(OFFSET(DE110_12A!$C$18,ROWS($C$18:C85)-1,COLUMNS($C$18:C85)-1)<>"",OFFSET(DE110_12A!$C$18,ROWS($C$18:C85)-1,COLUMNS($C$18:C85)-1),"") -> the measure will be implemented.
A73: =IF(OFFSET(DE110_12A!$C$18,ROWS($C$18:C86)-1,COLUMNS($C$18:C86)-1)<>"",OFFSET(DE110_12A!$C$18,ROWS($C$18:C86)-1,COLUMNS($C$18:C86)-1),"") -> B. Preserve vegetation in areas not needed for construction.
A74: =IF(OFFSET(DE110_12A!$C$18,ROWS($C$18:C87)-1,COLUMNS($C$18:C87)-1)<>"",OFFSET(DE110_12A!$C$18,ROWS($C$18:C87)-1,COLUMNS($C$18:C87)-1),"") -> C. Sections 2601 and 2602 of the Standard Specifications define requirements to implement erosion and sediment control measures.
A75: =IF(OFFSET(DE110_12A!$C$18,ROWS($C$18:C88)-1,COLUMNS($C$18:C88)-1)<>"",OFFSET(DE110_12A!$C$18,ROWS($C$18:C88)-1,COLUMNS($C$18:C88)-1),"") -> Actual quantities used and installed locations may vary from the Base PPP and amendment of the plan will be documented via
A76: =IF(OFFSET(DE110_12A!$C$18,ROWS($C$18:C89)-1,COLUMNS($C$18:C89)-1)<>"",OFFSET(DE110_12A!$C$18,ROWS($C$18:C89)-1,COLUMNS($C$18:C89)-1),"") -> fieldbook entries or by contract modification. Additional erosion and sediment control items may be required as determined by the
A77: =IF(OFFSET(DE110_12A!$C$18,ROWS($C$18:C90)-1,COLUMNS($C$18:C90)-1)<>"",OFFSET(DE110_12A!$C$18,ROWS($C$18:C90)-1,COLUMNS($C$18:C90)-1),"") -> inspector and/or contractor during storm water monitoring inspections. If the work involved is not applicable to any contract
A78: =IF(OFFSET(DE110_12A!$C$18,ROWS($C$18:C91)-1,COLUMNS($C$18:C91)-1)<>"",OFFSET(DE110_12A!$C$18,ROWS($C$18:C91)-1,COLUMNS($C$18:C91)-1),"") -> items, the work will be paid for according to Article 1109.03 paragraph B.
A79: =IF(OFFSET(DE110_12A!$C$18,ROWS($C$18:C92)-1,COLUMNS($C$18:C92)-1)<>"",OFFSET(DE110_12A!$C$18,ROWS($C$18:C92)-1,COLUMNS($C$18:C92)-1),"") -> 1. EROSION AND SEDIMENT CONTROLS
A80: =IF(OFFSET(DE110_12A!$C$18,ROWS($C$18:C93)-1,COLUMNS($C$18:C93)-1)<>"",OFFSET(DE110_12A!$C$18,ROWS($C$18:C93)-1,COLUMNS($C$18:C93)-1),"") -> a. Stabilization Practices
A81: =IF(OFFSET(DE110_12A!$C$18,ROWS($C$18:C94)-1,COLUMNS($C$18:C94)-1)<>"",OFFSET(DE110_12A!$C$18,ROWS($C$18:C94)-1,COLUMNS($C$18:C94)-1),"") -> 1) Site plans will ensure that existing vegetation or natural buffers are preserved where attainable and disturbed portions
A82: =IF(OFFSET(DE110_12A!$C$18,ROWS($C$18:C95)-1,COLUMNS($C$18:C95)-1)<>"",OFFSET(DE110_12A!$C$18,ROWS($C$18:C95)-1,COLUMNS($C$18:C95)-1),"") -> of the site will be stabilized.
A83: =IF(OFFSET(DE110_12A!$C$18,ROWS($C$18:C96)-1,COLUMNS($C$18:C96)-1)<>"",OFFSET(DE110_12A!$C$18,ROWS($C$18:C96)-1,COLUMNS($C$18:C96)-1),"") -> 2) Initialize stabilization of disturbed areas immediately after clearing, grading, excavating, or other earth disturbing
A84: =IF(OFFSET(DE110_12A!$C$18,ROWS($C$18:C97)-1,COLUMNS($C$18:C97)-1)<>"",OFFSET(DE110_12A!$C$18,ROWS($C$18:C97)-1,COLUMNS($C$18:C97)-1),"") -> activities have:
A85: =IF(OFFSET(DE110_12A!$C$18,ROWS($C$18:C98)-1,COLUMNS($C$18:C98)-1)<>"",OFFSET(DE110_12A!$C$18,ROWS($C$18:C98)-1,COLUMNS($C$18:C98)-1),"") -> a) Permanently ceased on any portion of the site, or
A86: =IF(OFFSET(DE110_12A!$C$18,ROWS($C$18:C99)-1,COLUMNS($C$18:C99)-1)<>"",OFFSET(DE110_12A!$C$18,ROWS($C$18:C99)-1,COLUMNS($C$18:C99)-1),"") -> b) Temporarily ceased on any portion of the site and will not resume for a period exceeding 14 calendar days.
A87: =IF(OFFSET(DE110_12A!$C$18,ROWS($C$18:C100)-1,COLUMNS($C$18:C100)-1)<>"",OFFSET(DE110_12A!$C$18,ROWS($C$18:C100)-1,COLUMNS($C$18:C100)-1),"") -> 3) Staged permanent and/or temporary stabilizing seeding and mulching shall be completed as the disturbed areas are
A88: =IF(OFFSET(DE110_12A!$C$18,ROWS($C$18:C101)-1,COLUMNS($C$18:C101)-1)<>"",OFFSET(DE110_12A!$C$18,ROWS($C$18:C101)-1,COLUMNS($C$18:C101)-1),"") -> completed. Incomplete areas shall be stabilized according to paragraph III, C, 1, a, 2, b above.
A89: =IF(OFFSET(DE110_12A!$C$18,ROWS($C$18:C102)-1,COLUMNS($C$18:C102)-1)<>"",OFFSET(DE110_12A!$C$18,ROWS($C$18:C102)-1,COLUMNS($C$18:C102)-1),"") -> 4) Permanent and Temporary Stabilization practices to be used for this project are located in the Estimated Project
A90: =IF(OFFSET(DE110_12A!$C$18,ROWS($C$18:C103)-1,COLUMNS($C$18:C103)-1)<>"",OFFSET(DE110_12A!$C$18,ROWS($C$18:C103)-1,COLUMNS($C$18:C103)-1),"") -> Quantities (100-0A, 100-1A, or 100-1C) and Estimate Reference Information (100-4A) located on the C sheets of the plan.
A91: 110-12A
A92: 2017-10-17
A93: POLLUTION PREVENTION PLAN
A95: =IF(OFFSET(DE110_12A!$C$104,ROWS($C$104:C104)-1,COLUMNS($C$104:C104)-1)<>"",OFFSET(DE110_12A!$C$104,ROWS($C$104:C104)-1,COLUMNS($C$104:C104)-1),"") -> Typical drawings detailing construction of the practices to be used on this project are referenced in the Standard Road
A96: =IF(OFFSET(DE110_12A!$C$104,ROWS($C$104:C105)-1,COLUMNS($C$104:C105)-1)<>"",OFFSET(DE110_12A!$C$104,ROWS($C$104:C105)-1,COLUMNS($C$104:C105)-1),"") -> Plans Tabulation.
A97: =IF(OFFSET(DE110_12A!$C$104,ROWS($C$104:C106)-1,COLUMNS($C$104:C106)-1)<>"",OFFSET(DE110_12A!$C$104,ROWS($C$104:C106)-1,COLUMNS($C$104:C106)-1),"") -> 5) Preservation of existing vegetation within right-of-way or easements will act as vegetative buffer strips.
A98: =IF(OFFSET(DE110_12A!$C$104,ROWS($C$104:C107)-1,COLUMNS($C$104:C107)-1)<>"",OFFSET(DE110_12A!$C$104,ROWS($C$104:C107)-1,COLUMNS($C$104:C107)-1),"") -> 6) Preservation of topsoil: Bid items to be used for this project are located in the Estimated Project Quantities (100-0A,
A99: =IF(OFFSET(DE110_12A!$C$104,ROWS($C$104:C108)-1,COLUMNS($C$104:C108)-1)<>"",OFFSET(DE110_12A!$C$104,ROWS($C$104:C108)-1,COLUMNS($C$104:C108)-1),"") -> 100-1A, or 100-1C) and Estimate Reference Information (100-4A) located on the C sheets of the plan. Additional
A100: =IF(OFFSET(DE110_12A!$C$104,ROWS($C$104:C109)-1,COLUMNS($C$104:C109)-1)<>"",OFFSET(DE110_12A!$C$104,ROWS($C$104:C109)-1,COLUMNS($C$104:C109)-1),"") -> information may be found in Tabulations in the C or T sheets of the plans or is referenced in Standard Specifications
A101: =IF(OFFSET(DE110_12A!$C$104,ROWS($C$104:C110)-1,COLUMNS($C$104:C110)-1)<>"",OFFSET(DE110_12A!$C$104,ROWS($C$104:C110)-1,COLUMNS($C$104:C110)-1),"") -> Section 2105.
A102: =IF(OFFSET(DE110_12A!$C$104,ROWS($C$104:C111)-1,COLUMNS($C$104:C111)-1)<>"",OFFSET(DE110_12A!$C$104,ROWS($C$104:C111)-1,COLUMNS($C$104:C111)-1),"") -> b. Structural Practices
A103: =IF(OFFSET(DE110_12A!$C$104,ROWS($C$104:C112)-1,COLUMNS($C$104:C112)-1)<>"",OFFSET(DE110_12A!$C$104,ROWS($C$104:C112)-1,COLUMNS($C$104:C112)-1),"") -> 1) Structural practices will be implemented to divert flows from exposed soils and detain or otherwise limit runoff and the
A104: =IF(OFFSET(DE110_12A!$C$104,ROWS($C$104:C113)-1,COLUMNS($C$104:C113)-1)<>"",OFFSET(DE110_12A!$C$104,ROWS($C$104:C113)-1,COLUMNS($C$104:C113)-1),"") -> discharge of pollutants from exposed areas of the site. Additionally, structural practices may include: silt basins that
A105: =IF(OFFSET(DE110_12A!$C$104,ROWS($C$104:C114)-1,COLUMNS($C$104:C114)-1)<>"",OFFSET(DE110_12A!$C$104,ROWS($C$104:C114)-1,COLUMNS($C$104:C114)-1),"") -> provide 3600 cubic feet of storage per acre drained or equivalent sediment controls, outlet structures that withdraw water
A106: =IF(OFFSET(DE110_12A!$C$104,ROWS($C$104:C115)-1,COLUMNS($C$104:C115)-1)<>"",OFFSET(DE110_12A!$C$104,ROWS($C$104:C115)-1,COLUMNS($C$104:C115)-1),"") -> from surface when discharging basins, and controls to direct storm water to vegetated areas.
A107: =IF(OFFSET(DE110_12A!$C$104,ROWS($C$104:C116)-1,COLUMNS($C$104:C116)-1)<>"",OFFSET(DE110_12A!$C$104,ROWS($C$104:C116)-1,COLUMNS($C$104:C116)-1),"") -> 2) Structural practices to be used for this project are located in the Estimated Project Quantities (100-0A, 100-1A, or
A108: =IF(OFFSET(DE110_12A!$C$104,ROWS($C$104:C117)-1,COLUMNS($C$104:C117)-1)<>"",OFFSET(DE110_12A!$C$104,ROWS($C$104:C117)-1,COLUMNS($C$104:C117)-1),"") -> 100-1C) and Estimate Reference Information (100-4A) located on the C sheets of the plan, as well as all other item
A109: =IF(OFFSET(DE110_12A!$C$104,ROWS($C$104:C118)-1,COLUMNS($C$104:C118)-1)<>"",OFFSET(DE110_12A!$C$104,ROWS($C$104:C118)-1,COLUMNS($C$104:C118)-1),"") -> specific Tabulations. Typical drawings detailing construction of the devices to be used on this project can be found on
A110: =IF(OFFSET(DE110_12A!$C$104,ROWS($C$104:C119)-1,COLUMNS($C$104:C119)-1)<>"",OFFSET(DE110_12A!$C$104,ROWS($C$104:C119)-1,COLUMNS($C$104:C119)-1),"") -> the B sheets of the plans or are referenced in the Standard Road Plans Tabulation.
A111: =IF(OFFSET(DE110_12A!$C$104,ROWS($C$104:C120)-1,COLUMNS($C$104:C120)-1)<>"",OFFSET(DE110_12A!$C$104,ROWS($C$104:C120)-1,COLUMNS($C$104:C120)-1),"") -> c. Storm Water Management
A112: =IF(OFFSET(DE110_12A!$C$104,ROWS($C$104:C121)-1,COLUMNS($C$104:C121)-1)<>"",OFFSET(DE110_12A!$C$104,ROWS($C$104:C121)-1,COLUMNS($C$104:C121)-1),"") -> 1) Measures shall be installed during the construction process to control pollutants in storm water discharges that will
A113: =IF(OFFSET(DE110_12A!$C$104,ROWS($C$104:C122)-1,COLUMNS($C$104:C122)-1)<>"",OFFSET(DE110_12A!$C$104,ROWS($C$104:C122)-1,COLUMNS($C$104:C122)-1),"") -> occur after construction operations have been completed. This may include velocity dissipation devices at discharge
A114: =IF(OFFSET(DE110_12A!$C$104,ROWS($C$104:C123)-1,COLUMNS($C$104:C123)-1)<>"",OFFSET(DE110_12A!$C$104,ROWS($C$104:C123)-1,COLUMNS($C$104:C123)-1),"") -> locations and along length of outfall channel as necessary to provide a non-erosion velocity flow from structure to water
A115: =IF(OFFSET(DE110_12A!$C$104,ROWS($C$104:C124)-1,COLUMNS($C$104:C124)-1)<>"",OFFSET(DE110_12A!$C$104,ROWS($C$104:C124)-1,COLUMNS($C$104:C124)-1),"") -> course. If included with this project, these items are located in the Estimated Project Quantities (100-0A, 100-1A, or
A116: =IF(OFFSET(DE110_12A!$C$104,ROWS($C$104:C125)-1,COLUMNS($C$104:C125)-1)<>"",OFFSET(DE110_12A!$C$104,ROWS($C$104:C125)-1,COLUMNS($C$104:C125)-1),"") -> 100-1C) and Estimate Reference Information (100-4A) located on the C sheets of the plan, as well as all other item
A117: =IF(OFFSET(DE110_12A!$C$104,ROWS($C$104:C126)-1,COLUMNS($C$104:C126)-1)<>"",OFFSET(DE110_12A!$C$104,ROWS($C$104:C126)-1,COLUMNS($C$104:C126)-1),"") -> specific Tabulations. Typical drawings detailing construction of the practices to be used on this project are referenced
A118: =IF(OFFSET(DE110_12A!$C$104,ROWS($C$104:C127)-1,COLUMNS($C$104:C127)-1)<>"",OFFSET(DE110_12A!$C$104,ROWS($C$104:C127)-1,COLUMNS($C$104:C127)-1),"") -> in the Standard Road Plans Tabulation. The installation of these devices may be subject to Section 404 of the Clean Water
A119: =IF(OFFSET(DE110_12A!$C$104,ROWS($C$104:C128)-1,COLUMNS($C$104:C128)-1)<>"",OFFSET(DE110_12A!$C$104,ROWS($C$104:C128)-1,COLUMNS($C$104:C128)-1),"") -> Act.
A120: =IF(OFFSET(DE110_12A!$C$104,ROWS($C$104:C129)-1,COLUMNS($C$104:C129)-1)<>"",OFFSET(DE110_12A!$C$104,ROWS($C$104:C129)-1,COLUMNS($C$104:C129)-1),"") -> 2. OTHER CONTROLS
A121: =IF(OFFSET(DE110_12A!$C$104,ROWS($C$104:C130)-1,COLUMNS($C$104:C130)-1)<>"",OFFSET(DE110_12A!$C$104,ROWS($C$104:C130)-1,COLUMNS($C$104:C130)-1),"") -> a. Contractor disposal of unused construction materials and construction material wastes shall comply with applicable state and
A122: =IF(OFFSET(DE110_12A!$C$104,ROWS($C$104:C131)-1,COLUMNS($C$104:C131)-1)<>"",OFFSET(DE110_12A!$C$104,ROWS($C$104:C131)-1,COLUMNS($C$104:C131)-1),"") -> local waste disposal, sanitary sewer, or septic system regulations. In the event of a conflict with other governmental
A123: =IF(OFFSET(DE110_12A!$C$104,ROWS($C$104:C132)-1,COLUMNS($C$104:C132)-1)<>"",OFFSET(DE110_12A!$C$104,ROWS($C$104:C132)-1,COLUMNS($C$104:C132)-1),"") -> laws, rules and regulations, the more restrictive laws, rules or regulations shall apply.
A124: =IF(OFFSET(DE110_12A!$C$104,ROWS($C$104:C133)-1,COLUMNS($C$104:C133)-1)<>"",OFFSET(DE110_12A!$C$104,ROWS($C$104:C133)-1,COLUMNS($C$104:C133)-1),"") -> 1) Vehicle Entrances and Exits - Construct and maintain entrances and exits to prevent tracking of sediments onto roadways.
A125: =IF(OFFSET(DE110_12A!$C$104,ROWS($C$104:C134)-1,COLUMNS($C$104:C134)-1)<>"",OFFSET(DE110_12A!$C$104,ROWS($C$104:C134)-1,COLUMNS($C$104:C134)-1),"") -> 2) Material Delivery, Storage and Use - Implement practices to prevent discharge of construction materials during delivery,
A126: =IF(OFFSET(DE110_12A!$C$104,ROWS($C$104:C135)-1,COLUMNS($C$104:C135)-1)<>"",OFFSET(DE110_12A!$C$104,ROWS($C$104:C135)-1,COLUMNS($C$104:C135)-1),"") -> storage, and use.
A127: =IF(OFFSET(DE110_12A!$C$104,ROWS($C$104:C136)-1,COLUMNS($C$104:C136)-1)<>"",OFFSET(DE110_12A!$C$104,ROWS($C$104:C136)-1,COLUMNS($C$104:C136)-1),"") -> 3) Stockpile Management - Install controls to reduce or eliminate pollution of storm water from stockpiles of soil and
A128: =IF(OFFSET(DE110_12A!$C$104,ROWS($C$104:C137)-1,COLUMNS($C$104:C137)-1)<>"",OFFSET(DE110_12A!$C$104,ROWS($C$104:C137)-1,COLUMNS($C$104:C137)-1),"") -> paving.
A129: =IF(OFFSET(DE110_12A!$C$104,ROWS($C$104:C138)-1,COLUMNS($C$104:C138)-1)<>"",OFFSET(DE110_12A!$C$104,ROWS($C$104:C138)-1,COLUMNS($C$104:C138)-1),"") -> 4) Waste Disposal - Do not discharge any materials, including building materials, into waters of the state, except as
A130: =IF(OFFSET(DE110_12A!$C$104,ROWS($C$104:C139)-1,COLUMNS($C$104:C139)-1)<>"",OFFSET(DE110_12A!$C$104,ROWS($C$104:C139)-1,COLUMNS($C$104:C139)-1),"") -> authorized by a Section 404 permit.
A131: =IF(OFFSET(DE110_12A!$C$104,ROWS($C$104:C140)-1,COLUMNS($C$104:C140)-1)<>"",OFFSET(DE110_12A!$C$104,ROWS($C$104:C140)-1,COLUMNS($C$104:C140)-1),"") -> 5) Spill Prevention and Control - Implement procedures to contain and clean-up spills and prevent material discharges to the
A132: =IF(OFFSET(DE110_12A!$C$104,ROWS($C$104:C141)-1,COLUMNS($C$104:C141)-1)<>"",OFFSET(DE110_12A!$C$104,ROWS($C$104:C141)-1,COLUMNS($C$104:C141)-1),"") -> storm drain system and waters of the state.
A133: =IF(OFFSET(DE110_12A!$C$104,ROWS($C$104:C142)-1,COLUMNS($C$104:C142)-1)<>"",OFFSET(DE110_12A!$C$104,ROWS($C$104:C142)-1,COLUMNS($C$104:C142)-1),"") -> 6) Concrete Residuals and Washout Wastes - Designate temporary concrete washout facilities for rinsing out concrete trucks.
A134: =IF(OFFSET(DE110_12A!$C$104,ROWS($C$104:C143)-1,COLUMNS($C$104:C143)-1)<>"",OFFSET(DE110_12A!$C$104,ROWS($C$104:C143)-1,COLUMNS($C$104:C143)-1),"") -> Provide directions to truck drivers where designated washout facilities are located. Designated washout areas should be
A135: =IF(OFFSET(DE110_12A!$C$104,ROWS($C$104:C144)-1,COLUMNS($C$104:C144)-1)<>"",OFFSET(DE110_12A!$C$104,ROWS($C$104:C144)-1,COLUMNS($C$104:C144)-1),"") -> located at least 50 feet away from storm drains, streams or other water bodies. Care should be taken to ensure these
A136: =IF(OFFSET(DE110_12A!$C$104,ROWS($C$104:C145)-1,COLUMNS($C$104:C145)-1)<>"",OFFSET(DE110_12A!$C$104,ROWS($C$104:C145)-1,COLUMNS($C$104:C145)-1),"") -> facilities do not overflow during storm events.
A137: =IF(OFFSET(DE110_12A!$C$104,ROWS($C$104:C146)-1,COLUMNS($C$104:C146)-1)<>"",OFFSET(DE110_12A!$C$104,ROWS($C$104:C146)-1,COLUMNS($C$104:C146)-1),"") -> 7) Concrete Grooving/Grinding Slurry – Do not discharge slurry to a waterbody or storm drain. Slurry may be applied on
A138: =IF(OFFSET(DE110_12A!$C$104,ROWS($C$104:C147)-1,COLUMNS($C$104:C147)-1)<>"",OFFSET(DE110_12A!$C$104,ROWS($C$104:C147)-1,COLUMNS($C$104:C147)-1),"") -> foreslopes or removed from the project.
A139: =IF(OFFSET(DE110_12A!$C$104,ROWS($C$104:C148)-1,COLUMNS($C$104:C148)-1)<>"",OFFSET(DE110_12A!$C$104,ROWS($C$104:C148)-1,COLUMNS($C$104:C148)-1),"") -> 8) Vehicle and Equipment Storage and Maintenance Areas - Perform on site fueling and maintenance in accordance with all
A140: =IF(OFFSET(DE110_12A!$C$104,ROWS($C$104:C149)-1,COLUMNS($C$104:C149)-1)<>"",OFFSET(DE110_12A!$C$104,ROWS($C$104:C149)-1,COLUMNS($C$104:C149)-1),"") -> environment laws such as proper storage of onside fuels and proper disposal of used engine oil or other fluids on site.
A141: =IF(OFFSET(DE110_12A!$C$104,ROWS($C$104:C150)-1,COLUMNS($C$104:C150)-1)<>"",OFFSET(DE110_12A!$C$104,ROWS($C$104:C150)-1,COLUMNS($C$104:C150)-1),"") -> Employ washing practices that prevent contamination of surface and ground water from wash water.
A142: =IF(OFFSET(DE110_12A!$C$104,ROWS($C$104:C151)-1,COLUMNS($C$104:C151)-1)<>"",OFFSET(DE110_12A!$C$104,ROWS($C$104:C151)-1,COLUMNS($C$104:C151)-1),"") -> 9) Litter Management - Ensure employees properly dispose of litter.
A143: =IF(OFFSET(DE110_12A!$C$104,ROWS($C$104:C152)-1,COLUMNS($C$104:C152)-1)<>"",OFFSET(DE110_12A!$C$104,ROWS($C$104:C152)-1,COLUMNS($C$104:C152)-1),"") -> 10) Dewatering – Properly treat water to remove suspended sediment before it re-enters a waterbody or discharges off-site.
A144: =IF(OFFSET(DE110_12A!$C$104,ROWS($C$104:C153)-1,COLUMNS($C$104:C153)-1)<>"",OFFSET(DE110_12A!$C$104,ROWS($C$104:C153)-1,COLUMNS($C$104:C153)-1),"") -> Measures are also to be taken to prevent scour erosion at dewatering discharge point.
A145: =IF(OFFSET(DE110_12A!$C$104,ROWS($C$104:C154)-1,COLUMNS($C$104:C154)-1)<>"",OFFSET(DE110_12A!$C$104,ROWS($C$104:C154)-1,COLUMNS($C$104:C154)-1),"") -> 3. APPROVED STATE OR LOCAL PLANS
A146: =IF(OFFSET(DE110_12A!$C$104,ROWS($C$104:C155)-1,COLUMNS($C$104:C155)-1)<>"",OFFSET(DE110_12A!$C$104,ROWS($C$104:C155)-1,COLUMNS($C$104:C155)-1),"") -> During the course of this construction, it is possible that situations will arise where unknown materials will be encountered.
A147: =IF(OFFSET(DE110_12A!$C$104,ROWS($C$104:C156)-1,COLUMNS($C$104:C156)-1)<>"",OFFSET(DE110_12A!$C$104,ROWS($C$104:C156)-1,COLUMNS($C$104:C156)-1),"") -> When such situations are encountered, they will be handled according to all federal, state, and local regulations in effect at
A148: =IF(OFFSET(DE110_12A!$C$104,ROWS($C$104:C157)-1,COLUMNS($C$104:C157)-1)<>"",OFFSET(DE110_12A!$C$104,ROWS($C$104:C157)-1,COLUMNS($C$104:C157)-1),"") -> the time.
A149: =IF(OFFSET(DE110_12A!$C$104,ROWS($C$104:C158)-1,COLUMNS($C$104:C158)-1)<>"",OFFSET(DE110_12A!$C$104,ROWS($C$104:C158)-1,COLUMNS($C$104:C158)-1),"") -> 
A150: =IF(OFFSET(DE110_12A!$C$104,ROWS($C$104:C159)-1,COLUMNS($C$104:C159)-1)<>"",OFFSET(DE110_12A!$C$104,ROWS($C$104:C159)-1,COLUMNS($C$104:C159)-1),"") -> IV. MAINTENANCE PROCEDURES
A151: =IF(OFFSET(DE110_12A!$C$104,ROWS($C$104:C160)-1,COLUMNS($C$104:C160)-1)<>"",OFFSET(DE110_12A!$C$104,ROWS($C$104:C160)-1,COLUMNS($C$104:C160)-1),"") -> The contractor is required to maintain all temporary erosion and sediment control measures in proper working order, including
A152: =IF(OFFSET(DE110_12A!$C$104,ROWS($C$104:C161)-1,COLUMNS($C$104:C161)-1)<>"",OFFSET(DE110_12A!$C$104,ROWS($C$104:C161)-1,COLUMNS($C$104:C161)-1),"") -> cleaning, repairing, or replacing them throughout the contract period. This shall begin when the features have lost 50% of their
A153: =IF(OFFSET(DE110_12A!$C$104,ROWS($C$104:C162)-1,COLUMNS($C$104:C162)-1)<>"",OFFSET(DE110_12A!$C$104,ROWS($C$104:C162)-1,COLUMNS($C$104:C162)-1),"") -> capacity.
A154: =IF(OFFSET(DE110_12A!$C$104,ROWS($C$104:C163)-1,COLUMNS($C$104:C163)-1)<>"",OFFSET(DE110_12A!$C$104,ROWS($C$104:C163)-1,COLUMNS($C$104:C163)-1),"") -> 
A155: =IF(OFFSET(DE110_12A!$C$104,ROWS($C$104:C164)-1,COLUMNS($C$104:C164)-1)<>"",OFFSET(DE110_12A!$C$104,ROWS($C$104:C164)-1,COLUMNS($C$104:C164)-1),"") -> V. INSPECTION REQUIREMENTS
A156: =IF(OFFSET(DE110_12A!$C$104,ROWS($C$104:C165)-1,COLUMNS($C$104:C165)-1)<>"",OFFSET(DE110_12A!$C$104,ROWS($C$104:C165)-1,COLUMNS($C$104:C165)-1),"") -> A. Inspections shall be made jointly by the contractor and the contracting authority at least once every seven calendar days. Storm
A157: =IF(OFFSET(DE110_12A!$C$104,ROWS($C$104:C166)-1,COLUMNS($C$104:C166)-1)<>"",OFFSET(DE110_12A!$C$104,ROWS($C$104:C166)-1,COLUMNS($C$104:C166)-1),"") -> water monitoring inspections will include:
A158: =IF(OFFSET(DE110_12A!$C$104,ROWS($C$104:C167)-1,COLUMNS($C$104:C167)-1)<>"",OFFSET(DE110_12A!$C$104,ROWS($C$104:C167)-1,COLUMNS($C$104:C167)-1),"") -> 1. Date of the inspection.
A159: =IF(OFFSET(DE110_12A!$C$104,ROWS($C$104:C168)-1,COLUMNS($C$104:C168)-1)<>"",OFFSET(DE110_12A!$C$104,ROWS($C$104:C168)-1,COLUMNS($C$104:C168)-1),"") -> 2. Summary of the scope of the inspection.
A160: =IF(OFFSET(DE110_12A!$C$104,ROWS($C$104:C169)-1,COLUMNS($C$104:C169)-1)<>"",OFFSET(DE110_12A!$C$104,ROWS($C$104:C169)-1,COLUMNS($C$104:C169)-1),"") -> 3. Name and qualifications of the personnel making the inspection.
A161: =IF(OFFSET(DE110_12A!$C$104,ROWS($C$104:C170)-1,COLUMNS($C$104:C170)-1)<>"",OFFSET(DE110_12A!$C$104,ROWS($C$104:C170)-1,COLUMNS($C$104:C170)-1),"") -> 5. Review erosion and sediment control measures within disturbed areas for the effectiveness in preventing impacts to receiving
A162: =IF(OFFSET(DE110_12A!$C$104,ROWS($C$104:C171)-1,COLUMNS($C$104:C171)-1)<>"",OFFSET(DE110_12A!$C$104,ROWS($C$104:C171)-1,COLUMNS($C$104:C171)-1),"") -> waters.
A163: =IF(OFFSET(DE110_12A!$C$104,ROWS($C$104:C172)-1,COLUMNS($C$104:C172)-1)<>"",OFFSET(DE110_12A!$C$104,ROWS($C$104:C172)-1,COLUMNS($C$104:C172)-1),"") -> 6. Major observations related to the implementation of the PPP.
A164: =IF(OFFSET(DE110_12A!$C$104,ROWS($C$104:C173)-1,COLUMNS($C$104:C173)-1)<>"",OFFSET(DE110_12A!$C$104,ROWS($C$104:C173)-1,COLUMNS($C$104:C173)-1),"") -> 7. Identify corrective actions required to maintain or modify erosion and sediment control measures.
A165: =IF(OFFSET(DE110_12A!$C$104,ROWS($C$104:C174)-1,COLUMNS($C$104:C174)-1)<>"",OFFSET(DE110_12A!$C$104,ROWS($C$104:C174)-1,COLUMNS($C$104:C174)-1),"") -> B. Include storm water monitoring inspection reports in the Amended PPP. Incorporate any additional erosion and sediment control
A166: =IF(OFFSET(DE110_12A!$C$104,ROWS($C$104:C175)-1,COLUMNS($C$104:C175)-1)<>"",OFFSET(DE110_12A!$C$104,ROWS($C$104:C175)-1,COLUMNS($C$104:C175)-1),"") -> measures determined as a result of the inspection. Immediately begin corrective actions on all deficiencies found within 3
A167: =IF(OFFSET(DE110_12A!$C$104,ROWS($C$104:C176)-1,COLUMNS($C$104:C176)-1)<>"",OFFSET(DE110_12A!$C$104,ROWS($C$104:C176)-1,COLUMNS($C$104:C176)-1),"") -> calendar days of the inspection.
A168: =IF(OFFSET(DE110_12A!$C$104,ROWS($C$104:C177)-1,COLUMNS($C$104:C177)-1)<>"",OFFSET(DE110_12A!$C$104,ROWS($C$104:C177)-1,COLUMNS($C$104:C177)-1),"") -> 
A169: =IF(OFFSET(DE110_12A!$C$104,ROWS($C$104:C178)-1,COLUMNS($C$104:C178)-1)<>"",OFFSET(DE110_12A!$C$104,ROWS($C$104:C178)-1,COLUMNS($C$104:C178)-1),"") -> VI. NON-STORM WATER DISCHARGES
A170: =IF(OFFSET(DE110_12A!$C$104,ROWS($C$104:C179)-1,COLUMNS($C$104:C179)-1)<>"",OFFSET(DE110_12A!$C$104,ROWS($C$104:C179)-1,COLUMNS($C$104:C179)-1),"") -> This includes subsurface drains (i.e. longitudinal and standard subdrains) and slope drains. The velocity of the discharge from
A171: =IF(OFFSET(DE110_12A!$C$104,ROWS($C$104:C180)-1,COLUMNS($C$104:C180)-1)<>"",OFFSET(DE110_12A!$C$104,ROWS($C$104:C180)-1,COLUMNS($C$104:C180)-1),"") -> these features may be controlled by the use of patio blocks, Class A stone, erosion stone or other appropriate materials. This also
A172: =IF(OFFSET(DE110_12A!$C$104,ROWS($C$104:C181)-1,COLUMNS($C$104:C181)-1)<>"",OFFSET(DE110_12A!$C$104,ROWS($C$104:C181)-1,COLUMNS($C$104:C181)-1),"") -> includes uncontaminated groundwater from dewatering operations, which will be controlled as discussed in Section III of the PPP.
A173: =IF(OFFSET(DE110_12A!$C$104,ROWS($C$104:C182)-1,COLUMNS($C$104:C182)-1)<>"",OFFSET(DE110_12A!$C$104,ROWS($C$104:C182)-1,COLUMNS($C$104:C182)-1),"") -> 
A174: =IF(OFFSET(DE110_12A!$C$104,ROWS($C$104:C183)-1,COLUMNS($C$104:C183)-1)<>"",OFFSET(DE110_12A!$C$104,ROWS($C$104:C183)-1,COLUMNS($C$104:C183)-1),"") -> VII. POTENTIAL SOURCES OF OFF RIGHT-OF-WAY (ROW) POLLUTION
A175: =IF(OFFSET(DE110_12A!$C$104,ROWS($C$104:C184)-1,COLUMNS($C$104:C184)-1)<>"",OFFSET(DE110_12A!$C$104,ROWS($C$104:C184)-1,COLUMNS($C$104:C184)-1),"") -> Silts, sediment, and other forms of pollution may be transported onto highway right-of-way (ROW) as a result of a storm event.
A176: =IF(OFFSET(DE110_12A!$C$104,ROWS($C$104:C185)-1,COLUMNS($C$104:C185)-1)<>"",OFFSET(DE110_12A!$C$104,ROWS($C$104:C185)-1,COLUMNS($C$104:C185)-1),"") -> Potential sources of pollution located outside highway ROW are beyond the control of this PPP. Pollution within highway ROW will be
A177: =IF(OFFSET(DE110_12A!$C$104,ROWS($C$104:C186)-1,COLUMNS($C$104:C186)-1)<>"",OFFSET(DE110_12A!$C$104,ROWS($C$104:C186)-1,COLUMNS($C$104:C186)-1),"") -> conveyed and controlled per this PPP.
A178: =IF(OFFSET(DE110_12A!$C$104,ROWS($C$104:C187)-1,COLUMNS($C$104:C187)-1)<>"",OFFSET(DE110_12A!$C$104,ROWS($C$104:C187)-1,COLUMNS($C$104:C187)-1),"") -> 
A179: =IF(OFFSET(DE110_12A!$C$104,ROWS($C$104:C188)-1,COLUMNS($C$104:C188)-1)<>"",OFFSET(DE110_12A!$C$104,ROWS($C$104:C188)-1,COLUMNS($C$104:C188)-1),"") -> VIII. DEFINITIONS
A180: =IF(OFFSET(DE110_12A!$C$104,ROWS($C$104:C189)-1,COLUMNS($C$104:C189)-1)<>"",OFFSET(DE110_12A!$C$104,ROWS($C$104:C189)-1,COLUMNS($C$104:C189)-1),"") -> A. Base PPP - Initial Pollution Prevention Plan.
A181: 110-12A
A182: 2017-10-17
A183: POLLUTION PREVENTION PLAN
A185: =IF(OFFSET(DE110_12A!$C$190,ROWS($C$190:C190)-1,COLUMNS($C$190:C190)-1)<>"",OFFSET(DE110_12A!$C$190,ROWS($C$190:C190)-1,COLUMNS($C$190:C190)-1),"") -> B. Amended PPP - May include Plan Revisions or Contract Modifications for new items, storm water monitoring inspection reports, and
A186: =IF(OFFSET(DE110_12A!$C$190,ROWS($C$190:C191)-1,COLUMNS($C$190:C191)-1)<>"",OFFSET(DE110_12A!$C$190,ROWS($C$190:C191)-1,COLUMNS($C$190:C191)-1),"") -> fieldbook entries made by the inspector.
A187: =IF(OFFSET(DE110_12A!$C$190,ROWS($C$190:C192)-1,COLUMNS($C$190:C192)-1)<>"",OFFSET(DE110_12A!$C$190,ROWS($C$190:C192)-1,COLUMNS($C$190:C192)-1),"") -> C. IDR - Inspector’s Daily Report – this contains the inspector’s daily diary and bid item postings.
A188: =IF(OFFSET(DE110_12A!$C$190,ROWS($C$190:C193)-1,COLUMNS($C$190:C193)-1)<>"",OFFSET(DE110_12A!$C$190,ROWS($C$190:C193)-1,COLUMNS($C$190:C193)-1),"") -> D. Controls - Methods, practices, or measures to minimize or prevent erosion, control sedimentation, control storm water, or minimize
A189: =IF(OFFSET(DE110_12A!$C$190,ROWS($C$190:C194)-1,COLUMNS($C$190:C194)-1)<>"",OFFSET(DE110_12A!$C$190,ROWS($C$190:C194)-1,COLUMNS($C$190:C194)-1),"") -> contaminants from other types of waste or materials. Also called Best Management Practices (BMPs).
A190: =IF(OFFSET(DE110_12A!$C$190,ROWS($C$190:C195)-1,COLUMNS($C$190:C195)-1)<>"",OFFSET(DE110_12A!$C$190,ROWS($C$190:C195)-1,COLUMNS($C$190:C195)-1),"") -> E. Signature Authority - Representative from Designer, Contractor/Subcontractor, or RCE/Inspector authorized to sign various storm
A191: =IF(OFFSET(DE110_12A!$C$190,ROWS($C$190:C196)-1,COLUMNS($C$190:C196)-1)<>"",OFFSET(DE110_12A!$C$190,ROWS($C$190:C196)-1,COLUMNS($C$190:C196)-1),"") -> water documents.
A192: =IF(OFFSET(DE110_12A!$C$190,ROWS($C$190:C197)-1,COLUMNS($C$190:C197)-1)<>"",OFFSET(DE110_12A!$C$190,ROWS($C$190:C197)-1,COLUMNS($C$190:C197)-1),"") -> 
A193: =IF(OFFSET(DE110_12A!$C$190,ROWS($C$190:C198)-1,COLUMNS($C$190:C198)-1)<>"",OFFSET(DE110_12A!$C$190,ROWS($C$190:C198)-1,COLUMNS($C$190:C198)-1),"") -> ---------------------------------------------------------------------------------------------------------------------------------
A194: =IF(OFFSET(DE110_12A!$C$190,ROWS($C$190:C199)-1,COLUMNS($C$190:C199)-1)<>"",OFFSET(DE110_12A!$C$190,ROWS($C$190:C199)-1,COLUMNS($C$190:C199)-1),"") -> CERTIFICATION STATEMENT
A195: =IF(OFFSET(DE110_12A!$C$190,ROWS($C$190:C200)-1,COLUMNS($C$190:C200)-1)<>"",OFFSET(DE110_12A!$C$190,ROWS($C$190:C200)-1,COLUMNS($C$190:C200)-1),"") -> I certify under penalty of law that this document and all attachments were prepared under my direction or supervision in accordance
A196: =IF(OFFSET(DE110_12A!$C$190,ROWS($C$190:C201)-1,COLUMNS($C$190:C201)-1)<>"",OFFSET(DE110_12A!$C$190,ROWS($C$190:C201)-1,COLUMNS($C$190:C201)-1),"") -> with a system designed to assure that qualified personnel properly gathered and evaluated the information submitted. Based on my inquiry
A197: =IF(OFFSET(DE110_12A!$C$190,ROWS($C$190:C202)-1,COLUMNS($C$190:C202)-1)<>"",OFFSET(DE110_12A!$C$190,ROWS($C$190:C202)-1,COLUMNS($C$190:C202)-1),"") -> of the person or persons who manage the system, or those persons directly responsible for gathering the information, the information
A198: =IF(OFFSET(DE110_12A!$C$190,ROWS($C$190:C203)-1,COLUMNS($C$190:C203)-1)<>"",OFFSET(DE110_12A!$C$190,ROWS($C$190:C203)-1,COLUMNS($C$190:C203)-1),"") -> submitted is, to the best of my knowledge and belief, true, accurate, and complete. I am aware that there are significant penalties for
A199: =IF(OFFSET(DE110_12A!$C$190,ROWS($C$190:C204)-1,COLUMNS($C$190:C204)-1)<>"",OFFSET(DE110_12A!$C$190,ROWS($C$190:C204)-1,COLUMNS($C$190:C204)-1),"") -> submitting false information, including the possibility of fine and imprisonment for knowing violations.
A200: =IF(OFFSET(DE110_12A!$C$190,ROWS($C$190:C205)-1,COLUMNS($C$190:C205)-1)<>"",OFFSET(DE110_12A!$C$190,ROWS($C$190:C205)-1,COLUMNS($C$190:C205)-1),"") -> 
A201: =IF(OFFSET(DE110_12A!$C$190,ROWS($C$190:C206)-1,COLUMNS($C$190:C206)-1)<>"",OFFSET(DE110_12A!$C$190,ROWS($C$190:C206)-1,COLUMNS($C$190:C206)-1),"") -> ________________________________________
A202: =IF(OFFSET(DE110_12A!$C$190,ROWS($C$190:C207)-1,COLUMNS($C$190:C207)-1)<>"",OFFSET(DE110_12A!$C$190,ROWS($C$190:C207)-1,COLUMNS($C$190:C207)-1),"") -> Signature
A203: =IF(OFFSET(DE110_12A!$C$190,ROWS($C$190:C208)-1,COLUMNS($C$190:C208)-1)<>"",OFFSET(DE110_12A!$C$190,ROWS($C$190:C208)-1,COLUMNS($C$190:C208)-1),"") -> 
... 10 more rows

Sheet 100_17
A1: 100-17
A2: 2010-04-20
A3: TABULATION OF SILT FENCES
A5: Refer to EC-201
A6: Location | D6: Length | E6: Remarks
A7: Begin Station | B7: End Station | C7: Side
D8: LF
A9: =IF(OFFSET(DE100_17!$C$23,ROWS($C$23:C23)-1,COLUMNS($C$23:C23)-1)<>"",OFFSET(DE100_17!$C$23,ROWS($C$23:C23)-1,COLUMNS($C$23:C23)-1),"") -> 44450 | B9: =IF(OFFSET(DE100_17!$D$23,ROWS($D$23:D23)-1,COLUMNS($D$23:D23)-1)<>"",OFFSET(DE100_17!$D$23,ROWS($D$23:D23)-1,COLUMNS($D$23:D23)-1),"") -> 44650 | C9: =IF(OFFSET(DE100_17!$E$23,ROWS($E$23:E23)-1,COLUMNS($E$23:E23)-1)<>"",OFFSET(DE100_17!$E$23,ROWS($E$23:E23)-1,COLUMNS($E$23:E23)-1),"") -> L | D9: =IF(OFFSET(DE100_17!$F$23,ROWS($F$23:F23)-1,COLUMNS($F$23:F23)-1)<>"",OFFSET(DE100_17!$F$23,ROWS($F$23:F23)-1,COLUMNS($F$23:F23)-1),"") -> 220 | E9: =IF(OFFSET(DE100_17!$G$23,ROWS($G$23:G23)-1,COLUMNS($G$23:G23)-1)<>"",OFFSET(DE100_17!$G$23,ROWS($G$23:G23)-1,COLUMNS($G$23:G23)-1),"") -> 
A10: =IF(OFFSET(DE100_17!$C$23,ROWS($C$23:C24)-1,COLUMNS($C$23:C24)-1)<>"",OFFSET(DE100_17!$C$23,ROWS($C$23:C24)-1,COLUMNS($C$23:C24)-1),"") -> 44650 | B10: =IF(OFFSET(DE100_17!$D$23,ROWS($D$23:D24)-1,COLUMNS($D$23:D24)-1)<>"",OFFSET(DE100_17!$D$23,ROWS($D$23:D24)-1,COLUMNS($D$23:D24)-1),"") -> 44850 | C10: =IF(OFFSET(DE100_17!$E$23,ROWS($E$23:E24)-1,COLUMNS($E$23:E24)-1)<>"",OFFSET(DE100_17!$E$23,ROWS($E$23:E24)-1,COLUMNS($E$23:E24)-1),"") -> L | D10: =IF(OFFSET(DE100_17!$F$23,ROWS($F$23:F24)-1,COLUMNS($F$23:F24)-1)<>"",OFFSET(DE100_17!$F$23,ROWS($F$23:F24)-1,COLUMNS($F$23:F24)-1),"") -> 220 | E10: =IF(OFFSET(DE100_17!$G$23,ROWS($G$23:G24)-1,COLUMNS($G$23:G24)-1)<>"",OFFSET(DE100_17!$G$23,ROWS($G$23:G24)-1,COLUMNS($G$23:G24)-1),"") -> 
A11: =IF(OFFSET(DE100_17!$C$23,ROWS($C$23:C25)-1,COLUMNS($C$23:C25)-1)<>"",OFFSET(DE100_17!$C$23,ROWS($C$23:C25)-1,COLUMNS($C$23:C25)-1),"") -> 44950 | B11: =IF(OFFSET(DE100_17!$D$23,ROWS($D$23:D25)-1,COLUMNS($D$23:D25)-1)<>"",OFFSET(DE100_17!$D$23,ROWS($D$23:D25)-1,COLUMNS($D$23:D25)-1),"") -> 45150 | C11: =IF(OFFSET(DE100_17!$E$23,ROWS($E$23:E25)-1,COLUMNS($E$23:E25)-1)<>"",OFFSET(DE100_17!$E$23,ROWS($E$23:E25)-1,COLUMNS($E$23:E25)-1),"") -> L | D11: =IF(OFFSET(DE100_17!$F$23,ROWS($F$23:F25)-1,COLUMNS($F$23:F25)-1)<>"",OFFSET(DE100_17!$F$23,ROWS($F$23:F25)-1,COLUMNS($F$23:F25)-1),"") -> 220 | E11: =IF(OFFSET(DE100_17!$G$23,ROWS($G$23:G25)-1,COLUMNS($G$23:G25)-1)<>"",OFFSET(DE100_17!$G$23,ROWS($G$23:G25)-1,COLUMNS($G$23:G25)-1),"") -> 
A12: =IF(OFFSET(DE100_17!$C$23,ROWS($C$23:C26)-1,COLUMNS($C$23:C26)-1)<>"",OFFSET(DE100_17!$C$23,ROWS($C$23:C26)-1,COLUMNS($C$23:C26)-1),"") -> 45150 | B12: =IF(OFFSET(DE100_17!$D$23,ROWS($D$23:D26)-1,COLUMNS($D$23:D26)-1)<>"",OFFSET(DE100_17!$D$23,ROWS($D$23:D26)-1,COLUMNS($D$23:D26)-1),"") -> 45350 | C12: =IF(OFFSET(DE100_17!$E$23,ROWS($E$23:E26)-1,COLUMNS($E$23:E26)-1)<>"",OFFSET(DE100_17!$E$23,ROWS($E$23:E26)-1,COLUMNS($E$23:E26)-1),"") -> L | D12: =IF(OFFSET(DE100_17!$F$23,ROWS($F$23:F26)-1,COLUMNS($F$23:F26)-1)<>"",OFFSET(DE100_17!$F$23,ROWS($F$23:F26)-1,COLUMNS($F$23:F26)-1),"") -> 220 | E12: =IF(OFFSET(DE100_17!$G$23,ROWS($G$23:G26)-1,COLUMNS($G$23:G26)-1)<>"",OFFSET(DE100_17!$G$23,ROWS($G$23:G26)-1,COLUMNS($G$23:G26)-1),"") -> 
A13: =IF(OFFSET(DE100_17!$C$23,ROWS($C$23:C27)-1,COLUMNS($C$23:C27)-1)<>"",OFFSET(DE100_17!$C$23,ROWS($C$23:C27)-1,COLUMNS($C$23:C27)-1),"") -> 45350 | B13: =IF(OFFSET(DE100_17!$D$23,ROWS($D$23:D27)-1,COLUMNS($D$23:D27)-1)<>"",OFFSET(DE100_17!$D$23,ROWS($D$23:D27)-1,COLUMNS($D$23:D27)-1),"") -> 45550 | C13: =IF(OFFSET(DE100_17!$E$23,ROWS($E$23:E27)-1,COLUMNS($E$23:E27)-1)<>"",OFFSET(DE100_17!$E$23,ROWS($E$23:E27)-1,COLUMNS($E$23:E27)-1),"") -> L | D13: =IF(OFFSET(DE100_17!$F$23,ROWS($F$23:F27)-1,COLUMNS($F$23:F27)-1)<>"",OFFSET(DE100_17!$F$23,ROWS($F$23:F27)-1,COLUMNS($F$23:F27)-1),"") -> 220 | E13: =IF(OFFSET(DE100_17!$G$23,ROWS($G$23:G27)-1,COLUMNS($G$23:G27)-1)<>"",OFFSET(DE100_17!$G$23,ROWS($G$23:G27)-1,COLUMNS($G$23:G27)-1),"") -> 
A14: =IF(OFFSET(DE100_17!$C$23,ROWS($C$23:C28)-1,COLUMNS($C$23:C28)-1)<>"",OFFSET(DE100_17!$C$23,ROWS($C$23:C28)-1,COLUMNS($C$23:C28)-1),"") -> 45550 | B14: =IF(OFFSET(DE100_17!$D$23,ROWS($D$23:D28)-1,COLUMNS($D$23:D28)-1)<>"",OFFSET(DE100_17!$D$23,ROWS($D$23:D28)-1,COLUMNS($D$23:D28)-1),"") -> 45750 | C14: =IF(OFFSET(DE100_17!$E$23,ROWS($E$23:E28)-1,COLUMNS($E$23:E28)-1)<>"",OFFSET(DE100_17!$E$23,ROWS($E$23:E28)-1,COLUMNS($E$23:E28)-1),"") -> L | D14: =IF(OFFSET(DE100_17!$F$23,ROWS($F$23:F28)-1,COLUMNS($F$23:F28)-1)<>"",OFFSET(DE100_17!$F$23,ROWS($F$23:F28)-1,COLUMNS($F$23:F28)-1),"") -> 220 | E14: =IF(OFFSET(DE100_17!$G$23,ROWS($G$23:G28)-1,COLUMNS($G$23:G28)-1)<>"",OFFSET(DE100_17!$G$23,ROWS($G$23:G28)-1,COLUMNS($G$23:G28)-1),"") -> 
A15: =IF(OFFSET(DE100_17!$C$23,ROWS($C$23:C29)-1,COLUMNS($C$23:C29)-1)<>"",OFFSET(DE100_17!$C$23,ROWS($C$23:C29)-1,COLUMNS($C$23:C29)-1),"") -> 45750 | B15: =IF(OFFSET(DE100_17!$D$23,ROWS($D$23:D29)-1,COLUMNS($D$23:D29)-1)<>"",OFFSET(DE100_17!$D$23,ROWS($D$23:D29)-1,COLUMNS($D$23:D29)-1),"") -> 45950 | C15: =IF(OFFSET(DE100_17!$E$23,ROWS($E$23:E29)-1,COLUMNS($E$23:E29)-1)<>"",OFFSET(DE100_17!$E$23,ROWS($E$23:E29)-1,COLUMNS($E$23:E29)-1),"") -> L | D15: =IF(OFFSET(DE100_17!$F$23,ROWS($F$23:F29)-1,COLUMNS($F$23:F29)-1)<>"",OFFSET(DE100_17!$F$23,ROWS($F$23:F29)-1,COLUMNS($F$23:F29)-1),"") -> 220 | E15: =IF(OFFSET(DE100_17!$G$23,ROWS($G$23:G29)-1,COLUMNS($G$23:G29)-1)<>"",OFFSET(DE100_17!$G$23,ROWS($G$23:G29)-1,COLUMNS($G$23:G29)-1),"") -> 
A16: =IF(OFFSET(DE100_17!$C$23,ROWS($C$23:C30)-1,COLUMNS($C$23:C30)-1)<>"",OFFSET(DE100_17!$C$23,ROWS($C$23:C30)-1,COLUMNS($C$23:C30)-1),"") -> 45950 | B16: =IF(OFFSET(DE100_17!$D$23,ROWS($D$23:D30)-1,COLUMNS($D$23:D30)-1)<>"",OFFSET(DE100_17!$D$23,ROWS($D$23:D30)-1,COLUMNS($D$23:D30)-1),"") -> 46150 | C16: =IF(OFFSET(DE100_17!$E$23,ROWS($E$23:E30)-1,COLUMNS($E$23:E30)-1)<>"",OFFSET(DE100_17!$E$23,ROWS($E$23:E30)-1,COLUMNS($E$23:E30)-1),"") -> L | D16: =IF(OFFSET(DE100_17!$F$23,ROWS($F$23:F30)-1,COLUMNS($F$23:F30)-1)<>"",OFFSET(DE100_17!$F$23,ROWS($F$23:F30)-1,COLUMNS($F$23:F30)-1),"") -> 220 | E16: =IF(OFFSET(DE100_17!$G$23,ROWS($G$23:G30)-1,COLUMNS($G$23:G30)-1)<>"",OFFSET(DE100_17!$G$23,ROWS($G$23:G30)-1,COLUMNS($G$23:G30)-1),"") -> 
A17: =IF(OFFSET(DE100_17!$C$23,ROWS($C$23:C31)-1,COLUMNS($C$23:C31)-1)<>"",OFFSET(DE100_17!$C$23,ROWS($C$23:C31)-1,COLUMNS($C$23:C31)-1),"") -> 46150 | B17: =IF(OFFSET(DE100_17!$D$23,ROWS($D$23:D31)-1,COLUMNS($D$23:D31)-1)<>"",OFFSET(DE100_17!$D$23,ROWS($D$23:D31)-1,COLUMNS($D$23:D31)-1),"") -> 46350 | C17: =IF(OFFSET(DE100_17!$E$23,ROWS($E$23:E31)-1,COLUMNS($E$23:E31)-1)<>"",OFFSET(DE100_17!$E$23,ROWS($E$23:E31)-1,COLUMNS($E$23:E31)-1),"") -> L | D17: =IF(OFFSET(DE100_17!$F$23,ROWS($F$23:F31)-1,COLUMNS($F$23:F31)-1)<>"",OFFSET(DE100_17!$F$23,ROWS($F$23:F31)-1,COLUMNS($F$23:F31)-1),"") -> 220 | E17: =IF(OFFSET(DE100_17!$G$23,ROWS($G$23:G31)-1,COLUMNS($G$23:G31)-1)<>"",OFFSET(DE100_17!$G$23,ROWS($G$23:G31)-1,COLUMNS($G$23:G31)-1),"") -> 
A18: =IF(OFFSET(DE100_17!$C$23,ROWS($C$23:C32)-1,COLUMNS($C$23:C32)-1)<>"",OFFSET(DE100_17!$C$23,ROWS($C$23:C32)-1,COLUMNS($C$23:C32)-1),"") -> 46350 | B18: =IF(OFFSET(DE100_17!$D$23,ROWS($D$23:D32)-1,COLUMNS($D$23:D32)-1)<>"",OFFSET(DE100_17!$D$23,ROWS($D$23:D32)-1,COLUMNS($D$23:D32)-1),"") -> 46550 | C18: =IF(OFFSET(DE100_17!$E$23,ROWS($E$23:E32)-1,COLUMNS($E$23:E32)-1)<>"",OFFSET(DE100_17!$E$23,ROWS($E$23:E32)-1,COLUMNS($E$23:E32)-1),"") -> L | D18: =IF(OFFSET(DE100_17!$F$23,ROWS($F$23:F32)-1,COLUMNS($F$23:F32)-1)<>"",OFFSET(DE100_17!$F$23,ROWS($F$23:F32)-1,COLUMNS($F$23:F32)-1),"") -> 220 | E18: =IF(OFFSET(DE100_17!$G$23,ROWS($G$23:G32)-1,COLUMNS($G$23:G32)-1)<>"",OFFSET(DE100_17!$G$23,ROWS($G$23:G32)-1,COLUMNS($G$23:G32)-1),"") -> 
A19: =IF(OFFSET(DE100_17!$C$23,ROWS($C$23:C33)-1,COLUMNS($C$23:C33)-1)<>"",OFFSET(DE100_17!$C$23,ROWS($C$23:C33)-1,COLUMNS($C$23:C33)-1),"") -> 46550 | B19: =IF(OFFSET(DE100_17!$D$23,ROWS($D$23:D33)-1,COLUMNS($D$23:D33)-1)<>"",OFFSET(DE100_17!$D$23,ROWS($D$23:D33)-1,COLUMNS($D$23:D33)-1),"") -> 46750 | C19: =IF(OFFSET(DE100_17!$E$23,ROWS($E$23:E33)-1,COLUMNS($E$23:E33)-1)<>"",OFFSET(DE100_17!$E$23,ROWS($E$23:E33)-1,COLUMNS($E$23:E33)-1),"") -> L | D19: =IF(OFFSET(DE100_17!$F$23,ROWS($F$23:F33)-1,COLUMNS($F$23:F33)-1)<>"",OFFSET(DE100_17!$F$23,ROWS($F$23:F33)-1,COLUMNS($F$23:F33)-1),"") -> 220 | E19: =IF(OFFSET(DE100_17!$G$23,ROWS($G$23:G33)-1,COLUMNS($G$23:G33)-1)<>"",OFFSET(DE100_17!$G$23,ROWS($G$23:G33)-1,COLUMNS($G$23:G33)-1),"") -> 
A20: =IF(OFFSET(DE100_17!$C$23,ROWS($C$23:C34)-1,COLUMNS($C$23:C34)-1)<>"",OFFSET(DE100_17!$C$23,ROWS($C$23:C34)-1,COLUMNS($C$23:C34)-1),"") -> 46850 | B20: =IF(OFFSET(DE100_17!$D$23,ROWS($D$23:D34)-1,COLUMNS($D$23:D34)-1)<>"",OFFSET(DE100_17!$D$23,ROWS($D$23:D34)-1,COLUMNS($D$23:D34)-1),"") -> 47050 | C20: =IF(OFFSET(DE100_17!$E$23,ROWS($E$23:E34)-1,COLUMNS($E$23:E34)-1)<>"",OFFSET(DE100_17!$E$23,ROWS($E$23:E34)-1,COLUMNS($E$23:E34)-1),"") -> L | D20: =IF(OFFSET(DE100_17!$F$23,ROWS($F$23:F34)-1,COLUMNS($F$23:F34)-1)<>"",OFFSET(DE100_17!$F$23,ROWS($F$23:F34)-1,COLUMNS($F$23:F34)-1),"") -> 220 | E20: =IF(OFFSET(DE100_17!$G$23,ROWS($G$23:G34)-1,COLUMNS($G$23:G34)-1)<>"",OFFSET(DE100_17!$G$23,ROWS($G$23:G34)-1,COLUMNS($G$23:G34)-1),"") -> 
A21: =IF(OFFSET(DE100_17!$C$23,ROWS($C$23:C35)-1,COLUMNS($C$23:C35)-1)<>"",OFFSET(DE100_17!$C$23,ROWS($C$23:C35)-1,COLUMNS($C$23:C35)-1),"") -> 47050 | B21: =IF(OFFSET(DE100_17!$D$23,ROWS($D$23:D35)-1,COLUMNS($D$23:D35)-1)<>"",OFFSET(DE100_17!$D$23,ROWS($D$23:D35)-1,COLUMNS($D$23:D35)-1),"") -> 47250 | C21: =IF(OFFSET(DE100_17!$E$23,ROWS($E$23:E35)-1,COLUMNS($E$23:E35)-1)<>"",OFFSET(DE100_17!$E$23,ROWS($E$23:E35)-1,COLUMNS($E$23:E35)-1),"") -> L | D21: =IF(OFFSET(DE100_17!$F$23,ROWS($F$23:F35)-1,COLUMNS($F$23:F35)-1)<>"",OFFSET(DE100_17!$F$23,ROWS($F$23:F35)-1,COLUMNS($F$23:F35)-1),"") -> 220 | E21: =IF(OFFSET(DE100_17!$G$23,ROWS($G$23:G35)-1,COLUMNS($G$23:G35)-1)<>"",OFFSET(DE100_17!$G$23,ROWS($G$23:G35)-1,COLUMNS($G$23:G35)-1),"") -> 
A22: =IF(OFFSET(DE100_17!$C$23,ROWS($C$23:C36)-1,COLUMNS($C$23:C36)-1)<>"",OFFSET(DE100_17!$C$23,ROWS($C$23:C36)-1,COLUMNS($C$23:C36)-1),"") -> 47250 | B22: =IF(OFFSET(DE100_17!$D$23,ROWS($D$23:D36)-1,COLUMNS($D$23:D36)-1)<>"",OFFSET(DE100_17!$D$23,ROWS($D$23:D36)-1,COLUMNS($D$23:D36)-1),"") -> 47450 | C22: =IF(OFFSET(DE100_17!$E$23,ROWS($E$23:E36)-1,COLUMNS($E$23:E36)-1)<>"",OFFSET(DE100_17!$E$23,ROWS($E$23:E36)-1,COLUMNS($E$23:E36)-1),"") -> L | D22: =IF(OFFSET(DE100_17!$F$23,ROWS($F$23:F36)-1,COLUMNS($F$23:F36)-1)<>"",OFFSET(DE100_17!$F$23,ROWS($F$23:F36)-1,COLUMNS($F$23:F36)-1),"") -> 220 | E22: =IF(OFFSET(DE100_17!$G$23,ROWS($G$23:G36)-1,COLUMNS($G$23:G36)-1)<>"",OFFSET(DE100_17!$G$23,ROWS($G$23:G36)-1,COLUMNS($G$23:G36)-1),"") -> 
A23: =IF(OFFSET(DE100_17!$C$23,ROWS($C$23:C37)-1,COLUMNS($C$23:C37)-1)<>"",OFFSET(DE100_17!$C$23,ROWS($C$23:C37)-1,COLUMNS($C$23:C37)-1),"") -> 47550 | B23: =IF(OFFSET(DE100_17!$D$23,ROWS($D$23:D37)-1,COLUMNS($D$23:D37)-1)<>"",OFFSET(DE100_17!$D$23,ROWS($D$23:D37)-1,COLUMNS($D$23:D37)-1),"") -> 47750 | C23: =IF(OFFSET(DE100_17!$E$23,ROWS($E$23:E37)-1,COLUMNS($E$23:E37)-1)<>"",OFFSET(DE100_17!$E$23,ROWS($E$23:E37)-1,COLUMNS($E$23:E37)-1),"") -> L | D23: =IF(OFFSET(DE100_17!$F$23,ROWS($F$23:F37)-1,COLUMNS($F$23:F37)-1)<>"",OFFSET(DE100_17!$F$23,ROWS($F$23:F37)-1,COLUMNS($F$23:F37)-1),"") -> 220 | E23: =IF(OFFSET(DE100_17!$G$23,ROWS($G$23:G37)-1,COLUMNS($G$23:G37)-1)<>"",OFFSET(DE100_17!$G$23,ROWS($G$23:G37)-1,COLUMNS($G$23:G37)-1),"") -> 
A24: =IF(OFFSET(DE100_17!$C$23,ROWS($C$23:C38)-1,COLUMNS($C$23:C38)-1)<>"",OFFSET(DE100_17!$C$23,ROWS($C$23:C38)-1,COLUMNS($C$23:C38)-1),"") -> 47750 | B24: =IF(OFFSET(DE100_17!$D$23,ROWS($D$23:D38)-1,COLUMNS($D$23:D38)-1)<>"",OFFSET(DE100_17!$D$23,ROWS($D$23:D38)-1,COLUMNS($D$23:D38)-1),"") -> 47950 | C24: =IF(OFFSET(DE100_17!$E$23,ROWS($E$23:E38)-1,COLUMNS($E$23:E38)-1)<>"",OFFSET(DE100_17!$E$23,ROWS($E$23:E38)-1,COLUMNS($E$23:E38)-1),"") -> L | D24: =IF(OFFSET(DE100_17!$F$23,ROWS($F$23:F38)-1,COLUMNS($F$23:F38)-1)<>"",OFFSET(DE100_17!$F$23,ROWS($F$23:F38)-1,COLUMNS($F$23:F38)-1),"") -> 220 | E24: =IF(OFFSET(DE100_17!$G$23,ROWS($G$23:G38)-1,COLUMNS($G$23:G38)-1)<>"",OFFSET(DE100_17!$G$23,ROWS($G$23:G38)-1,COLUMNS($G$23:G38)-1),"") -> 
A25: =IF(OFFSET(DE100_17!$C$23,ROWS($C$23:C39)-1,COLUMNS($C$23:C39)-1)<>"",OFFSET(DE100_17!$C$23,ROWS($C$23:C39)-1,COLUMNS($C$23:C39)-1),"") -> 47950 | B25: =IF(OFFSET(DE100_17!$D$23,ROWS($D$23:D39)-1,COLUMNS($D$23:D39)-1)<>"",OFFSET(DE100_17!$D$23,ROWS($D$23:D39)-1,COLUMNS($D$23:D39)-1),"") -> 48150 | C25: =IF(OFFSET(DE100_17!$E$23,ROWS($E$23:E39)-1,COLUMNS($E$23:E39)-1)<>"",OFFSET(DE100_17!$E$23,ROWS($E$23:E39)-1,COLUMNS($E$23:E39)-1),"") -> L | D25: =IF(OFFSET(DE100_17!$F$23,ROWS($F$23:F39)-1,COLUMNS($F$23:F39)-1)<>"",OFFSET(DE100_17!$F$23,ROWS($F$23:F39)-1,COLUMNS($F$23:F39)-1),"") -> 220 | E25: =IF(OFFSET(DE100_17!$G$23,ROWS($G$23:G39)-1,COLUMNS($G$23:G39)-1)<>"",OFFSET(DE100_17!$G$23,ROWS($G$23:G39)-1,COLUMNS($G$23:G39)-1),"") -> 
A26: =IF(OFFSET(DE100_17!$C$23,ROWS($C$23:C40)-1,COLUMNS($C$23:C40)-1)<>"",OFFSET(DE100_17!$C$23,ROWS($C$23:C40)-1,COLUMNS($C$23:C40)-1),"") -> 48150 | B26: =IF(OFFSET(DE100_17!$D$23,ROWS($D$23:D40)-1,COLUMNS($D$23:D40)-1)<>"",OFFSET(DE100_17!$D$23,ROWS($D$23:D40)-1,COLUMNS($D$23:D40)-1),"") -> 48350 | C26: =IF(OFFSET(DE100_17!$E$23,ROWS($E$23:E40)-1,COLUMNS($E$23:E40)-1)<>"",OFFSET(DE100_17!$E$23,ROWS($E$23:E40)-1,COLUMNS($E$23:E40)-1),"") -> L | D26: =IF(OFFSET(DE100_17!$F$23,ROWS($F$23:F40)-1,COLUMNS($F$23:F40)-1)<>"",OFFSET(DE100_17!$F$23,ROWS($F$23:F40)-1,COLUMNS($F$23:F40)-1),"") -> 220 | E26: =IF(OFFSET(DE100_17!$G$23,ROWS($G$23:G40)-1,COLUMNS($G$23:G40)-1)<>"",OFFSET(DE100_17!$G$23,ROWS($G$23:G40)-1,COLUMNS($G$23:G40)-1),"") -> 
A27: =IF(OFFSET(DE100_17!$C$23,ROWS($C$23:C41)-1,COLUMNS($C$23:C41)-1)<>"",OFFSET(DE100_17!$C$23,ROWS($C$23:C41)-1,COLUMNS($C$23:C41)-1),"") -> 48350 | B27: =IF(OFFSET(DE100_17!$D$23,ROWS($D$23:D41)-1,COLUMNS($D$23:D41)-1)<>"",OFFSET(DE100_17!$D$23,ROWS($D$23:D41)-1,COLUMNS($D$23:D41)-1),"") -> 48550 | C27: =IF(OFFSET(DE100_17!$E$23,ROWS($E$23:E41)-1,COLUMNS($E$23:E41)-1)<>"",OFFSET(DE100_17!$E$23,ROWS($E$23:E41)-1,COLUMNS($E$23:E41)-1),"") -> L | D27: =IF(OFFSET(DE100_17!$F$23,ROWS($F$23:F41)-1,COLUMNS($F$23:F41)-1)<>"",OFFSET(DE100_17!$F$23,ROWS($F$23:F41)-1,COLUMNS($F$23:F41)-1),"") -> 220 | E27: =IF(OFFSET(DE100_17!$G$23,ROWS($G$23:G41)-1,COLUMNS($G$23:G41)-1)<>"",OFFSET(DE100_17!$G$23,ROWS($G$23:G41)-1,COLUMNS($G$23:G41)-1),"") -> 
A28: =IF(OFFSET(DE100_17!$C$23,ROWS($C$23:C42)-1,COLUMNS($C$23:C42)-1)<>"",OFFSET(DE100_17!$C$23,ROWS($C$23:C42)-1,COLUMNS($C$23:C42)-1),"") -> 48550 | B28: =IF(OFFSET(DE100_17!$D$23,ROWS($D$23:D42)-1,COLUMNS($D$23:D42)-1)<>"",OFFSET(DE100_17!$D$23,ROWS($D$23:D42)-1,COLUMNS($D$23:D42)-1),"") -> 48750 | C28: =IF(OFFSET(DE100_17!$E$23,ROWS($E$23:E42)-1,COLUMNS($E$23:E42)-1)<>"",OFFSET(DE100_17!$E$23,ROWS($E$23:E42)-1,COLUMNS($E$23:E42)-1),"") -> L | D28: =IF(OFFSET(DE100_17!$F$23,ROWS($F$23:F42)-1,COLUMNS($F$23:F42)-1)<>"",OFFSET(DE100_17!$F$23,ROWS($F$23:F42)-1,COLUMNS($F$23:F42)-1),"") -> 220 | E28: =IF(OFFSET(DE100_17!$G$23,ROWS($G$23:G42)-1,COLUMNS($G$23:G42)-1)<>"",OFFSET(DE100_17!$G$23,ROWS($G$23:G42)-1,COLUMNS($G$23:G42)-1),"") -> 
A29: =IF(OFFSET(DE100_17!$C$23,ROWS($C$23:C43)-1,COLUMNS($C$23:C43)-1)<>"",OFFSET(DE100_17!$C$23,ROWS($C$23:C43)-1,COLUMNS($C$23:C43)-1),"") -> 48750 | B29: =IF(OFFSET(DE100_17!$D$23,ROWS($D$23:D43)-1,COLUMNS($D$23:D43)-1)<>"",OFFSET(DE100_17!$D$23,ROWS($D$23:D43)-1,COLUMNS($D$23:D43)-1),"") -> 48950 | C29: =IF(OFFSET(DE100_17!$E$23,ROWS($E$23:E43)-1,COLUMNS($E$23:E43)-1)<>"",OFFSET(DE100_17!$E$23,ROWS($E$23:E43)-1,COLUMNS($E$23:E43)-1),"") -> L | D29: =IF(OFFSET(DE100_17!$F$23,ROWS($F$23:F43)-1,COLUMNS($F$23:F43)-1)<>"",OFFSET(DE100_17!$F$23,ROWS($F$23:F43)-1,COLUMNS($F$23:F43)-1),"") -> 220 | E29: =IF(OFFSET(DE100_17!$G$23,ROWS($G$23:G43)-1,COLUMNS($G$23:G43)-1)<>"",OFFSET(DE100_17!$G$23,ROWS($G$23:G43)-1,COLUMNS($G$23:G43)-1),"") -> 
A30: =IF(OFFSET(DE100_17!$C$23,ROWS($C$23:C44)-1,COLUMNS($C$23:C44)-1)<>"",OFFSET(DE100_17!$C$23,ROWS($C$23:C44)-1,COLUMNS($C$23:C44)-1),"") -> 48950 | B30: =IF(OFFSET(DE100_17!$D$23,ROWS($D$23:D44)-1,COLUMNS($D$23:D44)-1)<>"",OFFSET(DE100_17!$D$23,ROWS($D$23:D44)-1,COLUMNS($D$23:D44)-1),"") -> 49150 | C30: =IF(OFFSET(DE100_17!$E$23,ROWS($E$23:E44)-1,COLUMNS($E$23:E44)-1)<>"",OFFSET(DE100_17!$E$23,ROWS($E$23:E44)-1,COLUMNS($E$23:E44)-1),"") -> L | D30: =IF(OFFSET(DE100_17!$F$23,ROWS($F$23:F44)-1,COLUMNS($F$23:F44)-1)<>"",OFFSET(DE100_17!$F$23,ROWS($F$23:F44)-1,COLUMNS($F$23:F44)-1),"") -> 220 | E30: =IF(OFFSET(DE100_17!$G$23,ROWS($G$23:G44)-1,COLUMNS($G$23:G44)-1)<>"",OFFSET(DE100_17!$G$23,ROWS($G$23:G44)-1,COLUMNS($G$23:G44)-1),"") -> 
A31: =IF(OFFSET(DE100_17!$C$23,ROWS($C$23:C45)-1,COLUMNS($C$23:C45)-1)<>"",OFFSET(DE100_17!$C$23,ROWS($C$23:C45)-1,COLUMNS($C$23:C45)-1),"") -> 49150 | B31: =IF(OFFSET(DE100_17!$D$23,ROWS($D$23:D45)-1,COLUMNS($D$23:D45)-1)<>"",OFFSET(DE100_17!$D$23,ROWS($D$23:D45)-1,COLUMNS($D$23:D45)-1),"") -> 49350 | C31: =IF(OFFSET(DE100_17!$E$23,ROWS($E$23:E45)-1,COLUMNS($E$23:E45)-1)<>"",OFFSET(DE100_17!$E$23,ROWS($E$23:E45)-1,COLUMNS($E$23:E45)-1),"") -> L | D31: =IF(OFFSET(DE100_17!$F$23,ROWS($F$23:F45)-1,COLUMNS($F$23:F45)-1)<>"",OFFSET(DE100_17!$F$23,ROWS($F$23:F45)-1,COLUMNS($F$23:F45)-1),"") -> 220 | E31: =IF(OFFSET(DE100_17!$G$23,ROWS($G$23:G45)-1,COLUMNS($G$23:G45)-1)<>"",OFFSET(DE100_17!$G$23,ROWS($G$23:G45)-1,COLUMNS($G$23:G45)-1),"") -> 
A32: =IF(OFFSET(DE100_17!$C$23,ROWS($C$23:C46)-1,COLUMNS($C$23:C46)-1)<>"",OFFSET(DE100_17!$C$23,ROWS($C$23:C46)-1,COLUMNS($C$23:C46)-1),"") -> 49350 | B32: =IF(OFFSET(DE100_17!$D$23,ROWS($D$23:D46)-1,COLUMNS($D$23:D46)-1)<>"",OFFSET(DE100_17!$D$23,ROWS($D$23:D46)-1,COLUMNS($D$23:D46)-1),"") -> 49450 | C32: =IF(OFFSET(DE100_17!$E$23,ROWS($E$23:E46)-1,COLUMNS($E$23:E46)-1)<>"",OFFSET(DE100_17!$E$23,ROWS($E$23:E46)-1,COLUMNS($E$23:E46)-1),"") -> L | D32: =IF(OFFSET(DE100_17!$F$23,ROWS($F$23:F46)-1,COLUMNS($F$23:F46)-1)<>"",OFFSET(DE100_17!$F$23,ROWS($F$23:F46)-1,COLUMNS($F$23:F46)-1),"") -> 120 | E32: =IF(OFFSET(DE100_17!$G$23,ROWS($G$23:G46)-1,COLUMNS($G$23:G46)-1)<>"",OFFSET(DE100_17!$G$23,ROWS($G$23:G46)-1,COLUMNS($G$23:G46)-1),"") -> 
A33: =IF(OFFSET(DE100_17!$C$23,ROWS($C$23:C47)-1,COLUMNS($C$23:C47)-1)<>"",OFFSET(DE100_17!$C$23,ROWS($C$23:C47)-1,COLUMNS($C$23:C47)-1),"") -> 49500 | B33: =IF(OFFSET(DE100_17!$D$23,ROWS($D$23:D47)-1,COLUMNS($D$23:D47)-1)<>"",OFFSET(DE100_17!$D$23,ROWS($D$23:D47)-1,COLUMNS($D$23:D47)-1),"") -> 49700 | C33: =IF(OFFSET(DE100_17!$E$23,ROWS($E$23:E47)-1,COLUMNS($E$23:E47)-1)<>"",OFFSET(DE100_17!$E$23,ROWS($E$23:E47)-1,COLUMNS($E$23:E47)-1),"") -> L | D33: =IF(OFFSET(DE100_17!$F$23,ROWS($F$23:F47)-1,COLUMNS($F$23:F47)-1)<>"",OFFSET(DE100_17!$F$23,ROWS($F$23:F47)-1,COLUMNS($F$23:F47)-1),"") -> 220 | E33: =IF(OFFSET(DE100_17!$G$23,ROWS($G$23:G47)-1,COLUMNS($G$23:G47)-1)<>"",OFFSET(DE100_17!$G$23,ROWS($G$23:G47)-1,COLUMNS($G$23:G47)-1),"") -> 
A34: =IF(OFFSET(DE100_17!$C$23,ROWS($C$23:C48)-1,COLUMNS($C$23:C48)-1)<>"",OFFSET(DE100_17!$C$23,ROWS($C$23:C48)-1,COLUMNS($C$23:C48)-1),"") -> 49700 | B34: =IF(OFFSET(DE100_17!$D$23,ROWS($D$23:D48)-1,COLUMNS($D$23:D48)-1)<>"",OFFSET(DE100_17!$D$23,ROWS($D$23:D48)-1,COLUMNS($D$23:D48)-1),"") -> 49900 | C34: =IF(OFFSET(DE100_17!$E$23,ROWS($E$23:E48)-1,COLUMNS($E$23:E48)-1)<>"",OFFSET(DE100_17!$E$23,ROWS($E$23:E48)-1,COLUMNS($E$23:E48)-1),"") -> L | D34: =IF(OFFSET(DE100_17!$F$23,ROWS($F$23:F48)-1,COLUMNS($F$23:F48)-1)<>"",OFFSET(DE100_17!$F$23,ROWS($F$23:F48)-1,COLUMNS($F$23:F48)-1),"") -> 220 | E34: =IF(OFFSET(DE100_17!$G$23,ROWS($G$23:G48)-1,COLUMNS($G$23:G48)-1)<>"",OFFSET(DE100_17!$G$23,ROWS($G$23:G48)-1,COLUMNS($G$23:G48)-1),"") -> 
A35: =IF(OFFSET(DE100_17!$C$23,ROWS($C$23:C49)-1,COLUMNS($C$23:C49)-1)<>"",OFFSET(DE100_17!$C$23,ROWS($C$23:C49)-1,COLUMNS($C$23:C49)-1),"") -> 49900 | B35: =IF(OFFSET(DE100_17!$D$23,ROWS($D$23:D49)-1,COLUMNS($D$23:D49)-1)<>"",OFFSET(DE100_17!$D$23,ROWS($D$23:D49)-1,COLUMNS($D$23:D49)-1),"") -> 50100 | C35: =IF(OFFSET(DE100_17!$E$23,ROWS($E$23:E49)-1,COLUMNS($E$23:E49)-1)<>"",OFFSET(DE100_17!$E$23,ROWS($E$23:E49)-1,COLUMNS($E$23:E49)-1),"") -> L | D35: =IF(OFFSET(DE100_17!$F$23,ROWS($F$23:F49)-1,COLUMNS($F$23:F49)-1)<>"",OFFSET(DE100_17!$F$23,ROWS($F$23:F49)-1,COLUMNS($F$23:F49)-1),"") -> 220 | E35: =IF(OFFSET(DE100_17!$G$23,ROWS($G$23:G49)-1,COLUMNS($G$23:G49)-1)<>"",OFFSET(DE100_17!$G$23,ROWS($G$23:G49)-1,COLUMNS($G$23:G49)-1),"") -> 
A36: =IF(OFFSET(DE100_17!$C$23,ROWS($C$23:C50)-1,COLUMNS($C$23:C50)-1)<>"",OFFSET(DE100_17!$C$23,ROWS($C$23:C50)-1,COLUMNS($C$23:C50)-1),"") -> 50100 | B36: =IF(OFFSET(DE100_17!$D$23,ROWS($D$23:D50)-1,COLUMNS($D$23:D50)-1)<>"",OFFSET(DE100_17!$D$23,ROWS($D$23:D50)-1,COLUMNS($D$23:D50)-1),"") -> 50300 | C36: =IF(OFFSET(DE100_17!$E$23,ROWS($E$23:E50)-1,COLUMNS($E$23:E50)-1)<>"",OFFSET(DE100_17!$E$23,ROWS($E$23:E50)-1,COLUMNS($E$23:E50)-1),"") -> L | D36: =IF(OFFSET(DE100_17!$F$23,ROWS($F$23:F50)-1,COLUMNS($F$23:F50)-1)<>"",OFFSET(DE100_17!$F$23,ROWS($F$23:F50)-1,COLUMNS($F$23:F50)-1),"") -> 220 | E36: =IF(OFFSET(DE100_17!$G$23,ROWS($G$23:G50)-1,COLUMNS($G$23:G50)-1)<>"",OFFSET(DE100_17!$G$23,ROWS($G$23:G50)-1,COLUMNS($G$23:G50)-1),"") -> 
A37: =IF(OFFSET(DE100_17!$C$23,ROWS($C$23:C51)-1,COLUMNS($C$23:C51)-1)<>"",OFFSET(DE100_17!$C$23,ROWS($C$23:C51)-1,COLUMNS($C$23:C51)-1),"") -> 50300 | B37: =IF(OFFSET(DE100_17!$D$23,ROWS($D$23:D51)-1,COLUMNS($D$23:D51)-1)<>"",OFFSET(DE100_17!$D$23,ROWS($D$23:D51)-1,COLUMNS($D$23:D51)-1),"") -> 50500 | C37: =IF(OFFSET(DE100_17!$E$23,ROWS($E$23:E51)-1,COLUMNS($E$23:E51)-1)<>"",OFFSET(DE100_17!$E$23,ROWS($E$23:E51)-1,COLUMNS($E$23:E51)-1),"") -> L | D37: =IF(OFFSET(DE100_17!$F$23,ROWS($F$23:F51)-1,COLUMNS($F$23:F51)-1)<>"",OFFSET(DE100_17!$F$23,ROWS($F$23:F51)-1,COLUMNS($F$23:F51)-1),"") -> 220 | E37: =IF(OFFSET(DE100_17!$G$23,ROWS($G$23:G51)-1,COLUMNS($G$23:G51)-1)<>"",OFFSET(DE100_17!$G$23,ROWS($G$23:G51)-1,COLUMNS($G$23:G51)-1),"") -> 
A38: =IF(OFFSET(DE100_17!$C$23,ROWS($C$23:C52)-1,COLUMNS($C$23:C52)-1)<>"",OFFSET(DE100_17!$C$23,ROWS($C$23:C52)-1,COLUMNS($C$23:C52)-1),"") -> 50250 | B38: =IF(OFFSET(DE100_17!$D$23,ROWS($D$23:D52)-1,COLUMNS($D$23:D52)-1)<>"",OFFSET(DE100_17!$D$23,ROWS($D$23:D52)-1,COLUMNS($D$23:D52)-1),"") -> 50450 | C38: =IF(OFFSET(DE100_17!$E$23,ROWS($E$23:E52)-1,COLUMNS($E$23:E52)-1)<>"",OFFSET(DE100_17!$E$23,ROWS($E$23:E52)-1,COLUMNS($E$23:E52)-1),"") -> L | D38: =IF(OFFSET(DE100_17!$F$23,ROWS($F$23:F52)-1,COLUMNS($F$23:F52)-1)<>"",OFFSET(DE100_17!$F$23,ROWS($F$23:F52)-1,COLUMNS($F$23:F52)-1),"") -> 220 | E38: =IF(OFFSET(DE100_17!$G$23,ROWS($G$23:G52)-1,COLUMNS($G$23:G52)-1)<>"",OFFSET(DE100_17!$G$23,ROWS($G$23:G52)-1,COLUMNS($G$23:G52)-1),"") -> BS
A39: =IF(OFFSET(DE100_17!$C$23,ROWS($C$23:C53)-1,COLUMNS($C$23:C53)-1)<>"",OFFSET(DE100_17!$C$23,ROWS($C$23:C53)-1,COLUMNS($C$23:C53)-1),"") -> 50450 | B39: =IF(OFFSET(DE100_17!$D$23,ROWS($D$23:D53)-1,COLUMNS($D$23:D53)-1)<>"",OFFSET(DE100_17!$D$23,ROWS($D$23:D53)-1,COLUMNS($D$23:D53)-1),"") -> 50650 | C39: =IF(OFFSET(DE100_17!$E$23,ROWS($E$23:E53)-1,COLUMNS($E$23:E53)-1)<>"",OFFSET(DE100_17!$E$23,ROWS($E$23:E53)-1,COLUMNS($E$23:E53)-1),"") -> L | D39: =IF(OFFSET(DE100_17!$F$23,ROWS($F$23:F53)-1,COLUMNS($F$23:F53)-1)<>"",OFFSET(DE100_17!$F$23,ROWS($F$23:F53)-1,COLUMNS($F$23:F53)-1),"") -> 220 | E39: =IF(OFFSET(DE100_17!$G$23,ROWS($G$23:G53)-1,COLUMNS($G$23:G53)-1)<>"",OFFSET(DE100_17!$G$23,ROWS($G$23:G53)-1,COLUMNS($G$23:G53)-1),"") -> BS
A40: =IF(OFFSET(DE100_17!$C$23,ROWS($C$23:C54)-1,COLUMNS($C$23:C54)-1)<>"",OFFSET(DE100_17!$C$23,ROWS($C$23:C54)-1,COLUMNS($C$23:C54)-1),"") -> 50650 | B40: =IF(OFFSET(DE100_17!$D$23,ROWS($D$23:D54)-1,COLUMNS($D$23:D54)-1)<>"",OFFSET(DE100_17!$D$23,ROWS($D$23:D54)-1,COLUMNS($D$23:D54)-1),"") -> 50750 | C40: =IF(OFFSET(DE100_17!$E$23,ROWS($E$23:E54)-1,COLUMNS($E$23:E54)-1)<>"",OFFSET(DE100_17!$E$23,ROWS($E$23:E54)-1,COLUMNS($E$23:E54)-1),"") -> L | D40: =IF(OFFSET(DE100_17!$F$23,ROWS($F$23:F54)-1,COLUMNS($F$23:F54)-1)<>"",OFFSET(DE100_17!$F$23,ROWS($F$23:F54)-1,COLUMNS($F$23:F54)-1),"") -> 120 | E40: =IF(OFFSET(DE100_17!$G$23,ROWS($G$23:G54)-1,COLUMNS($G$23:G54)-1)<>"",OFFSET(DE100_17!$G$23,ROWS($G$23:G54)-1,COLUMNS($G$23:G54)-1),"") -> BS
A41: =IF(OFFSET(DE100_17!$C$23,ROWS($C$23:C55)-1,COLUMNS($C$23:C55)-1)<>"",OFFSET(DE100_17!$C$23,ROWS($C$23:C55)-1,COLUMNS($C$23:C55)-1),"") -> 50500 | B41: =IF(OFFSET(DE100_17!$D$23,ROWS($D$23:D55)-1,COLUMNS($D$23:D55)-1)<>"",OFFSET(DE100_17!$D$23,ROWS($D$23:D55)-1,COLUMNS($D$23:D55)-1),"") -> 50700 | C41: =IF(OFFSET(DE100_17!$E$23,ROWS($E$23:E55)-1,COLUMNS($E$23:E55)-1)<>"",OFFSET(DE100_17!$E$23,ROWS($E$23:E55)-1,COLUMNS($E$23:E55)-1),"") -> L | D41: =IF(OFFSET(DE100_17!$F$23,ROWS($F$23:F55)-1,COLUMNS($F$23:F55)-1)<>"",OFFSET(DE100_17!$F$23,ROWS($F$23:F55)-1,COLUMNS($F$23:F55)-1),"") -> 220 | E41: =IF(OFFSET(DE100_17!$G$23,ROWS($G$23:G55)-1,COLUMNS($G$23:G55)-1)<>"",OFFSET(DE100_17!$G$23,ROWS($G$23:G55)-1,COLUMNS($G$23:G55)-1),"") -> 
A42: =IF(OFFSET(DE100_17!$C$23,ROWS($C$23:C56)-1,COLUMNS($C$23:C56)-1)<>"",OFFSET(DE100_17!$C$23,ROWS($C$23:C56)-1,COLUMNS($C$23:C56)-1),"") -> 50700 | B42: =IF(OFFSET(DE100_17!$D$23,ROWS($D$23:D56)-1,COLUMNS($D$23:D56)-1)<>"",OFFSET(DE100_17!$D$23,ROWS($D$23:D56)-1,COLUMNS($D$23:D56)-1),"") -> 50900 | C42: =IF(OFFSET(DE100_17!$E$23,ROWS($E$23:E56)-1,COLUMNS($E$23:E56)-1)<>"",OFFSET(DE100_17!$E$23,ROWS($E$23:E56)-1,COLUMNS($E$23:E56)-1),"") -> L | D42: =IF(OFFSET(DE100_17!$F$23,ROWS($F$23:F56)-1,COLUMNS($F$23:F56)-1)<>"",OFFSET(DE100_17!$F$23,ROWS($F$23:F56)-1,COLUMNS($F$23:F56)-1),"") -> 220 | E42: =IF(OFFSET(DE100_17!$G$23,ROWS($G$23:G56)-1,COLUMNS($G$23:G56)-1)<>"",OFFSET(DE100_17!$G$23,ROWS($G$23:G56)-1,COLUMNS($G$23:G56)-1),"") -> 
A43: =IF(OFFSET(DE100_17!$C$23,ROWS($C$23:C57)-1,COLUMNS($C$23:C57)-1)<>"",OFFSET(DE100_17!$C$23,ROWS($C$23:C57)-1,COLUMNS($C$23:C57)-1),"") -> 50900 | B43: =IF(OFFSET(DE100_17!$D$23,ROWS($D$23:D57)-1,COLUMNS($D$23:D57)-1)<>"",OFFSET(DE100_17!$D$23,ROWS($D$23:D57)-1,COLUMNS($D$23:D57)-1),"") -> 51100 | C43: =IF(OFFSET(DE100_17!$E$23,ROWS($E$23:E57)-1,COLUMNS($E$23:E57)-1)<>"",OFFSET(DE100_17!$E$23,ROWS($E$23:E57)-1,COLUMNS($E$23:E57)-1),"") -> L | D43: =IF(OFFSET(DE100_17!$F$23,ROWS($F$23:F57)-1,COLUMNS($F$23:F57)-1)<>"",OFFSET(DE100_17!$F$23,ROWS($F$23:F57)-1,COLUMNS($F$23:F57)-1),"") -> 220 | E43: =IF(OFFSET(DE100_17!$G$23,ROWS($G$23:G57)-1,COLUMNS($G$23:G57)-1)<>"",OFFSET(DE100_17!$G$23,ROWS($G$23:G57)-1,COLUMNS($G$23:G57)-1),"") -> 
A44: =IF(OFFSET(DE100_17!$C$23,ROWS($C$23:C58)-1,COLUMNS($C$23:C58)-1)<>"",OFFSET(DE100_17!$C$23,ROWS($C$23:C58)-1,COLUMNS($C$23:C58)-1),"") -> 51100 | B44: =IF(OFFSET(DE100_17!$D$23,ROWS($D$23:D58)-1,COLUMNS($D$23:D58)-1)<>"",OFFSET(DE100_17!$D$23,ROWS($D$23:D58)-1,COLUMNS($D$23:D58)-1),"") -> 51300 | C44: =IF(OFFSET(DE100_17!$E$23,ROWS($E$23:E58)-1,COLUMNS($E$23:E58)-1)<>"",OFFSET(DE100_17!$E$23,ROWS($E$23:E58)-1,COLUMNS($E$23:E58)-1),"") -> L | D44: =IF(OFFSET(DE100_17!$F$23,ROWS($F$23:F58)-1,COLUMNS($F$23:F58)-1)<>"",OFFSET(DE100_17!$F$23,ROWS($F$23:F58)-1,COLUMNS($F$23:F58)-1),"") -> 220 | E44: =IF(OFFSET(DE100_17!$G$23,ROWS($G$23:G58)-1,COLUMNS($G$23:G58)-1)<>"",OFFSET(DE100_17!$G$23,ROWS($G$23:G58)-1,COLUMNS($G$23:G58)-1),"") -> 
A45: =IF(OFFSET(DE100_17!$C$23,ROWS($C$23:C59)-1,COLUMNS($C$23:C59)-1)<>"",OFFSET(DE100_17!$C$23,ROWS($C$23:C59)-1,COLUMNS($C$23:C59)-1),"") -> 51300 | B45: =IF(OFFSET(DE100_17!$D$23,ROWS($D$23:D59)-1,COLUMNS($D$23:D59)-1)<>"",OFFSET(DE100_17!$D$23,ROWS($D$23:D59)-1,COLUMNS($D$23:D59)-1),"") -> 51500 | C45: =IF(OFFSET(DE100_17!$E$23,ROWS($E$23:E59)-1,COLUMNS($E$23:E59)-1)<>"",OFFSET(DE100_17!$E$23,ROWS($E$23:E59)-1,COLUMNS($E$23:E59)-1),"") -> L | D45: =IF(OFFSET(DE100_17!$F$23,ROWS($F$23:F59)-1,COLUMNS($F$23:F59)-1)<>"",OFFSET(DE100_17!$F$23,ROWS($F$23:F59)-1,COLUMNS($F$23:F59)-1),"") -> 220 | E45: =IF(OFFSET(DE100_17!$G$23,ROWS($G$23:G59)-1,COLUMNS($G$23:G59)-1)<>"",OFFSET(DE100_17!$G$23,ROWS($G$23:G59)-1,COLUMNS($G$23:G59)-1),"") -> 
A46: =IF(OFFSET(DE100_17!$C$23,ROWS($C$23:C60)-1,COLUMNS($C$23:C60)-1)<>"",OFFSET(DE100_17!$C$23,ROWS($C$23:C60)-1,COLUMNS($C$23:C60)-1),"") -> 51500 | B46: =IF(OFFSET(DE100_17!$D$23,ROWS($D$23:D60)-1,COLUMNS($D$23:D60)-1)<>"",OFFSET(DE100_17!$D$23,ROWS($D$23:D60)-1,COLUMNS($D$23:D60)-1),"") -> 51700 | C46: =IF(OFFSET(DE100_17!$E$23,ROWS($E$23:E60)-1,COLUMNS($E$23:E60)-1)<>"",OFFSET(DE100_17!$E$23,ROWS($E$23:E60)-1,COLUMNS($E$23:E60)-1),"") -> L | D46: =IF(OFFSET(DE100_17!$F$23,ROWS($F$23:F60)-1,COLUMNS($F$23:F60)-1)<>"",OFFSET(DE100_17!$F$23,ROWS($F$23:F60)-1,COLUMNS($F$23:F60)-1),"") -> 220 | E46: =IF(OFFSET(DE100_17!$G$23,ROWS($G$23:G60)-1,COLUMNS($G$23:G60)-1)<>"",OFFSET(DE100_17!$G$23,ROWS($G$23:G60)-1,COLUMNS($G$23:G60)-1),"") -> 
A47: =IF(OFFSET(DE100_17!$C$23,ROWS($C$23:C61)-1,COLUMNS($C$23:C61)-1)<>"",OFFSET(DE100_17!$C$23,ROWS($C$23:C61)-1,COLUMNS($C$23:C61)-1),"") -> 51700 | B47: =IF(OFFSET(DE100_17!$D$23,ROWS($D$23:D61)-1,COLUMNS($D$23:D61)-1)<>"",OFFSET(DE100_17!$D$23,ROWS($D$23:D61)-1,COLUMNS($D$23:D61)-1),"") -> 51900 | C47: =IF(OFFSET(DE100_17!$E$23,ROWS($E$23:E61)-1,COLUMNS($E$23:E61)-1)<>"",OFFSET(DE100_17!$E$23,ROWS($E$23:E61)-1,COLUMNS($E$23:E61)-1),"") -> L | D47: =IF(OFFSET(DE100_17!$F$23,ROWS($F$23:F61)-1,COLUMNS($F$23:F61)-1)<>"",OFFSET(DE100_17!$F$23,ROWS($F$23:F61)-1,COLUMNS($F$23:F61)-1),"") -> 220 | E47: =IF(OFFSET(DE100_17!$G$23,ROWS($G$23:G61)-1,COLUMNS($G$23:G61)-1)<>"",OFFSET(DE100_17!$G$23,ROWS($G$23:G61)-1,COLUMNS($G$23:G61)-1),"") -> 
A48: =IF(OFFSET(DE100_17!$C$23,ROWS($C$23:C62)-1,COLUMNS($C$23:C62)-1)<>"",OFFSET(DE100_17!$C$23,ROWS($C$23:C62)-1,COLUMNS($C$23:C62)-1),"") -> 51900 | B48: =IF(OFFSET(DE100_17!$D$23,ROWS($D$23:D62)-1,COLUMNS($D$23:D62)-1)<>"",OFFSET(DE100_17!$D$23,ROWS($D$23:D62)-1,COLUMNS($D$23:D62)-1),"") -> 52100 | C48: =IF(OFFSET(DE100_17!$E$23,ROWS($E$23:E62)-1,COLUMNS($E$23:E62)-1)<>"",OFFSET(DE100_17!$E$23,ROWS($E$23:E62)-1,COLUMNS($E$23:E62)-1),"") -> L | D48: =IF(OFFSET(DE100_17!$F$23,ROWS($F$23:F62)-1,COLUMNS($F$23:F62)-1)<>"",OFFSET(DE100_17!$F$23,ROWS($F$23:F62)-1,COLUMNS($F$23:F62)-1),"") -> 220 | E48: =IF(OFFSET(DE100_17!$G$23,ROWS($G$23:G62)-1,COLUMNS($G$23:G62)-1)<>"",OFFSET(DE100_17!$G$23,ROWS($G$23:G62)-1,COLUMNS($G$23:G62)-1),"") -> 
A49: =IF(OFFSET(DE100_17!$C$23,ROWS($C$23:C63)-1,COLUMNS($C$23:C63)-1)<>"",OFFSET(DE100_17!$C$23,ROWS($C$23:C63)-1,COLUMNS($C$23:C63)-1),"") -> 52100 | B49: =IF(OFFSET(DE100_17!$D$23,ROWS($D$23:D63)-1,COLUMNS($D$23:D63)-1)<>"",OFFSET(DE100_17!$D$23,ROWS($D$23:D63)-1,COLUMNS($D$23:D63)-1),"") -> 52300 | C49: =IF(OFFSET(DE100_17!$E$23,ROWS($E$23:E63)-1,COLUMNS($E$23:E63)-1)<>"",OFFSET(DE100_17!$E$23,ROWS($E$23:E63)-1,COLUMNS($E$23:E63)-1),"") -> L | D49: =IF(OFFSET(DE100_17!$F$23,ROWS($F$23:F63)-1,COLUMNS($F$23:F63)-1)<>"",OFFSET(DE100_17!$F$23,ROWS($F$23:F63)-1,COLUMNS($F$23:F63)-1),"") -> 220 | E49: =IF(OFFSET(DE100_17!$G$23,ROWS($G$23:G63)-1,COLUMNS($G$23:G63)-1)<>"",OFFSET(DE100_17!$G$23,ROWS($G$23:G63)-1,COLUMNS($G$23:G63)-1),"") -> 
A50: =IF(OFFSET(DE100_17!$C$23,ROWS($C$23:C64)-1,COLUMNS($C$23:C64)-1)<>"",OFFSET(DE100_17!$C$23,ROWS($C$23:C64)-1,COLUMNS($C$23:C64)-1),"") -> 52300 | B50: =IF(OFFSET(DE100_17!$D$23,ROWS($D$23:D64)-1,COLUMNS($D$23:D64)-1)<>"",OFFSET(DE100_17!$D$23,ROWS($D$23:D64)-1,COLUMNS($D$23:D64)-1),"") -> 52500 | C50: =IF(OFFSET(DE100_17!$E$23,ROWS($E$23:E64)-1,COLUMNS($E$23:E64)-1)<>"",OFFSET(DE100_17!$E$23,ROWS($E$23:E64)-1,COLUMNS($E$23:E64)-1),"") -> L | D50: =IF(OFFSET(DE100_17!$F$23,ROWS($F$23:F64)-1,COLUMNS($F$23:F64)-1)<>"",OFFSET(DE100_17!$F$23,ROWS($F$23:F64)-1,COLUMNS($F$23:F64)-1),"") -> 220 | E50: =IF(OFFSET(DE100_17!$G$23,ROWS($G$23:G64)-1,COLUMNS($G$23:G64)-1)<>"",OFFSET(DE100_17!$G$23,ROWS($G$23:G64)-1,COLUMNS($G$23:G64)-1),"") -> 
A51: =IF(OFFSET(DE100_17!$C$23,ROWS($C$23:C65)-1,COLUMNS($C$23:C65)-1)<>"",OFFSET(DE100_17!$C$23,ROWS($C$23:C65)-1,COLUMNS($C$23:C65)-1),"") -> 52500 | B51: =IF(OFFSET(DE100_17!$D$23,ROWS($D$23:D65)-1,COLUMNS($D$23:D65)-1)<>"",OFFSET(DE100_17!$D$23,ROWS($D$23:D65)-1,COLUMNS($D$23:D65)-1),"") -> 52700 | C51: =IF(OFFSET(DE100_17!$E$23,ROWS($E$23:E65)-1,COLUMNS($E$23:E65)-1)<>"",OFFSET(DE100_17!$E$23,ROWS($E$23:E65)-1,COLUMNS($E$23:E65)-1),"") -> L | D51: =IF(OFFSET(DE100_17!$F$23,ROWS($F$23:F65)-1,COLUMNS($F$23:F65)-1)<>"",OFFSET(DE100_17!$F$23,ROWS($F$23:F65)-1,COLUMNS($F$23:F65)-1),"") -> 220 | E51: =IF(OFFSET(DE100_17!$G$23,ROWS($G$23:G65)-1,COLUMNS($G$23:G65)-1)<>"",OFFSET(DE100_17!$G$23,ROWS($G$23:G65)-1,COLUMNS($G$23:G65)-1),"") -> 
A52: =IF(OFFSET(DE100_17!$C$23,ROWS($C$23:C66)-1,COLUMNS($C$23:C66)-1)<>"",OFFSET(DE100_17!$C$23,ROWS($C$23:C66)-1,COLUMNS($C$23:C66)-1),"") -> 52700 | B52: =IF(OFFSET(DE100_17!$D$23,ROWS($D$23:D66)-1,COLUMNS($D$23:D66)-1)<>"",OFFSET(DE100_17!$D$23,ROWS($D$23:D66)-1,COLUMNS($D$23:D66)-1),"") -> 52900 | C52: =IF(OFFSET(DE100_17!$E$23,ROWS($E$23:E66)-1,COLUMNS($E$23:E66)-1)<>"",OFFSET(DE100_17!$E$23,ROWS($E$23:E66)-1,COLUMNS($E$23:E66)-1),"") -> L | D52: =IF(OFFSET(DE100_17!$F$23,ROWS($F$23:F66)-1,COLUMNS($F$23:F66)-1)<>"",OFFSET(DE100_17!$F$23,ROWS($F$23:F66)-1,COLUMNS($F$23:F66)-1),"") -> 440 | E52: =IF(OFFSET(DE100_17!$G$23,ROWS($G$23:G66)-1,COLUMNS($G$23:G66)-1)<>"",OFFSET(DE100_17!$G$23,ROWS($G$23:G66)-1,COLUMNS($G$23:G66)-1),"") -> x2 Rows
A53: =IF(OFFSET(DE100_17!$C$23,ROWS($C$23:C67)-1,COLUMNS($C$23:C67)-1)<>"",OFFSET(DE100_17!$C$23,ROWS($C$23:C67)-1,COLUMNS($C$23:C67)-1),"") -> 52900 | B53: =IF(OFFSET(DE100_17!$D$23,ROWS($D$23:D67)-1,COLUMNS($D$23:D67)-1)<>"",OFFSET(DE100_17!$D$23,ROWS($D$23:D67)-1,COLUMNS($D$23:D67)-1),"") -> 53100 | C53: =IF(OFFSET(DE100_17!$E$23,ROWS($E$23:E67)-1,COLUMNS($E$23:E67)-1)<>"",OFFSET(DE100_17!$E$23,ROWS($E$23:E67)-1,COLUMNS($E$23:E67)-1),"") -> L | D53: =IF(OFFSET(DE100_17!$F$23,ROWS($F$23:F67)-1,COLUMNS($F$23:F67)-1)<>"",OFFSET(DE100_17!$F$23,ROWS($F$23:F67)-1,COLUMNS($F$23:F67)-1),"") -> 660 | E53: =IF(OFFSET(DE100_17!$G$23,ROWS($G$23:G67)-1,COLUMNS($G$23:G67)-1)<>"",OFFSET(DE100_17!$G$23,ROWS($G$23:G67)-1,COLUMNS($G$23:G67)-1),"") -> x3 Rows
A54: =IF(OFFSET(DE100_17!$C$23,ROWS($C$23:C68)-1,COLUMNS($C$23:C68)-1)<>"",OFFSET(DE100_17!$C$23,ROWS($C$23:C68)-1,COLUMNS($C$23:C68)-1),"") -> 53100 | B54: =IF(OFFSET(DE100_17!$D$23,ROWS($D$23:D68)-1,COLUMNS($D$23:D68)-1)<>"",OFFSET(DE100_17!$D$23,ROWS($D$23:D68)-1,COLUMNS($D$23:D68)-1),"") -> 53300 | C54: =IF(OFFSET(DE100_17!$E$23,ROWS($E$23:E68)-1,COLUMNS($E$23:E68)-1)<>"",OFFSET(DE100_17!$E$23,ROWS($E$23:E68)-1,COLUMNS($E$23:E68)-1),"") -> L | D54: =IF(OFFSET(DE100_17!$F$23,ROWS($F$23:F68)-1,COLUMNS($F$23:F68)-1)<>"",OFFSET(DE100_17!$F$23,ROWS($F$23:F68)-1,COLUMNS($F$23:F68)-1),"") -> 660 | E54: =IF(OFFSET(DE100_17!$G$23,ROWS($G$23:G68)-1,COLUMNS($G$23:G68)-1)<>"",OFFSET(DE100_17!$G$23,ROWS($G$23:G68)-1,COLUMNS($G$23:G68)-1),"") -> x3 Rows
A55: =IF(OFFSET(DE100_17!$C$23,ROWS($C$23:C69)-1,COLUMNS($C$23:C69)-1)<>"",OFFSET(DE100_17!$C$23,ROWS($C$23:C69)-1,COLUMNS($C$23:C69)-1),"") -> 53300 | B55: =IF(OFFSET(DE100_17!$D$23,ROWS($D$23:D69)-1,COLUMNS($D$23:D69)-1)<>"",OFFSET(DE100_17!$D$23,ROWS($D$23:D69)-1,COLUMNS($D$23:D69)-1),"") -> 53450 | C55: =IF(OFFSET(DE100_17!$E$23,ROWS($E$23:E69)-1,COLUMNS($E$23:E69)-1)<>"",OFFSET(DE100_17!$E$23,ROWS($E$23:E69)-1,COLUMNS($E$23:E69)-1),"") -> L | D55: =IF(OFFSET(DE100_17!$F$23,ROWS($F$23:F69)-1,COLUMNS($F$23:F69)-1)<>"",OFFSET(DE100_17!$F$23,ROWS($F$23:F69)-1,COLUMNS($F$23:F69)-1),"") -> 510 | E55: =IF(OFFSET(DE100_17!$G$23,ROWS($G$23:G69)-1,COLUMNS($G$23:G69)-1)<>"",OFFSET(DE100_17!$G$23,ROWS($G$23:G69)-1,COLUMNS($G$23:G69)-1),"") -> x3 Rows
A56: =IF(OFFSET(DE100_17!$C$23,ROWS($C$23:C70)-1,COLUMNS($C$23:C70)-1)<>"",OFFSET(DE100_17!$C$23,ROWS($C$23:C70)-1,COLUMNS($C$23:C70)-1),"") -> 53700 | B56: =IF(OFFSET(DE100_17!$D$23,ROWS($D$23:D70)-1,COLUMNS($D$23:D70)-1)<>"",OFFSET(DE100_17!$D$23,ROWS($D$23:D70)-1,COLUMNS($D$23:D70)-1),"") -> 53900 | C56: =IF(OFFSET(DE100_17!$E$23,ROWS($E$23:E70)-1,COLUMNS($E$23:E70)-1)<>"",OFFSET(DE100_17!$E$23,ROWS($E$23:E70)-1,COLUMNS($E$23:E70)-1),"") -> L | D56: =IF(OFFSET(DE100_17!$F$23,ROWS($F$23:F70)-1,COLUMNS($F$23:F70)-1)<>"",OFFSET(DE100_17!$F$23,ROWS($F$23:F70)-1,COLUMNS($F$23:F70)-1),"") -> 440 | E56: =IF(OFFSET(DE100_17!$G$23,ROWS($G$23:G70)-1,COLUMNS($G$23:G70)-1)<>"",OFFSET(DE100_17!$G$23,ROWS($G$23:G70)-1,COLUMNS($G$23:G70)-1),"") -> x2 Rows
A57: =IF(OFFSET(DE100_17!$C$23,ROWS($C$23:C71)-1,COLUMNS($C$23:C71)-1)<>"",OFFSET(DE100_17!$C$23,ROWS($C$23:C71)-1,COLUMNS($C$23:C71)-1),"") -> 54025 | B57: =IF(OFFSET(DE100_17!$D$23,ROWS($D$23:D71)-1,COLUMNS($D$23:D71)-1)<>"",OFFSET(DE100_17!$D$23,ROWS($D$23:D71)-1,COLUMNS($D$23:D71)-1),"") -> 54225 | C57: =IF(OFFSET(DE100_17!$E$23,ROWS($E$23:E71)-1,COLUMNS($E$23:E71)-1)<>"",OFFSET(DE100_17!$E$23,ROWS($E$23:E71)-1,COLUMNS($E$23:E71)-1),"") -> L | D57: =IF(OFFSET(DE100_17!$F$23,ROWS($F$23:F71)-1,COLUMNS($F$23:F71)-1)<>"",OFFSET(DE100_17!$F$23,ROWS($F$23:F71)-1,COLUMNS($F$23:F71)-1),"") -> 220 | E57: =IF(OFFSET(DE100_17!$G$23,ROWS($G$23:G71)-1,COLUMNS($G$23:G71)-1)<>"",OFFSET(DE100_17!$G$23,ROWS($G$23:G71)-1,COLUMNS($G$23:G71)-1),"") -> 
A58: =IF(OFFSET(DE100_17!$C$23,ROWS($C$23:C72)-1,COLUMNS($C$23:C72)-1)<>"",OFFSET(DE100_17!$C$23,ROWS($C$23:C72)-1,COLUMNS($C$23:C72)-1),"") -> 54225 | B58: =IF(OFFSET(DE100_17!$D$23,ROWS($D$23:D72)-1,COLUMNS($D$23:D72)-1)<>"",OFFSET(DE100_17!$D$23,ROWS($D$23:D72)-1,COLUMNS($D$23:D72)-1),"") -> 54425 | C58: =IF(OFFSET(DE100_17!$E$23,ROWS($E$23:E72)-1,COLUMNS($E$23:E72)-1)<>"",OFFSET(DE100_17!$E$23,ROWS($E$23:E72)-1,COLUMNS($E$23:E72)-1),"") -> L | D58: =IF(OFFSET(DE100_17!$F$23,ROWS($F$23:F72)-1,COLUMNS($F$23:F72)-1)<>"",OFFSET(DE100_17!$F$23,ROWS($F$23:F72)-1,COLUMNS($F$23:F72)-1),"") -> 220 | E58: =IF(OFFSET(DE100_17!$G$23,ROWS($G$23:G72)-1,COLUMNS($G$23:G72)-1)<>"",OFFSET(DE100_17!$G$23,ROWS($G$23:G72)-1,COLUMNS($G$23:G72)-1),"") -> 
A59: =IF(OFFSET(DE100_17!$C$23,ROWS($C$23:C73)-1,COLUMNS($C$23:C73)-1)<>"",OFFSET(DE100_17!$C$23,ROWS($C$23:C73)-1,COLUMNS($C$23:C73)-1),"") -> 54425 | B59: =IF(OFFSET(DE100_17!$D$23,ROWS($D$23:D73)-1,COLUMNS($D$23:D73)-1)<>"",OFFSET(DE100_17!$D$23,ROWS($D$23:D73)-1,COLUMNS($D$23:D73)-1),"") -> 54600 | C59: =IF(OFFSET(DE100_17!$E$23,ROWS($E$23:E73)-1,COLUMNS($E$23:E73)-1)<>"",OFFSET(DE100_17!$E$23,ROWS($E$23:E73)-1,COLUMNS($E$23:E73)-1),"") -> L | D59: =IF(OFFSET(DE100_17!$F$23,ROWS($F$23:F73)-1,COLUMNS($F$23:F73)-1)<>"",OFFSET(DE100_17!$F$23,ROWS($F$23:F73)-1,COLUMNS($F$23:F73)-1),"") -> 195 | E59: =IF(OFFSET(DE100_17!$G$23,ROWS($G$23:G73)-1,COLUMNS($G$23:G73)-1)<>"",OFFSET(DE100_17!$G$23,ROWS($G$23:G73)-1,COLUMNS($G$23:G73)-1),"") -> 
A60: =IF(OFFSET(DE100_17!$C$23,ROWS($C$23:C74)-1,COLUMNS($C$23:C74)-1)<>"",OFFSET(DE100_17!$C$23,ROWS($C$23:C74)-1,COLUMNS($C$23:C74)-1),"") ->  | B60: =IF(OFFSET(DE100_17!$D$23,ROWS($D$23:D74)-1,COLUMNS($D$23:D74)-1)<>"",OFFSET(DE100_17!$D$23,ROWS($D$23:D74)-1,COLUMNS($D$23:D74)-1),"") ->  | C60: =IF(OFFSET(DE100_17!$E$23,ROWS($E$23:E74)-1,COLUMNS($E$23:E74)-1)<>"",OFFSET(DE100_17!$E$23,ROWS($E$23:E74)-1,COLUMNS($E$23:E74)-1),"") ->  | D60: =IF(OFFSET(DE100_17!$F$23,ROWS($F$23:F74)-1,COLUMNS($F$23:F74)-1)<>"",OFFSET(DE100_17!$F$23,ROWS($F$23:F74)-1,COLUMNS($F$23:F74)-1),"") ->  | E60: =IF(OFFSET(DE100_17!$G$23,ROWS($G$23:G74)-1,COLUMNS($G$23:G74)-1)<>"",OFFSET(DE100_17!$G$23,ROWS($G$23:G74)-1,COLUMNS($G$23:G74)-1),"") -> 
A61: =IF(OFFSET(DE100_17!$C$23,ROWS($C$23:C75)-1,COLUMNS($C$23:C75)-1)<>"",OFFSET(DE100_17!$C$23,ROWS($C$23:C75)-1,COLUMNS($C$23:C75)-1),"") -> 44450 | B61: =IF(OFFSET(DE100_17!$D$23,ROWS($D$23:D75)-1,COLUMNS($D$23:D75)-1)<>"",OFFSET(DE100_17!$D$23,ROWS($D$23:D75)-1,COLUMNS($D$23:D75)-1),"") -> 44650 | C61: =IF(OFFSET(DE100_17!$E$23,ROWS($E$23:E75)-1,COLUMNS($E$23:E75)-1)<>"",OFFSET(DE100_17!$E$23,ROWS($E$23:E75)-1,COLUMNS($E$23:E75)-1),"") -> R | D61: =IF(OFFSET(DE100_17!$F$23,ROWS($F$23:F75)-1,COLUMNS($F$23:F75)-1)<>"",OFFSET(DE100_17!$F$23,ROWS($F$23:F75)-1,COLUMNS($F$23:F75)-1),"") -> 220 | E61: =IF(OFFSET(DE100_17!$G$23,ROWS($G$23:G75)-1,COLUMNS($G$23:G75)-1)<>"",OFFSET(DE100_17!$G$23,ROWS($G$23:G75)-1,COLUMNS($G$23:G75)-1),"") -> 
A62: =IF(OFFSET(DE100_17!$C$23,ROWS($C$23:C76)-1,COLUMNS($C$23:C76)-1)<>"",OFFSET(DE100_17!$C$23,ROWS($C$23:C76)-1,COLUMNS($C$23:C76)-1),"") -> 44650 | B62: =IF(OFFSET(DE100_17!$D$23,ROWS($D$23:D76)-1,COLUMNS($D$23:D76)-1)<>"",OFFSET(DE100_17!$D$23,ROWS($D$23:D76)-1,COLUMNS($D$23:D76)-1),"") -> 44850 | C62: =IF(OFFSET(DE100_17!$E$23,ROWS($E$23:E76)-1,COLUMNS($E$23:E76)-1)<>"",OFFSET(DE100_17!$E$23,ROWS($E$23:E76)-1,COLUMNS($E$23:E76)-1),"") -> R | D62: =IF(OFFSET(DE100_17!$F$23,ROWS($F$23:F76)-1,COLUMNS($F$23:F76)-1)<>"",OFFSET(DE100_17!$F$23,ROWS($F$23:F76)-1,COLUMNS($F$23:F76)-1),"") -> 220 | E62: =IF(OFFSET(DE100_17!$G$23,ROWS($G$23:G76)-1,COLUMNS($G$23:G76)-1)<>"",OFFSET(DE100_17!$G$23,ROWS($G$23:G76)-1,COLUMNS($G$23:G76)-1),"") -> 
A63: =IF(OFFSET(DE100_17!$C$23,ROWS($C$23:C77)-1,COLUMNS($C$23:C77)-1)<>"",OFFSET(DE100_17!$C$23,ROWS($C$23:C77)-1,COLUMNS($C$23:C77)-1),"") -> 44850 | B63: =IF(OFFSET(DE100_17!$D$23,ROWS($D$23:D77)-1,COLUMNS($D$23:D77)-1)<>"",OFFSET(DE100_17!$D$23,ROWS($D$23:D77)-1,COLUMNS($D$23:D77)-1),"") -> 45050 | C63: =IF(OFFSET(DE100_17!$E$23,ROWS($E$23:E77)-1,COLUMNS($E$23:E77)-1)<>"",OFFSET(DE100_17!$E$23,ROWS($E$23:E77)-1,COLUMNS($E$23:E77)-1),"") -> R | D63: =IF(OFFSET(DE100_17!$F$23,ROWS($F$23:F77)-1,COLUMNS($F$23:F77)-1)<>"",OFFSET(DE100_17!$F$23,ROWS($F$23:F77)-1,COLUMNS($F$23:F77)-1),"") -> 220 | E63: =IF(OFFSET(DE100_17!$G$23,ROWS($G$23:G77)-1,COLUMNS($G$23:G77)-1)<>"",OFFSET(DE100_17!$G$23,ROWS($G$23:G77)-1,COLUMNS($G$23:G77)-1),"") -> 
A64: =IF(OFFSET(DE100_17!$C$23,ROWS($C$23:C78)-1,COLUMNS($C$23:C78)-1)<>"",OFFSET(DE100_17!$C$23,ROWS($C$23:C78)-1,COLUMNS($C$23:C78)-1),"") -> 45050 | B64: =IF(OFFSET(DE100_17!$D$23,ROWS($D$23:D78)-1,COLUMNS($D$23:D78)-1)<>"",OFFSET(DE100_17!$D$23,ROWS($D$23:D78)-1,COLUMNS($D$23:D78)-1),"") -> 45250 | C64: =IF(OFFSET(DE100_17!$E$23,ROWS($E$23:E78)-1,COLUMNS($E$23:E78)-1)<>"",OFFSET(DE100_17!$E$23,ROWS($E$23:E78)-1,COLUMNS($E$23:E78)-1),"") -> R | D64: =IF(OFFSET(DE100_17!$F$23,ROWS($F$23:F78)-1,COLUMNS($F$23:F78)-1)<>"",OFFSET(DE100_17!$F$23,ROWS($F$23:F78)-1,COLUMNS($F$23:F78)-1),"") -> 220 | E64: =IF(OFFSET(DE100_17!$G$23,ROWS($G$23:G78)-1,COLUMNS($G$23:G78)-1)<>"",OFFSET(DE100_17!$G$23,ROWS($G$23:G78)-1,COLUMNS($G$23:G78)-1),"") -> 
A65: =IF(OFFSET(DE100_17!$C$23,ROWS($C$23:C79)-1,COLUMNS($C$23:C79)-1)<>"",OFFSET(DE100_17!$C$23,ROWS($C$23:C79)-1,COLUMNS($C$23:C79)-1),"") -> 45250 | B65: =IF(OFFSET(DE100_17!$D$23,ROWS($D$23:D79)-1,COLUMNS($D$23:D79)-1)<>"",OFFSET(DE100_17!$D$23,ROWS($D$23:D79)-1,COLUMNS($D$23:D79)-1),"") -> 45450 | C65: =IF(OFFSET(DE100_17!$E$23,ROWS($E$23:E79)-1,COLUMNS($E$23:E79)-1)<>"",OFFSET(DE100_17!$E$23,ROWS($E$23:E79)-1,COLUMNS($E$23:E79)-1),"") -> R | D65: =IF(OFFSET(DE100_17!$F$23,ROWS($F$23:F79)-1,COLUMNS($F$23:F79)-1)<>"",OFFSET(DE100_17!$F$23,ROWS($F$23:F79)-1,COLUMNS($F$23:F79)-1),"") -> 220 | E65: =IF(OFFSET(DE100_17!$G$23,ROWS($G$23:G79)-1,COLUMNS($G$23:G79)-1)<>"",OFFSET(DE100_17!$G$23,ROWS($G$23:G79)-1,COLUMNS($G$23:G79)-1),"") -> 
A66: =IF(OFFSET(DE100_17!$C$23,ROWS($C$23:C80)-1,COLUMNS($C$23:C80)-1)<>"",OFFSET(DE100_17!$C$23,ROWS($C$23:C80)-1,COLUMNS($C$23:C80)-1),"") -> 45450 | B66: =IF(OFFSET(DE100_17!$D$23,ROWS($D$23:D80)-1,COLUMNS($D$23:D80)-1)<>"",OFFSET(DE100_17!$D$23,ROWS($D$23:D80)-1,COLUMNS($D$23:D80)-1),"") -> 45650 | C66: =IF(OFFSET(DE100_17!$E$23,ROWS($E$23:E80)-1,COLUMNS($E$23:E80)-1)<>"",OFFSET(DE100_17!$E$23,ROWS($E$23:E80)-1,COLUMNS($E$23:E80)-1),"") -> R | D66: =IF(OFFSET(DE100_17!$F$23,ROWS($F$23:F80)-1,COLUMNS($F$23:F80)-1)<>"",OFFSET(DE100_17!$F$23,ROWS($F$23:F80)-1,COLUMNS($F$23:F80)-1),"") -> 220 | E66: =IF(OFFSET(DE100_17!$G$23,ROWS($G$23:G80)-1,COLUMNS($G$23:G80)-1)<>"",OFFSET(DE100_17!$G$23,ROWS($G$23:G80)-1,COLUMNS($G$23:G80)-1),"") -> 
A67: =IF(OFFSET(DE100_17!$C$23,ROWS($C$23:C81)-1,COLUMNS($C$23:C81)-1)<>"",OFFSET(DE100_17!$C$23,ROWS($C$23:C81)-1,COLUMNS($C$23:C81)-1),"") -> 45650 | B67: =IF(OFFSET(DE100_17!$D$23,ROWS($D$23:D81)-1,COLUMNS($D$23:D81)-1)<>"",OFFSET(DE100_17!$D$23,ROWS($D$23:D81)-1,COLUMNS($D$23:D81)-1),"") -> 45850 | C67: =IF(OFFSET(DE100_17!$E$23,ROWS($E$23:E81)-1,COLUMNS($E$23:E81)-1)<>"",OFFSET(DE100_17!$E$23,ROWS($E$23:E81)-1,COLUMNS($E$23:E81)-1),"") -> R | D67: =IF(OFFSET(DE100_17!$F$23,ROWS($F$23:F81)-1,COLUMNS($F$23:F81)-1)<>"",OFFSET(DE100_17!$F$23,ROWS($F$23:F81)-1,COLUMNS($F$23:F81)-1),"") -> 220 | E67: =IF(OFFSET(DE100_17!$G$23,ROWS($G$23:G81)-1,COLUMNS($G$23:G81)-1)<>"",OFFSET(DE100_17!$G$23,ROWS($G$23:G81)-1,COLUMNS($G$23:G81)-1),"") -> 
A68: =IF(OFFSET(DE100_17!$C$23,ROWS($C$23:C82)-1,COLUMNS($C$23:C82)-1)<>"",OFFSET(DE100_17!$C$23,ROWS($C$23:C82)-1,COLUMNS($C$23:C82)-1),"") -> 45650 | B68: =IF(OFFSET(DE100_17!$D$23,ROWS($D$23:D82)-1,COLUMNS($D$23:D82)-1)<>"",OFFSET(DE100_17!$D$23,ROWS($D$23:D82)-1,COLUMNS($D$23:D82)-1),"") -> 45850 | C68: =IF(OFFSET(DE100_17!$E$23,ROWS($E$23:E82)-1,COLUMNS($E$23:E82)-1)<>"",OFFSET(DE100_17!$E$23,ROWS($E$23:E82)-1,COLUMNS($E$23:E82)-1),"") -> R | D68: =IF(OFFSET(DE100_17!$F$23,ROWS($F$23:F82)-1,COLUMNS($F$23:F82)-1)<>"",OFFSET(DE100_17!$F$23,ROWS($F$23:F82)-1,COLUMNS($F$23:F82)-1),"") -> 220 | E68: =IF(OFFSET(DE100_17!$G$23,ROWS($G$23:G82)-1,COLUMNS($G$23:G82)-1)<>"",OFFSET(DE100_17!$G$23,ROWS($G$23:G82)-1,COLUMNS($G$23:G82)-1),"") -> BS
A69: =IF(OFFSET(DE100_17!$C$23,ROWS($C$23:C83)-1,COLUMNS($C$23:C83)-1)<>"",OFFSET(DE100_17!$C$23,ROWS($C$23:C83)-1,COLUMNS($C$23:C83)-1),"") -> 45850 | B69: =IF(OFFSET(DE100_17!$D$23,ROWS($D$23:D83)-1,COLUMNS($D$23:D83)-1)<>"",OFFSET(DE100_17!$D$23,ROWS($D$23:D83)-1,COLUMNS($D$23:D83)-1),"") -> 46050 | C69: =IF(OFFSET(DE100_17!$E$23,ROWS($E$23:E83)-1,COLUMNS($E$23:E83)-1)<>"",OFFSET(DE100_17!$E$23,ROWS($E$23:E83)-1,COLUMNS($E$23:E83)-1),"") -> R | D69: =IF(OFFSET(DE100_17!$F$23,ROWS($F$23:F83)-1,COLUMNS($F$23:F83)-1)<>"",OFFSET(DE100_17!$F$23,ROWS($F$23:F83)-1,COLUMNS($F$23:F83)-1),"") -> 220 | E69: =IF(OFFSET(DE100_17!$G$23,ROWS($G$23:G83)-1,COLUMNS($G$23:G83)-1)<>"",OFFSET(DE100_17!$G$23,ROWS($G$23:G83)-1,COLUMNS($G$23:G83)-1),"") -> BS
A70: =IF(OFFSET(DE100_17!$C$23,ROWS($C$23:C84)-1,COLUMNS($C$23:C84)-1)<>"",OFFSET(DE100_17!$C$23,ROWS($C$23:C84)-1,COLUMNS($C$23:C84)-1),"") -> 46050 | B70: =IF(OFFSET(DE100_17!$D$23,ROWS($D$23:D84)-1,COLUMNS($D$23:D84)-1)<>"",OFFSET(DE100_17!$D$23,ROWS($D$23:D84)-1,COLUMNS($D$23:D84)-1),"") -> 46250 | C70: =IF(OFFSET(DE100_17!$E$23,ROWS($E$23:E84)-1,COLUMNS($E$23:E84)-1)<>"",OFFSET(DE100_17!$E$23,ROWS($E$23:E84)-1,COLUMNS($E$23:E84)-1),"") -> R | D70: =IF(OFFSET(DE100_17!$F$23,ROWS($F$23:F84)-1,COLUMNS($F$23:F84)-1)<>"",OFFSET(DE100_17!$F$23,ROWS($F$23:F84)-1,COLUMNS($F$23:F84)-1),"") -> 220 | E70: =IF(OFFSET(DE100_17!$G$23,ROWS($G$23:G84)-1,COLUMNS($G$23:G84)-1)<>"",OFFSET(DE100_17!$G$23,ROWS($G$23:G84)-1,COLUMNS($G$23:G84)-1),"") -> BS
A71: =IF(OFFSET(DE100_17!$C$23,ROWS($C$23:C85)-1,COLUMNS($C$23:C85)-1)<>"",OFFSET(DE100_17!$C$23,ROWS($C$23:C85)-1,COLUMNS($C$23:C85)-1),"") -> 46250 | B71: =IF(OFFSET(DE100_17!$D$23,ROWS($D$23:D85)-1,COLUMNS($D$23:D85)-1)<>"",OFFSET(DE100_17!$D$23,ROWS($D$23:D85)-1,COLUMNS($D$23:D85)-1),"") -> 46300 | C71: =IF(OFFSET(DE100_17!$E$23,ROWS($E$23:E85)-1,COLUMNS($E$23:E85)-1)<>"",OFFSET(DE100_17!$E$23,ROWS($E$23:E85)-1,COLUMNS($E$23:E85)-1),"") -> R | D71: =IF(OFFSET(DE100_17!$F$23,ROWS($F$23:F85)-1,COLUMNS($F$23:F85)-1)<>"",OFFSET(DE100_17!$F$23,ROWS($F$23:F85)-1,COLUMNS($F$23:F85)-1),"") -> 70 | E71: =IF(OFFSET(DE100_17!$G$23,ROWS($G$23:G85)-1,COLUMNS($G$23:G85)-1)<>"",OFFSET(DE100_17!$G$23,ROWS($G$23:G85)-1,COLUMNS($G$23:G85)-1),"") -> BS
A72: =IF(OFFSET(DE100_17!$C$23,ROWS($C$23:C86)-1,COLUMNS($C$23:C86)-1)<>"",OFFSET(DE100_17!$C$23,ROWS($C$23:C86)-1,COLUMNS($C$23:C86)-1),"") -> 45850 | B72: =IF(OFFSET(DE100_17!$D$23,ROWS($D$23:D86)-1,COLUMNS($D$23:D86)-1)<>"",OFFSET(DE100_17!$D$23,ROWS($D$23:D86)-1,COLUMNS($D$23:D86)-1),"") -> 46050 | C72: =IF(OFFSET(DE100_17!$E$23,ROWS($E$23:E86)-1,COLUMNS($E$23:E86)-1)<>"",OFFSET(DE100_17!$E$23,ROWS($E$23:E86)-1,COLUMNS($E$23:E86)-1),"") -> R | D72: =IF(OFFSET(DE100_17!$F$23,ROWS($F$23:F86)-1,COLUMNS($F$23:F86)-1)<>"",OFFSET(DE100_17!$F$23,ROWS($F$23:F86)-1,COLUMNS($F$23:F86)-1),"") -> 220 | E72: =IF(OFFSET(DE100_17!$G$23,ROWS($G$23:G86)-1,COLUMNS($G$23:G86)-1)<>"",OFFSET(DE100_17!$G$23,ROWS($G$23:G86)-1,COLUMNS($G$23:G86)-1),"") -> 
A73: =IF(OFFSET(DE100_17!$C$23,ROWS($C$23:C87)-1,COLUMNS($C$23:C87)-1)<>"",OFFSET(DE100_17!$C$23,ROWS($C$23:C87)-1,COLUMNS($C$23:C87)-1),"") -> 46050 | B73: =IF(OFFSET(DE100_17!$D$23,ROWS($D$23:D87)-1,COLUMNS($D$23:D87)-1)<>"",OFFSET(DE100_17!$D$23,ROWS($D$23:D87)-1,COLUMNS($D$23:D87)-1),"") -> 46250 | C73: =IF(OFFSET(DE100_17!$E$23,ROWS($E$23:E87)-1,COLUMNS($E$23:E87)-1)<>"",OFFSET(DE100_17!$E$23,ROWS($E$23:E87)-1,COLUMNS($E$23:E87)-1),"") -> R | D73: =IF(OFFSET(DE100_17!$F$23,ROWS($F$23:F87)-1,COLUMNS($F$23:F87)-1)<>"",OFFSET(DE100_17!$F$23,ROWS($F$23:F87)-1,COLUMNS($F$23:F87)-1),"") -> 220 | E73: =IF(OFFSET(DE100_17!$G$23,ROWS($G$23:G87)-1,COLUMNS($G$23:G87)-1)<>"",OFFSET(DE100_17!$G$23,ROWS($G$23:G87)-1,COLUMNS($G$23:G87)-1),"") -> 
A74: =IF(OFFSET(DE100_17!$C$23,ROWS($C$23:C88)-1,COLUMNS($C$23:C88)-1)<>"",OFFSET(DE100_17!$C$23,ROWS($C$23:C88)-1,COLUMNS($C$23:C88)-1),"") -> 46250 | B74: =IF(OFFSET(DE100_17!$D$23,ROWS($D$23:D88)-1,COLUMNS($D$23:D88)-1)<>"",OFFSET(DE100_17!$D$23,ROWS($D$23:D88)-1,COLUMNS($D$23:D88)-1),"") -> 46325 | C74: =IF(OFFSET(DE100_17!$E$23,ROWS($E$23:E88)-1,COLUMNS($E$23:E88)-1)<>"",OFFSET(DE100_17!$E$23,ROWS($E$23:E88)-1,COLUMNS($E$23:E88)-1),"") -> R | D74: =IF(OFFSET(DE100_17!$F$23,ROWS($F$23:F88)-1,COLUMNS($F$23:F88)-1)<>"",OFFSET(DE100_17!$F$23,ROWS($F$23:F88)-1,COLUMNS($F$23:F88)-1),"") -> 95 | E74: =IF(OFFSET(DE100_17!$G$23,ROWS($G$23:G88)-1,COLUMNS($G$23:G88)-1)<>"",OFFSET(DE100_17!$G$23,ROWS($G$23:G88)-1,COLUMNS($G$23:G88)-1),"") -> 
A75: =IF(OFFSET(DE100_17!$C$23,ROWS($C$23:C89)-1,COLUMNS($C$23:C89)-1)<>"",OFFSET(DE100_17!$C$23,ROWS($C$23:C89)-1,COLUMNS($C$23:C89)-1),"") -> 46400 | B75: =IF(OFFSET(DE100_17!$D$23,ROWS($D$23:D89)-1,COLUMNS($D$23:D89)-1)<>"",OFFSET(DE100_17!$D$23,ROWS($D$23:D89)-1,COLUMNS($D$23:D89)-1),"") -> 46600 | C75: =IF(OFFSET(DE100_17!$E$23,ROWS($E$23:E89)-1,COLUMNS($E$23:E89)-1)<>"",OFFSET(DE100_17!$E$23,ROWS($E$23:E89)-1,COLUMNS($E$23:E89)-1),"") -> R | D75: =IF(OFFSET(DE100_17!$F$23,ROWS($F$23:F89)-1,COLUMNS($F$23:F89)-1)<>"",OFFSET(DE100_17!$F$23,ROWS($F$23:F89)-1,COLUMNS($F$23:F89)-1),"") -> 220 | E75: =IF(OFFSET(DE100_17!$G$23,ROWS($G$23:G89)-1,COLUMNS($G$23:G89)-1)<>"",OFFSET(DE100_17!$G$23,ROWS($G$23:G89)-1,COLUMNS($G$23:G89)-1),"") -> 
A76: =IF(OFFSET(DE100_17!$C$23,ROWS($C$23:C90)-1,COLUMNS($C$23:C90)-1)<>"",OFFSET(DE100_17!$C$23,ROWS($C$23:C90)-1,COLUMNS($C$23:C90)-1),"") -> 46600 | B76: =IF(OFFSET(DE100_17!$D$23,ROWS($D$23:D90)-1,COLUMNS($D$23:D90)-1)<>"",OFFSET(DE100_17!$D$23,ROWS($D$23:D90)-1,COLUMNS($D$23:D90)-1),"") -> 46800 | C76: =IF(OFFSET(DE100_17!$E$23,ROWS($E$23:E90)-1,COLUMNS($E$23:E90)-1)<>"",OFFSET(DE100_17!$E$23,ROWS($E$23:E90)-1,COLUMNS($E$23:E90)-1),"") -> R | D76: =IF(OFFSET(DE100_17!$F$23,ROWS($F$23:F90)-1,COLUMNS($F$23:F90)-1)<>"",OFFSET(DE100_17!$F$23,ROWS($F$23:F90)-1,COLUMNS($F$23:F90)-1),"") -> 220 | E76: =IF(OFFSET(DE100_17!$G$23,ROWS($G$23:G90)-1,COLUMNS($G$23:G90)-1)<>"",OFFSET(DE100_17!$G$23,ROWS($G$23:G90)-1,COLUMNS($G$23:G90)-1),"") -> 
A77: =IF(OFFSET(DE100_17!$C$23,ROWS($C$23:C91)-1,COLUMNS($C$23:C91)-1)<>"",OFFSET(DE100_17!$C$23,ROWS($C$23:C91)-1,COLUMNS($C$23:C91)-1),"") -> 46800 | B77: =IF(OFFSET(DE100_17!$D$23,ROWS($D$23:D91)-1,COLUMNS($D$23:D91)-1)<>"",OFFSET(DE100_17!$D$23,ROWS($D$23:D91)-1,COLUMNS($D$23:D91)-1),"") -> 47000 | C77: =IF(OFFSET(DE100_17!$E$23,ROWS($E$23:E91)-1,COLUMNS($E$23:E91)-1)<>"",OFFSET(DE100_17!$E$23,ROWS($E$23:E91)-1,COLUMNS($E$23:E91)-1),"") -> R | D77: =IF(OFFSET(DE100_17!$F$23,ROWS($F$23:F91)-1,COLUMNS($F$23:F91)-1)<>"",OFFSET(DE100_17!$F$23,ROWS($F$23:F91)-1,COLUMNS($F$23:F91)-1),"") -> 220 | E77: =IF(OFFSET(DE100_17!$G$23,ROWS($G$23:G91)-1,COLUMNS($G$23:G91)-1)<>"",OFFSET(DE100_17!$G$23,ROWS($G$23:G91)-1,COLUMNS($G$23:G91)-1),"") -> 
A78: =IF(OFFSET(DE100_17!$C$23,ROWS($C$23:C92)-1,COLUMNS($C$23:C92)-1)<>"",OFFSET(DE100_17!$C$23,ROWS($C$23:C92)-1,COLUMNS($C$23:C92)-1),"") -> 47000 | B78: =IF(OFFSET(DE100_17!$D$23,ROWS($D$23:D92)-1,COLUMNS($D$23:D92)-1)<>"",OFFSET(DE100_17!$D$23,ROWS($D$23:D92)-1,COLUMNS($D$23:D92)-1),"") -> 47200 | C78: =IF(OFFSET(DE100_17!$E$23,ROWS($E$23:E92)-1,COLUMNS($E$23:E92)-1)<>"",OFFSET(DE100_17!$E$23,ROWS($E$23:E92)-1,COLUMNS($E$23:E92)-1),"") -> R | D78: =IF(OFFSET(DE100_17!$F$23,ROWS($F$23:F92)-1,COLUMNS($F$23:F92)-1)<>"",OFFSET(DE100_17!$F$23,ROWS($F$23:F92)-1,COLUMNS($F$23:F92)-1),"") -> 220 | E78: =IF(OFFSET(DE100_17!$G$23,ROWS($G$23:G92)-1,COLUMNS($G$23:G92)-1)<>"",OFFSET(DE100_17!$G$23,ROWS($G$23:G92)-1,COLUMNS($G$23:G92)-1),"") -> BS
A79: =IF(OFFSET(DE100_17!$C$23,ROWS($C$23:C93)-1,COLUMNS($C$23:C93)-1)<>"",OFFSET(DE100_17!$C$23,ROWS($C$23:C93)-1,COLUMNS($C$23:C93)-1),"") -> 47200 | B79: =IF(OFFSET(DE100_17!$D$23,ROWS($D$23:D93)-1,COLUMNS($D$23:D93)-1)<>"",OFFSET(DE100_17!$D$23,ROWS($D$23:D93)-1,COLUMNS($D$23:D93)-1),"") -> 47400 | C79: =IF(OFFSET(DE100_17!$E$23,ROWS($E$23:E93)-1,COLUMNS($E$23:E93)-1)<>"",OFFSET(DE100_17!$E$23,ROWS($E$23:E93)-1,COLUMNS($E$23:E93)-1),"") -> R | D79: =IF(OFFSET(DE100_17!$F$23,ROWS($F$23:F93)-1,COLUMNS($F$23:F93)-1)<>"",OFFSET(DE100_17!$F$23,ROWS($F$23:F93)-1,COLUMNS($F$23:F93)-1),"") -> 220 | E79: =IF(OFFSET(DE100_17!$G$23,ROWS($G$23:G93)-1,COLUMNS($G$23:G93)-1)<>"",OFFSET(DE100_17!$G$23,ROWS($G$23:G93)-1,COLUMNS($G$23:G93)-1),"") -> BS
A80: =IF(OFFSET(DE100_17!$C$23,ROWS($C$23:C94)-1,COLUMNS($C$23:C94)-1)<>"",OFFSET(DE100_17!$C$23,ROWS($C$23:C94)-1,COLUMNS($C$23:C94)-1),"") -> 47400 | B80: =IF(OFFSET(DE100_17!$D$23,ROWS($D$23:D94)-1,COLUMNS($D$23:D94)-1)<>"",OFFSET(DE100_17!$D$23,ROWS($D$23:D94)-1,COLUMNS($D$23:D94)-1),"") -> 47600 | C80: =IF(OFFSET(DE100_17!$E$23,ROWS($E$23:E94)-1,COLUMNS($E$23:E94)-1)<>"",OFFSET(DE100_17!$E$23,ROWS($E$23:E94)-1,COLUMNS($E$23:E94)-1),"") -> R | D80: =IF(OFFSET(DE100_17!$F$23,ROWS($F$23:F94)-1,COLUMNS($F$23:F94)-1)<>"",OFFSET(DE100_17!$F$23,ROWS($F$23:F94)-1,COLUMNS($F$23:F94)-1),"") -> 220 | E80: =IF(OFFSET(DE100_17!$G$23,ROWS($G$23:G94)-1,COLUMNS($G$23:G94)-1)<>"",OFFSET(DE100_17!$G$23,ROWS($G$23:G94)-1,COLUMNS($G$23:G94)-1),"") -> BS
A81: =IF(OFFSET(DE100_17!$C$23,ROWS($C$23:C95)-1,COLUMNS($C$23:C95)-1)<>"",OFFSET(DE100_17!$C$23,ROWS($C$23:C95)-1,COLUMNS($C$23:C95)-1),"") -> 47600 | B81: =IF(OFFSET(DE100_17!$D$23,ROWS($D$23:D95)-1,COLUMNS($D$23:D95)-1)<>"",OFFSET(DE100_17!$D$23,ROWS($D$23:D95)-1,COLUMNS($D$23:D95)-1),"") -> 47800 | C81: =IF(OFFSET(DE100_17!$E$23,ROWS($E$23:E95)-1,COLUMNS($E$23:E95)-1)<>"",OFFSET(DE100_17!$E$23,ROWS($E$23:E95)-1,COLUMNS($E$23:E95)-1),"") -> R | D81: =IF(OFFSET(DE100_17!$F$23,ROWS($F$23:F95)-1,COLUMNS($F$23:F95)-1)<>"",OFFSET(DE100_17!$F$23,ROWS($F$23:F95)-1,COLUMNS($F$23:F95)-1),"") -> 220 | E81: =IF(OFFSET(DE100_17!$G$23,ROWS($G$23:G95)-1,COLUMNS($G$23:G95)-1)<>"",OFFSET(DE100_17!$G$23,ROWS($G$23:G95)-1,COLUMNS($G$23:G95)-1),"") -> BS
A82: =IF(OFFSET(DE100_17!$C$23,ROWS($C$23:C96)-1,COLUMNS($C$23:C96)-1)<>"",OFFSET(DE100_17!$C$23,ROWS($C$23:C96)-1,COLUMNS($C$23:C96)-1),"") -> 47800 | B82: =IF(OFFSET(DE100_17!$D$23,ROWS($D$23:D96)-1,COLUMNS($D$23:D96)-1)<>"",OFFSET(DE100_17!$D$23,ROWS($D$23:D96)-1,COLUMNS($D$23:D96)-1),"") -> 48000 | C82: =IF(OFFSET(DE100_17!$E$23,ROWS($E$23:E96)-1,COLUMNS($E$23:E96)-1)<>"",OFFSET(DE100_17!$E$23,ROWS($E$23:E96)-1,COLUMNS($E$23:E96)-1),"") -> R | D82: =IF(OFFSET(DE100_17!$F$23,ROWS($F$23:F96)-1,COLUMNS($F$23:F96)-1)<>"",OFFSET(DE100_17!$F$23,ROWS($F$23:F96)-1,COLUMNS($F$23:F96)-1),"") -> 220 | E82: =IF(OFFSET(DE100_17!$G$23,ROWS($G$23:G96)-1,COLUMNS($G$23:G96)-1)<>"",OFFSET(DE100_17!$G$23,ROWS($G$23:G96)-1,COLUMNS($G$23:G96)-1),"") -> BS
A83: =IF(OFFSET(DE100_17!$C$23,ROWS($C$23:C97)-1,COLUMNS($C$23:C97)-1)<>"",OFFSET(DE100_17!$C$23,ROWS($C$23:C97)-1,COLUMNS($C$23:C97)-1),"") -> 48000 | B83: =IF(OFFSET(DE100_17!$D$23,ROWS($D$23:D97)-1,COLUMNS($D$23:D97)-1)<>"",OFFSET(DE100_17!$D$23,ROWS($D$23:D97)-1,COLUMNS($D$23:D97)-1),"") -> 48200 | C83: =IF(OFFSET(DE100_17!$E$23,ROWS($E$23:E97)-1,COLUMNS($E$23:E97)-1)<>"",OFFSET(DE100_17!$E$23,ROWS($E$23:E97)-1,COLUMNS($E$23:E97)-1),"") -> R | D83: =IF(OFFSET(DE100_17!$F$23,ROWS($F$23:F97)-1,COLUMNS($F$23:F97)-1)<>"",OFFSET(DE100_17!$F$23,ROWS($F$23:F97)-1,COLUMNS($F$23:F97)-1),"") -> 220 | E83: =IF(OFFSET(DE100_17!$G$23,ROWS($G$23:G97)-1,COLUMNS($G$23:G97)-1)<>"",OFFSET(DE100_17!$G$23,ROWS($G$23:G97)-1,COLUMNS($G$23:G97)-1),"") -> BS
A84: =IF(OFFSET(DE100_17!$C$23,ROWS($C$23:C98)-1,COLUMNS($C$23:C98)-1)<>"",OFFSET(DE100_17!$C$23,ROWS($C$23:C98)-1,COLUMNS($C$23:C98)-1),"") -> 48200 | B84: =IF(OFFSET(DE100_17!$D$23,ROWS($D$23:D98)-1,COLUMNS($D$23:D98)-1)<>"",OFFSET(DE100_17!$D$23,ROWS($D$23:D98)-1,COLUMNS($D$23:D98)-1),"") -> 48400 | C84: =IF(OFFSET(DE100_17!$E$23,ROWS($E$23:E98)-1,COLUMNS($E$23:E98)-1)<>"",OFFSET(DE100_17!$E$23,ROWS($E$23:E98)-1,COLUMNS($E$23:E98)-1),"") -> R | D84: =IF(OFFSET(DE100_17!$F$23,ROWS($F$23:F98)-1,COLUMNS($F$23:F98)-1)<>"",OFFSET(DE100_17!$F$23,ROWS($F$23:F98)-1,COLUMNS($F$23:F98)-1),"") -> 220 | E84: =IF(OFFSET(DE100_17!$G$23,ROWS($G$23:G98)-1,COLUMNS($G$23:G98)-1)<>"",OFFSET(DE100_17!$G$23,ROWS($G$23:G98)-1,COLUMNS($G$23:G98)-1),"") -> BS
A85: =IF(OFFSET(DE100_17!$C$23,ROWS($C$23:C99)-1,COLUMNS($C$23:C99)-1)<>"",OFFSET(DE100_17!$C$23,ROWS($C$23:C99)-1,COLUMNS($C$23:C99)-1),"") -> 48400 | B85: =IF(OFFSET(DE100_17!$D$23,ROWS($D$23:D99)-1,COLUMNS($D$23:D99)-1)<>"",OFFSET(DE100_17!$D$23,ROWS($D$23:D99)-1,COLUMNS($D$23:D99)-1),"") -> 48600 | C85: =IF(OFFSET(DE100_17!$E$23,ROWS($E$23:E99)-1,COLUMNS($E$23:E99)-1)<>"",OFFSET(DE100_17!$E$23,ROWS($E$23:E99)-1,COLUMNS($E$23:E99)-1),"") -> R | D85: =IF(OFFSET(DE100_17!$F$23,ROWS($F$23:F99)-1,COLUMNS($F$23:F99)-1)<>"",OFFSET(DE100_17!$F$23,ROWS($F$23:F99)-1,COLUMNS($F$23:F99)-1),"") -> 220 | E85: =IF(OFFSET(DE100_17!$G$23,ROWS($G$23:G99)-1,COLUMNS($G$23:G99)-1)<>"",OFFSET(DE100_17!$G$23,ROWS($G$23:G99)-1,COLUMNS($G$23:G99)-1),"") -> BS
A86: =IF(OFFSET(DE100_17!$C$23,ROWS($C$23:C100)-1,COLUMNS($C$23:C100)-1)<>"",OFFSET(DE100_17!$C$23,ROWS($C$23:C100)-1,COLUMNS($C$23:C100)-1),"") -> 48600 | B86: =IF(OFFSET(DE100_17!$D$23,ROWS($D$23:D100)-1,COLUMNS($D$23:D100)-1)<>"",OFFSET(DE100_17!$D$23,ROWS($D$23:D100)-1,COLUMNS($D$23:D100)-1),"") -> 48800 | C86: =IF(OFFSET(DE100_17!$E$23,ROWS($E$23:E100)-1,COLUMNS($E$23:E100)-1)<>"",OFFSET(DE100_17!$E$23,ROWS($E$23:E100)-1,COLUMNS($E$23:E100)-1),"") -> R | D86: =IF(OFFSET(DE100_17!$F$23,ROWS($F$23:F100)-1,COLUMNS($F$23:F100)-1)<>"",OFFSET(DE100_17!$F$23,ROWS($F$23:F100)-1,COLUMNS($F$23:F100)-1),"") -> 220 | E86: =IF(OFFSET(DE100_17!$G$23,ROWS($G$23:G100)-1,COLUMNS($G$23:G100)-1)<>"",OFFSET(DE100_17!$G$23,ROWS($G$23:G100)-1,COLUMNS($G$23:G100)-1),"") -> BS
A87: =IF(OFFSET(DE100_17!$C$23,ROWS($C$23:C101)-1,COLUMNS($C$23:C101)-1)<>"",OFFSET(DE100_17!$C$23,ROWS($C$23:C101)-1,COLUMNS($C$23:C101)-1),"") -> 48800 | B87: =IF(OFFSET(DE100_17!$D$23,ROWS($D$23:D101)-1,COLUMNS($D$23:D101)-1)<>"",OFFSET(DE100_17!$D$23,ROWS($D$23:D101)-1,COLUMNS($D$23:D101)-1),"") -> 49000 | C87: =IF(OFFSET(DE100_17!$E$23,ROWS($E$23:E101)-1,COLUMNS($E$23:E101)-1)<>"",OFFSET(DE100_17!$E$23,ROWS($E$23:E101)-1,COLUMNS($E$23:E101)-1),"") -> R | D87: =IF(OFFSET(DE100_17!$F$23,ROWS($F$23:F101)-1,COLUMNS($F$23:F101)-1)<>"",OFFSET(DE100_17!$F$23,ROWS($F$23:F101)-1,COLUMNS($F$23:F101)-1),"") -> 220 | E87: =IF(OFFSET(DE100_17!$G$23,ROWS($G$23:G101)-1,COLUMNS($G$23:G101)-1)<>"",OFFSET(DE100_17!$G$23,ROWS($G$23:G101)-1,COLUMNS($G$23:G101)-1),"") -> BS
A88: =IF(OFFSET(DE100_17!$C$23,ROWS($C$23:C102)-1,COLUMNS($C$23:C102)-1)<>"",OFFSET(DE100_17!$C$23,ROWS($C$23:C102)-1,COLUMNS($C$23:C102)-1),"") -> 47000 | B88: =IF(OFFSET(DE100_17!$D$23,ROWS($D$23:D102)-1,COLUMNS($D$23:D102)-1)<>"",OFFSET(DE100_17!$D$23,ROWS($D$23:D102)-1,COLUMNS($D$23:D102)-1),"") -> 47200 | C88: =IF(OFFSET(DE100_17!$E$23,ROWS($E$23:E102)-1,COLUMNS($E$23:E102)-1)<>"",OFFSET(DE100_17!$E$23,ROWS($E$23:E102)-1,COLUMNS($E$23:E102)-1),"") -> R | D88: =IF(OFFSET(DE100_17!$F$23,ROWS($F$23:F102)-1,COLUMNS($F$23:F102)-1)<>"",OFFSET(DE100_17!$F$23,ROWS($F$23:F102)-1,COLUMNS($F$23:F102)-1),"") -> 220 | E88: =IF(OFFSET(DE100_17!$G$23,ROWS($G$23:G102)-1,COLUMNS($G$23:G102)-1)<>"",OFFSET(DE100_17!$G$23,ROWS($G$23:G102)-1,COLUMNS($G$23:G102)-1),"") -> 
A89: =IF(OFFSET(DE100_17!$C$23,ROWS($C$23:C103)-1,COLUMNS($C$23:C103)-1)<>"",OFFSET(DE100_17!$C$23,ROWS($C$23:C103)-1,COLUMNS($C$23:C103)-1),"") -> 47200 | B89: =IF(OFFSET(DE100_17!$D$23,ROWS($D$23:D103)-1,COLUMNS($D$23:D103)-1)<>"",OFFSET(DE100_17!$D$23,ROWS($D$23:D103)-1,COLUMNS($D$23:D103)-1),"") -> 47400 | C89: =IF(OFFSET(DE100_17!$E$23,ROWS($E$23:E103)-1,COLUMNS($E$23:E103)-1)<>"",OFFSET(DE100_17!$E$23,ROWS($E$23:E103)-1,COLUMNS($E$23:E103)-1),"") -> R | D89: =IF(OFFSET(DE100_17!$F$23,ROWS($F$23:F103)-1,COLUMNS($F$23:F103)-1)<>"",OFFSET(DE100_17!$F$23,ROWS($F$23:F103)-1,COLUMNS($F$23:F103)-1),"") -> 220 | E89: =IF(OFFSET(DE100_17!$G$23,ROWS($G$23:G103)-1,COLUMNS($G$23:G103)-1)<>"",OFFSET(DE100_17!$G$23,ROWS($G$23:G103)-1,COLUMNS($G$23:G103)-1),"") -> 
A90: =IF(OFFSET(DE100_17!$C$23,ROWS($C$23:C104)-1,COLUMNS($C$23:C104)-1)<>"",OFFSET(DE100_17!$C$23,ROWS($C$23:C104)-1,COLUMNS($C$23:C104)-1),"") -> 47400 | B90: =IF(OFFSET(DE100_17!$D$23,ROWS($D$23:D104)-1,COLUMNS($D$23:D104)-1)<>"",OFFSET(DE100_17!$D$23,ROWS($D$23:D104)-1,COLUMNS($D$23:D104)-1),"") -> 47600 | C90: =IF(OFFSET(DE100_17!$E$23,ROWS($E$23:E104)-1,COLUMNS($E$23:E104)-1)<>"",OFFSET(DE100_17!$E$23,ROWS($E$23:E104)-1,COLUMNS($E$23:E104)-1),"") -> R | D90: =IF(OFFSET(DE100_17!$F$23,ROWS($F$23:F104)-1,COLUMNS($F$23:F104)-1)<>"",OFFSET(DE100_17!$F$23,ROWS($F$23:F104)-1,COLUMNS($F$23:F104)-1),"") -> 220 | E90: =IF(OFFSET(DE100_17!$G$23,ROWS($G$23:G104)-1,COLUMNS($G$23:G104)-1)<>"",OFFSET(DE100_17!$G$23,ROWS($G$23:G104)-1,COLUMNS($G$23:G104)-1),"") -> 
A91: 100-17
A92: 2010-04-20
A93: TABULATION OF SILT FENCES
A95: Refer to EC-201
A96: Location | D96: Length | E96: Remarks
A97: Begin Station | B97: End Station | C97: Side
D98: LF
A99: =IF(OFFSET(DE100_17!$C$105,ROWS($C$105:C105)-1,COLUMNS($C$105:C105)-1)<>"",OFFSET(DE100_17!$C$105,ROWS($C$105:C105)-1,COLUMNS($C$105:C105)-1),"") -> 47600 | B99: =IF(OFFSET(DE100_17!$D$105,ROWS($D$105:D105)-1,COLUMNS($D$105:D105)-1)<>"",OFFSET(DE100_17!$D$105,ROWS($D$105:D105)-1,COLUMNS($D$105:D105)-1),"") -> 47800 | C99: =IF(OFFSET(DE100_17!$E$105,ROWS($E$105:E105)-1,COLUMNS($E$105:E105)-1)<>"",OFFSET(DE100_17!$E$105,ROWS($E$105:E105)-1,COLUMNS($E$105:E105)-1),"") -> R | D99: =IF(OFFSET(DE100_17!$F$105,ROWS($F$105:F105)-1,COLUMNS($F$105:F105)-1)<>"",OFFSET(DE100_17!$F$105,ROWS($F$105:F105)-1,COLUMNS($F$105:F105)-1),"") -> 220 | E99: =IF(OFFSET(DE100_17!$G$105,ROWS($G$105:G105)-1,COLUMNS($G$105:G105)-1)<>"",OFFSET(DE100_17!$G$105,ROWS($G$105:G105)-1,COLUMNS($G$105:G105)-1),"") -> 
A100: =IF(OFFSET(DE100_17!$C$105,ROWS($C$105:C106)-1,COLUMNS($C$105:C106)-1)<>"",OFFSET(DE100_17!$C$105,ROWS($C$105:C106)-1,COLUMNS($C$105:C106)-1),"") -> 47800 | B100: =IF(OFFSET(DE100_17!$D$105,ROWS($D$105:D106)-1,COLUMNS($D$105:D106)-1)<>"",OFFSET(DE100_17!$D$105,ROWS($D$105:D106)-1,COLUMNS($D$105:D106)-1),"") -> 48000 | C100: =IF(OFFSET(DE100_17!$E$105,ROWS($E$105:E106)-1,COLUMNS($E$105:E106)-1)<>"",OFFSET(DE100_17!$E$105,ROWS($E$105:E106)-1,COLUMNS($E$105:E106)-1),"") -> R | D100: =IF(OFFSET(DE100_17!$F$105,ROWS($F$105:F106)-1,COLUMNS($F$105:F106)-1)<>"",OFFSET(DE100_17!$F$105,ROWS($F$105:F106)-1,COLUMNS($F$105:F106)-1),"") -> 220 | E100: =IF(OFFSET(DE100_17!$G$105,ROWS($G$105:G106)-1,COLUMNS($G$105:G106)-1)<>"",OFFSET(DE100_17!$G$105,ROWS($G$105:G106)-1,COLUMNS($G$105:G106)-1),"") -> 
A101: =IF(OFFSET(DE100_17!$C$105,ROWS($C$105:C107)-1,COLUMNS($C$105:C107)-1)<>"",OFFSET(DE100_17!$C$105,ROWS($C$105:C107)-1,COLUMNS($C$105:C107)-1),"") -> 48000 | B101: =IF(OFFSET(DE100_17!$D$105,ROWS($D$105:D107)-1,COLUMNS($D$105:D107)-1)<>"",OFFSET(DE100_17!$D$105,ROWS($D$105:D107)-1,COLUMNS($D$105:D107)-1),"") -> 48200 | C101: =IF(OFFSET(DE100_17!$E$105,ROWS($E$105:E107)-1,COLUMNS($E$105:E107)-1)<>"",OFFSET(DE100_17!$E$105,ROWS($E$105:E107)-1,COLUMNS($E$105:E107)-1),"") -> R | D101: =IF(OFFSET(DE100_17!$F$105,ROWS($F$105:F107)-1,COLUMNS($F$105:F107)-1)<>"",OFFSET(DE100_17!$F$105,ROWS($F$105:F107)-1,COLUMNS($F$105:F107)-1),"") -> 220 | E101: =IF(OFFSET(DE100_17!$G$105,ROWS($G$105:G107)-1,COLUMNS($G$105:G107)-1)<>"",OFFSET(DE100_17!$G$105,ROWS($G$105:G107)-1,COLUMNS($G$105:G107)-1),"") -> 
A102: =IF(OFFSET(DE100_17!$C$105,ROWS($C$105:C108)-1,COLUMNS($C$105:C108)-1)<>"",OFFSET(DE100_17!$C$105,ROWS($C$105:C108)-1,COLUMNS($C$105:C108)-1),"") -> 48200 | B102: =IF(OFFSET(DE100_17!$D$105,ROWS($D$105:D108)-1,COLUMNS($D$105:D108)-1)<>"",OFFSET(DE100_17!$D$105,ROWS($D$105:D108)-1,COLUMNS($D$105:D108)-1),"") -> 48400 | C102: =IF(OFFSET(DE100_17!$E$105,ROWS($E$105:E108)-1,COLUMNS($E$105:E108)-1)<>"",OFFSET(DE100_17!$E$105,ROWS($E$105:E108)-1,COLUMNS($E$105:E108)-1),"") -> R | D102: =IF(OFFSET(DE100_17!$F$105,ROWS($F$105:F108)-1,COLUMNS($F$105:F108)-1)<>"",OFFSET(DE100_17!$F$105,ROWS($F$105:F108)-1,COLUMNS($F$105:F108)-1),"") -> 220 | E102: =IF(OFFSET(DE100_17!$G$105,ROWS($G$105:G108)-1,COLUMNS($G$105:G108)-1)<>"",OFFSET(DE100_17!$G$105,ROWS($G$105:G108)-1,COLUMNS($G$105:G108)-1),"") -> 
A103: =IF(OFFSET(DE100_17!$C$105,ROWS($C$105:C109)-1,COLUMNS($C$105:C109)-1)<>"",OFFSET(DE100_17!$C$105,ROWS($C$105:C109)-1,COLUMNS($C$105:C109)-1),"") -> 48400 | B103: =IF(OFFSET(DE100_17!$D$105,ROWS($D$105:D109)-1,COLUMNS($D$105:D109)-1)<>"",OFFSET(DE100_17!$D$105,ROWS($D$105:D109)-1,COLUMNS($D$105:D109)-1),"") -> 48600 | C103: =IF(OFFSET(DE100_17!$E$105,ROWS($E$105:E109)-1,COLUMNS($E$105:E109)-1)<>"",OFFSET(DE100_17!$E$105,ROWS($E$105:E109)-1,COLUMNS($E$105:E109)-1),"") -> R | D103: =IF(OFFSET(DE100_17!$F$105,ROWS($F$105:F109)-1,COLUMNS($F$105:F109)-1)<>"",OFFSET(DE100_17!$F$105,ROWS($F$105:F109)-1,COLUMNS($F$105:F109)-1),"") -> 220 | E103: =IF(OFFSET(DE100_17!$G$105,ROWS($G$105:G109)-1,COLUMNS($G$105:G109)-1)<>"",OFFSET(DE100_17!$G$105,ROWS($G$105:G109)-1,COLUMNS($G$105:G109)-1),"") -> 
A104: =IF(OFFSET(DE100_17!$C$105,ROWS($C$105:C110)-1,COLUMNS($C$105:C110)-1)<>"",OFFSET(DE100_17!$C$105,ROWS($C$105:C110)-1,COLUMNS($C$105:C110)-1),"") -> 48600 | B104: =IF(OFFSET(DE100_17!$D$105,ROWS($D$105:D110)-1,COLUMNS($D$105:D110)-1)<>"",OFFSET(DE100_17!$D$105,ROWS($D$105:D110)-1,COLUMNS($D$105:D110)-1),"") -> 48800 | C104: =IF(OFFSET(DE100_17!$E$105,ROWS($E$105:E110)-1,COLUMNS($E$105:E110)-1)<>"",OFFSET(DE100_17!$E$105,ROWS($E$105:E110)-1,COLUMNS($E$105:E110)-1),"") -> R | D104: =IF(OFFSET(DE100_17!$F$105,ROWS($F$105:F110)-1,COLUMNS($F$105:F110)-1)<>"",OFFSET(DE100_17!$F$105,ROWS($F$105:F110)-1,COLUMNS($F$105:F110)-1),"") -> 220 | E104: =IF(OFFSET(DE100_17!$G$105,ROWS($G$105:G110)-1,COLUMNS($G$105:G110)-1)<>"",OFFSET(DE100_17!$G$105,ROWS($G$105:G110)-1,COLUMNS($G$105:G110)-1),"") -> 
A105: =IF(OFFSET(DE100_17!$C$105,ROWS($C$105:C111)-1,COLUMNS($C$105:C111)-1)<>"",OFFSET(DE100_17!$C$105,ROWS($C$105:C111)-1,COLUMNS($C$105:C111)-1),"") -> 48800 | B105: =IF(OFFSET(DE100_17!$D$105,ROWS($D$105:D111)-1,COLUMNS($D$105:D111)-1)<>"",OFFSET(DE100_17!$D$105,ROWS($D$105:D111)-1,COLUMNS($D$105:D111)-1),"") -> 49000 | C105: =IF(OFFSET(DE100_17!$E$105,ROWS($E$105:E111)-1,COLUMNS($E$105:E111)-1)<>"",OFFSET(DE100_17!$E$105,ROWS($E$105:E111)-1,COLUMNS($E$105:E111)-1),"") -> R | D105: =IF(OFFSET(DE100_17!$F$105,ROWS($F$105:F111)-1,COLUMNS($F$105:F111)-1)<>"",OFFSET(DE100_17!$F$105,ROWS($F$105:F111)-1,COLUMNS($F$105:F111)-1),"") -> 220 | E105: =IF(OFFSET(DE100_17!$G$105,ROWS($G$105:G111)-1,COLUMNS($G$105:G111)-1)<>"",OFFSET(DE100_17!$G$105,ROWS($G$105:G111)-1,COLUMNS($G$105:G111)-1),"") -> 
A106: =IF(OFFSET(DE100_17!$C$105,ROWS($C$105:C112)-1,COLUMNS($C$105:C112)-1)<>"",OFFSET(DE100_17!$C$105,ROWS($C$105:C112)-1,COLUMNS($C$105:C112)-1),"") -> 49000 | B106: =IF(OFFSET(DE100_17!$D$105,ROWS($D$105:D112)-1,COLUMNS($D$105:D112)-1)<>"",OFFSET(DE100_17!$D$105,ROWS($D$105:D112)-1,COLUMNS($D$105:D112)-1),"") -> 49200 | C106: =IF(OFFSET(DE100_17!$E$105,ROWS($E$105:E112)-1,COLUMNS($E$105:E112)-1)<>"",OFFSET(DE100_17!$E$105,ROWS($E$105:E112)-1,COLUMNS($E$105:E112)-1),"") -> R | D106: =IF(OFFSET(DE100_17!$F$105,ROWS($F$105:F112)-1,COLUMNS($F$105:F112)-1)<>"",OFFSET(DE100_17!$F$105,ROWS($F$105:F112)-1,COLUMNS($F$105:F112)-1),"") -> 220 | E106: =IF(OFFSET(DE100_17!$G$105,ROWS($G$105:G112)-1,COLUMNS($G$105:G112)-1)<>"",OFFSET(DE100_17!$G$105,ROWS($G$105:G112)-1,COLUMNS($G$105:G112)-1),"") -> 
A107: =IF(OFFSET(DE100_17!$C$105,ROWS($C$105:C113)-1,COLUMNS($C$105:C113)-1)<>"",OFFSET(DE100_17!$C$105,ROWS($C$105:C113)-1,COLUMNS($C$105:C113)-1),"") -> 49200 | B107: =IF(OFFSET(DE100_17!$D$105,ROWS($D$105:D113)-1,COLUMNS($D$105:D113)-1)<>"",OFFSET(DE100_17!$D$105,ROWS($D$105:D113)-1,COLUMNS($D$105:D113)-1),"") -> 49400 | C107: =IF(OFFSET(DE100_17!$E$105,ROWS($E$105:E113)-1,COLUMNS($E$105:E113)-1)<>"",OFFSET(DE100_17!$E$105,ROWS($E$105:E113)-1,COLUMNS($E$105:E113)-1),"") -> R | D107: =IF(OFFSET(DE100_17!$F$105,ROWS($F$105:F113)-1,COLUMNS($F$105:F113)-1)<>"",OFFSET(DE100_17!$F$105,ROWS($F$105:F113)-1,COLUMNS($F$105:F113)-1),"") -> 220 | E107: =IF(OFFSET(DE100_17!$G$105,ROWS($G$105:G113)-1,COLUMNS($G$105:G113)-1)<>"",OFFSET(DE100_17!$G$105,ROWS($G$105:G113)-1,COLUMNS($G$105:G113)-1),"") -> 
A108: =IF(OFFSET(DE100_17!$C$105,ROWS($C$105:C114)-1,COLUMNS($C$105:C114)-1)<>"",OFFSET(DE100_17!$C$105,ROWS($C$105:C114)-1,COLUMNS($C$105:C114)-1),"") -> 49400 | B108: =IF(OFFSET(DE100_17!$D$105,ROWS($D$105:D114)-1,COLUMNS($D$105:D114)-1)<>"",OFFSET(DE100_17!$D$105,ROWS($D$105:D114)-1,COLUMNS($D$105:D114)-1),"") -> 49450 | C108: =IF(OFFSET(DE100_17!$E$105,ROWS($E$105:E114)-1,COLUMNS($E$105:E114)-1)<>"",OFFSET(DE100_17!$E$105,ROWS($E$105:E114)-1,COLUMNS($E$105:E114)-1),"") -> R | D108: =IF(OFFSET(DE100_17!$F$105,ROWS($F$105:F114)-1,COLUMNS($F$105:F114)-1)<>"",OFFSET(DE100_17!$F$105,ROWS($F$105:F114)-1,COLUMNS($F$105:F114)-1),"") -> 70 | E108: =IF(OFFSET(DE100_17!$G$105,ROWS($G$105:G114)-1,COLUMNS($G$105:G114)-1)<>"",OFFSET(DE100_17!$G$105,ROWS($G$105:G114)-1,COLUMNS($G$105:G114)-1),"") -> 
A109: =IF(OFFSET(DE100_17!$C$105,ROWS($C$105:C115)-1,COLUMNS($C$105:C115)-1)<>"",OFFSET(DE100_17!$C$105,ROWS($C$105:C115)-1,COLUMNS($C$105:C115)-1),"") -> 49450 | B109: =IF(OFFSET(DE100_17!$D$105,ROWS($D$105:D115)-1,COLUMNS($D$105:D115)-1)<>"",OFFSET(DE100_17!$D$105,ROWS($D$105:D115)-1,COLUMNS($D$105:D115)-1),"") -> 49700 | C109: =IF(OFFSET(DE100_17!$E$105,ROWS($E$105:E115)-1,COLUMNS($E$105:E115)-1)<>"",OFFSET(DE100_17!$E$105,ROWS($E$105:E115)-1,COLUMNS($E$105:E115)-1),"") -> R | D109: =IF(OFFSET(DE100_17!$F$105,ROWS($F$105:F115)-1,COLUMNS($F$105:F115)-1)<>"",OFFSET(DE100_17!$F$105,ROWS($F$105:F115)-1,COLUMNS($F$105:F115)-1),"") -> 270 | E109: =IF(OFFSET(DE100_17!$G$105,ROWS($G$105:G115)-1,COLUMNS($G$105:G115)-1)<>"",OFFSET(DE100_17!$G$105,ROWS($G$105:G115)-1,COLUMNS($G$105:G115)-1),"") -> 
A110: =IF(OFFSET(DE100_17!$C$105,ROWS($C$105:C116)-1,COLUMNS($C$105:C116)-1)<>"",OFFSET(DE100_17!$C$105,ROWS($C$105:C116)-1,COLUMNS($C$105:C116)-1),"") -> 49700 | B110: =IF(OFFSET(DE100_17!$D$105,ROWS($D$105:D116)-1,COLUMNS($D$105:D116)-1)<>"",OFFSET(DE100_17!$D$105,ROWS($D$105:D116)-1,COLUMNS($D$105:D116)-1),"") -> 49900 | C110: =IF(OFFSET(DE100_17!$E$105,ROWS($E$105:E116)-1,COLUMNS($E$105:E116)-1)<>"",OFFSET(DE100_17!$E$105,ROWS($E$105:E116)-1,COLUMNS($E$105:E116)-1),"") -> R | D110: =IF(OFFSET(DE100_17!$F$105,ROWS($F$105:F116)-1,COLUMNS($F$105:F116)-1)<>"",OFFSET(DE100_17!$F$105,ROWS($F$105:F116)-1,COLUMNS($F$105:F116)-1),"") -> 220 | E110: =IF(OFFSET(DE100_17!$G$105,ROWS($G$105:G116)-1,COLUMNS($G$105:G116)-1)<>"",OFFSET(DE100_17!$G$105,ROWS($G$105:G116)-1,COLUMNS($G$105:G116)-1),"") -> 
A111: =IF(OFFSET(DE100_17!$C$105,ROWS($C$105:C117)-1,COLUMNS($C$105:C117)-1)<>"",OFFSET(DE100_17!$C$105,ROWS($C$105:C117)-1,COLUMNS($C$105:C117)-1),"") -> 49500 | B111: =IF(OFFSET(DE100_17!$D$105,ROWS($D$105:D117)-1,COLUMNS($D$105:D117)-1)<>"",OFFSET(DE100_17!$D$105,ROWS($D$105:D117)-1,COLUMNS($D$105:D117)-1),"") -> 49700 | C111: =IF(OFFSET(DE100_17!$E$105,ROWS($E$105:E117)-1,COLUMNS($E$105:E117)-1)<>"",OFFSET(DE100_17!$E$105,ROWS($E$105:E117)-1,COLUMNS($E$105:E117)-1),"") -> R | D111: =IF(OFFSET(DE100_17!$F$105,ROWS($F$105:F117)-1,COLUMNS($F$105:F117)-1)<>"",OFFSET(DE100_17!$F$105,ROWS($F$105:F117)-1,COLUMNS($F$105:F117)-1),"") -> 220 | E111: =IF(OFFSET(DE100_17!$G$105,ROWS($G$105:G117)-1,COLUMNS($G$105:G117)-1)<>"",OFFSET(DE100_17!$G$105,ROWS($G$105:G117)-1,COLUMNS($G$105:G117)-1),"") -> BS
A112: =IF(OFFSET(DE100_17!$C$105,ROWS($C$105:C118)-1,COLUMNS($C$105:C118)-1)<>"",OFFSET(DE100_17!$C$105,ROWS($C$105:C118)-1,COLUMNS($C$105:C118)-1),"") -> 49700 | B112: =IF(OFFSET(DE100_17!$D$105,ROWS($D$105:D118)-1,COLUMNS($D$105:D118)-1)<>"",OFFSET(DE100_17!$D$105,ROWS($D$105:D118)-1,COLUMNS($D$105:D118)-1),"") -> 49900 | C112: =IF(OFFSET(DE100_17!$E$105,ROWS($E$105:E118)-1,COLUMNS($E$105:E118)-1)<>"",OFFSET(DE100_17!$E$105,ROWS($E$105:E118)-1,COLUMNS($E$105:E118)-1),"") -> R | D112: =IF(OFFSET(DE100_17!$F$105,ROWS($F$105:F118)-1,COLUMNS($F$105:F118)-1)<>"",OFFSET(DE100_17!$F$105,ROWS($F$105:F118)-1,COLUMNS($F$105:F118)-1),"") -> 220 | E112: =IF(OFFSET(DE100_17!$G$105,ROWS($G$105:G118)-1,COLUMNS($G$105:G118)-1)<>"",OFFSET(DE100_17!$G$105,ROWS($G$105:G118)-1,COLUMNS($G$105:G118)-1),"") -> BS
A113: =IF(OFFSET(DE100_17!$C$105,ROWS($C$105:C119)-1,COLUMNS($C$105:C119)-1)<>"",OFFSET(DE100_17!$C$105,ROWS($C$105:C119)-1,COLUMNS($C$105:C119)-1),"") -> 49900 | B113: =IF(OFFSET(DE100_17!$D$105,ROWS($D$105:D119)-1,COLUMNS($D$105:D119)-1)<>"",OFFSET(DE100_17!$D$105,ROWS($D$105:D119)-1,COLUMNS($D$105:D119)-1),"") -> 50000 | C113: =IF(OFFSET(DE100_17!$E$105,ROWS($E$105:E119)-1,COLUMNS($E$105:E119)-1)<>"",OFFSET(DE100_17!$E$105,ROWS($E$105:E119)-1,COLUMNS($E$105:E119)-1),"") -> R | D113: =IF(OFFSET(DE100_17!$F$105,ROWS($F$105:F119)-1,COLUMNS($F$105:F119)-1)<>"",OFFSET(DE100_17!$F$105,ROWS($F$105:F119)-1,COLUMNS($F$105:F119)-1),"") -> 120 | E113: =IF(OFFSET(DE100_17!$G$105,ROWS($G$105:G119)-1,COLUMNS($G$105:G119)-1)<>"",OFFSET(DE100_17!$G$105,ROWS($G$105:G119)-1,COLUMNS($G$105:G119)-1),"") -> BS
A114: =IF(OFFSET(DE100_17!$C$105,ROWS($C$105:C120)-1,COLUMNS($C$105:C120)-1)<>"",OFFSET(DE100_17!$C$105,ROWS($C$105:C120)-1,COLUMNS($C$105:C120)-1),"") -> 49500 | B114: =IF(OFFSET(DE100_17!$D$105,ROWS($D$105:D120)-1,COLUMNS($D$105:D120)-1)<>"",OFFSET(DE100_17!$D$105,ROWS($D$105:D120)-1,COLUMNS($D$105:D120)-1),"") -> 49700 | C114: =IF(OFFSET(DE100_17!$E$105,ROWS($E$105:E120)-1,COLUMNS($E$105:E120)-1)<>"",OFFSET(DE100_17!$E$105,ROWS($E$105:E120)-1,COLUMNS($E$105:E120)-1),"") -> R | D114: =IF(OFFSET(DE100_17!$F$105,ROWS($F$105:F120)-1,COLUMNS($F$105:F120)-1)<>"",OFFSET(DE100_17!$F$105,ROWS($F$105:F120)-1,COLUMNS($F$105:F120)-1),"") -> 220 | E114: =IF(OFFSET(DE100_17!$G$105,ROWS($G$105:G120)-1,COLUMNS($G$105:G120)-1)<>"",OFFSET(DE100_17!$G$105,ROWS($G$105:G120)-1,COLUMNS($G$105:G120)-1),"") -> 
A115: =IF(OFFSET(DE100_17!$C$105,ROWS($C$105:C121)-1,COLUMNS($C$105:C121)-1)<>"",OFFSET(DE100_17!$C$105,ROWS($C$105:C121)-1,COLUMNS($C$105:C121)-1),"") -> 49700 | B115: =IF(OFFSET(DE100_17!$D$105,ROWS($D$105:D121)-1,COLUMNS($D$105:D121)-1)<>"",OFFSET(DE100_17!$D$105,ROWS($D$105:D121)-1,COLUMNS($D$105:D121)-1),"") -> 49900 | C115: =IF(OFFSET(DE100_17!$E$105,ROWS($E$105:E121)-1,COLUMNS($E$105:E121)-1)<>"",OFFSET(DE100_17!$E$105,ROWS($E$105:E121)-1,COLUMNS($E$105:E121)-1),"") -> R | D115: =IF(OFFSET(DE100_17!$F$105,ROWS($F$105:F121)-1,COLUMNS($F$105:F121)-1)<>"",OFFSET(DE100_17!$F$105,ROWS($F$105:F121)-1,COLUMNS($F$105:F121)-1),"") -> 220 | E115: =IF(OFFSET(DE100_17!$G$105,ROWS($G$105:G121)-1,COLUMNS($G$105:G121)-1)<>"",OFFSET(DE100_17!$G$105,ROWS($G$105:G121)-1,COLUMNS($G$105:G121)-1),"") -> 
A116: =IF(OFFSET(DE100_17!$C$105,ROWS($C$105:C122)-1,COLUMNS($C$105:C122)-1)<>"",OFFSET(DE100_17!$C$105,ROWS($C$105:C122)-1,COLUMNS($C$105:C122)-1),"") -> 49900 | B116: =IF(OFFSET(DE100_17!$D$105,ROWS($D$105:D122)-1,COLUMNS($D$105:D122)-1)<>"",OFFSET(DE100_17!$D$105,ROWS($D$105:D122)-1,COLUMNS($D$105:D122)-1),"") -> 50100 | C116: =IF(OFFSET(DE100_17!$E$105,ROWS($E$105:E122)-1,COLUMNS($E$105:E122)-1)<>"",OFFSET(DE100_17!$E$105,ROWS($E$105:E122)-1,COLUMNS($E$105:E122)-1),"") -> R | D116: =IF(OFFSET(DE100_17!$F$105,ROWS($F$105:F122)-1,COLUMNS($F$105:F122)-1)<>"",OFFSET(DE100_17!$F$105,ROWS($F$105:F122)-1,COLUMNS($F$105:F122)-1),"") -> 220 | E116: =IF(OFFSET(DE100_17!$G$105,ROWS($G$105:G122)-1,COLUMNS($G$105:G122)-1)<>"",OFFSET(DE100_17!$G$105,ROWS($G$105:G122)-1,COLUMNS($G$105:G122)-1),"") -> 
A117: =IF(OFFSET(DE100_17!$C$105,ROWS($C$105:C123)-1,COLUMNS($C$105:C123)-1)<>"",OFFSET(DE100_17!$C$105,ROWS($C$105:C123)-1,COLUMNS($C$105:C123)-1),"") -> 50100 | B117: =IF(OFFSET(DE100_17!$D$105,ROWS($D$105:D123)-1,COLUMNS($D$105:D123)-1)<>"",OFFSET(DE100_17!$D$105,ROWS($D$105:D123)-1,COLUMNS($D$105:D123)-1),"") -> 50300 | C117: =IF(OFFSET(DE100_17!$E$105,ROWS($E$105:E123)-1,COLUMNS($E$105:E123)-1)<>"",OFFSET(DE100_17!$E$105,ROWS($E$105:E123)-1,COLUMNS($E$105:E123)-1),"") -> R | D117: =IF(OFFSET(DE100_17!$F$105,ROWS($F$105:F123)-1,COLUMNS($F$105:F123)-1)<>"",OFFSET(DE100_17!$F$105,ROWS($F$105:F123)-1,COLUMNS($F$105:F123)-1),"") -> 220 | E117: =IF(OFFSET(DE100_17!$G$105,ROWS($G$105:G123)-1,COLUMNS($G$105:G123)-1)<>"",OFFSET(DE100_17!$G$105,ROWS($G$105:G123)-1,COLUMNS($G$105:G123)-1),"") -> 
A118: =IF(OFFSET(DE100_17!$C$105,ROWS($C$105:C124)-1,COLUMNS($C$105:C124)-1)<>"",OFFSET(DE100_17!$C$105,ROWS($C$105:C124)-1,COLUMNS($C$105:C124)-1),"") -> 50100 | B118: =IF(OFFSET(DE100_17!$D$105,ROWS($D$105:D124)-1,COLUMNS($D$105:D124)-1)<>"",OFFSET(DE100_17!$D$105,ROWS($D$105:D124)-1,COLUMNS($D$105:D124)-1),"") -> 50300 | C118: =IF(OFFSET(DE100_17!$E$105,ROWS($E$105:E124)-1,COLUMNS($E$105:E124)-1)<>"",OFFSET(DE100_17!$E$105,ROWS($E$105:E124)-1,COLUMNS($E$105:E124)-1),"") -> R | D118: =IF(OFFSET(DE100_17!$F$105,ROWS($F$105:F124)-1,COLUMNS($F$105:F124)-1)<>"",OFFSET(DE100_17!$F$105,ROWS($F$105:F124)-1,COLUMNS($F$105:F124)-1),"") -> 220 | E118: =IF(OFFSET(DE100_17!$G$105,ROWS($G$105:G124)-1,COLUMNS($G$105:G124)-1)<>"",OFFSET(DE100_17!$G$105,ROWS($G$105:G124)-1,COLUMNS($G$105:G124)-1),"") -> BS
A119: =IF(OFFSET(DE100_17!$C$105,ROWS($C$105:C125)-1,COLUMNS($C$105:C125)-1)<>"",OFFSET(DE100_17!$C$105,ROWS($C$105:C125)-1,COLUMNS($C$105:C125)-1),"") -> 50300 | B119: =IF(OFFSET(DE100_17!$D$105,ROWS($D$105:D125)-1,COLUMNS($D$105:D125)-1)<>"",OFFSET(DE100_17!$D$105,ROWS($D$105:D125)-1,COLUMNS($D$105:D125)-1),"") -> 50500 | C119: =IF(OFFSET(DE100_17!$E$105,ROWS($E$105:E125)-1,COLUMNS($E$105:E125)-1)<>"",OFFSET(DE100_17!$E$105,ROWS($E$105:E125)-1,COLUMNS($E$105:E125)-1),"") -> R | D119: =IF(OFFSET(DE100_17!$F$105,ROWS($F$105:F125)-1,COLUMNS($F$105:F125)-1)<>"",OFFSET(DE100_17!$F$105,ROWS($F$105:F125)-1,COLUMNS($F$105:F125)-1),"") -> 220 | E119: =IF(OFFSET(DE100_17!$G$105,ROWS($G$105:G125)-1,COLUMNS($G$105:G125)-1)<>"",OFFSET(DE100_17!$G$105,ROWS($G$105:G125)-1,COLUMNS($G$105:G125)-1),"") -> BS
A120: =IF(OFFSET(DE100_17!$C$105,ROWS($C$105:C126)-1,COLUMNS($C$105:C126)-1)<>"",OFFSET(DE100_17!$C$105,ROWS($C$105:C126)-1,COLUMNS($C$105:C126)-1),"") -> 50500 | B120: =IF(OFFSET(DE100_17!$D$105,ROWS($D$105:D126)-1,COLUMNS($D$105:D126)-1)<>"",OFFSET(DE100_17!$D$105,ROWS($D$105:D126)-1,COLUMNS($D$105:D126)-1),"") -> 50700 | C120: =IF(OFFSET(DE100_17!$E$105,ROWS($E$105:E126)-1,COLUMNS($E$105:E126)-1)<>"",OFFSET(DE100_17!$E$105,ROWS($E$105:E126)-1,COLUMNS($E$105:E126)-1),"") -> R | D120: =IF(OFFSET(DE100_17!$F$105,ROWS($F$105:F126)-1,COLUMNS($F$105:F126)-1)<>"",OFFSET(DE100_17!$F$105,ROWS($F$105:F126)-1,COLUMNS($F$105:F126)-1),"") -> 220 | E120: =IF(OFFSET(DE100_17!$G$105,ROWS($G$105:G126)-1,COLUMNS($G$105:G126)-1)<>"",OFFSET(DE100_17!$G$105,ROWS($G$105:G126)-1,COLUMNS($G$105:G126)-1),"") -> BS
A121: =IF(OFFSET(DE100_17!$C$105,ROWS($C$105:C127)-1,COLUMNS($C$105:C127)-1)<>"",OFFSET(DE100_17!$C$105,ROWS($C$105:C127)-1,COLUMNS($C$105:C127)-1),"") -> 50700 | B121: =IF(OFFSET(DE100_17!$D$105,ROWS($D$105:D127)-1,COLUMNS($D$105:D127)-1)<>"",OFFSET(DE100_17!$D$105,ROWS($D$105:D127)-1,COLUMNS($D$105:D127)-1),"") -> 50900 | C121: =IF(OFFSET(DE100_17!$E$105,ROWS($E$105:E127)-1,COLUMNS($E$105:E127)-1)<>"",OFFSET(DE100_17!$E$105,ROWS($E$105:E127)-1,COLUMNS($E$105:E127)-1),"") -> R | D121: =IF(OFFSET(DE100_17!$F$105,ROWS($F$105:F127)-1,COLUMNS($F$105:F127)-1)<>"",OFFSET(DE100_17!$F$105,ROWS($F$105:F127)-1,COLUMNS($F$105:F127)-1),"") -> 220 | E121: =IF(OFFSET(DE100_17!$G$105,ROWS($G$105:G127)-1,COLUMNS($G$105:G127)-1)<>"",OFFSET(DE100_17!$G$105,ROWS($G$105:G127)-1,COLUMNS($G$105:G127)-1),"") -> BS
A122: =IF(OFFSET(DE100_17!$C$105,ROWS($C$105:C128)-1,COLUMNS($C$105:C128)-1)<>"",OFFSET(DE100_17!$C$105,ROWS($C$105:C128)-1,COLUMNS($C$105:C128)-1),"") -> 50900 | B122: =IF(OFFSET(DE100_17!$D$105,ROWS($D$105:D128)-1,COLUMNS($D$105:D128)-1)<>"",OFFSET(DE100_17!$D$105,ROWS($D$105:D128)-1,COLUMNS($D$105:D128)-1),"") -> 51100 | C122: =IF(OFFSET(DE100_17!$E$105,ROWS($E$105:E128)-1,COLUMNS($E$105:E128)-1)<>"",OFFSET(DE100_17!$E$105,ROWS($E$105:E128)-1,COLUMNS($E$105:E128)-1),"") -> R | D122: =IF(OFFSET(DE100_17!$F$105,ROWS($F$105:F128)-1,COLUMNS($F$105:F128)-1)<>"",OFFSET(DE100_17!$F$105,ROWS($F$105:F128)-1,COLUMNS($F$105:F128)-1),"") -> 220 | E122: =IF(OFFSET(DE100_17!$G$105,ROWS($G$105:G128)-1,COLUMNS($G$105:G128)-1)<>"",OFFSET(DE100_17!$G$105,ROWS($G$105:G128)-1,COLUMNS($G$105:G128)-1),"") -> BS
A123: =IF(OFFSET(DE100_17!$C$105,ROWS($C$105:C129)-1,COLUMNS($C$105:C129)-1)<>"",OFFSET(DE100_17!$C$105,ROWS($C$105:C129)-1,COLUMNS($C$105:C129)-1),"") -> 51100 | B123: =IF(OFFSET(DE100_17!$D$105,ROWS($D$105:D129)-1,COLUMNS($D$105:D129)-1)<>"",OFFSET(DE100_17!$D$105,ROWS($D$105:D129)-1,COLUMNS($D$105:D129)-1),"") -> 51300 | C123: =IF(OFFSET(DE100_17!$E$105,ROWS($E$105:E129)-1,COLUMNS($E$105:E129)-1)<>"",OFFSET(DE100_17!$E$105,ROWS($E$105:E129)-1,COLUMNS($E$105:E129)-1),"") -> R | D123: =IF(OFFSET(DE100_17!$F$105,ROWS($F$105:F129)-1,COLUMNS($F$105:F129)-1)<>"",OFFSET(DE100_17!$F$105,ROWS($F$105:F129)-1,COLUMNS($F$105:F129)-1),"") -> 220 | E123: =IF(OFFSET(DE100_17!$G$105,ROWS($G$105:G129)-1,COLUMNS($G$105:G129)-1)<>"",OFFSET(DE100_17!$G$105,ROWS($G$105:G129)-1,COLUMNS($G$105:G129)-1),"") -> BS
A124: =IF(OFFSET(DE100_17!$C$105,ROWS($C$105:C130)-1,COLUMNS($C$105:C130)-1)<>"",OFFSET(DE100_17!$C$105,ROWS($C$105:C130)-1,COLUMNS($C$105:C130)-1),"") -> 51300 | B124: =IF(OFFSET(DE100_17!$D$105,ROWS($D$105:D130)-1,COLUMNS($D$105:D130)-1)<>"",OFFSET(DE100_17!$D$105,ROWS($D$105:D130)-1,COLUMNS($D$105:D130)-1),"") -> 51500 | C124: =IF(OFFSET(DE100_17!$E$105,ROWS($E$105:E130)-1,COLUMNS($E$105:E130)-1)<>"",OFFSET(DE100_17!$E$105,ROWS($E$105:E130)-1,COLUMNS($E$105:E130)-1),"") -> R | D124: =IF(OFFSET(DE100_17!$F$105,ROWS($F$105:F130)-1,COLUMNS($F$105:F130)-1)<>"",OFFSET(DE100_17!$F$105,ROWS($F$105:F130)-1,COLUMNS($F$105:F130)-1),"") -> 220 | E124: =IF(OFFSET(DE100_17!$G$105,ROWS($G$105:G130)-1,COLUMNS($G$105:G130)-1)<>"",OFFSET(DE100_17!$G$105,ROWS($G$105:G130)-1,COLUMNS($G$105:G130)-1),"") -> BS
A125: =IF(OFFSET(DE100_17!$C$105,ROWS($C$105:C131)-1,COLUMNS($C$105:C131)-1)<>"",OFFSET(DE100_17!$C$105,ROWS($C$105:C131)-1,COLUMNS($C$105:C131)-1),"") -> 51500 | B125: =IF(OFFSET(DE100_17!$D$105,ROWS($D$105:D131)-1,COLUMNS($D$105:D131)-1)<>"",OFFSET(DE100_17!$D$105,ROWS($D$105:D131)-1,COLUMNS($D$105:D131)-1),"") -> 51700 | C125: =IF(OFFSET(DE100_17!$E$105,ROWS($E$105:E131)-1,COLUMNS($E$105:E131)-1)<>"",OFFSET(DE100_17!$E$105,ROWS($E$105:E131)-1,COLUMNS($E$105:E131)-1),"") -> R | D125: =IF(OFFSET(DE100_17!$F$105,ROWS($F$105:F131)-1,COLUMNS($F$105:F131)-1)<>"",OFFSET(DE100_17!$F$105,ROWS($F$105:F131)-1,COLUMNS($F$105:F131)-1),"") -> 220 | E125: =IF(OFFSET(DE100_17!$G$105,ROWS($G$105:G131)-1,COLUMNS($G$105:G131)-1)<>"",OFFSET(DE100_17!$G$105,ROWS($G$105:G131)-1,COLUMNS($G$105:G131)-1),"") -> BS
A126: =IF(OFFSET(DE100_17!$C$105,ROWS($C$105:C132)-1,COLUMNS($C$105:C132)-1)<>"",OFFSET(DE100_17!$C$105,ROWS($C$105:C132)-1,COLUMNS($C$105:C132)-1),"") -> 51700 | B126: =IF(OFFSET(DE100_17!$D$105,ROWS($D$105:D132)-1,COLUMNS($D$105:D132)-1)<>"",OFFSET(DE100_17!$D$105,ROWS($D$105:D132)-1,COLUMNS($D$105:D132)-1),"") -> 51900 | C126: =IF(OFFSET(DE100_17!$E$105,ROWS($E$105:E132)-1,COLUMNS($E$105:E132)-1)<>"",OFFSET(DE100_17!$E$105,ROWS($E$105:E132)-1,COLUMNS($E$105:E132)-1),"") -> R | D126: =IF(OFFSET(DE100_17!$F$105,ROWS($F$105:F132)-1,COLUMNS($F$105:F132)-1)<>"",OFFSET(DE100_17!$F$105,ROWS($F$105:F132)-1,COLUMNS($F$105:F132)-1),"") -> 220 | E126: =IF(OFFSET(DE100_17!$G$105,ROWS($G$105:G132)-1,COLUMNS($G$105:G132)-1)<>"",OFFSET(DE100_17!$G$105,ROWS($G$105:G132)-1,COLUMNS($G$105:G132)-1),"") -> BS
A127: =IF(OFFSET(DE100_17!$C$105,ROWS($C$105:C133)-1,COLUMNS($C$105:C133)-1)<>"",OFFSET(DE100_17!$C$105,ROWS($C$105:C133)-1,COLUMNS($C$105:C133)-1),"") -> 51900 | B127: =IF(OFFSET(DE100_17!$D$105,ROWS($D$105:D133)-1,COLUMNS($D$105:D133)-1)<>"",OFFSET(DE100_17!$D$105,ROWS($D$105:D133)-1,COLUMNS($D$105:D133)-1),"") -> 52100 | C127: =IF(OFFSET(DE100_17!$E$105,ROWS($E$105:E133)-1,COLUMNS($E$105:E133)-1)<>"",OFFSET(DE100_17!$E$105,ROWS($E$105:E133)-1,COLUMNS($E$105:E133)-1),"") -> R | D127: =IF(OFFSET(DE100_17!$F$105,ROWS($F$105:F133)-1,COLUMNS($F$105:F133)-1)<>"",OFFSET(DE100_17!$F$105,ROWS($F$105:F133)-1,COLUMNS($F$105:F133)-1),"") -> 220 | E127: =IF(OFFSET(DE100_17!$G$105,ROWS($G$105:G133)-1,COLUMNS($G$105:G133)-1)<>"",OFFSET(DE100_17!$G$105,ROWS($G$105:G133)-1,COLUMNS($G$105:G133)-1),"") -> BS
A128: =IF(OFFSET(DE100_17!$C$105,ROWS($C$105:C134)-1,COLUMNS($C$105:C134)-1)<>"",OFFSET(DE100_17!$C$105,ROWS($C$105:C134)-1,COLUMNS($C$105:C134)-1),"") -> 52100 | B128: =IF(OFFSET(DE100_17!$D$105,ROWS($D$105:D134)-1,COLUMNS($D$105:D134)-1)<>"",OFFSET(DE100_17!$D$105,ROWS($D$105:D134)-1,COLUMNS($D$105:D134)-1),"") -> 52200 | C128: =IF(OFFSET(DE100_17!$E$105,ROWS($E$105:E134)-1,COLUMNS($E$105:E134)-1)<>"",OFFSET(DE100_17!$E$105,ROWS($E$105:E134)-1,COLUMNS($E$105:E134)-1),"") -> R | D128: =IF(OFFSET(DE100_17!$F$105,ROWS($F$105:F134)-1,COLUMNS($F$105:F134)-1)<>"",OFFSET(DE100_17!$F$105,ROWS($F$105:F134)-1,COLUMNS($F$105:F134)-1),"") -> 120 | E128: =IF(OFFSET(DE100_17!$G$105,ROWS($G$105:G134)-1,COLUMNS($G$105:G134)-1)<>"",OFFSET(DE100_17!$G$105,ROWS($G$105:G134)-1,COLUMNS($G$105:G134)-1),"") -> BS
A129: =IF(OFFSET(DE100_17!$C$105,ROWS($C$105:C135)-1,COLUMNS($C$105:C135)-1)<>"",OFFSET(DE100_17!$C$105,ROWS($C$105:C135)-1,COLUMNS($C$105:C135)-1),"") -> 50300 | B129: =IF(OFFSET(DE100_17!$D$105,ROWS($D$105:D135)-1,COLUMNS($D$105:D135)-1)<>"",OFFSET(DE100_17!$D$105,ROWS($D$105:D135)-1,COLUMNS($D$105:D135)-1),"") -> 50500 | C129: =IF(OFFSET(DE100_17!$E$105,ROWS($E$105:E135)-1,COLUMNS($E$105:E135)-1)<>"",OFFSET(DE100_17!$E$105,ROWS($E$105:E135)-1,COLUMNS($E$105:E135)-1),"") -> R | D129: =IF(OFFSET(DE100_17!$F$105,ROWS($F$105:F135)-1,COLUMNS($F$105:F135)-1)<>"",OFFSET(DE100_17!$F$105,ROWS($F$105:F135)-1,COLUMNS($F$105:F135)-1),"") -> 220 | E129: =IF(OFFSET(DE100_17!$G$105,ROWS($G$105:G135)-1,COLUMNS($G$105:G135)-1)<>"",OFFSET(DE100_17!$G$105,ROWS($G$105:G135)-1,COLUMNS($G$105:G135)-1),"") -> 
A130: =IF(OFFSET(DE100_17!$C$105,ROWS($C$105:C136)-1,COLUMNS($C$105:C136)-1)<>"",OFFSET(DE100_17!$C$105,ROWS($C$105:C136)-1,COLUMNS($C$105:C136)-1),"") -> 50500 | B130: =IF(OFFSET(DE100_17!$D$105,ROWS($D$105:D136)-1,COLUMNS($D$105:D136)-1)<>"",OFFSET(DE100_17!$D$105,ROWS($D$105:D136)-1,COLUMNS($D$105:D136)-1),"") -> 50700 | C130: =IF(OFFSET(DE100_17!$E$105,ROWS($E$105:E136)-1,COLUMNS($E$105:E136)-1)<>"",OFFSET(DE100_17!$E$105,ROWS($E$105:E136)-1,COLUMNS($E$105:E136)-1),"") -> R | D130: =IF(OFFSET(DE100_17!$F$105,ROWS($F$105:F136)-1,COLUMNS($F$105:F136)-1)<>"",OFFSET(DE100_17!$F$105,ROWS($F$105:F136)-1,COLUMNS($F$105:F136)-1),"") -> 220 | E130: =IF(OFFSET(DE100_17!$G$105,ROWS($G$105:G136)-1,COLUMNS($G$105:G136)-1)<>"",OFFSET(DE100_17!$G$105,ROWS($G$105:G136)-1,COLUMNS($G$105:G136)-1),"") -> 
A131: =IF(OFFSET(DE100_17!$C$105,ROWS($C$105:C137)-1,COLUMNS($C$105:C137)-1)<>"",OFFSET(DE100_17!$C$105,ROWS($C$105:C137)-1,COLUMNS($C$105:C137)-1),"") -> 50700 | B131: =IF(OFFSET(DE100_17!$D$105,ROWS($D$105:D137)-1,COLUMNS($D$105:D137)-1)<>"",OFFSET(DE100_17!$D$105,ROWS($D$105:D137)-1,COLUMNS($D$105:D137)-1),"") -> 50900 | C131: =IF(OFFSET(DE100_17!$E$105,ROWS($E$105:E137)-1,COLUMNS($E$105:E137)-1)<>"",OFFSET(DE100_17!$E$105,ROWS($E$105:E137)-1,COLUMNS($E$105:E137)-1),"") -> R | D131: =IF(OFFSET(DE100_17!$F$105,ROWS($F$105:F137)-1,COLUMNS($F$105:F137)-1)<>"",OFFSET(DE100_17!$F$105,ROWS($F$105:F137)-1,COLUMNS($F$105:F137)-1),"") -> 220 | E131: =IF(OFFSET(DE100_17!$G$105,ROWS($G$105:G137)-1,COLUMNS($G$105:G137)-1)<>"",OFFSET(DE100_17!$G$105,ROWS($G$105:G137)-1,COLUMNS($G$105:G137)-1),"") -> 
A132: =IF(OFFSET(DE100_17!$C$105,ROWS($C$105:C138)-1,COLUMNS($C$105:C138)-1)<>"",OFFSET(DE100_17!$C$105,ROWS($C$105:C138)-1,COLUMNS($C$105:C138)-1),"") -> 50900 | B132: =IF(OFFSET(DE100_17!$D$105,ROWS($D$105:D138)-1,COLUMNS($D$105:D138)-1)<>"",OFFSET(DE100_17!$D$105,ROWS($D$105:D138)-1,COLUMNS($D$105:D138)-1),"") -> 51100 | C132: =IF(OFFSET(DE100_17!$E$105,ROWS($E$105:E138)-1,COLUMNS($E$105:E138)-1)<>"",OFFSET(DE100_17!$E$105,ROWS($E$105:E138)-1,COLUMNS($E$105:E138)-1),"") -> R | D132: =IF(OFFSET(DE100_17!$F$105,ROWS($F$105:F138)-1,COLUMNS($F$105:F138)-1)<>"",OFFSET(DE100_17!$F$105,ROWS($F$105:F138)-1,COLUMNS($F$105:F138)-1),"") -> 220 | E132: =IF(OFFSET(DE100_17!$G$105,ROWS($G$105:G138)-1,COLUMNS($G$105:G138)-1)<>"",OFFSET(DE100_17!$G$105,ROWS($G$105:G138)-1,COLUMNS($G$105:G138)-1),"") -> 
A133: =IF(OFFSET(DE100_17!$C$105,ROWS($C$105:C139)-1,COLUMNS($C$105:C139)-1)<>"",OFFSET(DE100_17!$C$105,ROWS($C$105:C139)-1,COLUMNS($C$105:C139)-1),"") -> 51100 | B133: =IF(OFFSET(DE100_17!$D$105,ROWS($D$105:D139)-1,COLUMNS($D$105:D139)-1)<>"",OFFSET(DE100_17!$D$105,ROWS($D$105:D139)-1,COLUMNS($D$105:D139)-1),"") -> 51300 | C133: =IF(OFFSET(DE100_17!$E$105,ROWS($E$105:E139)-1,COLUMNS($E$105:E139)-1)<>"",OFFSET(DE100_17!$E$105,ROWS($E$105:E139)-1,COLUMNS($E$105:E139)-1),"") -> R | D133: =IF(OFFSET(DE100_17!$F$105,ROWS($F$105:F139)-1,COLUMNS($F$105:F139)-1)<>"",OFFSET(DE100_17!$F$105,ROWS($F$105:F139)-1,COLUMNS($F$105:F139)-1),"") -> 220 | E133: =IF(OFFSET(DE100_17!$G$105,ROWS($G$105:G139)-1,COLUMNS($G$105:G139)-1)<>"",OFFSET(DE100_17!$G$105,ROWS($G$105:G139)-1,COLUMNS($G$105:G139)-1),"") -> 
A134: =IF(OFFSET(DE100_17!$C$105,ROWS($C$105:C140)-1,COLUMNS($C$105:C140)-1)<>"",OFFSET(DE100_17!$C$105,ROWS($C$105:C140)-1,COLUMNS($C$105:C140)-1),"") -> 51300 | B134: =IF(OFFSET(DE100_17!$D$105,ROWS($D$105:D140)-1,COLUMNS($D$105:D140)-1)<>"",OFFSET(DE100_17!$D$105,ROWS($D$105:D140)-1,COLUMNS($D$105:D140)-1),"") -> 51500 | C134: =IF(OFFSET(DE100_17!$E$105,ROWS($E$105:E140)-1,COLUMNS($E$105:E140)-1)<>"",OFFSET(DE100_17!$E$105,ROWS($E$105:E140)-1,COLUMNS($E$105:E140)-1),"") -> R | D134: =IF(OFFSET(DE100_17!$F$105,ROWS($F$105:F140)-1,COLUMNS($F$105:F140)-1)<>"",OFFSET(DE100_17!$F$105,ROWS($F$105:F140)-1,COLUMNS($F$105:F140)-1),"") -> 220 | E134: =IF(OFFSET(DE100_17!$G$105,ROWS($G$105:G140)-1,COLUMNS($G$105:G140)-1)<>"",OFFSET(DE100_17!$G$105,ROWS($G$105:G140)-1,COLUMNS($G$105:G140)-1),"") -> 
A135: =IF(OFFSET(DE100_17!$C$105,ROWS($C$105:C141)-1,COLUMNS($C$105:C141)-1)<>"",OFFSET(DE100_17!$C$105,ROWS($C$105:C141)-1,COLUMNS($C$105:C141)-1),"") -> 51500 | B135: =IF(OFFSET(DE100_17!$D$105,ROWS($D$105:D141)-1,COLUMNS($D$105:D141)-1)<>"",OFFSET(DE100_17!$D$105,ROWS($D$105:D141)-1,COLUMNS($D$105:D141)-1),"") -> 51700 | C135: =IF(OFFSET(DE100_17!$E$105,ROWS($E$105:E141)-1,COLUMNS($E$105:E141)-1)<>"",OFFSET(DE100_17!$E$105,ROWS($E$105:E141)-1,COLUMNS($E$105:E141)-1),"") -> R | D135: =IF(OFFSET(DE100_17!$F$105,ROWS($F$105:F141)-1,COLUMNS($F$105:F141)-1)<>"",OFFSET(DE100_17!$F$105,ROWS($F$105:F141)-1,COLUMNS($F$105:F141)-1),"") -> 220 | E135: =IF(OFFSET(DE100_17!$G$105,ROWS($G$105:G141)-1,COLUMNS($G$105:G141)-1)<>"",OFFSET(DE100_17!$G$105,ROWS($G$105:G141)-1,COLUMNS($G$105:G141)-1),"") -> 
A136: =IF(OFFSET(DE100_17!$C$105,ROWS($C$105:C142)-1,COLUMNS($C$105:C142)-1)<>"",OFFSET(DE100_17!$C$105,ROWS($C$105:C142)-1,COLUMNS($C$105:C142)-1),"") -> 51700 | B136: =IF(OFFSET(DE100_17!$D$105,ROWS($D$105:D142)-1,COLUMNS($D$105:D142)-1)<>"",OFFSET(DE100_17!$D$105,ROWS($D$105:D142)-1,COLUMNS($D$105:D142)-1),"") -> 51900 | C136: =IF(OFFSET(DE100_17!$E$105,ROWS($E$105:E142)-1,COLUMNS($E$105:E142)-1)<>"",OFFSET(DE100_17!$E$105,ROWS($E$105:E142)-1,COLUMNS($E$105:E142)-1),"") -> R | D136: =IF(OFFSET(DE100_17!$F$105,ROWS($F$105:F142)-1,COLUMNS($F$105:F142)-1)<>"",OFFSET(DE100_17!$F$105,ROWS($F$105:F142)-1,COLUMNS($F$105:F142)-1),"") -> 220 | E136: =IF(OFFSET(DE100_17!$G$105,ROWS($G$105:G142)-1,COLUMNS($G$105:G142)-1)<>"",OFFSET(DE100_17!$G$105,ROWS($G$105:G142)-1,COLUMNS($G$105:G142)-1),"") -> 
A137: =IF(OFFSET(DE100_17!$C$105,ROWS($C$105:C143)-1,COLUMNS($C$105:C143)-1)<>"",OFFSET(DE100_17!$C$105,ROWS($C$105:C143)-1,COLUMNS($C$105:C143)-1),"") -> 51900 | B137: =IF(OFFSET(DE100_17!$D$105,ROWS($D$105:D143)-1,COLUMNS($D$105:D143)-1)<>"",OFFSET(DE100_17!$D$105,ROWS($D$105:D143)-1,COLUMNS($D$105:D143)-1),"") -> 52100 | C137: =IF(OFFSET(DE100_17!$E$105,ROWS($E$105:E143)-1,COLUMNS($E$105:E143)-1)<>"",OFFSET(DE100_17!$E$105,ROWS($E$105:E143)-1,COLUMNS($E$105:E143)-1),"") -> R | D137: =IF(OFFSET(DE100_17!$F$105,ROWS($F$105:F143)-1,COLUMNS($F$105:F143)-1)<>"",OFFSET(DE100_17!$F$105,ROWS($F$105:F143)-1,COLUMNS($F$105:F143)-1),"") -> 220 | E137: =IF(OFFSET(DE100_17!$G$105,ROWS($G$105:G143)-1,COLUMNS($G$105:G143)-1)<>"",OFFSET(DE100_17!$G$105,ROWS($G$105:G143)-1,COLUMNS($G$105:G143)-1),"") -> 
A138: =IF(OFFSET(DE100_17!$C$105,ROWS($C$105:C144)-1,COLUMNS($C$105:C144)-1)<>"",OFFSET(DE100_17!$C$105,ROWS($C$105:C144)-1,COLUMNS($C$105:C144)-1),"") -> 52100 | B138: =IF(OFFSET(DE100_17!$D$105,ROWS($D$105:D144)-1,COLUMNS($D$105:D144)-1)<>"",OFFSET(DE100_17!$D$105,ROWS($D$105:D144)-1,COLUMNS($D$105:D144)-1),"") -> 52300 | C138: =IF(OFFSET(DE100_17!$E$105,ROWS($E$105:E144)-1,COLUMNS($E$105:E144)-1)<>"",OFFSET(DE100_17!$E$105,ROWS($E$105:E144)-1,COLUMNS($E$105:E144)-1),"") -> R | D138: =IF(OFFSET(DE100_17!$F$105,ROWS($F$105:F144)-1,COLUMNS($F$105:F144)-1)<>"",OFFSET(DE100_17!$F$105,ROWS($F$105:F144)-1,COLUMNS($F$105:F144)-1),"") -> 220 | E138: =IF(OFFSET(DE100_17!$G$105,ROWS($G$105:G144)-1,COLUMNS($G$105:G144)-1)<>"",OFFSET(DE100_17!$G$105,ROWS($G$105:G144)-1,COLUMNS($G$105:G144)-1),"") -> 
A139: =IF(OFFSET(DE100_17!$C$105,ROWS($C$105:C145)-1,COLUMNS($C$105:C145)-1)<>"",OFFSET(DE100_17!$C$105,ROWS($C$105:C145)-1,COLUMNS($C$105:C145)-1),"") -> 52300 | B139: =IF(OFFSET(DE100_17!$D$105,ROWS($D$105:D145)-1,COLUMNS($D$105:D145)-1)<>"",OFFSET(DE100_17!$D$105,ROWS($D$105:D145)-1,COLUMNS($D$105:D145)-1),"") -> 52500 | C139: =IF(OFFSET(DE100_17!$E$105,ROWS($E$105:E145)-1,COLUMNS($E$105:E145)-1)<>"",OFFSET(DE100_17!$E$105,ROWS($E$105:E145)-1,COLUMNS($E$105:E145)-1),"") -> R | D139: =IF(OFFSET(DE100_17!$F$105,ROWS($F$105:F145)-1,COLUMNS($F$105:F145)-1)<>"",OFFSET(DE100_17!$F$105,ROWS($F$105:F145)-1,COLUMNS($F$105:F145)-1),"") -> 220 | E139: =IF(OFFSET(DE100_17!$G$105,ROWS($G$105:G145)-1,COLUMNS($G$105:G145)-1)<>"",OFFSET(DE100_17!$G$105,ROWS($G$105:G145)-1,COLUMNS($G$105:G145)-1),"") -> 
A140: =IF(OFFSET(DE100_17!$C$105,ROWS($C$105:C146)-1,COLUMNS($C$105:C146)-1)<>"",OFFSET(DE100_17!$C$105,ROWS($C$105:C146)-1,COLUMNS($C$105:C146)-1),"") -> 52500 | B140: =IF(OFFSET(DE100_17!$D$105,ROWS($D$105:D146)-1,COLUMNS($D$105:D146)-1)<>"",OFFSET(DE100_17!$D$105,ROWS($D$105:D146)-1,COLUMNS($D$105:D146)-1),"") -> 52700 | C140: =IF(OFFSET(DE100_17!$E$105,ROWS($E$105:E146)-1,COLUMNS($E$105:E146)-1)<>"",OFFSET(DE100_17!$E$105,ROWS($E$105:E146)-1,COLUMNS($E$105:E146)-1),"") -> R | D140: =IF(OFFSET(DE100_17!$F$105,ROWS($F$105:F146)-1,COLUMNS($F$105:F146)-1)<>"",OFFSET(DE100_17!$F$105,ROWS($F$105:F146)-1,COLUMNS($F$105:F146)-1),"") -> 220 | E140: =IF(OFFSET(DE100_17!$G$105,ROWS($G$105:G146)-1,COLUMNS($G$105:G146)-1)<>"",OFFSET(DE100_17!$G$105,ROWS($G$105:G146)-1,COLUMNS($G$105:G146)-1),"") -> 
A141: =IF(OFFSET(DE100_17!$C$105,ROWS($C$105:C147)-1,COLUMNS($C$105:C147)-1)<>"",OFFSET(DE100_17!$C$105,ROWS($C$105:C147)-1,COLUMNS($C$105:C147)-1),"") -> 52700 | B141: =IF(OFFSET(DE100_17!$D$105,ROWS($D$105:D147)-1,COLUMNS($D$105:D147)-1)<>"",OFFSET(DE100_17!$D$105,ROWS($D$105:D147)-1,COLUMNS($D$105:D147)-1),"") -> 52900 | C141: =IF(OFFSET(DE100_17!$E$105,ROWS($E$105:E147)-1,COLUMNS($E$105:E147)-1)<>"",OFFSET(DE100_17!$E$105,ROWS($E$105:E147)-1,COLUMNS($E$105:E147)-1),"") -> R | D141: =IF(OFFSET(DE100_17!$F$105,ROWS($F$105:F147)-1,COLUMNS($F$105:F147)-1)<>"",OFFSET(DE100_17!$F$105,ROWS($F$105:F147)-1,COLUMNS($F$105:F147)-1),"") -> 220 | E141: =IF(OFFSET(DE100_17!$G$105,ROWS($G$105:G147)-1,COLUMNS($G$105:G147)-1)<>"",OFFSET(DE100_17!$G$105,ROWS($G$105:G147)-1,COLUMNS($G$105:G147)-1),"") -> 
A142: =IF(OFFSET(DE100_17!$C$105,ROWS($C$105:C148)-1,COLUMNS($C$105:C148)-1)<>"",OFFSET(DE100_17!$C$105,ROWS($C$105:C148)-1,COLUMNS($C$105:C148)-1),"") -> 52900 | B142: =IF(OFFSET(DE100_17!$D$105,ROWS($D$105:D148)-1,COLUMNS($D$105:D148)-1)<>"",OFFSET(DE100_17!$D$105,ROWS($D$105:D148)-1,COLUMNS($D$105:D148)-1),"") -> 53100 | C142: =IF(OFFSET(DE100_17!$E$105,ROWS($E$105:E148)-1,COLUMNS($E$105:E148)-1)<>"",OFFSET(DE100_17!$E$105,ROWS($E$105:E148)-1,COLUMNS($E$105:E148)-1),"") -> R | D142: =IF(OFFSET(DE100_17!$F$105,ROWS($F$105:F148)-1,COLUMNS($F$105:F148)-1)<>"",OFFSET(DE100_17!$F$105,ROWS($F$105:F148)-1,COLUMNS($F$105:F148)-1),"") -> 220 | E142: =IF(OFFSET(DE100_17!$G$105,ROWS($G$105:G148)-1,COLUMNS($G$105:G148)-1)<>"",OFFSET(DE100_17!$G$105,ROWS($G$105:G148)-1,COLUMNS($G$105:G148)-1),"") -> 
A143: =IF(OFFSET(DE100_17!$C$105,ROWS($C$105:C149)-1,COLUMNS($C$105:C149)-1)<>"",OFFSET(DE100_17!$C$105,ROWS($C$105:C149)-1,COLUMNS($C$105:C149)-1),"") -> 53100 | B143: =IF(OFFSET(DE100_17!$D$105,ROWS($D$105:D149)-1,COLUMNS($D$105:D149)-1)<>"",OFFSET(DE100_17!$D$105,ROWS($D$105:D149)-1,COLUMNS($D$105:D149)-1),"") -> 53300 | C143: =IF(OFFSET(DE100_17!$E$105,ROWS($E$105:E149)-1,COLUMNS($E$105:E149)-1)<>"",OFFSET(DE100_17!$E$105,ROWS($E$105:E149)-1,COLUMNS($E$105:E149)-1),"") -> R | D143: =IF(OFFSET(DE100_17!$F$105,ROWS($F$105:F149)-1,COLUMNS($F$105:F149)-1)<>"",OFFSET(DE100_17!$F$105,ROWS($F$105:F149)-1,COLUMNS($F$105:F149)-1),"") -> 220 | E143: =IF(OFFSET(DE100_17!$G$105,ROWS($G$105:G149)-1,COLUMNS($G$105:G149)-1)<>"",OFFSET(DE100_17!$G$105,ROWS($G$105:G149)-1,COLUMNS($G$105:G149)-1),"") -> 
A144: =IF(OFFSET(DE100_17!$C$105,ROWS($C$105:C150)-1,COLUMNS($C$105:C150)-1)<>"",OFFSET(DE100_17!$C$105,ROWS($C$105:C150)-1,COLUMNS($C$105:C150)-1),"") -> 53300 | B144: =IF(OFFSET(DE100_17!$D$105,ROWS($D$105:D150)-1,COLUMNS($D$105:D150)-1)<>"",OFFSET(DE100_17!$D$105,ROWS($D$105:D150)-1,COLUMNS($D$105:D150)-1),"") -> 53450 | C144: =IF(OFFSET(DE100_17!$E$105,ROWS($E$105:E150)-1,COLUMNS($E$105:E150)-1)<>"",OFFSET(DE100_17!$E$105,ROWS($E$105:E150)-1,COLUMNS($E$105:E150)-1),"") -> R | D144: =IF(OFFSET(DE100_17!$F$105,ROWS($F$105:F150)-1,COLUMNS($F$105:F150)-1)<>"",OFFSET(DE100_17!$F$105,ROWS($F$105:F150)-1,COLUMNS($F$105:F150)-1),"") -> 170 | E144: =IF(OFFSET(DE100_17!$G$105,ROWS($G$105:G150)-1,COLUMNS($G$105:G150)-1)<>"",OFFSET(DE100_17!$G$105,ROWS($G$105:G150)-1,COLUMNS($G$105:G150)-1),"") -> 
A145: =IF(OFFSET(DE100_17!$C$105,ROWS($C$105:C151)-1,COLUMNS($C$105:C151)-1)<>"",OFFSET(DE100_17!$C$105,ROWS($C$105:C151)-1,COLUMNS($C$105:C151)-1),"") -> 53700 | B145: =IF(OFFSET(DE100_17!$D$105,ROWS($D$105:D151)-1,COLUMNS($D$105:D151)-1)<>"",OFFSET(DE100_17!$D$105,ROWS($D$105:D151)-1,COLUMNS($D$105:D151)-1),"") -> 53900 | C145: =IF(OFFSET(DE100_17!$E$105,ROWS($E$105:E151)-1,COLUMNS($E$105:E151)-1)<>"",OFFSET(DE100_17!$E$105,ROWS($E$105:E151)-1,COLUMNS($E$105:E151)-1),"") -> R | D145: =IF(OFFSET(DE100_17!$F$105,ROWS($F$105:F151)-1,COLUMNS($F$105:F151)-1)<>"",OFFSET(DE100_17!$F$105,ROWS($F$105:F151)-1,COLUMNS($F$105:F151)-1),"") -> 220 | E145: =IF(OFFSET(DE100_17!$G$105,ROWS($G$105:G151)-1,COLUMNS($G$105:G151)-1)<>"",OFFSET(DE100_17!$G$105,ROWS($G$105:G151)-1,COLUMNS($G$105:G151)-1),"") -> 
A146: =IF(OFFSET(DE100_17!$C$105,ROWS($C$105:C152)-1,COLUMNS($C$105:C152)-1)<>"",OFFSET(DE100_17!$C$105,ROWS($C$105:C152)-1,COLUMNS($C$105:C152)-1),"") -> 53900 | B146: =IF(OFFSET(DE100_17!$D$105,ROWS($D$105:D152)-1,COLUMNS($D$105:D152)-1)<>"",OFFSET(DE100_17!$D$105,ROWS($D$105:D152)-1,COLUMNS($D$105:D152)-1),"") -> 53950 | C146: =IF(OFFSET(DE100_17!$E$105,ROWS($E$105:E152)-1,COLUMNS($E$105:E152)-1)<>"",OFFSET(DE100_17!$E$105,ROWS($E$105:E152)-1,COLUMNS($E$105:E152)-1),"") -> R | D146: =IF(OFFSET(DE100_17!$F$105,ROWS($F$105:F152)-1,COLUMNS($F$105:F152)-1)<>"",OFFSET(DE100_17!$F$105,ROWS($F$105:F152)-1,COLUMNS($F$105:F152)-1),"") -> 70 | E146: =IF(OFFSET(DE100_17!$G$105,ROWS($G$105:G152)-1,COLUMNS($G$105:G152)-1)<>"",OFFSET(DE100_17!$G$105,ROWS($G$105:G152)-1,COLUMNS($G$105:G152)-1),"") -> 
A147: =IF(OFFSET(DE100_17!$C$105,ROWS($C$105:C153)-1,COLUMNS($C$105:C153)-1)<>"",OFFSET(DE100_17!$C$105,ROWS($C$105:C153)-1,COLUMNS($C$105:C153)-1),"") -> 54100 | B147: =IF(OFFSET(DE100_17!$D$105,ROWS($D$105:D153)-1,COLUMNS($D$105:D153)-1)<>"",OFFSET(DE100_17!$D$105,ROWS($D$105:D153)-1,COLUMNS($D$105:D153)-1),"") -> 54300 | C147: =IF(OFFSET(DE100_17!$E$105,ROWS($E$105:E153)-1,COLUMNS($E$105:E153)-1)<>"",OFFSET(DE100_17!$E$105,ROWS($E$105:E153)-1,COLUMNS($E$105:E153)-1),"") -> R | D147: =IF(OFFSET(DE100_17!$F$105,ROWS($F$105:F153)-1,COLUMNS($F$105:F153)-1)<>"",OFFSET(DE100_17!$F$105,ROWS($F$105:F153)-1,COLUMNS($F$105:F153)-1),"") -> 220 | E147: =IF(OFFSET(DE100_17!$G$105,ROWS($G$105:G153)-1,COLUMNS($G$105:G153)-1)<>"",OFFSET(DE100_17!$G$105,ROWS($G$105:G153)-1,COLUMNS($G$105:G153)-1),"") -> 
A148: =IF(OFFSET(DE100_17!$C$105,ROWS($C$105:C154)-1,COLUMNS($C$105:C154)-1)<>"",OFFSET(DE100_17!$C$105,ROWS($C$105:C154)-1,COLUMNS($C$105:C154)-1),"") ->  | B148: =IF(OFFSET(DE100_17!$D$105,ROWS($D$105:D154)-1,COLUMNS($D$105:D154)-1)<>"",OFFSET(DE100_17!$D$105,ROWS($D$105:D154)-1,COLUMNS($D$105:D154)-1),"") ->  | C148: =IF(OFFSET(DE100_17!$E$105,ROWS($E$105:E154)-1,COLUMNS($E$105:E154)-1)<>"",OFFSET(DE100_17!$E$105,ROWS($E$105:E154)-1,COLUMNS($E$105:E154)-1),"") ->  | D148: =IF(OFFSET(DE100_17!$F$105,ROWS($F$105:F154)-1,COLUMNS($F$105:F154)-1)<>"",OFFSET(DE100_17!$F$105,ROWS($F$105:F154)-1,COLUMNS($F$105:F154)-1),"") ->  | E148: =IF(OFFSET(DE100_17!$G$105,ROWS($G$105:G154)-1,COLUMNS($G$105:G154)-1)<>"",OFFSET(DE100_17!$G$105,ROWS($G$105:G154)-1,COLUMNS($G$105:G154)-1),"") -> 
A149: =IF(OFFSET(DE100_17!$C$105,ROWS($C$105:C155)-1,COLUMNS($C$105:C155)-1)<>"",OFFSET(DE100_17!$C$105,ROWS($C$105:C155)-1,COLUMNS($C$105:C155)-1),"") -> 53150 | B149: =IF(OFFSET(DE100_17!$D$105,ROWS($D$105:D155)-1,COLUMNS($D$105:D155)-1)<>"",OFFSET(DE100_17!$D$105,ROWS($D$105:D155)-1,COLUMNS($D$105:D155)-1),"") -> 53150 | C149: =IF(OFFSET(DE100_17!$E$105,ROWS($E$105:E155)-1,COLUMNS($E$105:E155)-1)<>"",OFFSET(DE100_17!$E$105,ROWS($E$105:E155)-1,COLUMNS($E$105:E155)-1),"") -> L | D149: =IF(OFFSET(DE100_17!$F$105,ROWS($F$105:F155)-1,COLUMNS($F$105:F155)-1)<>"",OFFSET(DE100_17!$F$105,ROWS($F$105:F155)-1,COLUMNS($F$105:F155)-1),"") -> 600 | E149: =IF(OFFSET(DE100_17!$G$105,ROWS($G$105:G155)-1,COLUMNS($G$105:G155)-1)<>"",OFFSET(DE100_17!$G$105,ROWS($G$105:G155)-1,COLUMNS($G$105:G155)-1),"") -> For Stream Diversion
A150: =IF(OFFSET(DE100_17!$C$105,ROWS($C$105:C156)-1,COLUMNS($C$105:C156)-1)<>"",OFFSET(DE100_17!$C$105,ROWS($C$105:C156)-1,COLUMNS($C$105:C156)-1),"") ->  | B150: =IF(OFFSET(DE100_17!$D$105,ROWS($D$105:D156)-1,COLUMNS($D$105:D156)-1)<>"",OFFSET(DE100_17!$D$105,ROWS($D$105:D156)-1,COLUMNS($D$105:D156)-1),"") ->  | C150: =IF(OFFSET(DE100_17!$E$105,ROWS($E$105:E156)-1,COLUMNS($E$105:E156)-1)<>"",OFFSET(DE100_17!$E$105,ROWS($E$105:E156)-1,COLUMNS($E$105:E156)-1),"") ->  | D150: =IF(OFFSET(DE100_17!$F$105,ROWS($F$105:F156)-1,COLUMNS($F$105:F156)-1)<>"",OFFSET(DE100_17!$F$105,ROWS($F$105:F156)-1,COLUMNS($F$105:F156)-1),"") ->  | E150: =IF(OFFSET(DE100_17!$G$105,ROWS($G$105:G156)-1,COLUMNS($G$105:G156)-1)<>"",OFFSET(DE100_17!$G$105,ROWS($G$105:G156)-1,COLUMNS($G$105:G156)-1),"") -> 
A151: =IF(OFFSET(DE100_17!$C$105,ROWS($C$105:C157)-1,COLUMNS($C$105:C157)-1)<>"",OFFSET(DE100_17!$C$105,ROWS($C$105:C157)-1,COLUMNS($C$105:C157)-1),"") -> Tab Quantity | C151: =IF(OFFSET(DE100_17!$E$105,ROWS($E$105:E157)-1,COLUMNS($E$105:E157)-1)<>"",OFFSET(DE100_17!$E$105,ROWS($E$105:E157)-1,COLUMNS($E$105:E157)-1),"") ->  | D151: =IF(OFFSET(DE100_17!$F$105,ROWS($F$105:F157)-1,COLUMNS($F$105:F157)-1)<>"",OFFSET(DE100_17!$F$105,ROWS($F$105:F157)-1,COLUMNS($F$105:F157)-1),"") -> 29810 | E151: =IF(OFFSET(DE100_17!$G$105,ROWS($G$105:G157)-1,COLUMNS($G$105:G157)-1)<>"",OFFSET(DE100_17!$G$105,ROWS($G$105:G157)-1,COLUMNS($G$105:G157)-1),"") -> 
A152: =IF(OFFSET(DE100_17!$C$105,ROWS($C$105:C158)-1,COLUMNS($C$105:C158)-1)<>"",OFFSET(DE100_17!$C$105,ROWS($C$105:C158)-1,COLUMNS($C$105:C158)-1),"") -> Bid Quantity | C152: =IF(OFFSET(DE100_17!$E$105,ROWS($E$105:E158)-1,COLUMNS($E$105:E158)-1)<>"",OFFSET(DE100_17!$E$105,ROWS($E$105:E158)-1,COLUMNS($E$105:E158)-1),"") ->  | D152: =IF(OFFSET(DE100_17!$F$105,ROWS($F$105:F158)-1,COLUMNS($F$105:F158)-1)<>"",OFFSET(DE100_17!$F$105,ROWS($F$105:F158)-1,COLUMNS($F$105:F158)-1),"") -> 37262.5 | E152: =IF(OFFSET(DE100_17!$G$105,ROWS($G$105:G158)-1,COLUMNS($G$105:G158)-1)<>"",OFFSET(DE100_17!$G$105,ROWS($G$105:G158)-1,COLUMNS($G$105:G158)-1),"") -> 
A153: =IF(OFFSET(DE100_17!$C$105,ROWS($C$105:C159)-1,COLUMNS($C$105:C159)-1)<>"",OFFSET(DE100_17!$C$105,ROWS($C$105:C159)-1,COLUMNS($C$105:C159)-1),"") -> Maintenance Quantity | C153: =IF(OFFSET(DE100_17!$E$105,ROWS($E$105:E159)-1,COLUMNS($E$105:E159)-1)<>"",OFFSET(DE100_17!$E$105,ROWS($E$105:E159)-1,COLUMNS($E$105:E159)-1),"") ->  | D153: =IF(OFFSET(DE100_17!$F$105,ROWS($F$105:F159)-1,COLUMNS($F$105:F159)-1)<>"",OFFSET(DE100_17!$F$105,ROWS($F$105:F159)-1,COLUMNS($F$105:F159)-1),"") -> 3726.25 | E153: =IF(OFFSET(DE100_17!$G$105,ROWS($G$105:G159)-1,COLUMNS($G$105:G159)-1)<>"",OFFSET(DE100_17!$G$105,ROWS($G$105:G159)-1,COLUMNS($G$105:G159)-1),"") -> 
A154: =IF(OFFSET(DE100_17!$C$105,ROWS($C$105:C160)-1,COLUMNS($C$105:C160)-1)<>"",OFFSET(DE100_17!$C$105,ROWS($C$105:C160)-1,COLUMNS($C$105:C160)-1),"") -> Removal Quantity | C154: =IF(OFFSET(DE100_17!$E$105,ROWS($E$105:E160)-1,COLUMNS($E$105:E160)-1)<>"",OFFSET(DE100_17!$E$105,ROWS($E$105:E160)-1,COLUMNS($E$105:E160)-1),"") ->  | D154: =IF(OFFSET(DE100_17!$F$105,ROWS($F$105:F160)-1,COLUMNS($F$105:F160)-1)<>"",OFFSET(DE100_17!$F$105,ROWS($F$105:F160)-1,COLUMNS($F$105:F160)-1),"") -> 18631.25 | E154: =IF(OFFSET(DE100_17!$G$105,ROWS($G$105:G160)-1,COLUMNS($G$105:G160)-1)<>"",OFFSET(DE100_17!$G$105,ROWS($G$105:G160)-1,COLUMNS($G$105:G160)-1),"") -> 
A155: =IF(OFFSET(DE100_17!$C$105,ROWS($C$105:C161)-1,COLUMNS($C$105:C161)-1)<>"",OFFSET(DE100_17!$C$105,ROWS($C$105:C161)-1,COLUMNS($C$105:C161)-1),"") ->  | B155: =IF(OFFSET(DE100_17!$D$105,ROWS($D$105:D161)-1,COLUMNS($D$105:D161)-1)<>"",OFFSET(DE100_17!$D$105,ROWS($D$105:D161)-1,COLUMNS($D$105:D161)-1),"") ->  | C155: =IF(OFFSET(DE100_17!$E$105,ROWS($E$105:E161)-1,COLUMNS($E$105:E161)-1)<>"",OFFSET(DE100_17!$E$105,ROWS($E$105:E161)-1,COLUMNS($E$105:E161)-1),"") ->  | D155: =IF(OFFSET(DE100_17!$F$105,ROWS($F$105:F161)-1,COLUMNS($F$105:F161)-1)<>"",OFFSET(DE100_17!$F$105,ROWS($F$105:F161)-1,COLUMNS($F$105:F161)-1),"") ->  | E155: =IF(OFFSET(DE100_17!$G$105,ROWS($G$105:G161)-1,COLUMNS($G$105:G161)-1)<>"",OFFSET(DE100_17!$G$105,ROWS($G$105:G161)-1,COLUMNS($G$105:G161)-1),"") -> 
A156: =IF(OFFSET(DE100_17!$C$105,ROWS($C$105:C162)-1,COLUMNS($C$105:C162)-1)<>"",OFFSET(DE100_17!$C$105,ROWS($C$105:C162)-1,COLUMNS($C$105:C162)-1),"") ->  | B156: =IF(OFFSET(DE100_17!$D$105,ROWS($D$105:D162)-1,COLUMNS($D$105:D162)-1)<>"",OFFSET(DE100_17!$D$105,ROWS($D$105:D162)-1,COLUMNS($D$105:D162)-1),"") ->  | C156: =IF(OFFSET(DE100_17!$E$105,ROWS($E$105:E162)-1,COLUMNS($E$105:E162)-1)<>"",OFFSET(DE100_17!$E$105,ROWS($E$105:E162)-1,COLUMNS($E$105:E162)-1),"") ->  | D156: =IF(OFFSET(DE100_17!$F$105,ROWS($F$105:F162)-1,COLUMNS($F$105:F162)-1)<>"",OFFSET(DE100_17!$F$105,ROWS($F$105:F162)-1,COLUMNS($F$105:F162)-1),"") ->  | E156: =IF(OFFSET(DE100_17!$G$105,ROWS($G$105:G162)-1,COLUMNS($G$105:G162)-1)<>"",OFFSET(DE100_17!$G$105,ROWS($G$105:G162)-1,COLUMNS($G$105:G162)-1),"") -> 

Sheet 100_18
A1: 100-18
A2: 2017-10-17
A3: SILT FENCES FOR DITCH CHECKS
A6: Possible Standard: EC-201 Possible Detail: 570-4
A18: * The functional height used in the volume equation is 85% of effective height. Effective height is 1.58 feet as shown on EC-201.
A19: * Volume equation: [0.5*Spacing*(0.5*H2*FS+DW*H+0.5*H2*BS)]
A20: Basin No. | B20: Type | C20: Location | E20: Bid Items | H20: Stormwater Storage Volume Summary | M20: Remarks
C21: Station | D21: Side | E21: Installation | F21: Maintenance | G21: Removal | H21: Foreslope | I21: Backslope | J21: Ditch Width | K21: Avg.% Slope | L21: Volume*
E22: LF | F22: LF | G22: LF | H22: FS:1 | I22: BS:1 | J22: FT | K22: Ditch Grade | L22: CF
A23: =IF(OFFSET(DE100_18!$C$37,ROWS($C$37:C37)-1,COLUMNS($C$37:C37)-1)<>"",OFFSET(DE100_18!$C$37,ROWS($C$37:C37)-1,COLUMNS($C$37:C37)-1),"") ->  | B23: =IF(OFFSET(DE100_18!$D$37,ROWS($D$37:D37)-1,COLUMNS($D$37:D37)-1)<>"",OFFSET(DE100_18!$D$37,ROWS($D$37:D37)-1,COLUMNS($D$37:D37)-1),"") ->  | C23: =IF(OFFSET(DE100_18!$E$37,ROWS($E$37:E37)-1,COLUMNS($E$37:E37)-1)<>"",OFFSET(DE100_18!$E$37,ROWS($E$37:E37)-1,COLUMNS($E$37:E37)-1),"") ->  | D23: =IF(OFFSET(DE100_18!$F$37,ROWS($F$37:F37)-1,COLUMNS($F$37:F37)-1)<>"",OFFSET(DE100_18!$F$37,ROWS($F$37:F37)-1,COLUMNS($F$37:F37)-1),"") ->  | E23: =IF(OFFSET(DE100_18!$G$37,ROWS($G$37:G37)-1,COLUMNS($G$37:G37)-1)<>"",OFFSET(DE100_18!$G$37,ROWS($G$37:G37)-1,COLUMNS($G$37:G37)-1),"") ->  | F23: =IF(OFFSET(DE100_18!$H$37,ROWS($H$37:H37)-1,COLUMNS($H$37:H37)-1)<>"",OFFSET(DE100_18!$H$37,ROWS($H$37:H37)-1,COLUMNS($H$37:H37)-1),"") ->  | G23: =IF(OFFSET(DE100_18!$I$37,ROWS($I$37:I37)-1,COLUMNS($I$37:I37)-1)<>"",OFFSET(DE100_18!$I$37,ROWS($I$37:I37)-1,COLUMNS($I$37:I37)-1),"") ->  | H23: =IF(OFFSET(DE100_18!$J$37,ROWS($J$37:J37)-1,COLUMNS($J$37:J37)-1)<>"",OFFSET(DE100_18!$J$37,ROWS($J$37:J37)-1,COLUMNS($J$37:J37)-1),"") ->  | I23: =IF(OFFSET(DE100_18!$K$37,ROWS($K$37:K37)-1,COLUMNS($K$37:K37)-1)<>"",OFFSET(DE100_18!$K$37,ROWS($K$37:K37)-1,COLUMNS($K$37:K37)-1),"") ->  | J23: =IF(OFFSET(DE100_18!$L$37,ROWS($L$37:L37)-1,COLUMNS($L$37:L37)-1)<>"",OFFSET(DE100_18!$L$37,ROWS($L$37:L37)-1,COLUMNS($L$37:L37)-1),"") ->  | K23: =IF(OFFSET(DE100_18!$M$37,ROWS($M$37:M37)-1,COLUMNS($M$37:M37)-1)<>"",OFFSET(DE100_18!$M$37,ROWS($M$37:M37)-1,COLUMNS($M$37:M37)-1),"") ->  | L23: =IF(OFFSET(DE100_18!$P$37,ROWS($P$37:P37)-1,COLUMNS($P$37:P37)-1)<>"",OFFSET(DE100_18!$P$37,ROWS($P$37:P37)-1,COLUMNS($P$37:P37)-1),"") ->  | M23: =IF(OFFSET(DE100_18!$R$37,ROWS($R$37:R37)-1,COLUMNS($R$37:R37)-1)<>"",OFFSET(DE100_18!$R$37,ROWS($R$37:R37)-1,COLUMNS($R$37:R37)-1),"") -> 
A24: =IF(OFFSET(DE100_18!$C$37,ROWS($C$37:C38)-1,COLUMNS($C$37:C38)-1)<>"",OFFSET(DE100_18!$C$37,ROWS($C$37:C38)-1,COLUMNS($C$37:C38)-1),"") -> 1 | B24: =IF(OFFSET(DE100_18!$D$37,ROWS($D$37:D38)-1,COLUMNS($D$37:D38)-1)<>"",OFFSET(DE100_18!$D$37,ROWS($D$37:D38)-1,COLUMNS($D$37:D38)-1),"") -> 1 | C24: =IF(OFFSET(DE100_18!$E$37,ROWS($E$37:E38)-1,COLUMNS($E$37:E38)-1)<>"",OFFSET(DE100_18!$E$37,ROWS($E$37:E38)-1,COLUMNS($E$37:E38)-1),"") -> 44750 | D24: =IF(OFFSET(DE100_18!$F$37,ROWS($F$37:F38)-1,COLUMNS($F$37:F38)-1)<>"",OFFSET(DE100_18!$F$37,ROWS($F$37:F38)-1,COLUMNS($F$37:F38)-1),"") -> Left | E24: =IF(OFFSET(DE100_18!$G$37,ROWS($G$37:G38)-1,COLUMNS($G$37:G38)-1)<>"",OFFSET(DE100_18!$G$37,ROWS($G$37:G38)-1,COLUMNS($G$37:G38)-1),"") -> 39 | F24: =IF(OFFSET(DE100_18!$H$37,ROWS($H$37:H38)-1,COLUMNS($H$37:H38)-1)<>"",OFFSET(DE100_18!$H$37,ROWS($H$37:H38)-1,COLUMNS($H$37:H38)-1),"") -> 3.9 | G24: =IF(OFFSET(DE100_18!$I$37,ROWS($I$37:I38)-1,COLUMNS($I$37:I38)-1)<>"",OFFSET(DE100_18!$I$37,ROWS($I$37:I38)-1,COLUMNS($I$37:I38)-1),"") -> 19.5 | H24: =IF(OFFSET(DE100_18!$J$37,ROWS($J$37:J38)-1,COLUMNS($J$37:J38)-1)<>"",OFFSET(DE100_18!$J$37,ROWS($J$37:J38)-1,COLUMNS($J$37:J38)-1),"") -> 6 | I24: =IF(OFFSET(DE100_18!$K$37,ROWS($K$37:K38)-1,COLUMNS($K$37:K38)-1)<>"",OFFSET(DE100_18!$K$37,ROWS($K$37:K38)-1,COLUMNS($K$37:K38)-1),"") -> 3 | J24: =IF(OFFSET(DE100_18!$L$37,ROWS($L$37:L38)-1,COLUMNS($L$37:L38)-1)<>"",OFFSET(DE100_18!$L$37,ROWS($L$37:L38)-1,COLUMNS($L$37:L38)-1),"") -> 8 | K24: =IF(OFFSET(DE100_18!$M$37,ROWS($M$37:M38)-1,COLUMNS($M$37:M38)-1)<>"",OFFSET(DE100_18!$M$37,ROWS($M$37:M38)-1,COLUMNS($M$37:M38)-1),"") -> 0.01 | L24: =IF(OFFSET(DE100_18!$P$37,ROWS($P$37:P38)-1,COLUMNS($P$37:P38)-1)<>"",OFFSET(DE100_18!$P$37,ROWS($P$37:P38)-1,COLUMNS($P$37:P38)-1),"") -> 1461.682589 | M24: =IF(OFFSET(DE100_18!$R$37,ROWS($R$37:R38)-1,COLUMNS($R$37:R38)-1)<>"",OFFSET(DE100_18!$R$37,ROWS($R$37:R38)-1,COLUMNS($R$37:R38)-1),"") -> 
A25: =IF(OFFSET(DE100_18!$C$37,ROWS($C$37:C39)-1,COLUMNS($C$37:C39)-1)<>"",OFFSET(DE100_18!$C$37,ROWS($C$37:C39)-1,COLUMNS($C$37:C39)-1),"") -> 1 | B25: =IF(OFFSET(DE100_18!$D$37,ROWS($D$37:D39)-1,COLUMNS($D$37:D39)-1)<>"",OFFSET(DE100_18!$D$37,ROWS($D$37:D39)-1,COLUMNS($D$37:D39)-1),"") -> 1 | C25: =IF(OFFSET(DE100_18!$E$37,ROWS($E$37:E39)-1,COLUMNS($E$37:E39)-1)<>"",OFFSET(DE100_18!$E$37,ROWS($E$37:E39)-1,COLUMNS($E$37:E39)-1),"") -> 44880 | D25: =IF(OFFSET(DE100_18!$F$37,ROWS($F$37:F39)-1,COLUMNS($F$37:F39)-1)<>"",OFFSET(DE100_18!$F$37,ROWS($F$37:F39)-1,COLUMNS($F$37:F39)-1),"") -> Left | E25: =IF(OFFSET(DE100_18!$G$37,ROWS($G$37:G39)-1,COLUMNS($G$37:G39)-1)<>"",OFFSET(DE100_18!$G$37,ROWS($G$37:G39)-1,COLUMNS($G$37:G39)-1),"") -> 39 | F25: =IF(OFFSET(DE100_18!$H$37,ROWS($H$37:H39)-1,COLUMNS($H$37:H39)-1)<>"",OFFSET(DE100_18!$H$37,ROWS($H$37:H39)-1,COLUMNS($H$37:H39)-1),"") -> 3.9 | G25: =IF(OFFSET(DE100_18!$I$37,ROWS($I$37:I39)-1,COLUMNS($I$37:I39)-1)<>"",OFFSET(DE100_18!$I$37,ROWS($I$37:I39)-1,COLUMNS($I$37:I39)-1),"") -> 19.5 | H25: =IF(OFFSET(DE100_18!$J$37,ROWS($J$37:J39)-1,COLUMNS($J$37:J39)-1)<>"",OFFSET(DE100_18!$J$37,ROWS($J$37:J39)-1,COLUMNS($J$37:J39)-1),"") -> 6 | I25: =IF(OFFSET(DE100_18!$K$37,ROWS($K$37:K39)-1,COLUMNS($K$37:K39)-1)<>"",OFFSET(DE100_18!$K$37,ROWS($K$37:K39)-1,COLUMNS($K$37:K39)-1),"") -> 3 | J25: =IF(OFFSET(DE100_18!$L$37,ROWS($L$37:L39)-1,COLUMNS($L$37:L39)-1)<>"",OFFSET(DE100_18!$L$37,ROWS($L$37:L39)-1,COLUMNS($L$37:L39)-1),"") -> 8 | K25: =IF(OFFSET(DE100_18!$M$37,ROWS($M$37:M39)-1,COLUMNS($M$37:M39)-1)<>"",OFFSET(DE100_18!$M$37,ROWS($M$37:M39)-1,COLUMNS($M$37:M39)-1),"") -> 0.01 | L25: =IF(OFFSET(DE100_18!$P$37,ROWS($P$37:P39)-1,COLUMNS($P$37:P39)-1)<>"",OFFSET(DE100_18!$P$37,ROWS($P$37:P39)-1,COLUMNS($P$37:P39)-1),"") -> 1461.682589 | M25: =IF(OFFSET(DE100_18!$R$37,ROWS($R$37:R39)-1,COLUMNS($R$37:R39)-1)<>"",OFFSET(DE100_18!$R$37,ROWS($R$37:R39)-1,COLUMNS($R$37:R39)-1),"") -> 
A26: =IF(OFFSET(DE100_18!$C$37,ROWS($C$37:C40)-1,COLUMNS($C$37:C40)-1)<>"",OFFSET(DE100_18!$C$37,ROWS($C$37:C40)-1,COLUMNS($C$37:C40)-1),"") -> 1 | B26: =IF(OFFSET(DE100_18!$D$37,ROWS($D$37:D40)-1,COLUMNS($D$37:D40)-1)<>"",OFFSET(DE100_18!$D$37,ROWS($D$37:D40)-1,COLUMNS($D$37:D40)-1),"") -> 1 | C26: =IF(OFFSET(DE100_18!$E$37,ROWS($E$37:E40)-1,COLUMNS($E$37:E40)-1)<>"",OFFSET(DE100_18!$E$37,ROWS($E$37:E40)-1,COLUMNS($E$37:E40)-1),"") -> 45000 | D26: =IF(OFFSET(DE100_18!$F$37,ROWS($F$37:F40)-1,COLUMNS($F$37:F40)-1)<>"",OFFSET(DE100_18!$F$37,ROWS($F$37:F40)-1,COLUMNS($F$37:F40)-1),"") -> Left | E26: =IF(OFFSET(DE100_18!$G$37,ROWS($G$37:G40)-1,COLUMNS($G$37:G40)-1)<>"",OFFSET(DE100_18!$G$37,ROWS($G$37:G40)-1,COLUMNS($G$37:G40)-1),"") -> 39 | F26: =IF(OFFSET(DE100_18!$H$37,ROWS($H$37:H40)-1,COLUMNS($H$37:H40)-1)<>"",OFFSET(DE100_18!$H$37,ROWS($H$37:H40)-1,COLUMNS($H$37:H40)-1),"") -> 3.9 | G26: =IF(OFFSET(DE100_18!$I$37,ROWS($I$37:I40)-1,COLUMNS($I$37:I40)-1)<>"",OFFSET(DE100_18!$I$37,ROWS($I$37:I40)-1,COLUMNS($I$37:I40)-1),"") -> 19.5 | H26: =IF(OFFSET(DE100_18!$J$37,ROWS($J$37:J40)-1,COLUMNS($J$37:J40)-1)<>"",OFFSET(DE100_18!$J$37,ROWS($J$37:J40)-1,COLUMNS($J$37:J40)-1),"") -> 6 | I26: =IF(OFFSET(DE100_18!$K$37,ROWS($K$37:K40)-1,COLUMNS($K$37:K40)-1)<>"",OFFSET(DE100_18!$K$37,ROWS($K$37:K40)-1,COLUMNS($K$37:K40)-1),"") -> 3 | J26: =IF(OFFSET(DE100_18!$L$37,ROWS($L$37:L40)-1,COLUMNS($L$37:L40)-1)<>"",OFFSET(DE100_18!$L$37,ROWS($L$37:L40)-1,COLUMNS($L$37:L40)-1),"") -> 8 | K26: =IF(OFFSET(DE100_18!$M$37,ROWS($M$37:M40)-1,COLUMNS($M$37:M40)-1)<>"",OFFSET(DE100_18!$M$37,ROWS($M$37:M40)-1,COLUMNS($M$37:M40)-1),"") -> 0.013 | L26: =IF(OFFSET(DE100_18!$P$37,ROWS($P$37:P40)-1,COLUMNS($P$37:P40)-1)<>"",OFFSET(DE100_18!$P$37,ROWS($P$37:P40)-1,COLUMNS($P$37:P40)-1),"") -> 943.021025 | M26: =IF(OFFSET(DE100_18!$R$37,ROWS($R$37:R40)-1,COLUMNS($R$37:R40)-1)<>"",OFFSET(DE100_18!$R$37,ROWS($R$37:R40)-1,COLUMNS($R$37:R40)-1),"") -> 
A27: =IF(OFFSET(DE100_18!$C$37,ROWS($C$37:C41)-1,COLUMNS($C$37:C41)-1)<>"",OFFSET(DE100_18!$C$37,ROWS($C$37:C41)-1,COLUMNS($C$37:C41)-1),"") -> 1 | B27: =IF(OFFSET(DE100_18!$D$37,ROWS($D$37:D41)-1,COLUMNS($D$37:D41)-1)<>"",OFFSET(DE100_18!$D$37,ROWS($D$37:D41)-1,COLUMNS($D$37:D41)-1),"") -> 1 | C27: =IF(OFFSET(DE100_18!$E$37,ROWS($E$37:E41)-1,COLUMNS($E$37:E41)-1)<>"",OFFSET(DE100_18!$E$37,ROWS($E$37:E41)-1,COLUMNS($E$37:E41)-1),"") -> 45160 | D27: =IF(OFFSET(DE100_18!$F$37,ROWS($F$37:F41)-1,COLUMNS($F$37:F41)-1)<>"",OFFSET(DE100_18!$F$37,ROWS($F$37:F41)-1,COLUMNS($F$37:F41)-1),"") -> Left | E27: =IF(OFFSET(DE100_18!$G$37,ROWS($G$37:G41)-1,COLUMNS($G$37:G41)-1)<>"",OFFSET(DE100_18!$G$37,ROWS($G$37:G41)-1,COLUMNS($G$37:G41)-1),"") -> 30 | F27: =IF(OFFSET(DE100_18!$H$37,ROWS($H$37:H41)-1,COLUMNS($H$37:H41)-1)<>"",OFFSET(DE100_18!$H$37,ROWS($H$37:H41)-1,COLUMNS($H$37:H41)-1),"") -> 3 | G27: =IF(OFFSET(DE100_18!$I$37,ROWS($I$37:I41)-1,COLUMNS($I$37:I41)-1)<>"",OFFSET(DE100_18!$I$37,ROWS($I$37:I41)-1,COLUMNS($I$37:I41)-1),"") -> 15 | H27: =IF(OFFSET(DE100_18!$J$37,ROWS($J$37:J41)-1,COLUMNS($J$37:J41)-1)<>"",OFFSET(DE100_18!$J$37,ROWS($J$37:J41)-1,COLUMNS($J$37:J41)-1),"") -> 3 | I27: =IF(OFFSET(DE100_18!$K$37,ROWS($K$37:K41)-1,COLUMNS($K$37:K41)-1)<>"",OFFSET(DE100_18!$K$37,ROWS($K$37:K41)-1,COLUMNS($K$37:K41)-1),"") -> 3 | J27: =IF(OFFSET(DE100_18!$L$37,ROWS($L$37:L41)-1,COLUMNS($L$37:L41)-1)<>"",OFFSET(DE100_18!$L$37,ROWS($L$37:L41)-1,COLUMNS($L$37:L41)-1),"") -> 8 | K27: =IF(OFFSET(DE100_18!$M$37,ROWS($M$37:M41)-1,COLUMNS($M$37:M41)-1)<>"",OFFSET(DE100_18!$M$37,ROWS($M$37:M41)-1,COLUMNS($M$37:M41)-1),"") -> 0.013 | L27: =IF(OFFSET(DE100_18!$P$37,ROWS($P$37:P41)-1,COLUMNS($P$37:P41)-1)<>"",OFFSET(DE100_18!$P$37,ROWS($P$37:P41)-1,COLUMNS($P$37:P41)-1),"") -> 807.74735 | M27: =IF(OFFSET(DE100_18!$R$37,ROWS($R$37:R41)-1,COLUMNS($R$37:R41)-1)<>"",OFFSET(DE100_18!$R$37,ROWS($R$37:R41)-1,COLUMNS($R$37:R41)-1),"") -> 
A28: =IF(OFFSET(DE100_18!$C$37,ROWS($C$37:C42)-1,COLUMNS($C$37:C42)-1)<>"",OFFSET(DE100_18!$C$37,ROWS($C$37:C42)-1,COLUMNS($C$37:C42)-1),"") -> 1 | B28: =IF(OFFSET(DE100_18!$D$37,ROWS($D$37:D42)-1,COLUMNS($D$37:D42)-1)<>"",OFFSET(DE100_18!$D$37,ROWS($D$37:D42)-1,COLUMNS($D$37:D42)-1),"") -> 1 | C28: =IF(OFFSET(DE100_18!$E$37,ROWS($E$37:E42)-1,COLUMNS($E$37:E42)-1)<>"",OFFSET(DE100_18!$E$37,ROWS($E$37:E42)-1,COLUMNS($E$37:E42)-1),"") -> 45750 | D28: =IF(OFFSET(DE100_18!$F$37,ROWS($F$37:F42)-1,COLUMNS($F$37:F42)-1)<>"",OFFSET(DE100_18!$F$37,ROWS($F$37:F42)-1,COLUMNS($F$37:F42)-1),"") -> Left | E28: =IF(OFFSET(DE100_18!$G$37,ROWS($G$37:G42)-1,COLUMNS($G$37:G42)-1)<>"",OFFSET(DE100_18!$G$37,ROWS($G$37:G42)-1,COLUMNS($G$37:G42)-1),"") -> 39 | F28: =IF(OFFSET(DE100_18!$H$37,ROWS($H$37:H42)-1,COLUMNS($H$37:H42)-1)<>"",OFFSET(DE100_18!$H$37,ROWS($H$37:H42)-1,COLUMNS($H$37:H42)-1),"") -> 3.9 | G28: =IF(OFFSET(DE100_18!$I$37,ROWS($I$37:I42)-1,COLUMNS($I$37:I42)-1)<>"",OFFSET(DE100_18!$I$37,ROWS($I$37:I42)-1,COLUMNS($I$37:I42)-1),"") -> 19.5 | H28: =IF(OFFSET(DE100_18!$J$37,ROWS($J$37:J42)-1,COLUMNS($J$37:J42)-1)<>"",OFFSET(DE100_18!$J$37,ROWS($J$37:J42)-1,COLUMNS($J$37:J42)-1),"") -> 6 | I28: =IF(OFFSET(DE100_18!$K$37,ROWS($K$37:K42)-1,COLUMNS($K$37:K42)-1)<>"",OFFSET(DE100_18!$K$37,ROWS($K$37:K42)-1,COLUMNS($K$37:K42)-1),"") -> 3 | J28: =IF(OFFSET(DE100_18!$L$37,ROWS($L$37:L42)-1,COLUMNS($L$37:L42)-1)<>"",OFFSET(DE100_18!$L$37,ROWS($L$37:L42)-1,COLUMNS($L$37:L42)-1),"") -> 8 | K28: =IF(OFFSET(DE100_18!$M$37,ROWS($M$37:M42)-1,COLUMNS($M$37:M42)-1)<>"",OFFSET(DE100_18!$M$37,ROWS($M$37:M42)-1,COLUMNS($M$37:M42)-1),"") -> 0.013 | L28: =IF(OFFSET(DE100_18!$P$37,ROWS($P$37:P42)-1,COLUMNS($P$37:P42)-1)<>"",OFFSET(DE100_18!$P$37,ROWS($P$37:P42)-1,COLUMNS($P$37:P42)-1),"") -> 943.021025 | M28: =IF(OFFSET(DE100_18!$R$37,ROWS($R$37:R42)-1,COLUMNS($R$37:R42)-1)<>"",OFFSET(DE100_18!$R$37,ROWS($R$37:R42)-1,COLUMNS($R$37:R42)-1),"") -> 
A29: =IF(OFFSET(DE100_18!$C$37,ROWS($C$37:C43)-1,COLUMNS($C$37:C43)-1)<>"",OFFSET(DE100_18!$C$37,ROWS($C$37:C43)-1,COLUMNS($C$37:C43)-1),"") -> 1 | B29: =IF(OFFSET(DE100_18!$D$37,ROWS($D$37:D43)-1,COLUMNS($D$37:D43)-1)<>"",OFFSET(DE100_18!$D$37,ROWS($D$37:D43)-1,COLUMNS($D$37:D43)-1),"") -> 1 | C29: =IF(OFFSET(DE100_18!$E$37,ROWS($E$37:E43)-1,COLUMNS($E$37:E43)-1)<>"",OFFSET(DE100_18!$E$37,ROWS($E$37:E43)-1,COLUMNS($E$37:E43)-1),"") -> 45900 | D29: =IF(OFFSET(DE100_18!$F$37,ROWS($F$37:F43)-1,COLUMNS($F$37:F43)-1)<>"",OFFSET(DE100_18!$F$37,ROWS($F$37:F43)-1,COLUMNS($F$37:F43)-1),"") -> Left | E29: =IF(OFFSET(DE100_18!$G$37,ROWS($G$37:G43)-1,COLUMNS($G$37:G43)-1)<>"",OFFSET(DE100_18!$G$37,ROWS($G$37:G43)-1,COLUMNS($G$37:G43)-1),"") -> 39 | F29: =IF(OFFSET(DE100_18!$H$37,ROWS($H$37:H43)-1,COLUMNS($H$37:H43)-1)<>"",OFFSET(DE100_18!$H$37,ROWS($H$37:H43)-1,COLUMNS($H$37:H43)-1),"") -> 3.9 | G29: =IF(OFFSET(DE100_18!$I$37,ROWS($I$37:I43)-1,COLUMNS($I$37:I43)-1)<>"",OFFSET(DE100_18!$I$37,ROWS($I$37:I43)-1,COLUMNS($I$37:I43)-1),"") -> 19.5 | H29: =IF(OFFSET(DE100_18!$J$37,ROWS($J$37:J43)-1,COLUMNS($J$37:J43)-1)<>"",OFFSET(DE100_18!$J$37,ROWS($J$37:J43)-1,COLUMNS($J$37:J43)-1),"") -> 6 | I29: =IF(OFFSET(DE100_18!$K$37,ROWS($K$37:K43)-1,COLUMNS($K$37:K43)-1)<>"",OFFSET(DE100_18!$K$37,ROWS($K$37:K43)-1,COLUMNS($K$37:K43)-1),"") -> 3 | J29: =IF(OFFSET(DE100_18!$L$37,ROWS($L$37:L43)-1,COLUMNS($L$37:L43)-1)<>"",OFFSET(DE100_18!$L$37,ROWS($L$37:L43)-1,COLUMNS($L$37:L43)-1),"") -> 8 | K29: =IF(OFFSET(DE100_18!$M$37,ROWS($M$37:M43)-1,COLUMNS($M$37:M43)-1)<>"",OFFSET(DE100_18!$M$37,ROWS($M$37:M43)-1,COLUMNS($M$37:M43)-1),"") -> 0.013 | L29: =IF(OFFSET(DE100_18!$P$37,ROWS($P$37:P43)-1,COLUMNS($P$37:P43)-1)<>"",OFFSET(DE100_18!$P$37,ROWS($P$37:P43)-1,COLUMNS($P$37:P43)-1),"") -> 943.021025 | M29: =IF(OFFSET(DE100_18!$R$37,ROWS($R$37:R43)-1,COLUMNS($R$37:R43)-1)<>"",OFFSET(DE100_18!$R$37,ROWS($R$37:R43)-1,COLUMNS($R$37:R43)-1),"") -> 
A30: =IF(OFFSET(DE100_18!$C$37,ROWS($C$37:C44)-1,COLUMNS($C$37:C44)-1)<>"",OFFSET(DE100_18!$C$37,ROWS($C$37:C44)-1,COLUMNS($C$37:C44)-1),"") -> 1 | B30: =IF(OFFSET(DE100_18!$D$37,ROWS($D$37:D44)-1,COLUMNS($D$37:D44)-1)<>"",OFFSET(DE100_18!$D$37,ROWS($D$37:D44)-1,COLUMNS($D$37:D44)-1),"") -> 1 | C30: =IF(OFFSET(DE100_18!$E$37,ROWS($E$37:E44)-1,COLUMNS($E$37:E44)-1)<>"",OFFSET(DE100_18!$E$37,ROWS($E$37:E44)-1,COLUMNS($E$37:E44)-1),"") -> 46050 | D30: =IF(OFFSET(DE100_18!$F$37,ROWS($F$37:F44)-1,COLUMNS($F$37:F44)-1)<>"",OFFSET(DE100_18!$F$37,ROWS($F$37:F44)-1,COLUMNS($F$37:F44)-1),"") -> Left | E30: =IF(OFFSET(DE100_18!$G$37,ROWS($G$37:G44)-1,COLUMNS($G$37:G44)-1)<>"",OFFSET(DE100_18!$G$37,ROWS($G$37:G44)-1,COLUMNS($G$37:G44)-1),"") -> 39 | F30: =IF(OFFSET(DE100_18!$H$37,ROWS($H$37:H44)-1,COLUMNS($H$37:H44)-1)<>"",OFFSET(DE100_18!$H$37,ROWS($H$37:H44)-1,COLUMNS($H$37:H44)-1),"") -> 3.9 | G30: =IF(OFFSET(DE100_18!$I$37,ROWS($I$37:I44)-1,COLUMNS($I$37:I44)-1)<>"",OFFSET(DE100_18!$I$37,ROWS($I$37:I44)-1,COLUMNS($I$37:I44)-1),"") -> 19.5 | H30: =IF(OFFSET(DE100_18!$J$37,ROWS($J$37:J44)-1,COLUMNS($J$37:J44)-1)<>"",OFFSET(DE100_18!$J$37,ROWS($J$37:J44)-1,COLUMNS($J$37:J44)-1),"") -> 6 | I30: =IF(OFFSET(DE100_18!$K$37,ROWS($K$37:K44)-1,COLUMNS($K$37:K44)-1)<>"",OFFSET(DE100_18!$K$37,ROWS($K$37:K44)-1,COLUMNS($K$37:K44)-1),"") -> 3 | J30: =IF(OFFSET(DE100_18!$L$37,ROWS($L$37:L44)-1,COLUMNS($L$37:L44)-1)<>"",OFFSET(DE100_18!$L$37,ROWS($L$37:L44)-1,COLUMNS($L$37:L44)-1),"") -> 8 | K30: =IF(OFFSET(DE100_18!$M$37,ROWS($M$37:M44)-1,COLUMNS($M$37:M44)-1)<>"",OFFSET(DE100_18!$M$37,ROWS($M$37:M44)-1,COLUMNS($M$37:M44)-1),"") -> 0.02 | L30: =IF(OFFSET(DE100_18!$P$37,ROWS($P$37:P44)-1,COLUMNS($P$37:P44)-1)<>"",OFFSET(DE100_18!$P$37,ROWS($P$37:P44)-1,COLUMNS($P$37:P44)-1),"") -> 707.2657688 | M30: =IF(OFFSET(DE100_18!$R$37,ROWS($R$37:R44)-1,COLUMNS($R$37:R44)-1)<>"",OFFSET(DE100_18!$R$37,ROWS($R$37:R44)-1,COLUMNS($R$37:R44)-1),"") -> 
A31: =IF(OFFSET(DE100_18!$C$37,ROWS($C$37:C45)-1,COLUMNS($C$37:C45)-1)<>"",OFFSET(DE100_18!$C$37,ROWS($C$37:C45)-1,COLUMNS($C$37:C45)-1),"") -> 1 | B31: =IF(OFFSET(DE100_18!$D$37,ROWS($D$37:D45)-1,COLUMNS($D$37:D45)-1)<>"",OFFSET(DE100_18!$D$37,ROWS($D$37:D45)-1,COLUMNS($D$37:D45)-1),"") -> 1 | C31: =IF(OFFSET(DE100_18!$E$37,ROWS($E$37:E45)-1,COLUMNS($E$37:E45)-1)<>"",OFFSET(DE100_18!$E$37,ROWS($E$37:E45)-1,COLUMNS($E$37:E45)-1),"") -> 46800 | D31: =IF(OFFSET(DE100_18!$F$37,ROWS($F$37:F45)-1,COLUMNS($F$37:F45)-1)<>"",OFFSET(DE100_18!$F$37,ROWS($F$37:F45)-1,COLUMNS($F$37:F45)-1),"") -> Left | E31: =IF(OFFSET(DE100_18!$G$37,ROWS($G$37:G45)-1,COLUMNS($G$37:G45)-1)<>"",OFFSET(DE100_18!$G$37,ROWS($G$37:G45)-1,COLUMNS($G$37:G45)-1),"") -> 39 | F31: =IF(OFFSET(DE100_18!$H$37,ROWS($H$37:H45)-1,COLUMNS($H$37:H45)-1)<>"",OFFSET(DE100_18!$H$37,ROWS($H$37:H45)-1,COLUMNS($H$37:H45)-1),"") -> 3.9 | G31: =IF(OFFSET(DE100_18!$I$37,ROWS($I$37:I45)-1,COLUMNS($I$37:I45)-1)<>"",OFFSET(DE100_18!$I$37,ROWS($I$37:I45)-1,COLUMNS($I$37:I45)-1),"") -> 19.5 | H31: =IF(OFFSET(DE100_18!$J$37,ROWS($J$37:J45)-1,COLUMNS($J$37:J45)-1)<>"",OFFSET(DE100_18!$J$37,ROWS($J$37:J45)-1,COLUMNS($J$37:J45)-1),"") -> 6 | I31: =IF(OFFSET(DE100_18!$K$37,ROWS($K$37:K45)-1,COLUMNS($K$37:K45)-1)<>"",OFFSET(DE100_18!$K$37,ROWS($K$37:K45)-1,COLUMNS($K$37:K45)-1),"") -> 3 | J31: =IF(OFFSET(DE100_18!$L$37,ROWS($L$37:L45)-1,COLUMNS($L$37:L45)-1)<>"",OFFSET(DE100_18!$L$37,ROWS($L$37:L45)-1,COLUMNS($L$37:L45)-1),"") -> 8 | K31: =IF(OFFSET(DE100_18!$M$37,ROWS($M$37:M45)-1,COLUMNS($M$37:M45)-1)<>"",OFFSET(DE100_18!$M$37,ROWS($M$37:M45)-1,COLUMNS($M$37:M45)-1),"") -> 0.02 | L31: =IF(OFFSET(DE100_18!$P$37,ROWS($P$37:P45)-1,COLUMNS($P$37:P45)-1)<>"",OFFSET(DE100_18!$P$37,ROWS($P$37:P45)-1,COLUMNS($P$37:P45)-1),"") -> 707.2657688 | M31: =IF(OFFSET(DE100_18!$R$37,ROWS($R$37:R45)-1,COLUMNS($R$37:R45)-1)<>"",OFFSET(DE100_18!$R$37,ROWS($R$37:R45)-1,COLUMNS($R$37:R45)-1),"") -> 
A32: =IF(OFFSET(DE100_18!$C$37,ROWS($C$37:C46)-1,COLUMNS($C$37:C46)-1)<>"",OFFSET(DE100_18!$C$37,ROWS($C$37:C46)-1,COLUMNS($C$37:C46)-1),"") -> 1 | B32: =IF(OFFSET(DE100_18!$D$37,ROWS($D$37:D46)-1,COLUMNS($D$37:D46)-1)<>"",OFFSET(DE100_18!$D$37,ROWS($D$37:D46)-1,COLUMNS($D$37:D46)-1),"") -> 1 | C32: =IF(OFFSET(DE100_18!$E$37,ROWS($E$37:E46)-1,COLUMNS($E$37:E46)-1)<>"",OFFSET(DE100_18!$E$37,ROWS($E$37:E46)-1,COLUMNS($E$37:E46)-1),"") -> 46950 | D32: =IF(OFFSET(DE100_18!$F$37,ROWS($F$37:F46)-1,COLUMNS($F$37:F46)-1)<>"",OFFSET(DE100_18!$F$37,ROWS($F$37:F46)-1,COLUMNS($F$37:F46)-1),"") -> Left | E32: =IF(OFFSET(DE100_18!$G$37,ROWS($G$37:G46)-1,COLUMNS($G$37:G46)-1)<>"",OFFSET(DE100_18!$G$37,ROWS($G$37:G46)-1,COLUMNS($G$37:G46)-1),"") -> 39 | F32: =IF(OFFSET(DE100_18!$H$37,ROWS($H$37:H46)-1,COLUMNS($H$37:H46)-1)<>"",OFFSET(DE100_18!$H$37,ROWS($H$37:H46)-1,COLUMNS($H$37:H46)-1),"") -> 3.9 | G32: =IF(OFFSET(DE100_18!$I$37,ROWS($I$37:I46)-1,COLUMNS($I$37:I46)-1)<>"",OFFSET(DE100_18!$I$37,ROWS($I$37:I46)-1,COLUMNS($I$37:I46)-1),"") -> 19.5 | H32: =IF(OFFSET(DE100_18!$J$37,ROWS($J$37:J46)-1,COLUMNS($J$37:J46)-1)<>"",OFFSET(DE100_18!$J$37,ROWS($J$37:J46)-1,COLUMNS($J$37:J46)-1),"") -> 6 | I32: =IF(OFFSET(DE100_18!$K$37,ROWS($K$37:K46)-1,COLUMNS($K$37:K46)-1)<>"",OFFSET(DE100_18!$K$37,ROWS($K$37:K46)-1,COLUMNS($K$37:K46)-1),"") -> 3 | J32: =IF(OFFSET(DE100_18!$L$37,ROWS($L$37:L46)-1,COLUMNS($L$37:L46)-1)<>"",OFFSET(DE100_18!$L$37,ROWS($L$37:L46)-1,COLUMNS($L$37:L46)-1),"") -> 8 | K32: =IF(OFFSET(DE100_18!$M$37,ROWS($M$37:M46)-1,COLUMNS($M$37:M46)-1)<>"",OFFSET(DE100_18!$M$37,ROWS($M$37:M46)-1,COLUMNS($M$37:M46)-1),"") -> 0.02 | L32: =IF(OFFSET(DE100_18!$P$37,ROWS($P$37:P46)-1,COLUMNS($P$37:P46)-1)<>"",OFFSET(DE100_18!$P$37,ROWS($P$37:P46)-1,COLUMNS($P$37:P46)-1),"") -> 707.2657688 | M32: =IF(OFFSET(DE100_18!$R$37,ROWS($R$37:R46)-1,COLUMNS($R$37:R46)-1)<>"",OFFSET(DE100_18!$R$37,ROWS($R$37:R46)-1,COLUMNS($R$37:R46)-1),"") -> 
A33: =IF(OFFSET(DE100_18!$C$37,ROWS($C$37:C47)-1,COLUMNS($C$37:C47)-1)<>"",OFFSET(DE100_18!$C$37,ROWS($C$37:C47)-1,COLUMNS($C$37:C47)-1),"") -> 1 | B33: =IF(OFFSET(DE100_18!$D$37,ROWS($D$37:D47)-1,COLUMNS($D$37:D47)-1)<>"",OFFSET(DE100_18!$D$37,ROWS($D$37:D47)-1,COLUMNS($D$37:D47)-1),"") -> 1 | C33: =IF(OFFSET(DE100_18!$E$37,ROWS($E$37:E47)-1,COLUMNS($E$37:E47)-1)<>"",OFFSET(DE100_18!$E$37,ROWS($E$37:E47)-1,COLUMNS($E$37:E47)-1),"") -> 47050 | D33: =IF(OFFSET(DE100_18!$F$37,ROWS($F$37:F47)-1,COLUMNS($F$37:F47)-1)<>"",OFFSET(DE100_18!$F$37,ROWS($F$37:F47)-1,COLUMNS($F$37:F47)-1),"") -> Left | E33: =IF(OFFSET(DE100_18!$G$37,ROWS($G$37:G47)-1,COLUMNS($G$37:G47)-1)<>"",OFFSET(DE100_18!$G$37,ROWS($G$37:G47)-1,COLUMNS($G$37:G47)-1),"") -> 39 | F33: =IF(OFFSET(DE100_18!$H$37,ROWS($H$37:H47)-1,COLUMNS($H$37:H47)-1)<>"",OFFSET(DE100_18!$H$37,ROWS($H$37:H47)-1,COLUMNS($H$37:H47)-1),"") -> 3.9 | G33: =IF(OFFSET(DE100_18!$I$37,ROWS($I$37:I47)-1,COLUMNS($I$37:I47)-1)<>"",OFFSET(DE100_18!$I$37,ROWS($I$37:I47)-1,COLUMNS($I$37:I47)-1),"") -> 19.5 | H33: =IF(OFFSET(DE100_18!$J$37,ROWS($J$37:J47)-1,COLUMNS($J$37:J47)-1)<>"",OFFSET(DE100_18!$J$37,ROWS($J$37:J47)-1,COLUMNS($J$37:J47)-1),"") -> 6 | I33: =IF(OFFSET(DE100_18!$K$37,ROWS($K$37:K47)-1,COLUMNS($K$37:K47)-1)<>"",OFFSET(DE100_18!$K$37,ROWS($K$37:K47)-1,COLUMNS($K$37:K47)-1),"") -> 3 | J33: =IF(OFFSET(DE100_18!$L$37,ROWS($L$37:L47)-1,COLUMNS($L$37:L47)-1)<>"",OFFSET(DE100_18!$L$37,ROWS($L$37:L47)-1,COLUMNS($L$37:L47)-1),"") -> 8 | K33: =IF(OFFSET(DE100_18!$M$37,ROWS($M$37:M47)-1,COLUMNS($M$37:M47)-1)<>"",OFFSET(DE100_18!$M$37,ROWS($M$37:M47)-1,COLUMNS($M$37:M47)-1),"") -> 0.02 | L33: =IF(OFFSET(DE100_18!$P$37,ROWS($P$37:P47)-1,COLUMNS($P$37:P47)-1)<>"",OFFSET(DE100_18!$P$37,ROWS($P$37:P47)-1,COLUMNS($P$37:P47)-1),"") -> 707.2657688 | M33: =IF(OFFSET(DE100_18!$R$37,ROWS($R$37:R47)-1,COLUMNS($R$37:R47)-1)<>"",OFFSET(DE100_18!$R$37,ROWS($R$37:R47)-1,COLUMNS($R$37:R47)-1),"") -> 
A34: =IF(OFFSET(DE100_18!$C$37,ROWS($C$37:C48)-1,COLUMNS($C$37:C48)-1)<>"",OFFSET(DE100_18!$C$37,ROWS($C$37:C48)-1,COLUMNS($C$37:C48)-1),"") -> 1 | B34: =IF(OFFSET(DE100_18!$D$37,ROWS($D$37:D48)-1,COLUMNS($D$37:D48)-1)<>"",OFFSET(DE100_18!$D$37,ROWS($D$37:D48)-1,COLUMNS($D$37:D48)-1),"") -> 1 | C34: =IF(OFFSET(DE100_18!$E$37,ROWS($E$37:E48)-1,COLUMNS($E$37:E48)-1)<>"",OFFSET(DE100_18!$E$37,ROWS($E$37:E48)-1,COLUMNS($E$37:E48)-1),"") -> 47200 | D34: =IF(OFFSET(DE100_18!$F$37,ROWS($F$37:F48)-1,COLUMNS($F$37:F48)-1)<>"",OFFSET(DE100_18!$F$37,ROWS($F$37:F48)-1,COLUMNS($F$37:F48)-1),"") -> Left | E34: =IF(OFFSET(DE100_18!$G$37,ROWS($G$37:G48)-1,COLUMNS($G$37:G48)-1)<>"",OFFSET(DE100_18!$G$37,ROWS($G$37:G48)-1,COLUMNS($G$37:G48)-1),"") -> 39 | F34: =IF(OFFSET(DE100_18!$H$37,ROWS($H$37:H48)-1,COLUMNS($H$37:H48)-1)<>"",OFFSET(DE100_18!$H$37,ROWS($H$37:H48)-1,COLUMNS($H$37:H48)-1),"") -> 3.9 | G34: =IF(OFFSET(DE100_18!$I$37,ROWS($I$37:I48)-1,COLUMNS($I$37:I48)-1)<>"",OFFSET(DE100_18!$I$37,ROWS($I$37:I48)-1,COLUMNS($I$37:I48)-1),"") -> 19.5 | H34: =IF(OFFSET(DE100_18!$J$37,ROWS($J$37:J48)-1,COLUMNS($J$37:J48)-1)<>"",OFFSET(DE100_18!$J$37,ROWS($J$37:J48)-1,COLUMNS($J$37:J48)-1),"") -> 6 | I34: =IF(OFFSET(DE100_18!$K$37,ROWS($K$37:K48)-1,COLUMNS($K$37:K48)-1)<>"",OFFSET(DE100_18!$K$37,ROWS($K$37:K48)-1,COLUMNS($K$37:K48)-1),"") -> 3 | J34: =IF(OFFSET(DE100_18!$L$37,ROWS($L$37:L48)-1,COLUMNS($L$37:L48)-1)<>"",OFFSET(DE100_18!$L$37,ROWS($L$37:L48)-1,COLUMNS($L$37:L48)-1),"") -> 8 | K34: =IF(OFFSET(DE100_18!$M$37,ROWS($M$37:M48)-1,COLUMNS($M$37:M48)-1)<>"",OFFSET(DE100_18!$M$37,ROWS($M$37:M48)-1,COLUMNS($M$37:M48)-1),"") -> 0.02 | L34: =IF(OFFSET(DE100_18!$P$37,ROWS($P$37:P48)-1,COLUMNS($P$37:P48)-1)<>"",OFFSET(DE100_18!$P$37,ROWS($P$37:P48)-1,COLUMNS($P$37:P48)-1),"") -> 707.2657688 | M34: =IF(OFFSET(DE100_18!$R$37,ROWS($R$37:R48)-1,COLUMNS($R$37:R48)-1)<>"",OFFSET(DE100_18!$R$37,ROWS($R$37:R48)-1,COLUMNS($R$37:R48)-1),"") -> 
A35: =IF(OFFSET(DE100_18!$C$37,ROWS($C$37:C49)-1,COLUMNS($C$37:C49)-1)<>"",OFFSET(DE100_18!$C$37,ROWS($C$37:C49)-1,COLUMNS($C$37:C49)-1),"") -> 1 | B35: =IF(OFFSET(DE100_18!$D$37,ROWS($D$37:D49)-1,COLUMNS($D$37:D49)-1)<>"",OFFSET(DE100_18!$D$37,ROWS($D$37:D49)-1,COLUMNS($D$37:D49)-1),"") -> 1 | C35: =IF(OFFSET(DE100_18!$E$37,ROWS($E$37:E49)-1,COLUMNS($E$37:E49)-1)<>"",OFFSET(DE100_18!$E$37,ROWS($E$37:E49)-1,COLUMNS($E$37:E49)-1),"") -> 47350 | D35: =IF(OFFSET(DE100_18!$F$37,ROWS($F$37:F49)-1,COLUMNS($F$37:F49)-1)<>"",OFFSET(DE100_18!$F$37,ROWS($F$37:F49)-1,COLUMNS($F$37:F49)-1),"") -> Left | E35: =IF(OFFSET(DE100_18!$G$37,ROWS($G$37:G49)-1,COLUMNS($G$37:G49)-1)<>"",OFFSET(DE100_18!$G$37,ROWS($G$37:G49)-1,COLUMNS($G$37:G49)-1),"") -> 39 | F35: =IF(OFFSET(DE100_18!$H$37,ROWS($H$37:H49)-1,COLUMNS($H$37:H49)-1)<>"",OFFSET(DE100_18!$H$37,ROWS($H$37:H49)-1,COLUMNS($H$37:H49)-1),"") -> 3.9 | G35: =IF(OFFSET(DE100_18!$I$37,ROWS($I$37:I49)-1,COLUMNS($I$37:I49)-1)<>"",OFFSET(DE100_18!$I$37,ROWS($I$37:I49)-1,COLUMNS($I$37:I49)-1),"") -> 19.5 | H35: =IF(OFFSET(DE100_18!$J$37,ROWS($J$37:J49)-1,COLUMNS($J$37:J49)-1)<>"",OFFSET(DE100_18!$J$37,ROWS($J$37:J49)-1,COLUMNS($J$37:J49)-1),"") -> 6 | I35: =IF(OFFSET(DE100_18!$K$37,ROWS($K$37:K49)-1,COLUMNS($K$37:K49)-1)<>"",OFFSET(DE100_18!$K$37,ROWS($K$37:K49)-1,COLUMNS($K$37:K49)-1),"") -> 3 | J35: =IF(OFFSET(DE100_18!$L$37,ROWS($L$37:L49)-1,COLUMNS($L$37:L49)-1)<>"",OFFSET(DE100_18!$L$37,ROWS($L$37:L49)-1,COLUMNS($L$37:L49)-1),"") -> 8 | K35: =IF(OFFSET(DE100_18!$M$37,ROWS($M$37:M49)-1,COLUMNS($M$37:M49)-1)<>"",OFFSET(DE100_18!$M$37,ROWS($M$37:M49)-1,COLUMNS($M$37:M49)-1),"") -> 0.02 | L35: =IF(OFFSET(DE100_18!$P$37,ROWS($P$37:P49)-1,COLUMNS($P$37:P49)-1)<>"",OFFSET(DE100_18!$P$37,ROWS($P$37:P49)-1,COLUMNS($P$37:P49)-1),"") -> 707.2657688 | M35: =IF(OFFSET(DE100_18!$R$37,ROWS($R$37:R49)-1,COLUMNS($R$37:R49)-1)<>"",OFFSET(DE100_18!$R$37,ROWS($R$37:R49)-1,COLUMNS($R$37:R49)-1),"") -> 
A36: =IF(OFFSET(DE100_18!$C$37,ROWS($C$37:C50)-1,COLUMNS($C$37:C50)-1)<>"",OFFSET(DE100_18!$C$37,ROWS($C$37:C50)-1,COLUMNS($C$37:C50)-1),"") -> 1 | B36: =IF(OFFSET(DE100_18!$D$37,ROWS($D$37:D50)-1,COLUMNS($D$37:D50)-1)<>"",OFFSET(DE100_18!$D$37,ROWS($D$37:D50)-1,COLUMNS($D$37:D50)-1),"") -> 1 | C36: =IF(OFFSET(DE100_18!$E$37,ROWS($E$37:E50)-1,COLUMNS($E$37:E50)-1)<>"",OFFSET(DE100_18!$E$37,ROWS($E$37:E50)-1,COLUMNS($E$37:E50)-1),"") -> 44500 | D36: =IF(OFFSET(DE100_18!$F$37,ROWS($F$37:F50)-1,COLUMNS($F$37:F50)-1)<>"",OFFSET(DE100_18!$F$37,ROWS($F$37:F50)-1,COLUMNS($F$37:F50)-1),"") -> Right | E36: =IF(OFFSET(DE100_18!$G$37,ROWS($G$37:G50)-1,COLUMNS($G$37:G50)-1)<>"",OFFSET(DE100_18!$G$37,ROWS($G$37:G50)-1,COLUMNS($G$37:G50)-1),"") -> 39 | F36: =IF(OFFSET(DE100_18!$H$37,ROWS($H$37:H50)-1,COLUMNS($H$37:H50)-1)<>"",OFFSET(DE100_18!$H$37,ROWS($H$37:H50)-1,COLUMNS($H$37:H50)-1),"") -> 3.9 | G36: =IF(OFFSET(DE100_18!$I$37,ROWS($I$37:I50)-1,COLUMNS($I$37:I50)-1)<>"",OFFSET(DE100_18!$I$37,ROWS($I$37:I50)-1,COLUMNS($I$37:I50)-1),"") -> 19.5 | H36: =IF(OFFSET(DE100_18!$J$37,ROWS($J$37:J50)-1,COLUMNS($J$37:J50)-1)<>"",OFFSET(DE100_18!$J$37,ROWS($J$37:J50)-1,COLUMNS($J$37:J50)-1),"") -> 6 | I36: =IF(OFFSET(DE100_18!$K$37,ROWS($K$37:K50)-1,COLUMNS($K$37:K50)-1)<>"",OFFSET(DE100_18!$K$37,ROWS($K$37:K50)-1,COLUMNS($K$37:K50)-1),"") -> 3 | J36: =IF(OFFSET(DE100_18!$L$37,ROWS($L$37:L50)-1,COLUMNS($L$37:L50)-1)<>"",OFFSET(DE100_18!$L$37,ROWS($L$37:L50)-1,COLUMNS($L$37:L50)-1),"") -> 8 | K36: =IF(OFFSET(DE100_18!$M$37,ROWS($M$37:M50)-1,COLUMNS($M$37:M50)-1)<>"",OFFSET(DE100_18!$M$37,ROWS($M$37:M50)-1,COLUMNS($M$37:M50)-1),"") -> 0.013 | L36: =IF(OFFSET(DE100_18!$P$37,ROWS($P$37:P50)-1,COLUMNS($P$37:P50)-1)<>"",OFFSET(DE100_18!$P$37,ROWS($P$37:P50)-1,COLUMNS($P$37:P50)-1),"") -> 943.021025 | M36: =IF(OFFSET(DE100_18!$R$37,ROWS($R$37:R50)-1,COLUMNS($R$37:R50)-1)<>"",OFFSET(DE100_18!$R$37,ROWS($R$37:R50)-1,COLUMNS($R$37:R50)-1),"") -> 
A37: =IF(OFFSET(DE100_18!$C$37,ROWS($C$37:C51)-1,COLUMNS($C$37:C51)-1)<>"",OFFSET(DE100_18!$C$37,ROWS($C$37:C51)-1,COLUMNS($C$37:C51)-1),"") -> 1 | B37: =IF(OFFSET(DE100_18!$D$37,ROWS($D$37:D51)-1,COLUMNS($D$37:D51)-1)<>"",OFFSET(DE100_18!$D$37,ROWS($D$37:D51)-1,COLUMNS($D$37:D51)-1),"") -> 1 | C37: =IF(OFFSET(DE100_18!$E$37,ROWS($E$37:E51)-1,COLUMNS($E$37:E51)-1)<>"",OFFSET(DE100_18!$E$37,ROWS($E$37:E51)-1,COLUMNS($E$37:E51)-1),"") -> 44650 | D37: =IF(OFFSET(DE100_18!$F$37,ROWS($F$37:F51)-1,COLUMNS($F$37:F51)-1)<>"",OFFSET(DE100_18!$F$37,ROWS($F$37:F51)-1,COLUMNS($F$37:F51)-1),"") -> Right | E37: =IF(OFFSET(DE100_18!$G$37,ROWS($G$37:G51)-1,COLUMNS($G$37:G51)-1)<>"",OFFSET(DE100_18!$G$37,ROWS($G$37:G51)-1,COLUMNS($G$37:G51)-1),"") -> 39 | F37: =IF(OFFSET(DE100_18!$H$37,ROWS($H$37:H51)-1,COLUMNS($H$37:H51)-1)<>"",OFFSET(DE100_18!$H$37,ROWS($H$37:H51)-1,COLUMNS($H$37:H51)-1),"") -> 3.9 | G37: =IF(OFFSET(DE100_18!$I$37,ROWS($I$37:I51)-1,COLUMNS($I$37:I51)-1)<>"",OFFSET(DE100_18!$I$37,ROWS($I$37:I51)-1,COLUMNS($I$37:I51)-1),"") -> 19.5 | H37: =IF(OFFSET(DE100_18!$J$37,ROWS($J$37:J51)-1,COLUMNS($J$37:J51)-1)<>"",OFFSET(DE100_18!$J$37,ROWS($J$37:J51)-1,COLUMNS($J$37:J51)-1),"") -> 6 | I37: =IF(OFFSET(DE100_18!$K$37,ROWS($K$37:K51)-1,COLUMNS($K$37:K51)-1)<>"",OFFSET(DE100_18!$K$37,ROWS($K$37:K51)-1,COLUMNS($K$37:K51)-1),"") -> 3 | J37: =IF(OFFSET(DE100_18!$L$37,ROWS($L$37:L51)-1,COLUMNS($L$37:L51)-1)<>"",OFFSET(DE100_18!$L$37,ROWS($L$37:L51)-1,COLUMNS($L$37:L51)-1),"") -> 8 | K37: =IF(OFFSET(DE100_18!$M$37,ROWS($M$37:M51)-1,COLUMNS($M$37:M51)-1)<>"",OFFSET(DE100_18!$M$37,ROWS($M$37:M51)-1,COLUMNS($M$37:M51)-1),"") -> 0.013 | L37: =IF(OFFSET(DE100_18!$P$37,ROWS($P$37:P51)-1,COLUMNS($P$37:P51)-1)<>"",OFFSET(DE100_18!$P$37,ROWS($P$37:P51)-1,COLUMNS($P$37:P51)-1),"") -> 943.021025 | M37: =IF(OFFSET(DE100_18!$R$37,ROWS($R$37:R51)-1,COLUMNS($R$37:R51)-1)<>"",OFFSET(DE100_18!$R$37,ROWS($R$37:R51)-1,COLUMNS($R$37:R51)-1),"") -> 
A38: =IF(OFFSET(DE100_18!$C$37,ROWS($C$37:C52)-1,COLUMNS($C$37:C52)-1)<>"",OFFSET(DE100_18!$C$37,ROWS($C$37:C52)-1,COLUMNS($C$37:C52)-1),"") -> 1 | B38: =IF(OFFSET(DE100_18!$D$37,ROWS($D$37:D52)-1,COLUMNS($D$37:D52)-1)<>"",OFFSET(DE100_18!$D$37,ROWS($D$37:D52)-1,COLUMNS($D$37:D52)-1),"") -> 1 | C38: =IF(OFFSET(DE100_18!$E$37,ROWS($E$37:E52)-1,COLUMNS($E$37:E52)-1)<>"",OFFSET(DE100_18!$E$37,ROWS($E$37:E52)-1,COLUMNS($E$37:E52)-1),"") -> 44800 | D38: =IF(OFFSET(DE100_18!$F$37,ROWS($F$37:F52)-1,COLUMNS($F$37:F52)-1)<>"",OFFSET(DE100_18!$F$37,ROWS($F$37:F52)-1,COLUMNS($F$37:F52)-1),"") -> Right | E38: =IF(OFFSET(DE100_18!$G$37,ROWS($G$37:G52)-1,COLUMNS($G$37:G52)-1)<>"",OFFSET(DE100_18!$G$37,ROWS($G$37:G52)-1,COLUMNS($G$37:G52)-1),"") -> 39 | F38: =IF(OFFSET(DE100_18!$H$37,ROWS($H$37:H52)-1,COLUMNS($H$37:H52)-1)<>"",OFFSET(DE100_18!$H$37,ROWS($H$37:H52)-1,COLUMNS($H$37:H52)-1),"") -> 3.9 | G38: =IF(OFFSET(DE100_18!$I$37,ROWS($I$37:I52)-1,COLUMNS($I$37:I52)-1)<>"",OFFSET(DE100_18!$I$37,ROWS($I$37:I52)-1,COLUMNS($I$37:I52)-1),"") -> 19.5 | H38: =IF(OFFSET(DE100_18!$J$37,ROWS($J$37:J52)-1,COLUMNS($J$37:J52)-1)<>"",OFFSET(DE100_18!$J$37,ROWS($J$37:J52)-1,COLUMNS($J$37:J52)-1),"") -> 6 | I38: =IF(OFFSET(DE100_18!$K$37,ROWS($K$37:K52)-1,COLUMNS($K$37:K52)-1)<>"",OFFSET(DE100_18!$K$37,ROWS($K$37:K52)-1,COLUMNS($K$37:K52)-1),"") -> 3 | J38: =IF(OFFSET(DE100_18!$L$37,ROWS($L$37:L52)-1,COLUMNS($L$37:L52)-1)<>"",OFFSET(DE100_18!$L$37,ROWS($L$37:L52)-1,COLUMNS($L$37:L52)-1),"") -> 8 | K38: =IF(OFFSET(DE100_18!$M$37,ROWS($M$37:M52)-1,COLUMNS($M$37:M52)-1)<>"",OFFSET(DE100_18!$M$37,ROWS($M$37:M52)-1,COLUMNS($M$37:M52)-1),"") -> 0.013 | L38: =IF(OFFSET(DE100_18!$P$37,ROWS($P$37:P52)-1,COLUMNS($P$37:P52)-1)<>"",OFFSET(DE100_18!$P$37,ROWS($P$37:P52)-1,COLUMNS($P$37:P52)-1),"") -> 943.021025 | M38: =IF(OFFSET(DE100_18!$R$37,ROWS($R$37:R52)-1,COLUMNS($R$37:R52)-1)<>"",OFFSET(DE100_18!$R$37,ROWS($R$37:R52)-1,COLUMNS($R$37:R52)-1),"") -> 
A39: =IF(OFFSET(DE100_18!$C$37,ROWS($C$37:C53)-1,COLUMNS($C$37:C53)-1)<>"",OFFSET(DE100_18!$C$37,ROWS($C$37:C53)-1,COLUMNS($C$37:C53)-1),"") -> 1 | B39: =IF(OFFSET(DE100_18!$D$37,ROWS($D$37:D53)-1,COLUMNS($D$37:D53)-1)<>"",OFFSET(DE100_18!$D$37,ROWS($D$37:D53)-1,COLUMNS($D$37:D53)-1),"") -> 1 | C39: =IF(OFFSET(DE100_18!$E$37,ROWS($E$37:E53)-1,COLUMNS($E$37:E53)-1)<>"",OFFSET(DE100_18!$E$37,ROWS($E$37:E53)-1,COLUMNS($E$37:E53)-1),"") -> 44950 | D39: =IF(OFFSET(DE100_18!$F$37,ROWS($F$37:F53)-1,COLUMNS($F$37:F53)-1)<>"",OFFSET(DE100_18!$F$37,ROWS($F$37:F53)-1,COLUMNS($F$37:F53)-1),"") -> Right | E39: =IF(OFFSET(DE100_18!$G$37,ROWS($G$37:G53)-1,COLUMNS($G$37:G53)-1)<>"",OFFSET(DE100_18!$G$37,ROWS($G$37:G53)-1,COLUMNS($G$37:G53)-1),"") -> 39 | F39: =IF(OFFSET(DE100_18!$H$37,ROWS($H$37:H53)-1,COLUMNS($H$37:H53)-1)<>"",OFFSET(DE100_18!$H$37,ROWS($H$37:H53)-1,COLUMNS($H$37:H53)-1),"") -> 3.9 | G39: =IF(OFFSET(DE100_18!$I$37,ROWS($I$37:I53)-1,COLUMNS($I$37:I53)-1)<>"",OFFSET(DE100_18!$I$37,ROWS($I$37:I53)-1,COLUMNS($I$37:I53)-1),"") -> 19.5 | H39: =IF(OFFSET(DE100_18!$J$37,ROWS($J$37:J53)-1,COLUMNS($J$37:J53)-1)<>"",OFFSET(DE100_18!$J$37,ROWS($J$37:J53)-1,COLUMNS($J$37:J53)-1),"") -> 6 | I39: =IF(OFFSET(DE100_18!$K$37,ROWS($K$37:K53)-1,COLUMNS($K$37:K53)-1)<>"",OFFSET(DE100_18!$K$37,ROWS($K$37:K53)-1,COLUMNS($K$37:K53)-1),"") -> 3 | J39: =IF(OFFSET(DE100_18!$L$37,ROWS($L$37:L53)-1,COLUMNS($L$37:L53)-1)<>"",OFFSET(DE100_18!$L$37,ROWS($L$37:L53)-1,COLUMNS($L$37:L53)-1),"") -> 8 | K39: =IF(OFFSET(DE100_18!$M$37,ROWS($M$37:M53)-1,COLUMNS($M$37:M53)-1)<>"",OFFSET(DE100_18!$M$37,ROWS($M$37:M53)-1,COLUMNS($M$37:M53)-1),"") -> 0.013 | L39: =IF(OFFSET(DE100_18!$P$37,ROWS($P$37:P53)-1,COLUMNS($P$37:P53)-1)<>"",OFFSET(DE100_18!$P$37,ROWS($P$37:P53)-1,COLUMNS($P$37:P53)-1),"") -> 943.021025 | M39: =IF(OFFSET(DE100_18!$R$37,ROWS($R$37:R53)-1,COLUMNS($R$37:R53)-1)<>"",OFFSET(DE100_18!$R$37,ROWS($R$37:R53)-1,COLUMNS($R$37:R53)-1),"") -> 
A40: =IF(OFFSET(DE100_18!$C$37,ROWS($C$37:C54)-1,COLUMNS($C$37:C54)-1)<>"",OFFSET(DE100_18!$C$37,ROWS($C$37:C54)-1,COLUMNS($C$37:C54)-1),"") -> 1 | B40: =IF(OFFSET(DE100_18!$D$37,ROWS($D$37:D54)-1,COLUMNS($D$37:D54)-1)<>"",OFFSET(DE100_18!$D$37,ROWS($D$37:D54)-1,COLUMNS($D$37:D54)-1),"") -> 1 | C40: =IF(OFFSET(DE100_18!$E$37,ROWS($E$37:E54)-1,COLUMNS($E$37:E54)-1)<>"",OFFSET(DE100_18!$E$37,ROWS($E$37:E54)-1,COLUMNS($E$37:E54)-1),"") -> 45100 | D40: =IF(OFFSET(DE100_18!$F$37,ROWS($F$37:F54)-1,COLUMNS($F$37:F54)-1)<>"",OFFSET(DE100_18!$F$37,ROWS($F$37:F54)-1,COLUMNS($F$37:F54)-1),"") -> Right | E40: =IF(OFFSET(DE100_18!$G$37,ROWS($G$37:G54)-1,COLUMNS($G$37:G54)-1)<>"",OFFSET(DE100_18!$G$37,ROWS($G$37:G54)-1,COLUMNS($G$37:G54)-1),"") -> 39 | F40: =IF(OFFSET(DE100_18!$H$37,ROWS($H$37:H54)-1,COLUMNS($H$37:H54)-1)<>"",OFFSET(DE100_18!$H$37,ROWS($H$37:H54)-1,COLUMNS($H$37:H54)-1),"") -> 3.9 | G40: =IF(OFFSET(DE100_18!$I$37,ROWS($I$37:I54)-1,COLUMNS($I$37:I54)-1)<>"",OFFSET(DE100_18!$I$37,ROWS($I$37:I54)-1,COLUMNS($I$37:I54)-1),"") -> 19.5 | H40: =IF(OFFSET(DE100_18!$J$37,ROWS($J$37:J54)-1,COLUMNS($J$37:J54)-1)<>"",OFFSET(DE100_18!$J$37,ROWS($J$37:J54)-1,COLUMNS($J$37:J54)-1),"") -> 6 | I40: =IF(OFFSET(DE100_18!$K$37,ROWS($K$37:K54)-1,COLUMNS($K$37:K54)-1)<>"",OFFSET(DE100_18!$K$37,ROWS($K$37:K54)-1,COLUMNS($K$37:K54)-1),"") -> 3 | J40: =IF(OFFSET(DE100_18!$L$37,ROWS($L$37:L54)-1,COLUMNS($L$37:L54)-1)<>"",OFFSET(DE100_18!$L$37,ROWS($L$37:L54)-1,COLUMNS($L$37:L54)-1),"") -> 8 | K40: =IF(OFFSET(DE100_18!$M$37,ROWS($M$37:M54)-1,COLUMNS($M$37:M54)-1)<>"",OFFSET(DE100_18!$M$37,ROWS($M$37:M54)-1,COLUMNS($M$37:M54)-1),"") -> 0.013 | L40: =IF(OFFSET(DE100_18!$P$37,ROWS($P$37:P54)-1,COLUMNS($P$37:P54)-1)<>"",OFFSET(DE100_18!$P$37,ROWS($P$37:P54)-1,COLUMNS($P$37:P54)-1),"") -> 943.021025 | M40: =IF(OFFSET(DE100_18!$R$37,ROWS($R$37:R54)-1,COLUMNS($R$37:R54)-1)<>"",OFFSET(DE100_18!$R$37,ROWS($R$37:R54)-1,COLUMNS($R$37:R54)-1),"") -> 
A41: =IF(OFFSET(DE100_18!$C$37,ROWS($C$37:C55)-1,COLUMNS($C$37:C55)-1)<>"",OFFSET(DE100_18!$C$37,ROWS($C$37:C55)-1,COLUMNS($C$37:C55)-1),"") -> 1 | B41: =IF(OFFSET(DE100_18!$D$37,ROWS($D$37:D55)-1,COLUMNS($D$37:D55)-1)<>"",OFFSET(DE100_18!$D$37,ROWS($D$37:D55)-1,COLUMNS($D$37:D55)-1),"") -> 1 | C41: =IF(OFFSET(DE100_18!$E$37,ROWS($E$37:E55)-1,COLUMNS($E$37:E55)-1)<>"",OFFSET(DE100_18!$E$37,ROWS($E$37:E55)-1,COLUMNS($E$37:E55)-1),"") -> 45250 | D41: =IF(OFFSET(DE100_18!$F$37,ROWS($F$37:F55)-1,COLUMNS($F$37:F55)-1)<>"",OFFSET(DE100_18!$F$37,ROWS($F$37:F55)-1,COLUMNS($F$37:F55)-1),"") -> Right | E41: =IF(OFFSET(DE100_18!$G$37,ROWS($G$37:G55)-1,COLUMNS($G$37:G55)-1)<>"",OFFSET(DE100_18!$G$37,ROWS($G$37:G55)-1,COLUMNS($G$37:G55)-1),"") -> 39 | F41: =IF(OFFSET(DE100_18!$H$37,ROWS($H$37:H55)-1,COLUMNS($H$37:H55)-1)<>"",OFFSET(DE100_18!$H$37,ROWS($H$37:H55)-1,COLUMNS($H$37:H55)-1),"") -> 3.9 | G41: =IF(OFFSET(DE100_18!$I$37,ROWS($I$37:I55)-1,COLUMNS($I$37:I55)-1)<>"",OFFSET(DE100_18!$I$37,ROWS($I$37:I55)-1,COLUMNS($I$37:I55)-1),"") -> 19.5 | H41: =IF(OFFSET(DE100_18!$J$37,ROWS($J$37:J55)-1,COLUMNS($J$37:J55)-1)<>"",OFFSET(DE100_18!$J$37,ROWS($J$37:J55)-1,COLUMNS($J$37:J55)-1),"") -> 6 | I41: =IF(OFFSET(DE100_18!$K$37,ROWS($K$37:K55)-1,COLUMNS($K$37:K55)-1)<>"",OFFSET(DE100_18!$K$37,ROWS($K$37:K55)-1,COLUMNS($K$37:K55)-1),"") -> 3 | J41: =IF(OFFSET(DE100_18!$L$37,ROWS($L$37:L55)-1,COLUMNS($L$37:L55)-1)<>"",OFFSET(DE100_18!$L$37,ROWS($L$37:L55)-1,COLUMNS($L$37:L55)-1),"") -> 8 | K41: =IF(OFFSET(DE100_18!$M$37,ROWS($M$37:M55)-1,COLUMNS($M$37:M55)-1)<>"",OFFSET(DE100_18!$M$37,ROWS($M$37:M55)-1,COLUMNS($M$37:M55)-1),"") -> 0.013 | L41: =IF(OFFSET(DE100_18!$P$37,ROWS($P$37:P55)-1,COLUMNS($P$37:P55)-1)<>"",OFFSET(DE100_18!$P$37,ROWS($P$37:P55)-1,COLUMNS($P$37:P55)-1),"") -> 943.021025 | M41: =IF(OFFSET(DE100_18!$R$37,ROWS($R$37:R55)-1,COLUMNS($R$37:R55)-1)<>"",OFFSET(DE100_18!$R$37,ROWS($R$37:R55)-1,COLUMNS($R$37:R55)-1),"") -> 
A42: =IF(OFFSET(DE100_18!$C$37,ROWS($C$37:C56)-1,COLUMNS($C$37:C56)-1)<>"",OFFSET(DE100_18!$C$37,ROWS($C$37:C56)-1,COLUMNS($C$37:C56)-1),"") -> 1 | B42: =IF(OFFSET(DE100_18!$D$37,ROWS($D$37:D56)-1,COLUMNS($D$37:D56)-1)<>"",OFFSET(DE100_18!$D$37,ROWS($D$37:D56)-1,COLUMNS($D$37:D56)-1),"") -> 1 | C42: =IF(OFFSET(DE100_18!$E$37,ROWS($E$37:E56)-1,COLUMNS($E$37:E56)-1)<>"",OFFSET(DE100_18!$E$37,ROWS($E$37:E56)-1,COLUMNS($E$37:E56)-1),"") -> 45400 | D42: =IF(OFFSET(DE100_18!$F$37,ROWS($F$37:F56)-1,COLUMNS($F$37:F56)-1)<>"",OFFSET(DE100_18!$F$37,ROWS($F$37:F56)-1,COLUMNS($F$37:F56)-1),"") -> Right | E42: =IF(OFFSET(DE100_18!$G$37,ROWS($G$37:G56)-1,COLUMNS($G$37:G56)-1)<>"",OFFSET(DE100_18!$G$37,ROWS($G$37:G56)-1,COLUMNS($G$37:G56)-1),"") -> 39 | F42: =IF(OFFSET(DE100_18!$H$37,ROWS($H$37:H56)-1,COLUMNS($H$37:H56)-1)<>"",OFFSET(DE100_18!$H$37,ROWS($H$37:H56)-1,COLUMNS($H$37:H56)-1),"") -> 3.9 | G42: =IF(OFFSET(DE100_18!$I$37,ROWS($I$37:I56)-1,COLUMNS($I$37:I56)-1)<>"",OFFSET(DE100_18!$I$37,ROWS($I$37:I56)-1,COLUMNS($I$37:I56)-1),"") -> 19.5 | H42: =IF(OFFSET(DE100_18!$J$37,ROWS($J$37:J56)-1,COLUMNS($J$37:J56)-1)<>"",OFFSET(DE100_18!$J$37,ROWS($J$37:J56)-1,COLUMNS($J$37:J56)-1),"") -> 6 | I42: =IF(OFFSET(DE100_18!$K$37,ROWS($K$37:K56)-1,COLUMNS($K$37:K56)-1)<>"",OFFSET(DE100_18!$K$37,ROWS($K$37:K56)-1,COLUMNS($K$37:K56)-1),"") -> 3 | J42: =IF(OFFSET(DE100_18!$L$37,ROWS($L$37:L56)-1,COLUMNS($L$37:L56)-1)<>"",OFFSET(DE100_18!$L$37,ROWS($L$37:L56)-1,COLUMNS($L$37:L56)-1),"") -> 8 | K42: =IF(OFFSET(DE100_18!$M$37,ROWS($M$37:M56)-1,COLUMNS($M$37:M56)-1)<>"",OFFSET(DE100_18!$M$37,ROWS($M$37:M56)-1,COLUMNS($M$37:M56)-1),"") -> 0.013 | L42: =IF(OFFSET(DE100_18!$P$37,ROWS($P$37:P56)-1,COLUMNS($P$37:P56)-1)<>"",OFFSET(DE100_18!$P$37,ROWS($P$37:P56)-1,COLUMNS($P$37:P56)-1),"") -> 943.021025 | M42: =IF(OFFSET(DE100_18!$R$37,ROWS($R$37:R56)-1,COLUMNS($R$37:R56)-1)<>"",OFFSET(DE100_18!$R$37,ROWS($R$37:R56)-1,COLUMNS($R$37:R56)-1),"") -> 
A43: =IF(OFFSET(DE100_18!$C$37,ROWS($C$37:C57)-1,COLUMNS($C$37:C57)-1)<>"",OFFSET(DE100_18!$C$37,ROWS($C$37:C57)-1,COLUMNS($C$37:C57)-1),"") -> 1 | B43: =IF(OFFSET(DE100_18!$D$37,ROWS($D$37:D57)-1,COLUMNS($D$37:D57)-1)<>"",OFFSET(DE100_18!$D$37,ROWS($D$37:D57)-1,COLUMNS($D$37:D57)-1),"") -> 1 | C43: =IF(OFFSET(DE100_18!$E$37,ROWS($E$37:E57)-1,COLUMNS($E$37:E57)-1)<>"",OFFSET(DE100_18!$E$37,ROWS($E$37:E57)-1,COLUMNS($E$37:E57)-1),"") -> 45650 | D43: =IF(OFFSET(DE100_18!$F$37,ROWS($F$37:F57)-1,COLUMNS($F$37:F57)-1)<>"",OFFSET(DE100_18!$F$37,ROWS($F$37:F57)-1,COLUMNS($F$37:F57)-1),"") -> Right | E43: =IF(OFFSET(DE100_18!$G$37,ROWS($G$37:G57)-1,COLUMNS($G$37:G57)-1)<>"",OFFSET(DE100_18!$G$37,ROWS($G$37:G57)-1,COLUMNS($G$37:G57)-1),"") -> 39 | F43: =IF(OFFSET(DE100_18!$H$37,ROWS($H$37:H57)-1,COLUMNS($H$37:H57)-1)<>"",OFFSET(DE100_18!$H$37,ROWS($H$37:H57)-1,COLUMNS($H$37:H57)-1),"") -> 3.9 | G43: =IF(OFFSET(DE100_18!$I$37,ROWS($I$37:I57)-1,COLUMNS($I$37:I57)-1)<>"",OFFSET(DE100_18!$I$37,ROWS($I$37:I57)-1,COLUMNS($I$37:I57)-1),"") -> 19.5 | H43: =IF(OFFSET(DE100_18!$J$37,ROWS($J$37:J57)-1,COLUMNS($J$37:J57)-1)<>"",OFFSET(DE100_18!$J$37,ROWS($J$37:J57)-1,COLUMNS($J$37:J57)-1),"") -> 6 | I43: =IF(OFFSET(DE100_18!$K$37,ROWS($K$37:K57)-1,COLUMNS($K$37:K57)-1)<>"",OFFSET(DE100_18!$K$37,ROWS($K$37:K57)-1,COLUMNS($K$37:K57)-1),"") -> 3 | J43: =IF(OFFSET(DE100_18!$L$37,ROWS($L$37:L57)-1,COLUMNS($L$37:L57)-1)<>"",OFFSET(DE100_18!$L$37,ROWS($L$37:L57)-1,COLUMNS($L$37:L57)-1),"") -> 8 | K43: =IF(OFFSET(DE100_18!$M$37,ROWS($M$37:M57)-1,COLUMNS($M$37:M57)-1)<>"",OFFSET(DE100_18!$M$37,ROWS($M$37:M57)-1,COLUMNS($M$37:M57)-1),"") -> 0.013 | L43: =IF(OFFSET(DE100_18!$P$37,ROWS($P$37:P57)-1,COLUMNS($P$37:P57)-1)<>"",OFFSET(DE100_18!$P$37,ROWS($P$37:P57)-1,COLUMNS($P$37:P57)-1),"") -> 943.021025 | M43: =IF(OFFSET(DE100_18!$R$37,ROWS($R$37:R57)-1,COLUMNS($R$37:R57)-1)<>"",OFFSET(DE100_18!$R$37,ROWS($R$37:R57)-1,COLUMNS($R$37:R57)-1),"") -> 
A44: =IF(OFFSET(DE100_18!$C$37,ROWS($C$37:C58)-1,COLUMNS($C$37:C58)-1)<>"",OFFSET(DE100_18!$C$37,ROWS($C$37:C58)-1,COLUMNS($C$37:C58)-1),"") -> 1 | B44: =IF(OFFSET(DE100_18!$D$37,ROWS($D$37:D58)-1,COLUMNS($D$37:D58)-1)<>"",OFFSET(DE100_18!$D$37,ROWS($D$37:D58)-1,COLUMNS($D$37:D58)-1),"") -> 1 | C44: =IF(OFFSET(DE100_18!$E$37,ROWS($E$37:E58)-1,COLUMNS($E$37:E58)-1)<>"",OFFSET(DE100_18!$E$37,ROWS($E$37:E58)-1,COLUMNS($E$37:E58)-1),"") -> 45750 | D44: =IF(OFFSET(DE100_18!$F$37,ROWS($F$37:F58)-1,COLUMNS($F$37:F58)-1)<>"",OFFSET(DE100_18!$F$37,ROWS($F$37:F58)-1,COLUMNS($F$37:F58)-1),"") -> Right | E44: =IF(OFFSET(DE100_18!$G$37,ROWS($G$37:G58)-1,COLUMNS($G$37:G58)-1)<>"",OFFSET(DE100_18!$G$37,ROWS($G$37:G58)-1,COLUMNS($G$37:G58)-1),"") -> 39 | F44: =IF(OFFSET(DE100_18!$H$37,ROWS($H$37:H58)-1,COLUMNS($H$37:H58)-1)<>"",OFFSET(DE100_18!$H$37,ROWS($H$37:H58)-1,COLUMNS($H$37:H58)-1),"") -> 3.9 | G44: =IF(OFFSET(DE100_18!$I$37,ROWS($I$37:I58)-1,COLUMNS($I$37:I58)-1)<>"",OFFSET(DE100_18!$I$37,ROWS($I$37:I58)-1,COLUMNS($I$37:I58)-1),"") -> 19.5 | H44: =IF(OFFSET(DE100_18!$J$37,ROWS($J$37:J58)-1,COLUMNS($J$37:J58)-1)<>"",OFFSET(DE100_18!$J$37,ROWS($J$37:J58)-1,COLUMNS($J$37:J58)-1),"") -> 6 | I44: =IF(OFFSET(DE100_18!$K$37,ROWS($K$37:K58)-1,COLUMNS($K$37:K58)-1)<>"",OFFSET(DE100_18!$K$37,ROWS($K$37:K58)-1,COLUMNS($K$37:K58)-1),"") -> 3 | J44: =IF(OFFSET(DE100_18!$L$37,ROWS($L$37:L58)-1,COLUMNS($L$37:L58)-1)<>"",OFFSET(DE100_18!$L$37,ROWS($L$37:L58)-1,COLUMNS($L$37:L58)-1),"") -> 8 | K44: =IF(OFFSET(DE100_18!$M$37,ROWS($M$37:M58)-1,COLUMNS($M$37:M58)-1)<>"",OFFSET(DE100_18!$M$37,ROWS($M$37:M58)-1,COLUMNS($M$37:M58)-1),"") -> 0.013 | L44: =IF(OFFSET(DE100_18!$P$37,ROWS($P$37:P58)-1,COLUMNS($P$37:P58)-1)<>"",OFFSET(DE100_18!$P$37,ROWS($P$37:P58)-1,COLUMNS($P$37:P58)-1),"") -> 943.021025 | M44: =IF(OFFSET(DE100_18!$R$37,ROWS($R$37:R58)-1,COLUMNS($R$37:R58)-1)<>"",OFFSET(DE100_18!$R$37,ROWS($R$37:R58)-1,COLUMNS($R$37:R58)-1),"") -> 
A45: =IF(OFFSET(DE100_18!$C$37,ROWS($C$37:C59)-1,COLUMNS($C$37:C59)-1)<>"",OFFSET(DE100_18!$C$37,ROWS($C$37:C59)-1,COLUMNS($C$37:C59)-1),"") -> 1 | B45: =IF(OFFSET(DE100_18!$D$37,ROWS($D$37:D59)-1,COLUMNS($D$37:D59)-1)<>"",OFFSET(DE100_18!$D$37,ROWS($D$37:D59)-1,COLUMNS($D$37:D59)-1),"") -> 1 | C45: =IF(OFFSET(DE100_18!$E$37,ROWS($E$37:E59)-1,COLUMNS($E$37:E59)-1)<>"",OFFSET(DE100_18!$E$37,ROWS($E$37:E59)-1,COLUMNS($E$37:E59)-1),"") -> 45900 | D45: =IF(OFFSET(DE100_18!$F$37,ROWS($F$37:F59)-1,COLUMNS($F$37:F59)-1)<>"",OFFSET(DE100_18!$F$37,ROWS($F$37:F59)-1,COLUMNS($F$37:F59)-1),"") -> Right | E45: =IF(OFFSET(DE100_18!$G$37,ROWS($G$37:G59)-1,COLUMNS($G$37:G59)-1)<>"",OFFSET(DE100_18!$G$37,ROWS($G$37:G59)-1,COLUMNS($G$37:G59)-1),"") -> 39 | F45: =IF(OFFSET(DE100_18!$H$37,ROWS($H$37:H59)-1,COLUMNS($H$37:H59)-1)<>"",OFFSET(DE100_18!$H$37,ROWS($H$37:H59)-1,COLUMNS($H$37:H59)-1),"") -> 3.9 | G45: =IF(OFFSET(DE100_18!$I$37,ROWS($I$37:I59)-1,COLUMNS($I$37:I59)-1)<>"",OFFSET(DE100_18!$I$37,ROWS($I$37:I59)-1,COLUMNS($I$37:I59)-1),"") -> 19.5 | H45: =IF(OFFSET(DE100_18!$J$37,ROWS($J$37:J59)-1,COLUMNS($J$37:J59)-1)<>"",OFFSET(DE100_18!$J$37,ROWS($J$37:J59)-1,COLUMNS($J$37:J59)-1),"") -> 6 | I45: =IF(OFFSET(DE100_18!$K$37,ROWS($K$37:K59)-1,COLUMNS($K$37:K59)-1)<>"",OFFSET(DE100_18!$K$37,ROWS($K$37:K59)-1,COLUMNS($K$37:K59)-1),"") -> 3 | J45: =IF(OFFSET(DE100_18!$L$37,ROWS($L$37:L59)-1,COLUMNS($L$37:L59)-1)<>"",OFFSET(DE100_18!$L$37,ROWS($L$37:L59)-1,COLUMNS($L$37:L59)-1),"") -> 8 | K45: =IF(OFFSET(DE100_18!$M$37,ROWS($M$37:M59)-1,COLUMNS($M$37:M59)-1)<>"",OFFSET(DE100_18!$M$37,ROWS($M$37:M59)-1,COLUMNS($M$37:M59)-1),"") -> 0.013 | L45: =IF(OFFSET(DE100_18!$P$37,ROWS($P$37:P59)-1,COLUMNS($P$37:P59)-1)<>"",OFFSET(DE100_18!$P$37,ROWS($P$37:P59)-1,COLUMNS($P$37:P59)-1),"") -> 943.021025 | M45: =IF(OFFSET(DE100_18!$R$37,ROWS($R$37:R59)-1,COLUMNS($R$37:R59)-1)<>"",OFFSET(DE100_18!$R$37,ROWS($R$37:R59)-1,COLUMNS($R$37:R59)-1),"") -> 
A46: =IF(OFFSET(DE100_18!$C$37,ROWS($C$37:C60)-1,COLUMNS($C$37:C60)-1)<>"",OFFSET(DE100_18!$C$37,ROWS($C$37:C60)-1,COLUMNS($C$37:C60)-1),"") -> 1 | B46: =IF(OFFSET(DE100_18!$D$37,ROWS($D$37:D60)-1,COLUMNS($D$37:D60)-1)<>"",OFFSET(DE100_18!$D$37,ROWS($D$37:D60)-1,COLUMNS($D$37:D60)-1),"") -> 1 | C46: =IF(OFFSET(DE100_18!$E$37,ROWS($E$37:E60)-1,COLUMNS($E$37:E60)-1)<>"",OFFSET(DE100_18!$E$37,ROWS($E$37:E60)-1,COLUMNS($E$37:E60)-1),"") -> 46050 | D46: =IF(OFFSET(DE100_18!$F$37,ROWS($F$37:F60)-1,COLUMNS($F$37:F60)-1)<>"",OFFSET(DE100_18!$F$37,ROWS($F$37:F60)-1,COLUMNS($F$37:F60)-1),"") -> Right | E46: =IF(OFFSET(DE100_18!$G$37,ROWS($G$37:G60)-1,COLUMNS($G$37:G60)-1)<>"",OFFSET(DE100_18!$G$37,ROWS($G$37:G60)-1,COLUMNS($G$37:G60)-1),"") -> 39 | F46: =IF(OFFSET(DE100_18!$H$37,ROWS($H$37:H60)-1,COLUMNS($H$37:H60)-1)<>"",OFFSET(DE100_18!$H$37,ROWS($H$37:H60)-1,COLUMNS($H$37:H60)-1),"") -> 3.9 | G46: =IF(OFFSET(DE100_18!$I$37,ROWS($I$37:I60)-1,COLUMNS($I$37:I60)-1)<>"",OFFSET(DE100_18!$I$37,ROWS($I$37:I60)-1,COLUMNS($I$37:I60)-1),"") -> 19.5 | H46: =IF(OFFSET(DE100_18!$J$37,ROWS($J$37:J60)-1,COLUMNS($J$37:J60)-1)<>"",OFFSET(DE100_18!$J$37,ROWS($J$37:J60)-1,COLUMNS($J$37:J60)-1),"") -> 6 | I46: =IF(OFFSET(DE100_18!$K$37,ROWS($K$37:K60)-1,COLUMNS($K$37:K60)-1)<>"",OFFSET(DE100_18!$K$37,ROWS($K$37:K60)-1,COLUMNS($K$37:K60)-1),"") -> 3 | J46: =IF(OFFSET(DE100_18!$L$37,ROWS($L$37:L60)-1,COLUMNS($L$37:L60)-1)<>"",OFFSET(DE100_18!$L$37,ROWS($L$37:L60)-1,COLUMNS($L$37:L60)-1),"") -> 8 | K46: =IF(OFFSET(DE100_18!$M$37,ROWS($M$37:M60)-1,COLUMNS($M$37:M60)-1)<>"",OFFSET(DE100_18!$M$37,ROWS($M$37:M60)-1,COLUMNS($M$37:M60)-1),"") -> 0.013 | L46: =IF(OFFSET(DE100_18!$P$37,ROWS($P$37:P60)-1,COLUMNS($P$37:P60)-1)<>"",OFFSET(DE100_18!$P$37,ROWS($P$37:P60)-1,COLUMNS($P$37:P60)-1),"") -> 943.021025 | M46: =IF(OFFSET(DE100_18!$R$37,ROWS($R$37:R60)-1,COLUMNS($R$37:R60)-1)<>"",OFFSET(DE100_18!$R$37,ROWS($R$37:R60)-1,COLUMNS($R$37:R60)-1),"") -> 
